Workbook

Sheet Velkomst

Sheet Tabel 1 Sydj
A1: ='[1]Tabel 1 Sydj DATA'!G1 -> Tabel 1. Forsikrede medlemmer
A3: ='[1]Tabel 1 Sydj DATA'!G2 -> Sydjylland
C5: ='[1]Tabel 1 Sydj DATA'!I4 -> Mænd | E5: ='[1]Tabel 1 Sydj DATA'!K4 -> Kvinder | G5: ='[1]Tabel 1 Sydj DATA'!M4 -> I alt
A7: ='[1]Tabel 1 Sydj DATA'!G6 -> Civ. ing. | C7: ='[1]Tabel 1 Sydj DATA'!I6 -> 1516 | E7: ='[1]Tabel 1 Sydj DATA'!K6 -> 492 | G7: ='[1]Tabel 1 Sydj DATA'!M6 -> 2008
A8: ='[1]Tabel 1 Sydj DATA'!G7 -> Diplom ing. | C8: ='[1]Tabel 1 Sydj DATA'!I7 -> 3369 | E8: ='[1]Tabel 1 Sydj DATA'!K7 -> 845 | G8: ='[1]Tabel 1 Sydj DATA'!M7 -> 4214
A9: ='[1]Tabel 1 Sydj DATA'!G8 -> Cand. Scient. Tek. | C9: ='[1]Tabel 1 Sydj DATA'!I8 -> 563 | E9: ='[1]Tabel 1 Sydj DATA'!K8 -> 396 | G9: ='[1]Tabel 1 Sydj DATA'!M8 -> 959
A10: ='[1]Tabel 1 Sydj DATA'!G9 -> MA. Hum. | C10: ='[1]Tabel 1 Sydj DATA'!I9 -> 737 | E10: ='[1]Tabel 1 Sydj DATA'!K9 -> 1611 | G10: ='[1]Tabel 1 Sydj DATA'!M9 -> 2348
A11: ='[1]Tabel 1 Sydj DATA'!G10 -> MA. Nat. | C11: ='[1]Tabel 1 Sydj DATA'!I10 -> 398 | E11: ='[1]Tabel 1 Sydj DATA'!K10 -> 350 | G11: ='[1]Tabel 1 Sydj DATA'!M10 -> 748
A12: ='[1]Tabel 1 Sydj DATA'!G11 -> MA. Ph.d. | C12: ='[1]Tabel 1 Sydj DATA'!I11 -> 37 | E12: ='[1]Tabel 1 Sydj DATA'!K11 -> 40 | G12: ='[1]Tabel 1 Sydj DATA'!M11 -> 77
A13: ='[1]Tabel 1 Sydj DATA'!G12 -> MA. Samf. | C13: ='[1]Tabel 1 Sydj DATA'!I12 -> 33 | E13: ='[1]Tabel 1 Sydj DATA'!K12 -> 104 | G13: ='[1]Tabel 1 Sydj DATA'!M12 -> 137
A14: ='[1]Tabel 1 Sydj DATA'!G13 -> Øvrige Mag. | C14: ='[1]Tabel 1 Sydj DATA'!I13 -> 66 | E14: ='[1]Tabel 1 Sydj DATA'!K13 -> 148 | G14: ='[1]Tabel 1 Sydj DATA'!M13 -> 214
A15: ='[1]Tabel 1 Sydj DATA'!G14 -> Agronom | C15: ='[1]Tabel 1 Sydj DATA'!I14 -> 107 | E15: ='[1]Tabel 1 Sydj DATA'!K14 -> 114 | G15: ='[1]Tabel 1 Sydj DATA'!M14 -> 221
A16: ='[1]Tabel 1 Sydj DATA'!G15 -> Landsk. Arkt. | C16: ='[1]Tabel 1 Sydj DATA'!I15 -> 10 | E16: ='[1]Tabel 1 Sydj DATA'!K15 -> 21 | G16: ='[1]Tabel 1 Sydj DATA'!M15 -> 31
A17: ='[1]Tabel 1 Sydj DATA'!G16 -> Hortonom | C17: ='[1]Tabel 1 Sydj DATA'!I16 -> 4 | E17: ='[1]Tabel 1 Sydj DATA'!K16 -> 14 | G17: ='[1]Tabel 1 Sydj DATA'!M16 -> 18
A18: ='[1]Tabel 1 Sydj DATA'!G17 -> Forstkand. | C18: ='[1]Tabel 1 Sydj DATA'!I17 -> 28 | E18: ='[1]Tabel 1 Sydj DATA'!K17 -> 11 | G18: ='[1]Tabel 1 Sydj DATA'!M17 -> 39
A19: ='[1]Tabel 1 Sydj DATA'!G18 -> Jordbrugsakad. | C19: ='[1]Tabel 1 Sydj DATA'!I18 -> 149 | E19: ='[1]Tabel 1 Sydj DATA'!K18 -> 235 | G19: ='[1]Tabel 1 Sydj DATA'!M18 -> 384
A20: ='[1]Tabel 1 Sydj DATA'!G19 -> Mejeriing. | C20: ='[1]Tabel 1 Sydj DATA'!I19 -> 23 | E20: ='[1]Tabel 1 Sydj DATA'!K19 -> 18 | G20: ='[1]Tabel 1 Sydj DATA'!M19 -> 41
A21: ='[1]Tabel 1 Sydj DATA'!G20 -> Levn.m.kand. | C21: ='[1]Tabel 1 Sydj DATA'!I20 -> 1 | E21: ='[1]Tabel 1 Sydj DATA'!K20 -> 10 | G21: ='[1]Tabel 1 Sydj DATA'!M20 -> 11
A22: ='[1]Tabel 1 Sydj DATA'!G21 -> Dyrlæge | C22: ='[1]Tabel 1 Sydj DATA'!I21 -> 66 | E22: ='[1]Tabel 1 Sydj DATA'!K21 -> 235 | G22: ='[1]Tabel 1 Sydj DATA'!M21 -> 301
A23: ='[1]Tabel 1 Sydj DATA'!G22 -> Farmaceut | C23: ='[1]Tabel 1 Sydj DATA'!I22 -> 37 | E23: ='[1]Tabel 1 Sydj DATA'!K22 -> 154 | G23: ='[1]Tabel 1 Sydj DATA'!M22 -> 191
A24: ='[1]Tabel 1 Sydj DATA'!G23 -> Læge | C24: ='[1]Tabel 1 Sydj DATA'!I23 -> 252 | E24: ='[1]Tabel 1 Sydj DATA'!K23 -> 567 | G24: ='[1]Tabel 1 Sydj DATA'!M23 -> 819
A25: ='[1]Tabel 1 Sydj DATA'!G24 -> Tandlæge | C25: ='[1]Tabel 1 Sydj DATA'!I24 -> 18 | E25: ='[1]Tabel 1 Sydj DATA'!K24 -> 167 | G25: ='[1]Tabel 1 Sydj DATA'!M24 -> 185
A26: ='[1]Tabel 1 Sydj DATA'!G25 -> Arkitekt | C26: ='[1]Tabel 1 Sydj DATA'!I25 -> 95 | E26: ='[1]Tabel 1 Sydj DATA'!K25 -> 119 | G26: ='[1]Tabel 1 Sydj DATA'!M25 -> 214
A27: ='[1]Tabel 1 Sydj DATA'!G26 -> Landinspek. | C27: ='[1]Tabel 1 Sydj DATA'!I26 -> 59 | E27: ='[1]Tabel 1 Sydj DATA'!K26 -> 31 | G27: ='[1]Tabel 1 Sydj DATA'!M26 -> 90
A28: ='[1]Tabel 1 Sydj DATA'!G27 -> Bibliotekar | C28: ='[1]Tabel 1 Sydj DATA'!I27 -> 57 | E28: ='[1]Tabel 1 Sydj DATA'!K27 -> 195 | G28: ='[1]Tabel 1 Sydj DATA'!M27 -> 252
A29: ='[1]Tabel 1 Sydj DATA'!G28 -> Musikudd. | C29: ='[1]Tabel 1 Sydj DATA'!I28 -> 44 | E29: ='[1]Tabel 1 Sydj DATA'!K28 -> 60 | G29: ='[1]Tabel 1 Sydj DATA'!M28 -> 104
A30: ='[1]Tabel 1 Sydj DATA'!G29 -> Teolog | C30: ='[1]Tabel 1 Sydj DATA'!I29 -> 81 | E30: ='[1]Tabel 1 Sydj DATA'!K29 -> 119 | G30: ='[1]Tabel 1 Sydj DATA'!M29 -> 200
A31: ='[1]Tabel 1 Sydj DATA'!G30 -> Psykolog | C31: ='[1]Tabel 1 Sydj DATA'!I30 -> 78 | E31: ='[1]Tabel 1 Sydj DATA'!K30 -> 413 | G31: ='[1]Tabel 1 Sydj DATA'!M30 -> 491
A32: ='[1]Tabel 1 Sydj DATA'!G31 -> Jurist | C32: ='[1]Tabel 1 Sydj DATA'!I31 -> 248 | E32: ='[1]Tabel 1 Sydj DATA'!K31 -> 535 | G32: ='[1]Tabel 1 Sydj DATA'!M31 -> 783
A33: ='[1]Tabel 1 Sydj DATA'!G32 -> Økonom | C33: ='[1]Tabel 1 Sydj DATA'!I32 -> 245 | E33: ='[1]Tabel 1 Sydj DATA'!K32 -> 164 | G33: ='[1]Tabel 1 Sydj DATA'!M32 -> 409
A34: ='[1]Tabel 1 Sydj DATA'!G33 -> Samf. Adm. | C34: ='[1]Tabel 1 Sydj DATA'!I33 -> 448 | E34: ='[1]Tabel 1 Sydj DATA'!K33 -> 693 | G34: ='[1]Tabel 1 Sydj DATA'!M33 -> 1141
A35: ='[1]Tabel 1 Sydj DATA'!G34 -> Cand. Merc. | C35: ='[1]Tabel 1 Sydj DATA'!I34 -> 1152 | E35: ='[1]Tabel 1 Sydj DATA'!K34 -> 1043 | G35: ='[1]Tabel 1 Sydj DATA'!M34 -> 2195
A36: ='[1]Tabel 1 Sydj DATA'!G35 -> HA | C36: ='[1]Tabel 1 Sydj DATA'!I35 -> 315 | E36: ='[1]Tabel 1 Sydj DATA'!K35 -> 310 | G36: ='[1]Tabel 1 Sydj DATA'!M35 -> 625
A37: ='[1]Tabel 1 Sydj DATA'!G36 -> HD | C37: ='[1]Tabel 1 Sydj DATA'!I36 -> 275 | E37: ='[1]Tabel 1 Sydj DATA'!K36 -> 199 | G37: ='[1]Tabel 1 Sydj DATA'!M36 -> 474
A38: ='[1]Tabel 1 Sydj DATA'!G37 -> Komm. og Sprog | C38: ='[1]Tabel 1 Sydj DATA'!I37 -> 52 | E38: ='[1]Tabel 1 Sydj DATA'!K37 -> 404 | G38: ='[1]Tabel 1 Sydj DATA'!M37 -> 456
A39: ='[1]Tabel 1 Sydj DATA'!G38 -> Bygningskonst. | C39: ='[1]Tabel 1 Sydj DATA'!I38 -> 651 | E39: ='[1]Tabel 1 Sydj DATA'!K38 -> 101 | G39: ='[1]Tabel 1 Sydj DATA'!M38 -> 752
A40: ='[1]Tabel 1 Sydj DATA'!G39 -> Cand. IT. | C40: ='[1]Tabel 1 Sydj DATA'!I39 -> 112 | E40: ='[1]Tabel 1 Sydj DATA'!K39 -> 117 | G40: ='[1]Tabel 1 Sydj DATA'!M39 -> 229
A41: ='[1]Tabel 1 Sydj DATA'!G40 -> Bac. Samf. | C41: ='[1]Tabel 1 Sydj DATA'!I40 -> 30 | E41: ='[1]Tabel 1 Sydj DATA'!K40 -> 54 | G41: ='[1]Tabel 1 Sydj DATA'!M40 -> 84
A42: ='[1]Tabel 1 Sydj DATA'!G41 -> Bac. Hum. | C42: ='[1]Tabel 1 Sydj DATA'!I41 -> 66 | E42: ='[1]Tabel 1 Sydj DATA'!K41 -> 119 | G42: ='[1]Tabel 1 Sydj DATA'!M41 -> 185
A43: ='[1]Tabel 1 Sydj DATA'!G42 -> Bac. Nat. | C43: ='[1]Tabel 1 Sydj DATA'!I42 -> 166 | E43: ='[1]Tabel 1 Sydj DATA'!K42 -> 78 | G43: ='[1]Tabel 1 Sydj DATA'!M42 -> 244
A44: ='[1]Tabel 1 Sydj DATA'!G43 -> Andre | C44: ='[1]Tabel 1 Sydj DATA'!I43 -> 764 | E44: ='[1]Tabel 1 Sydj DATA'!K43 -> 599 | G44: ='[1]Tabel 1 Sydj DATA'!M43 -> 1363
A46: ='[1]Tabel 1 Sydj DATA'!G45 -> Total | C46: ='[1]Tabel 1 Sydj DATA'!I45 -> 12203 | E46: ='[1]Tabel 1 Sydj DATA'!K45 -> 10650 | G46: ='[1]Tabel 1 Sydj DATA'!M45 -> 22853
A48: ='[1]Tabel 1 Sydj DATA'!G47 -> Ingeniører i alt | C48: ='[1]Tabel 1 Sydj DATA'!I47 -> 4885 | E48: ='[1]Tabel 1 Sydj DATA'!K47 -> 1337 | G48: ='[1]Tabel 1 Sydj DATA'!M47 -> 6222
A49: ='[1]Tabel 1 Sydj DATA'!G48 -> Magistre i alt | C49: ='[1]Tabel 1 Sydj DATA'!I48 -> 1271 | E49: ='[1]Tabel 1 Sydj DATA'!K48 -> 2253 | G49: ='[1]Tabel 1 Sydj DATA'!M48 -> 3524
A50: ='[1]Tabel 1 Sydj DATA'!G49 -> DJØF'ere i alt | C50: ='[1]Tabel 1 Sydj DATA'!I49 -> 2408 | E50: ='[1]Tabel 1 Sydj DATA'!K49 -> 2745 | G50: ='[1]Tabel 1 Sydj DATA'!M49 -> 5153
A57: ='[1]Tabel 1 Sydj DATA'!G55 -> Haderslev
C59: ='[1]Tabel 1 Sydj DATA'!I57 -> Mænd | E59: ='[1]Tabel 1 Sydj DATA'!K57 -> Kvinder | G59: ='[1]Tabel 1 Sydj DATA'!M57 -> I alt
A61: ='[1]Tabel 1 Sydj DATA'!G59 -> Civ. ing. | C61: ='[1]Tabel 1 Sydj DATA'!I59 -> 44 | E61: ='[1]Tabel 1 Sydj DATA'!K59 -> 12 | G61: ='[1]Tabel 1 Sydj DATA'!M59 -> 56
A62: ='[1]Tabel 1 Sydj DATA'!G60 -> Diplom ing. | C62: ='[1]Tabel 1 Sydj DATA'!I60 -> 139 | E62: ='[1]Tabel 1 Sydj DATA'!K60 -> 35 | G62: ='[1]Tabel 1 Sydj DATA'!M60 -> 174
A63: ='[1]Tabel 1 Sydj DATA'!G61 -> Cand. Scient. Tek. | C63: ='[1]Tabel 1 Sydj DATA'!I61 -> 19 | E63: ='[1]Tabel 1 Sydj DATA'!K61 -> 18 | G63: ='[1]Tabel 1 Sydj DATA'!M61 -> 37
A64: ='[1]Tabel 1 Sydj DATA'!G62 -> MA. Hum. | C64: ='[1]Tabel 1 Sydj DATA'!I62 -> 61 | E64: ='[1]Tabel 1 Sydj DATA'!K62 -> 122 | G64: ='[1]Tabel 1 Sydj DATA'!M62 -> 183
A65: ='[1]Tabel 1 Sydj DATA'!G63 -> MA. Nat. | C65: ='[1]Tabel 1 Sydj DATA'!I63 -> 22 | E65: ='[1]Tabel 1 Sydj DATA'!K63 -> 20 | G65: ='[1]Tabel 1 Sydj DATA'!M63 -> 42
A66: ='[1]Tabel 1 Sydj DATA'!G64 -> MA. Ph.d. | C66: ='[1]Tabel 1 Sydj DATA'!I64 -> 2 | E66: ='[1]Tabel 1 Sydj DATA'!K64 -> 0 | G66: ='[1]Tabel 1 Sydj DATA'!M64 -> 2
A67: ='[1]Tabel 1 Sydj DATA'!G65 -> MA. Samf. | C67: ='[1]Tabel 1 Sydj DATA'!I65 -> 3 | E67: ='[1]Tabel 1 Sydj DATA'!K65 -> 3 | G67: ='[1]Tabel 1 Sydj DATA'!M65 -> 6
A68: ='[1]Tabel 1 Sydj DATA'!G66 -> Øvrige Mag. | C68: ='[1]Tabel 1 Sydj DATA'!I66 -> 5 | E68: ='[1]Tabel 1 Sydj DATA'!K66 -> 11 | G68: ='[1]Tabel 1 Sydj DATA'!M66 -> 16
A69: ='[1]Tabel 1 Sydj DATA'!G67 -> Agronom | C69: ='[1]Tabel 1 Sydj DATA'!I67 -> 8 | E69: ='[1]Tabel 1 Sydj DATA'!K67 -> 14 | G69: ='[1]Tabel 1 Sydj DATA'!M67 -> 22
A70: ='[1]Tabel 1 Sydj DATA'!G68 -> Landsk. Arkt. | C70: ='[1]Tabel 1 Sydj DATA'!I68 -> 2 | E70: ='[1]Tabel 1 Sydj DATA'!K68 -> 1 | G70: ='[1]Tabel 1 Sydj DATA'!M68 -> 3
A71: ='[1]Tabel 1 Sydj DATA'!G69 -> Hortonom | C71: ='[1]Tabel 1 Sydj DATA'!I69 -> 1 | E71: ='[1]Tabel 1 Sydj DATA'!K69 -> 1 | G71: ='[1]Tabel 1 Sydj DATA'!M69 -> 2
A72: ='[1]Tabel 1 Sydj DATA'!G70 -> Forstkand. | C72: ='[1]Tabel 1 Sydj DATA'!I70 -> 0 | E72: ='[1]Tabel 1 Sydj DATA'!K70 -> 0 | G72: ='[1]Tabel 1 Sydj DATA'!M70 -> 0
A73: ='[1]Tabel 1 Sydj DATA'!G71 -> Jordbrugsakad. | C73: ='[1]Tabel 1 Sydj DATA'!I71 -> 11 | E73: ='[1]Tabel 1 Sydj DATA'!K71 -> 19 | G73: ='[1]Tabel 1 Sydj DATA'!M71 -> 30
A74: ='[1]Tabel 1 Sydj DATA'!G72 -> Mejeriing. | C74: ='[1]Tabel 1 Sydj DATA'!I72 -> 0 | E74: ='[1]Tabel 1 Sydj DATA'!K72 -> 3 | G74: ='[1]Tabel 1 Sydj DATA'!M72 -> 3
A75: ='[1]Tabel 1 Sydj DATA'!G73 -> Levn.m.kand. | C75: ='[1]Tabel 1 Sydj DATA'!I73 -> 0 | E75: ='[1]Tabel 1 Sydj DATA'!K73 -> 1 | G75: ='[1]Tabel 1 Sydj DATA'!M73 -> 1
A76: ='[1]Tabel 1 Sydj DATA'!G74 -> Dyrlæge | C76: ='[1]Tabel 1 Sydj DATA'!I74 -> 2 | E76: ='[1]Tabel 1 Sydj DATA'!K74 -> 19 | G76: ='[1]Tabel 1 Sydj DATA'!M74 -> 21
A77: ='[1]Tabel 1 Sydj DATA'!G75 -> Farmaceut | C77: ='[1]Tabel 1 Sydj DATA'!I75 -> 5 | E77: ='[1]Tabel 1 Sydj DATA'!K75 -> 10 | G77: ='[1]Tabel 1 Sydj DATA'!M75 -> 15
A78: ='[1]Tabel 1 Sydj DATA'!G76 -> Læge | C78: ='[1]Tabel 1 Sydj DATA'!I76 -> 9 | E78: ='[1]Tabel 1 Sydj DATA'!K76 -> 13 | G78: ='[1]Tabel 1 Sydj DATA'!M76 -> 22
A79: ='[1]Tabel 1 Sydj DATA'!G77 -> Tandlæge | C79: ='[1]Tabel 1 Sydj DATA'!I77 -> 1 | E79: ='[1]Tabel 1 Sydj DATA'!K77 -> 17 | G79: ='[1]Tabel 1 Sydj DATA'!M77 -> 18
A80: ='[1]Tabel 1 Sydj DATA'!G78 -> Arkitekt | C80: ='[1]Tabel 1 Sydj DATA'!I78 -> 8 | E80: ='[1]Tabel 1 Sydj DATA'!K78 -> 7 | G80: ='[1]Tabel 1 Sydj DATA'!M78 -> 15
A81: ='[1]Tabel 1 Sydj DATA'!G79 -> Landinspek. | C81: ='[1]Tabel 1 Sydj DATA'!I79 -> 2 | E81: ='[1]Tabel 1 Sydj DATA'!K79 -> 1 | G81: ='[1]Tabel 1 Sydj DATA'!M79 -> 3
A82: ='[1]Tabel 1 Sydj DATA'!G80 -> Bibliotekar | C82: ='[1]Tabel 1 Sydj DATA'!I80 -> 0 | E82: ='[1]Tabel 1 Sydj DATA'!K80 -> 9 | G82: ='[1]Tabel 1 Sydj DATA'!M80 -> 9
A83: ='[1]Tabel 1 Sydj DATA'!G81 -> Musikudd. | C83: ='[1]Tabel 1 Sydj DATA'!I81 -> 4 | E83: ='[1]Tabel 1 Sydj DATA'!K81 -> 8 | G83: ='[1]Tabel 1 Sydj DATA'!M81 -> 12
A84: ='[1]Tabel 1 Sydj DATA'!G82 -> Teolog | C84: ='[1]Tabel 1 Sydj DATA'!I82 -> 8 | E84: ='[1]Tabel 1 Sydj DATA'!K82 -> 9 | G84: ='[1]Tabel 1 Sydj DATA'!M82 -> 17
A85: ='[1]Tabel 1 Sydj DATA'!G83 -> Psykolog | C85: ='[1]Tabel 1 Sydj DATA'!I83 -> 4 | E85: ='[1]Tabel 1 Sydj DATA'!K83 -> 16 | G85: ='[1]Tabel 1 Sydj DATA'!M83 -> 20
A86: ='[1]Tabel 1 Sydj DATA'!G84 -> Jurist | C86: ='[1]Tabel 1 Sydj DATA'!I84 -> 12 | E86: ='[1]Tabel 1 Sydj DATA'!K84 -> 32 | G86: ='[1]Tabel 1 Sydj DATA'!M84 -> 44
A87: ='[1]Tabel 1 Sydj DATA'!G85 -> Økonom | C87: ='[1]Tabel 1 Sydj DATA'!I85 -> 12 | E87: ='[1]Tabel 1 Sydj DATA'!K85 -> 10 | G87: ='[1]Tabel 1 Sydj DATA'!M85 -> 22
A88: ='[1]Tabel 1 Sydj DATA'!G86 -> Samf. Adm. | C88: ='[1]Tabel 1 Sydj DATA'!I86 -> 22 | E88: ='[1]Tabel 1 Sydj DATA'!K86 -> 25 | G88: ='[1]Tabel 1 Sydj DATA'!M86 -> 47
A89: ='[1]Tabel 1 Sydj DATA'!G87 -> Cand. Merc. | C89: ='[1]Tabel 1 Sydj DATA'!I87 -> 51 | E89: ='[1]Tabel 1 Sydj DATA'!K87 -> 57 | G89: ='[1]Tabel 1 Sydj DATA'!M87 -> 108
A90: ='[1]Tabel 1 Sydj DATA'!G88 -> HA | C90: ='[1]Tabel 1 Sydj DATA'!I88 -> 19 | E90: ='[1]Tabel 1 Sydj DATA'!K88 -> 13 | G90: ='[1]Tabel 1 Sydj DATA'!M88 -> 32
A91: ='[1]Tabel 1 Sydj DATA'!G89 -> HD | C91: ='[1]Tabel 1 Sydj DATA'!I89 -> 18 | E91: ='[1]Tabel 1 Sydj DATA'!K89 -> 10 | G91: ='[1]Tabel 1 Sydj DATA'!M89 -> 28
A92: ='[1]Tabel 1 Sydj DATA'!G90 -> Komm. og Sprog | C92: ='[1]Tabel 1 Sydj DATA'!I90 -> 3 | E92: ='[1]Tabel 1 Sydj DATA'!K90 -> 26 | G92: ='[1]Tabel 1 Sydj DATA'!M90 -> 29
A93: ='[1]Tabel 1 Sydj DATA'!G91 -> Bygningskonst. | C93: ='[1]Tabel 1 Sydj DATA'!I91 -> 50 | E93: ='[1]Tabel 1 Sydj DATA'!K91 -> 7 | G93: ='[1]Tabel 1 Sydj DATA'!M91 -> 57
A94: ='[1]Tabel 1 Sydj DATA'!G92 -> Cand. IT. | C94: ='[1]Tabel 1 Sydj DATA'!I92 -> 3 | E94: ='[1]Tabel 1 Sydj DATA'!K92 -> 7 | G94: ='[1]Tabel 1 Sydj DATA'!M92 -> 10
A95: ='[1]Tabel 1 Sydj DATA'!G93 -> Bac. Samf. | C95: ='[1]Tabel 1 Sydj DATA'!I93 -> 2 | E95: ='[1]Tabel 1 Sydj DATA'!K93 -> 3 | G95: ='[1]Tabel 1 Sydj DATA'!M93 -> 5
A96: ='[1]Tabel 1 Sydj DATA'!G94 -> Bac. Hum. | C96: ='[1]Tabel 1 Sydj DATA'!I94 -> 6 | E96: ='[1]Tabel 1 Sydj DATA'!K94 -> 6 | G96: ='[1]Tabel 1 Sydj DATA'!M94 -> 12
A97: ='[1]Tabel 1 Sydj DATA'!G95 -> Bac. Nat. | C97: ='[1]Tabel 1 Sydj DATA'!I95 -> 5 | E97: ='[1]Tabel 1 Sydj DATA'!K95 -> 7 | G97: ='[1]Tabel 1 Sydj DATA'!M95 -> 12
A98: ='[1]Tabel 1 Sydj DATA'!G96 -> Andre | C98: ='[1]Tabel 1 Sydj DATA'!I96 -> 30 | E98: ='[1]Tabel 1 Sydj DATA'!K96 -> 25 | G98: ='[1]Tabel 1 Sydj DATA'!M96 -> 55
A100: ='[1]Tabel 1 Sydj DATA'!G98 -> Total | C100: ='[1]Tabel 1 Sydj DATA'!I98 -> 582 | E100: ='[1]Tabel 1 Sydj DATA'!K98 -> 578 | G100: ='[1]Tabel 1 Sydj DATA'!M98 -> 1160
A102: ='[1]Tabel 1 Sydj DATA'!G100 -> Ingeniører i alt | C102: ='[1]Tabel 1 Sydj DATA'!I100 -> 183 | E102: ='[1]Tabel 1 Sydj DATA'!K100 -> 47 | G102: ='[1]Tabel 1 Sydj DATA'!M100 -> 230
A103: ='[1]Tabel 1 Sydj DATA'!G101 -> Magistre i alt | C103: ='[1]Tabel 1 Sydj DATA'!I101 -> 93 | E103: ='[1]Tabel 1 Sydj DATA'!K101 -> 156 | G103: ='[1]Tabel 1 Sydj DATA'!M101 -> 249
A104: ='[1]Tabel 1 Sydj DATA'!G102 -> DJØF'ere i alt | C104: ='[1]Tabel 1 Sydj DATA'!I102 -> 116 | E104: ='[1]Tabel 1 Sydj DATA'!K102 -> 137 | G104: ='[1]Tabel 1 Sydj DATA'!M102 -> 253
A111: ='[1]Tabel 1 Sydj DATA'!G109 -> Billund
C113: ='[1]Tabel 1 Sydj DATA'!I111 -> Mænd | E113: ='[1]Tabel 1 Sydj DATA'!K111 -> Kvinder | G113: ='[1]Tabel 1 Sydj DATA'!M111 -> I alt
A115: ='[1]Tabel 1 Sydj DATA'!G113 -> Civ. ing. | C115: ='[1]Tabel 1 Sydj DATA'!I113 -> 31 | E115: ='[1]Tabel 1 Sydj DATA'!K113 -> 10 | G115: ='[1]Tabel 1 Sydj DATA'!M113 -> 41
A116: ='[1]Tabel 1 Sydj DATA'!G114 -> Diplom ing. | C116: ='[1]Tabel 1 Sydj DATA'!I114 -> 65 | E116: ='[1]Tabel 1 Sydj DATA'!K114 -> 23 | G116: ='[1]Tabel 1 Sydj DATA'!M114 -> 88
A117: ='[1]Tabel 1 Sydj DATA'!G115 -> Cand. Scient. Tek. | C117: ='[1]Tabel 1 Sydj DATA'!I115 -> 13 | E117: ='[1]Tabel 1 Sydj DATA'!K115 -> 8 | G117: ='[1]Tabel 1 Sydj DATA'!M115 -> 21
A118: ='[1]Tabel 1 Sydj DATA'!G116 -> MA. Hum. | C118: ='[1]Tabel 1 Sydj DATA'!I116 -> 15 | E118: ='[1]Tabel 1 Sydj DATA'!K116 -> 30 | G118: ='[1]Tabel 1 Sydj DATA'!M116 -> 45
A119: ='[1]Tabel 1 Sydj DATA'!G117 -> MA. Nat. | C119: ='[1]Tabel 1 Sydj DATA'!I117 -> 6 | E119: ='[1]Tabel 1 Sydj DATA'!K117 -> 12 | G119: ='[1]Tabel 1 Sydj DATA'!M117 -> 18
A120: ='[1]Tabel 1 Sydj DATA'!G118 -> MA. Ph.d. | C120: ='[1]Tabel 1 Sydj DATA'!I118 -> 1 | E120: ='[1]Tabel 1 Sydj DATA'!K118 -> 1 | G120: ='[1]Tabel 1 Sydj DATA'!M118 -> 2
A121: ='[1]Tabel 1 Sydj DATA'!G119 -> MA. Samf. | C121: ='[1]Tabel 1 Sydj DATA'!I119 -> 1 | E121: ='[1]Tabel 1 Sydj DATA'!K119 -> 0 | G121: ='[1]Tabel 1 Sydj DATA'!M119 -> 1
A122: ='[1]Tabel 1 Sydj DATA'!G120 -> Øvrige Mag. | C122: ='[1]Tabel 1 Sydj DATA'!I120 -> 2 | E122: ='[1]Tabel 1 Sydj DATA'!K120 -> 3 | G122: ='[1]Tabel 1 Sydj DATA'!M120 -> 5
A123: ='[1]Tabel 1 Sydj DATA'!G121 -> Agronom | C123: ='[1]Tabel 1 Sydj DATA'!I121 -> 1 | E123: ='[1]Tabel 1 Sydj DATA'!K121 -> 5 | G123: ='[1]Tabel 1 Sydj DATA'!M121 -> 6
A124: ='[1]Tabel 1 Sydj DATA'!G122 -> Landsk. Arkt. | C124: ='[1]Tabel 1 Sydj DATA'!I122 -> 0 | E124: ='[1]Tabel 1 Sydj DATA'!K122 -> 0 | G124: ='[1]Tabel 1 Sydj DATA'!M122 -> 0
A125: ='[1]Tabel 1 Sydj DATA'!G123 -> Hortonom | C125: ='[1]Tabel 1 Sydj DATA'!I123 -> 0 | E125: ='[1]Tabel 1 Sydj DATA'!K123 -> 0 | G125: ='[1]Tabel 1 Sydj DATA'!M123 -> 0
A126: ='[1]Tabel 1 Sydj DATA'!G124 -> Forstkand. | C126: ='[1]Tabel 1 Sydj DATA'!I124 -> 1 | E126: ='[1]Tabel 1 Sydj DATA'!K124 -> 0 | G126: ='[1]Tabel 1 Sydj DATA'!M124 -> 1
A127: ='[1]Tabel 1 Sydj DATA'!G125 -> Jordbrugsakad. | C127: ='[1]Tabel 1 Sydj DATA'!I125 -> 2 | E127: ='[1]Tabel 1 Sydj DATA'!K125 -> 4 | G127: ='[1]Tabel 1 Sydj DATA'!M125 -> 6
A128: ='[1]Tabel 1 Sydj DATA'!G126 -> Mejeriing. | C128: ='[1]Tabel 1 Sydj DATA'!I126 -> 0 | E128: ='[1]Tabel 1 Sydj DATA'!K126 -> 0 | G128: ='[1]Tabel 1 Sydj DATA'!M126 -> 0
A129: ='[1]Tabel 1 Sydj DATA'!G127 -> Levn.m.kand. | C129: ='[1]Tabel 1 Sydj DATA'!I127 -> 0 | E129: ='[1]Tabel 1 Sydj DATA'!K127 -> 0 | G129: ='[1]Tabel 1 Sydj DATA'!M127 -> 0
A130: ='[1]Tabel 1 Sydj DATA'!G128 -> Dyrlæge | C130: ='[1]Tabel 1 Sydj DATA'!I128 -> 3 | E130: ='[1]Tabel 1 Sydj DATA'!K128 -> 4 | G130: ='[1]Tabel 1 Sydj DATA'!M128 -> 7
A131: ='[1]Tabel 1 Sydj DATA'!G129 -> Farmaceut | C131: ='[1]Tabel 1 Sydj DATA'!I129 -> 0 | E131: ='[1]Tabel 1 Sydj DATA'!K129 -> 3 | G131: ='[1]Tabel 1 Sydj DATA'!M129 -> 3
A132: ='[1]Tabel 1 Sydj DATA'!G130 -> Læge | C132: ='[1]Tabel 1 Sydj DATA'!I130 -> 0 | E132: ='[1]Tabel 1 Sydj DATA'!K130 -> 3 | G132: ='[1]Tabel 1 Sydj DATA'!M130 -> 3
A133: ='[1]Tabel 1 Sydj DATA'!G131 -> Tandlæge | C133: ='[1]Tabel 1 Sydj DATA'!I131 -> 0 | E133: ='[1]Tabel 1 Sydj DATA'!K131 -> 7 | G133: ='[1]Tabel 1 Sydj DATA'!M131 -> 7
A134: ='[1]Tabel 1 Sydj DATA'!G132 -> Arkitekt | C134: ='[1]Tabel 1 Sydj DATA'!I132 -> 1 | E134: ='[1]Tabel 1 Sydj DATA'!K132 -> 4 | G134: ='[1]Tabel 1 Sydj DATA'!M132 -> 5
A135: ='[1]Tabel 1 Sydj DATA'!G133 -> Landinspek. | C135: ='[1]Tabel 1 Sydj DATA'!I133 -> 0 | E135: ='[1]Tabel 1 Sydj DATA'!K133 -> 0 | G135: ='[1]Tabel 1 Sydj DATA'!M133 -> 0
A136: ='[1]Tabel 1 Sydj DATA'!G134 -> Bibliotekar | C136: ='[1]Tabel 1 Sydj DATA'!I134 -> 0 | E136: ='[1]Tabel 1 Sydj DATA'!K134 -> 2 | G136: ='[1]Tabel 1 Sydj DATA'!M134 -> 2
A137: ='[1]Tabel 1 Sydj DATA'!G135 -> Musikudd. | C137: ='[1]Tabel 1 Sydj DATA'!I135 -> 1 | E137: ='[1]Tabel 1 Sydj DATA'!K135 -> 1 | G137: ='[1]Tabel 1 Sydj DATA'!M135 -> 2
A138: ='[1]Tabel 1 Sydj DATA'!G136 -> Teolog | C138: ='[1]Tabel 1 Sydj DATA'!I136 -> 2 | E138: ='[1]Tabel 1 Sydj DATA'!K136 -> 2 | G138: ='[1]Tabel 1 Sydj DATA'!M136 -> 4
A139: ='[1]Tabel 1 Sydj DATA'!G137 -> Psykolog | C139: ='[1]Tabel 1 Sydj DATA'!I137 -> 0 | E139: ='[1]Tabel 1 Sydj DATA'!K137 -> 8 | G139: ='[1]Tabel 1 Sydj DATA'!M137 -> 8
A140: ='[1]Tabel 1 Sydj DATA'!G138 -> Jurist | C140: ='[1]Tabel 1 Sydj DATA'!I138 -> 4 | E140: ='[1]Tabel 1 Sydj DATA'!K138 -> 9 | G140: ='[1]Tabel 1 Sydj DATA'!M138 -> 13
A141: ='[1]Tabel 1 Sydj DATA'!G139 -> Økonom | C141: ='[1]Tabel 1 Sydj DATA'!I139 -> 7 | E141: ='[1]Tabel 1 Sydj DATA'!K139 -> 2 | G141: ='[1]Tabel 1 Sydj DATA'!M139 -> 9
A142: ='[1]Tabel 1 Sydj DATA'!G140 -> Samf. Adm. | C142: ='[1]Tabel 1 Sydj DATA'!I140 -> 9 | E142: ='[1]Tabel 1 Sydj DATA'!K140 -> 17 | G142: ='[1]Tabel 1 Sydj DATA'!M140 -> 26
A143: ='[1]Tabel 1 Sydj DATA'!G141 -> Cand. Merc. | C143: ='[1]Tabel 1 Sydj DATA'!I141 -> 32 | E143: ='[1]Tabel 1 Sydj DATA'!K141 -> 31 | G143: ='[1]Tabel 1 Sydj DATA'!M141 -> 63
A144: ='[1]Tabel 1 Sydj DATA'!G142 -> HA | C144: ='[1]Tabel 1 Sydj DATA'!I142 -> 5 | E144: ='[1]Tabel 1 Sydj DATA'!K142 -> 8 | G144: ='[1]Tabel 1 Sydj DATA'!M142 -> 13
A145: ='[1]Tabel 1 Sydj DATA'!G143 -> HD | C145: ='[1]Tabel 1 Sydj DATA'!I143 -> 3 | E145: ='[1]Tabel 1 Sydj DATA'!K143 -> 7 | G145: ='[1]Tabel 1 Sydj DATA'!M143 -> 10
A146: ='[1]Tabel 1 Sydj DATA'!G144 -> Komm. og Sprog | C146: ='[1]Tabel 1 Sydj DATA'!I144 -> 2 | E146: ='[1]Tabel 1 Sydj DATA'!K144 -> 15 | G146: ='[1]Tabel 1 Sydj DATA'!M144 -> 17
A147: ='[1]Tabel 1 Sydj DATA'!G145 -> Bygningskonst. | C147: ='[1]Tabel 1 Sydj DATA'!I145 -> 12 | E147: ='[1]Tabel 1 Sydj DATA'!K145 -> 2 | G147: ='[1]Tabel 1 Sydj DATA'!M145 -> 14
A148: ='[1]Tabel 1 Sydj DATA'!G146 -> Cand. IT. | C148: ='[1]Tabel 1 Sydj DATA'!I146 -> 4 | E148: ='[1]Tabel 1 Sydj DATA'!K146 -> 4 | G148: ='[1]Tabel 1 Sydj DATA'!M146 -> 8
A149: ='[1]Tabel 1 Sydj DATA'!G147 -> Bac. Samf. | C149: ='[1]Tabel 1 Sydj DATA'!I147 -> 2 | E149: ='[1]Tabel 1 Sydj DATA'!K147 -> 3 | G149: ='[1]Tabel 1 Sydj DATA'!M147 -> 5
A150: ='[1]Tabel 1 Sydj DATA'!G148 -> Bac. Hum. | C150: ='[1]Tabel 1 Sydj DATA'!I148 -> 1 | E150: ='[1]Tabel 1 Sydj DATA'!K148 -> 1 | G150: ='[1]Tabel 1 Sydj DATA'!M148 -> 2
A151: ='[1]Tabel 1 Sydj DATA'!G149 -> Bac. Nat. | C151: ='[1]Tabel 1 Sydj DATA'!I149 -> 7 | E151: ='[1]Tabel 1 Sydj DATA'!K149 -> 3 | G151: ='[1]Tabel 1 Sydj DATA'!M149 -> 10
A152: ='[1]Tabel 1 Sydj DATA'!G150 -> Andre | C152: ='[1]Tabel 1 Sydj DATA'!I150 -> 26 | E152: ='[1]Tabel 1 Sydj DATA'!K150 -> 24 | G152: ='[1]Tabel 1 Sydj DATA'!M150 -> 50
A154: ='[1]Tabel 1 Sydj DATA'!G152 -> Total | C154: ='[1]Tabel 1 Sydj DATA'!I152 -> 257 | E154: ='[1]Tabel 1 Sydj DATA'!K152 -> 252 | G154: ='[1]Tabel 1 Sydj DATA'!M152 -> 509
A156: ='[1]Tabel 1 Sydj DATA'!G154 -> Ingeniører i alt | C156: ='[1]Tabel 1 Sydj DATA'!I154 -> 96 | E156: ='[1]Tabel 1 Sydj DATA'!K154 -> 33 | G156: ='[1]Tabel 1 Sydj DATA'!M154 -> 129
A157: ='[1]Tabel 1 Sydj DATA'!G155 -> Magistre i alt | C157: ='[1]Tabel 1 Sydj DATA'!I155 -> 25 | E157: ='[1]Tabel 1 Sydj DATA'!K155 -> 46 | G157: ='[1]Tabel 1 Sydj DATA'!M155 -> 71
A158: ='[1]Tabel 1 Sydj DATA'!G156 -> DJØF'ere i alt | C158: ='[1]Tabel 1 Sydj DATA'!I156 -> 57 | E158: ='[1]Tabel 1 Sydj DATA'!K156 -> 67 | G158: ='[1]Tabel 1 Sydj DATA'!M156 -> 124
A165: ='[1]Tabel 1 Sydj DATA'!G163 -> Sønderborg
C167: ='[1]Tabel 1 Sydj DATA'!I165 -> Mænd | E167: ='[1]Tabel 1 Sydj DATA'!K165 -> Kvinder | G167: ='[1]Tabel 1 Sydj DATA'!M165 -> I alt
A169: ='[1]Tabel 1 Sydj DATA'!G167 -> Civ. ing. | C169: ='[1]Tabel 1 Sydj DATA'!I167 -> 232 | E169: ='[1]Tabel 1 Sydj DATA'!K167 -> 45 | G169: ='[1]Tabel 1 Sydj DATA'!M167 -> 277
A170: ='[1]Tabel 1 Sydj DATA'!G168 -> Diplom ing. | C170: ='[1]Tabel 1 Sydj DATA'!I168 -> 669 | E170: ='[1]Tabel 1 Sydj DATA'!K168 -> 93 | G170: ='[1]Tabel 1 Sydj DATA'!M168 -> 762
A171: ='[1]Tabel 1 Sydj DATA'!G169 -> Cand. Scient. Tek. | C171: ='[1]Tabel 1 Sydj DATA'!I169 -> 94 | E171: ='[1]Tabel 1 Sydj DATA'!K169 -> 49 | G171: ='[1]Tabel 1 Sydj DATA'!M169 -> 143
A172: ='[1]Tabel 1 Sydj DATA'!G170 -> MA. Hum. | C172: ='[1]Tabel 1 Sydj DATA'!I170 -> 61 | E172: ='[1]Tabel 1 Sydj DATA'!K170 -> 147 | G172: ='[1]Tabel 1 Sydj DATA'!M170 -> 208
A173: ='[1]Tabel 1 Sydj DATA'!G171 -> MA. Nat. | C173: ='[1]Tabel 1 Sydj DATA'!I171 -> 41 | E173: ='[1]Tabel 1 Sydj DATA'!K171 -> 38 | G173: ='[1]Tabel 1 Sydj DATA'!M171 -> 79
A174: ='[1]Tabel 1 Sydj DATA'!G172 -> MA. Ph.d. | C174: ='[1]Tabel 1 Sydj DATA'!I172 -> 7 | E174: ='[1]Tabel 1 Sydj DATA'!K172 -> 6 | G174: ='[1]Tabel 1 Sydj DATA'!M172 -> 13
A175: ='[1]Tabel 1 Sydj DATA'!G173 -> MA. Samf. | C175: ='[1]Tabel 1 Sydj DATA'!I173 -> 2 | E175: ='[1]Tabel 1 Sydj DATA'!K173 -> 9 | G175: ='[1]Tabel 1 Sydj DATA'!M173 -> 11
A176: ='[1]Tabel 1 Sydj DATA'!G174 -> Øvrige Mag. | C176: ='[1]Tabel 1 Sydj DATA'!I174 -> 6 | E176: ='[1]Tabel 1 Sydj DATA'!K174 -> 15 | G176: ='[1]Tabel 1 Sydj DATA'!M174 -> 21
A177: ='[1]Tabel 1 Sydj DATA'!G175 -> Agronom | C177: ='[1]Tabel 1 Sydj DATA'!I175 -> 12 | E177: ='[1]Tabel 1 Sydj DATA'!K175 -> 18 | G177: ='[1]Tabel 1 Sydj DATA'!M175 -> 30
A178: ='[1]Tabel 1 Sydj DATA'!G176 -> Landsk. Arkt. | C178: ='[1]Tabel 1 Sydj DATA'!I176 -> 0 | E178: ='[1]Tabel 1 Sydj DATA'!K176 -> 4 | G178: ='[1]Tabel 1 Sydj DATA'!M176 -> 4
A179: ='[1]Tabel 1 Sydj DATA'!G177 -> Hortonom | C179: ='[1]Tabel 1 Sydj DATA'!I177 -> 1 | E179: ='[1]Tabel 1 Sydj DATA'!K177 -> 0 | G179: ='[1]Tabel 1 Sydj DATA'!M177 -> 1
A180: ='[1]Tabel 1 Sydj DATA'!G178 -> Forstkand. | C180: ='[1]Tabel 1 Sydj DATA'!I178 -> 3 | E180: ='[1]Tabel 1 Sydj DATA'!K178 -> 4 | G180: ='[1]Tabel 1 Sydj DATA'!M178 -> 7
A181: ='[1]Tabel 1 Sydj DATA'!G179 -> Jordbrugsakad. | C181: ='[1]Tabel 1 Sydj DATA'!I179 -> 16 | E181: ='[1]Tabel 1 Sydj DATA'!K179 -> 14 | G181: ='[1]Tabel 1 Sydj DATA'!M179 -> 30
A182: ='[1]Tabel 1 Sydj DATA'!G180 -> Mejeriing. | C182: ='[1]Tabel 1 Sydj DATA'!I180 -> 1 | E182: ='[1]Tabel 1 Sydj DATA'!K180 -> 0 | G182: ='[1]Tabel 1 Sydj DATA'!M180 -> 1
A183: ='[1]Tabel 1 Sydj DATA'!G181 -> Levn.m.kand. | C183: ='[1]Tabel 1 Sydj DATA'!I181 -> 0 | E183: ='[1]Tabel 1 Sydj DATA'!K181 -> 0 | G183: ='[1]Tabel 1 Sydj DATA'!M181 -> 0
A184: ='[1]Tabel 1 Sydj DATA'!G182 -> Dyrlæge | C184: ='[1]Tabel 1 Sydj DATA'!I182 -> 3 | E184: ='[1]Tabel 1 Sydj DATA'!K182 -> 14 | G184: ='[1]Tabel 1 Sydj DATA'!M182 -> 17
A185: ='[1]Tabel 1 Sydj DATA'!G183 -> Farmaceut | C185: ='[1]Tabel 1 Sydj DATA'!I183 -> 5 | E185: ='[1]Tabel 1 Sydj DATA'!K183 -> 15 | G185: ='[1]Tabel 1 Sydj DATA'!M183 -> 20
A186: ='[1]Tabel 1 Sydj DATA'!G184 -> Læge | C186: ='[1]Tabel 1 Sydj DATA'!I184 -> 22 | E186: ='[1]Tabel 1 Sydj DATA'!K184 -> 48 | G186: ='[1]Tabel 1 Sydj DATA'!M184 -> 70
A187: ='[1]Tabel 1 Sydj DATA'!G185 -> Tandlæge | C187: ='[1]Tabel 1 Sydj DATA'!I185 -> 0 | E187: ='[1]Tabel 1 Sydj DATA'!K185 -> 11 | G187: ='[1]Tabel 1 Sydj DATA'!M185 -> 11
A188: ='[1]Tabel 1 Sydj DATA'!G186 -> Arkitekt | C188: ='[1]Tabel 1 Sydj DATA'!I186 -> 3 | E188: ='[1]Tabel 1 Sydj DATA'!K186 -> 8 | G188: ='[1]Tabel 1 Sydj DATA'!M186 -> 11
A189: ='[1]Tabel 1 Sydj DATA'!G187 -> Landinspek. | C189: ='[1]Tabel 1 Sydj DATA'!I187 -> 4 | E189: ='[1]Tabel 1 Sydj DATA'!K187 -> 1 | G189: ='[1]Tabel 1 Sydj DATA'!M187 -> 5
A190: ='[1]Tabel 1 Sydj DATA'!G188 -> Bibliotekar | C190: ='[1]Tabel 1 Sydj DATA'!I188 -> 9 | E190: ='[1]Tabel 1 Sydj DATA'!K188 -> 25 | G190: ='[1]Tabel 1 Sydj DATA'!M188 -> 34
A191: ='[1]Tabel 1 Sydj DATA'!G189 -> Musikudd. | C191: ='[1]Tabel 1 Sydj DATA'!I189 -> 0 | E191: ='[1]Tabel 1 Sydj DATA'!K189 -> 4 | G191: ='[1]Tabel 1 Sydj DATA'!M189 -> 4
A192: ='[1]Tabel 1 Sydj DATA'!G190 -> Teolog | C192: ='[1]Tabel 1 Sydj DATA'!I190 -> 7 | E192: ='[1]Tabel 1 Sydj DATA'!K190 -> 18 | G192: ='[1]Tabel 1 Sydj DATA'!M190 -> 25
A193: ='[1]Tabel 1 Sydj DATA'!G191 -> Psykolog | C193: ='[1]Tabel 1 Sydj DATA'!I191 -> 11 | E193: ='[1]Tabel 1 Sydj DATA'!K191 -> 40 | G193: ='[1]Tabel 1 Sydj DATA'!M191 -> 51
A194: ='[1]Tabel 1 Sydj DATA'!G192 -> Jurist | C194: ='[1]Tabel 1 Sydj DATA'!I192 -> 25 | E194: ='[1]Tabel 1 Sydj DATA'!K192 -> 36 | G194: ='[1]Tabel 1 Sydj DATA'!M192 -> 61
A195: ='[1]Tabel 1 Sydj DATA'!G193 -> Økonom | C195: ='[1]Tabel 1 Sydj DATA'!I193 -> 24 | E195: ='[1]Tabel 1 Sydj DATA'!K193 -> 14 | G195: ='[1]Tabel 1 Sydj DATA'!M193 -> 38
A196: ='[1]Tabel 1 Sydj DATA'!G194 -> Samf. Adm. | C196: ='[1]Tabel 1 Sydj DATA'!I194 -> 42 | E196: ='[1]Tabel 1 Sydj DATA'!K194 -> 55 | G196: ='[1]Tabel 1 Sydj DATA'!M194 -> 97
A197: ='[1]Tabel 1 Sydj DATA'!G195 -> Cand. Merc. | C197: ='[1]Tabel 1 Sydj DATA'!I195 -> 112 | E197: ='[1]Tabel 1 Sydj DATA'!K195 -> 103 | G197: ='[1]Tabel 1 Sydj DATA'!M195 -> 215
A198: ='[1]Tabel 1 Sydj DATA'!G196 -> HA | C198: ='[1]Tabel 1 Sydj DATA'!I196 -> 47 | E198: ='[1]Tabel 1 Sydj DATA'!K196 -> 36 | G198: ='[1]Tabel 1 Sydj DATA'!M196 -> 83
A199: ='[1]Tabel 1 Sydj DATA'!G197 -> HD | C199: ='[1]Tabel 1 Sydj DATA'!I197 -> 28 | E199: ='[1]Tabel 1 Sydj DATA'!K197 -> 22 | G199: ='[1]Tabel 1 Sydj DATA'!M197 -> 50
A200: ='[1]Tabel 1 Sydj DATA'!G198 -> Komm. og Sprog | C200: ='[1]Tabel 1 Sydj DATA'!I198 -> 5 | E200: ='[1]Tabel 1 Sydj DATA'!K198 -> 55 | G200: ='[1]Tabel 1 Sydj DATA'!M198 -> 60
A201: ='[1]Tabel 1 Sydj DATA'!G199 -> Bygningskonst. | C201: ='[1]Tabel 1 Sydj DATA'!I199 -> 51 | E201: ='[1]Tabel 1 Sydj DATA'!K199 -> 4 | G201: ='[1]Tabel 1 Sydj DATA'!M199 -> 55
A202: ='[1]Tabel 1 Sydj DATA'!G200 -> Cand. IT. | C202: ='[1]Tabel 1 Sydj DATA'!I200 -> 16 | E202: ='[1]Tabel 1 Sydj DATA'!K200 -> 7 | G202: ='[1]Tabel 1 Sydj DATA'!M200 -> 23
A203: ='[1]Tabel 1 Sydj DATA'!G201 -> Bac. Samf. | C203: ='[1]Tabel 1 Sydj DATA'!I201 -> 4 | E203: ='[1]Tabel 1 Sydj DATA'!K201 -> 10 | G203: ='[1]Tabel 1 Sydj DATA'!M201 -> 14
A204: ='[1]Tabel 1 Sydj DATA'!G202 -> Bac. Hum. | C204: ='[1]Tabel 1 Sydj DATA'!I202 -> 8 | E204: ='[1]Tabel 1 Sydj DATA'!K202 -> 10 | G204: ='[1]Tabel 1 Sydj DATA'!M202 -> 18
A205: ='[1]Tabel 1 Sydj DATA'!G203 -> Bac. Nat. | C205: ='[1]Tabel 1 Sydj DATA'!I203 -> 33 | E205: ='[1]Tabel 1 Sydj DATA'!K203 -> 7 | G205: ='[1]Tabel 1 Sydj DATA'!M203 -> 40
A206: ='[1]Tabel 1 Sydj DATA'!G204 -> Andre | C206: ='[1]Tabel 1 Sydj DATA'!I204 -> 87 | E206: ='[1]Tabel 1 Sydj DATA'!K204 -> 55 | G206: ='[1]Tabel 1 Sydj DATA'!M204 -> 142
A208: ='[1]Tabel 1 Sydj DATA'!G206 -> Total | C208: ='[1]Tabel 1 Sydj DATA'!I206 -> 1675 | E208: ='[1]Tabel 1 Sydj DATA'!K206 -> 1026 | G208: ='[1]Tabel 1 Sydj DATA'!M206 -> 2701
A210: ='[1]Tabel 1 Sydj DATA'!G208 -> Ingeniører i alt | C210: ='[1]Tabel 1 Sydj DATA'!I208 -> 901 | E210: ='[1]Tabel 1 Sydj DATA'!K208 -> 138 | G210: ='[1]Tabel 1 Sydj DATA'!M208 -> 1039
A211: ='[1]Tabel 1 Sydj DATA'!G209 -> Magistre i alt | C211: ='[1]Tabel 1 Sydj DATA'!I209 -> 117 | E211: ='[1]Tabel 1 Sydj DATA'!K209 -> 215 | G211: ='[1]Tabel 1 Sydj DATA'!M209 -> 332
A212: ='[1]Tabel 1 Sydj DATA'!G210 -> DJØF'ere i alt | C212: ='[1]Tabel 1 Sydj DATA'!I210 -> 250 | E212: ='[1]Tabel 1 Sydj DATA'!K210 -> 244 | G212: ='[1]Tabel 1 Sydj DATA'!M210 -> 494
A219: ='[1]Tabel 1 Sydj DATA'!G217 -> Tønder
C221: ='[1]Tabel 1 Sydj DATA'!I219 -> Mænd | E221: ='[1]Tabel 1 Sydj DATA'!K219 -> Kvinder | G221: ='[1]Tabel 1 Sydj DATA'!M219 -> I alt
A223: ='[1]Tabel 1 Sydj DATA'!G221 -> Civ. ing. | C223: ='[1]Tabel 1 Sydj DATA'!I221 -> 19 | E223: ='[1]Tabel 1 Sydj DATA'!K221 -> 10 | G223: ='[1]Tabel 1 Sydj DATA'!M221 -> 29
A224: ='[1]Tabel 1 Sydj DATA'!G222 -> Diplom ing. | C224: ='[1]Tabel 1 Sydj DATA'!I222 -> 42 | E224: ='[1]Tabel 1 Sydj DATA'!K222 -> 14 | G224: ='[1]Tabel 1 Sydj DATA'!M222 -> 56
A225: ='[1]Tabel 1 Sydj DATA'!G223 -> Cand. Scient. Tek. | C225: ='[1]Tabel 1 Sydj DATA'!I223 -> 8 | E225: ='[1]Tabel 1 Sydj DATA'!K223 -> 5 | G225: ='[1]Tabel 1 Sydj DATA'!M223 -> 13
A226: ='[1]Tabel 1 Sydj DATA'!G224 -> MA. Hum. | C226: ='[1]Tabel 1 Sydj DATA'!I224 -> 29 | E226: ='[1]Tabel 1 Sydj DATA'!K224 -> 44 | G226: ='[1]Tabel 1 Sydj DATA'!M224 -> 73
A227: ='[1]Tabel 1 Sydj DATA'!G225 -> MA. Nat. | C227: ='[1]Tabel 1 Sydj DATA'!I225 -> 11 | E227: ='[1]Tabel 1 Sydj DATA'!K225 -> 14 | G227: ='[1]Tabel 1 Sydj DATA'!M225 -> 25
A228: ='[1]Tabel 1 Sydj DATA'!G226 -> MA. Ph.d. | C228: ='[1]Tabel 1 Sydj DATA'!I226 -> 0 | E228: ='[1]Tabel 1 Sydj DATA'!K226 -> 1 | G228: ='[1]Tabel 1 Sydj DATA'!M226 -> 1
A229: ='[1]Tabel 1 Sydj DATA'!G227 -> MA. Samf. | C229: ='[1]Tabel 1 Sydj DATA'!I227 -> 0 | E229: ='[1]Tabel 1 Sydj DATA'!K227 -> 2 | G229: ='[1]Tabel 1 Sydj DATA'!M227 -> 2
A230: ='[1]Tabel 1 Sydj DATA'!G228 -> Øvrige Mag. | C230: ='[1]Tabel 1 Sydj DATA'!I228 -> 2 | E230: ='[1]Tabel 1 Sydj DATA'!K228 -> 5 | G230: ='[1]Tabel 1 Sydj DATA'!M228 -> 7
A231: ='[1]Tabel 1 Sydj DATA'!G229 -> Agronom | C231: ='[1]Tabel 1 Sydj DATA'!I229 -> 4 | E231: ='[1]Tabel 1 Sydj DATA'!K229 -> 10 | G231: ='[1]Tabel 1 Sydj DATA'!M229 -> 14
A232: ='[1]Tabel 1 Sydj DATA'!G230 -> Landsk. Arkt. | C232: ='[1]Tabel 1 Sydj DATA'!I230 -> 0 | E232: ='[1]Tabel 1 Sydj DATA'!K230 -> 1 | G232: ='[1]Tabel 1 Sydj DATA'!M230 -> 1
A233: ='[1]Tabel 1 Sydj DATA'!G231 -> Hortonom | C233: ='[1]Tabel 1 Sydj DATA'!I231 -> 0 | E233: ='[1]Tabel 1 Sydj DATA'!K231 -> 0 | G233: ='[1]Tabel 1 Sydj DATA'!M231 -> 0
A234: ='[1]Tabel 1 Sydj DATA'!G232 -> Forstkand. | C234: ='[1]Tabel 1 Sydj DATA'!I232 -> 2 | E234: ='[1]Tabel 1 Sydj DATA'!K232 -> 1 | G234: ='[1]Tabel 1 Sydj DATA'!M232 -> 3
A235: ='[1]Tabel 1 Sydj DATA'!G233 -> Jordbrugsakad. | C235: ='[1]Tabel 1 Sydj DATA'!I233 -> 6 | E235: ='[1]Tabel 1 Sydj DATA'!K233 -> 16 | G235: ='[1]Tabel 1 Sydj DATA'!M233 -> 22
A236: ='[1]Tabel 1 Sydj DATA'!G234 -> Mejeriing. | C236: ='[1]Tabel 1 Sydj DATA'!I234 -> 0 | E236: ='[1]Tabel 1 Sydj DATA'!K234 -> 1 | G236: ='[1]Tabel 1 Sydj DATA'!M234 -> 1
A237: ='[1]Tabel 1 Sydj DATA'!G235 -> Levn.m.kand. | C237: ='[1]Tabel 1 Sydj DATA'!I235 -> 0 | E237: ='[1]Tabel 1 Sydj DATA'!K235 -> 0 | G237: ='[1]Tabel 1 Sydj DATA'!M235 -> 0
A238: ='[1]Tabel 1 Sydj DATA'!G236 -> Dyrlæge | C238: ='[1]Tabel 1 Sydj DATA'!I236 -> 4 | E238: ='[1]Tabel 1 Sydj DATA'!K236 -> 16 | G238: ='[1]Tabel 1 Sydj DATA'!M236 -> 20
A239: ='[1]Tabel 1 Sydj DATA'!G237 -> Farmaceut | C239: ='[1]Tabel 1 Sydj DATA'!I237 -> 0 | E239: ='[1]Tabel 1 Sydj DATA'!K237 -> 4 | G239: ='[1]Tabel 1 Sydj DATA'!M237 -> 4
A240: ='[1]Tabel 1 Sydj DATA'!G238 -> Læge | C240: ='[1]Tabel 1 Sydj DATA'!I238 -> 1 | E240: ='[1]Tabel 1 Sydj DATA'!K238 -> 7 | G240: ='[1]Tabel 1 Sydj DATA'!M238 -> 8
A241: ='[1]Tabel 1 Sydj DATA'!G239 -> Tandlæge | C241: ='[1]Tabel 1 Sydj DATA'!I239 -> 1 | E241: ='[1]Tabel 1 Sydj DATA'!K239 -> 3 | G241: ='[1]Tabel 1 Sydj DATA'!M239 -> 4
A242: ='[1]Tabel 1 Sydj DATA'!G240 -> Arkitekt | C242: ='[1]Tabel 1 Sydj DATA'!I240 -> 3 | E242: ='[1]Tabel 1 Sydj DATA'!K240 -> 4 | G242: ='[1]Tabel 1 Sydj DATA'!M240 -> 7
A243: ='[1]Tabel 1 Sydj DATA'!G241 -> Landinspek. | C243: ='[1]Tabel 1 Sydj DATA'!I241 -> 3 | E243: ='[1]Tabel 1 Sydj DATA'!K241 -> 0 | G243: ='[1]Tabel 1 Sydj DATA'!M241 -> 3
... 374 more rows

Sheet Tabel 2 Sydj
A1: ='[1]Tabel 2 Sydj DATA'!I1 -> Tabel 2. Antal bruttoledighedsberørte og gennemsnitlig antal ledige brutto
A3: ='[1]Tabel 2 Sydj DATA'!I3 -> Sydjylland
C5: ='[1]Tabel 2 Sydj DATA'!K5 -> Mænd | F5: ='[1]Tabel 2 Sydj DATA'!N5 -> Kvinder | I5: ='[1]Tabel 2 Sydj DATA'!Q5 -> I alt
C6: ='[1]Tabel 2 Sydj DATA'!K6 -> Ledigheds- berørte | D6: ='[1]Tabel 2 Sydj DATA'!L6 -> Gns. brutto- ledighed | F6: ='[1]Tabel 2 Sydj DATA'!N6 -> Ledigheds- berørte | G6: ='[1]Tabel 2 Sydj DATA'!O6 -> Gns. brutto- ledighed | I6: ='[1]Tabel 2 Sydj DATA'!Q6 -> Ledigheds- berørte | J6: ='[1]Tabel 2 Sydj DATA'!R6 -> Gns. brutto- ledighed
A9: ='[1]Tabel 2 Sydj DATA'!I9 -> Civ. ing. | C9: ='[1]Tabel 2 Sydj DATA'!K9 -> 52 | D9: ='[1]Tabel 2 Sydj DATA'!L9 -> 47.38664005 | F9: ='[1]Tabel 2 Sydj DATA'!N9 -> 21 | G9: ='[1]Tabel 2 Sydj DATA'!O9 -> 19.19416204 | I9: ='[1]Tabel 2 Sydj DATA'!Q9 -> 73 | J9: ='[1]Tabel 2 Sydj DATA'!R9 -> 66.5808021
A10: ='[1]Tabel 2 Sydj DATA'!I10 -> Diplom ing. | C10: ='[1]Tabel 2 Sydj DATA'!K10 -> 106 | D10: ='[1]Tabel 2 Sydj DATA'!L10 -> 92.7075407 | F10: ='[1]Tabel 2 Sydj DATA'!N10 -> 32 | G10: ='[1]Tabel 2 Sydj DATA'!O10 -> 29.70810204 | I10: ='[1]Tabel 2 Sydj DATA'!Q10 -> 138 | J10: ='[1]Tabel 2 Sydj DATA'!R10 -> 122.4156427
A11: ='[1]Tabel 2 Sydj DATA'!I11 -> Cand. Scient. Tek. | C11: ='[1]Tabel 2 Sydj DATA'!K11 -> 41 | D11: ='[1]Tabel 2 Sydj DATA'!L11 -> 37.59121811 | F11: ='[1]Tabel 2 Sydj DATA'!N11 -> 20 | G11: ='[1]Tabel 2 Sydj DATA'!O11 -> 18.62159296 | I11: ='[1]Tabel 2 Sydj DATA'!Q11 -> 61 | J11: ='[1]Tabel 2 Sydj DATA'!R11 -> 56.21281108
A12: ='[1]Tabel 2 Sydj DATA'!I12 -> MA. Hum. | C12: ='[1]Tabel 2 Sydj DATA'!K12 -> 55 | D12: ='[1]Tabel 2 Sydj DATA'!L12 -> 48.07397243 | F12: ='[1]Tabel 2 Sydj DATA'!N12 -> 176 | G12: ='[1]Tabel 2 Sydj DATA'!O12 -> 147.0941184 | I12: ='[1]Tabel 2 Sydj DATA'!Q12 -> 231 | J12: ='[1]Tabel 2 Sydj DATA'!R12 -> 195.1680908
A13: ='[1]Tabel 2 Sydj DATA'!I13 -> MA. Nat. | C13: ='[1]Tabel 2 Sydj DATA'!K13 -> 13 | D13: ='[1]Tabel 2 Sydj DATA'!L13 -> 11.31166968 | F13: ='[1]Tabel 2 Sydj DATA'!N13 -> 13 | G13: ='[1]Tabel 2 Sydj DATA'!O13 -> 11.18630325 | I13: ='[1]Tabel 2 Sydj DATA'!Q13 -> 26 | J13: ='[1]Tabel 2 Sydj DATA'!R13 -> 22.49797293
A14: ='[1]Tabel 2 Sydj DATA'!I14 -> MA. Ph.d. | C14: ='[1]Tabel 2 Sydj DATA'!K14 -> 3 | D14: ='[1]Tabel 2 Sydj DATA'!L14 -> 2.999438658 | F14: ='[1]Tabel 2 Sydj DATA'!N14 -> 1 | G14: ='[1]Tabel 2 Sydj DATA'!O14 -> 0.9998128859 | I14: ='[1]Tabel 2 Sydj DATA'!Q14 -> 4 | J14: ='[1]Tabel 2 Sydj DATA'!R14 -> 3.999251544
A15: ='[1]Tabel 2 Sydj DATA'!I15 -> MA. Samf. | C15: ='[1]Tabel 2 Sydj DATA'!K15 -> 6 | D15: ='[1]Tabel 2 Sydj DATA'!L15 -> 5.121936007 | F15: ='[1]Tabel 2 Sydj DATA'!N15 -> 16 | G15: ='[1]Tabel 2 Sydj DATA'!O15 -> 13.78407035 | I15: ='[1]Tabel 2 Sydj DATA'!Q15 -> 22 | J15: ='[1]Tabel 2 Sydj DATA'!R15 -> 18.90600636
A16: ='[1]Tabel 2 Sydj DATA'!I16 -> Øvrige Mag. | C16: ='[1]Tabel 2 Sydj DATA'!K16 -> 3 | D16: ='[1]Tabel 2 Sydj DATA'!L16 -> 2.214806961 | F16: ='[1]Tabel 2 Sydj DATA'!N16 -> 7 | G16: ='[1]Tabel 2 Sydj DATA'!O16 -> 6.26021331 | I16: ='[1]Tabel 2 Sydj DATA'!Q16 -> 10 | J16: ='[1]Tabel 2 Sydj DATA'!R16 -> 8.475020271
A17: ='[1]Tabel 2 Sydj DATA'!I17 -> Agronom | C17: ='[1]Tabel 2 Sydj DATA'!K17 -> 3 | D17: ='[1]Tabel 2 Sydj DATA'!L17 -> 2.999438658 | F17: ='[1]Tabel 2 Sydj DATA'!N17 -> 2 | G17: ='[1]Tabel 2 Sydj DATA'!O17 -> 1.587351088 | I17: ='[1]Tabel 2 Sydj DATA'!Q17 -> 5 | J17: ='[1]Tabel 2 Sydj DATA'!R17 -> 4.586789746
A18: ='[1]Tabel 2 Sydj DATA'!I18 -> Landsk. Arkt. | C18: ='[1]Tabel 2 Sydj DATA'!K18 -> 0 | D18: ='[1]Tabel 2 Sydj DATA'!L18 -> 0 | F18: ='[1]Tabel 2 Sydj DATA'!N18 -> 1 | G18: ='[1]Tabel 2 Sydj DATA'!O18 -> 0.7316160419 | I18: ='[1]Tabel 2 Sydj DATA'!Q18 -> 1 | J18: ='[1]Tabel 2 Sydj DATA'!R18 -> 0.7316160419
A19: ='[1]Tabel 2 Sydj DATA'!I19 -> Hortonom | C19: ='[1]Tabel 2 Sydj DATA'!K19 -> 0 | D19: ='[1]Tabel 2 Sydj DATA'!L19 -> 0 | F19: ='[1]Tabel 2 Sydj DATA'!N19 -> 0 | G19: ='[1]Tabel 2 Sydj DATA'!O19 -> 0 | I19: ='[1]Tabel 2 Sydj DATA'!Q19 -> 0 | J19: ='[1]Tabel 2 Sydj DATA'!R19 -> 0
A20: ='[1]Tabel 2 Sydj DATA'!I20 -> Forstkand. | C20: ='[1]Tabel 2 Sydj DATA'!K20 -> 2 | D20: ='[1]Tabel 2 Sydj DATA'!L20 -> 1.999625772 | F20: ='[1]Tabel 2 Sydj DATA'!N20 -> 1 | G20: ='[1]Tabel 2 Sydj DATA'!O20 -> 0.9998128859 | I20: ='[1]Tabel 2 Sydj DATA'!Q20 -> 3 | J20: ='[1]Tabel 2 Sydj DATA'!R20 -> 2.999438658
A21: ='[1]Tabel 2 Sydj DATA'!I21 -> Jordbrugsakad. | C21: ='[1]Tabel 2 Sydj DATA'!K21 -> 5 | D21: ='[1]Tabel 2 Sydj DATA'!L21 -> 4.99906443 | F21: ='[1]Tabel 2 Sydj DATA'!N21 -> 4 | G21: ='[1]Tabel 2 Sydj DATA'!O21 -> 3.318780016 | I21: ='[1]Tabel 2 Sydj DATA'!Q21 -> 9 | J21: ='[1]Tabel 2 Sydj DATA'!R21 -> 8.317844446
A22: ='[1]Tabel 2 Sydj DATA'!I22 -> Mejeriing. | C22: ='[1]Tabel 2 Sydj DATA'!K22 -> 0 | D22: ='[1]Tabel 2 Sydj DATA'!L22 -> 0 | F22: ='[1]Tabel 2 Sydj DATA'!N22 -> 0 | G22: ='[1]Tabel 2 Sydj DATA'!O22 -> 0 | I22: ='[1]Tabel 2 Sydj DATA'!Q22 -> 0 | J22: ='[1]Tabel 2 Sydj DATA'!R22 -> 0
A23: ='[1]Tabel 2 Sydj DATA'!I23 -> Levn.m.kand. | C23: ='[1]Tabel 2 Sydj DATA'!K23 -> 0 | D23: ='[1]Tabel 2 Sydj DATA'!L23 -> 0 | F23: ='[1]Tabel 2 Sydj DATA'!N23 -> 0 | G23: ='[1]Tabel 2 Sydj DATA'!O23 -> 0 | I23: ='[1]Tabel 2 Sydj DATA'!Q23 -> 0 | J23: ='[1]Tabel 2 Sydj DATA'!R23 -> 0
A24: ='[1]Tabel 2 Sydj DATA'!I24 -> Dyrlæge | C24: ='[1]Tabel 2 Sydj DATA'!K24 -> 1 | D24: ='[1]Tabel 2 Sydj DATA'!L24 -> 0.5407596832 | F24: ='[1]Tabel 2 Sydj DATA'!N24 -> 7 | G24: ='[1]Tabel 2 Sydj DATA'!O24 -> 4.80633693 | I24: ='[1]Tabel 2 Sydj DATA'!Q24 -> 8 | J24: ='[1]Tabel 2 Sydj DATA'!R24 -> 5.347096613
A25: ='[1]Tabel 2 Sydj DATA'!I25 -> Farmaceut | C25: ='[1]Tabel 2 Sydj DATA'!K25 -> 4 | D25: ='[1]Tabel 2 Sydj DATA'!L25 -> 2.901515624 | F25: ='[1]Tabel 2 Sydj DATA'!N25 -> 7 | G25: ='[1]Tabel 2 Sydj DATA'!O25 -> 6.90638059 | I25: ='[1]Tabel 2 Sydj DATA'!Q25 -> 11 | J25: ='[1]Tabel 2 Sydj DATA'!R25 -> 9.807896214
A26: ='[1]Tabel 2 Sydj DATA'!I26 -> Læge | C26: ='[1]Tabel 2 Sydj DATA'!K26 -> 3 | D26: ='[1]Tabel 2 Sydj DATA'!L26 -> 2.814819435 | F26: ='[1]Tabel 2 Sydj DATA'!N26 -> 6 | G26: ='[1]Tabel 2 Sydj DATA'!O26 -> 3.697374166 | I26: ='[1]Tabel 2 Sydj DATA'!Q26 -> 9 | J26: ='[1]Tabel 2 Sydj DATA'!R26 -> 6.512193601
A27: ='[1]Tabel 2 Sydj DATA'!I27 -> Tandlæge | C27: ='[1]Tabel 2 Sydj DATA'!K27 -> 1 | D27: ='[1]Tabel 2 Sydj DATA'!L27 -> 0.9998128859 | F27: ='[1]Tabel 2 Sydj DATA'!N27 -> 1 | G27: ='[1]Tabel 2 Sydj DATA'!O27 -> 0.4459552174 | I27: ='[1]Tabel 2 Sydj DATA'!Q27 -> 2 | J27: ='[1]Tabel 2 Sydj DATA'!R27 -> 1.445768103
A28: ='[1]Tabel 2 Sydj DATA'!I28 -> Arkitekt | C28: ='[1]Tabel 2 Sydj DATA'!K28 -> 6 | D28: ='[1]Tabel 2 Sydj DATA'!L28 -> 5.274122123 | F28: ='[1]Tabel 2 Sydj DATA'!N28 -> 5 | G28: ='[1]Tabel 2 Sydj DATA'!O28 -> 3.660575064 | I28: ='[1]Tabel 2 Sydj DATA'!Q28 -> 11 | J28: ='[1]Tabel 2 Sydj DATA'!R28 -> 8.934697187
A29: ='[1]Tabel 2 Sydj DATA'!I29 -> Landinspek. | C29: ='[1]Tabel 2 Sydj DATA'!K29 -> 0 | D29: ='[1]Tabel 2 Sydj DATA'!L29 -> 0 | F29: ='[1]Tabel 2 Sydj DATA'!N29 -> 0 | G29: ='[1]Tabel 2 Sydj DATA'!O29 -> 0 | I29: ='[1]Tabel 2 Sydj DATA'!Q29 -> 0 | J29: ='[1]Tabel 2 Sydj DATA'!R29 -> 0
A30: ='[1]Tabel 2 Sydj DATA'!I30 -> Bibliotekar | C30: ='[1]Tabel 2 Sydj DATA'!K30 -> 4 | D30: ='[1]Tabel 2 Sydj DATA'!L30 -> 3.999251544 | F30: ='[1]Tabel 2 Sydj DATA'!N30 -> 8 | G30: ='[1]Tabel 2 Sydj DATA'!O30 -> 6.458554232 | I30: ='[1]Tabel 2 Sydj DATA'!Q30 -> 12 | J30: ='[1]Tabel 2 Sydj DATA'!R30 -> 10.45780578
A31: ='[1]Tabel 2 Sydj DATA'!I31 -> Musikudd. | C31: ='[1]Tabel 2 Sydj DATA'!K31 -> 2 | D31: ='[1]Tabel 2 Sydj DATA'!L31 -> 1.338489366 | F31: ='[1]Tabel 2 Sydj DATA'!N31 -> 3 | G31: ='[1]Tabel 2 Sydj DATA'!O31 -> 2.675107591 | I31: ='[1]Tabel 2 Sydj DATA'!Q31 -> 5 | J31: ='[1]Tabel 2 Sydj DATA'!R31 -> 4.013596956
A32: ='[1]Tabel 2 Sydj DATA'!I32 -> Teolog | C32: ='[1]Tabel 2 Sydj DATA'!K32 -> 1 | D32: ='[1]Tabel 2 Sydj DATA'!L32 -> 0.9998128859 | F32: ='[1]Tabel 2 Sydj DATA'!N32 -> 2 | G32: ='[1]Tabel 2 Sydj DATA'!O32 -> 1.999625772 | I32: ='[1]Tabel 2 Sydj DATA'!Q32 -> 3 | J32: ='[1]Tabel 2 Sydj DATA'!R32 -> 2.999438658
A33: ='[1]Tabel 2 Sydj DATA'!I33 -> Psykolog | C33: ='[1]Tabel 2 Sydj DATA'!K33 -> 2 | D33: ='[1]Tabel 2 Sydj DATA'!L33 -> 1.999625772 | F33: ='[1]Tabel 2 Sydj DATA'!N33 -> 16 | G33: ='[1]Tabel 2 Sydj DATA'!O33 -> 14.58741346 | I33: ='[1]Tabel 2 Sydj DATA'!Q33 -> 18 | J33: ='[1]Tabel 2 Sydj DATA'!R33 -> 16.58703923
A34: ='[1]Tabel 2 Sydj DATA'!I34 -> Jurist | C34: ='[1]Tabel 2 Sydj DATA'!K34 -> 9 | D34: ='[1]Tabel 2 Sydj DATA'!L34 -> 8.823676168 | F34: ='[1]Tabel 2 Sydj DATA'!N34 -> 5 | G34: ='[1]Tabel 2 Sydj DATA'!O34 -> 3.475955841 | I34: ='[1]Tabel 2 Sydj DATA'!Q34 -> 14 | J34: ='[1]Tabel 2 Sydj DATA'!R34 -> 12.29963201
A35: ='[1]Tabel 2 Sydj DATA'!I35 -> Økonom | C35: ='[1]Tabel 2 Sydj DATA'!K35 -> 5 | D35: ='[1]Tabel 2 Sydj DATA'!L35 -> 4.260587538 | F35: ='[1]Tabel 2 Sydj DATA'!N35 -> 3 | G35: ='[1]Tabel 2 Sydj DATA'!O35 -> 2.509823489 | I35: ='[1]Tabel 2 Sydj DATA'!Q35 -> 8 | J35: ='[1]Tabel 2 Sydj DATA'!R35 -> 6.770411027
A36: ='[1]Tabel 2 Sydj DATA'!I36 -> Samf. Adm. | C36: ='[1]Tabel 2 Sydj DATA'!K36 -> 29 | D36: ='[1]Tabel 2 Sydj DATA'!L36 -> 28.61286097 | F36: ='[1]Tabel 2 Sydj DATA'!N36 -> 41 | G36: ='[1]Tabel 2 Sydj DATA'!O36 -> 36.24274933 | I36: ='[1]Tabel 2 Sydj DATA'!Q36 -> 70 | J36: ='[1]Tabel 2 Sydj DATA'!R36 -> 64.8556103
A37: ='[1]Tabel 2 Sydj DATA'!I37 -> Cand. Merc. | C37: ='[1]Tabel 2 Sydj DATA'!K37 -> 49 | D37: ='[1]Tabel 2 Sydj DATA'!L37 -> 45.66519054 | F37: ='[1]Tabel 2 Sydj DATA'!N37 -> 46 | G37: ='[1]Tabel 2 Sydj DATA'!O37 -> 40.79585854 | I37: ='[1]Tabel 2 Sydj DATA'!Q37 -> 95 | J37: ='[1]Tabel 2 Sydj DATA'!R37 -> 86.46104909
A38: ='[1]Tabel 2 Sydj DATA'!I38 -> HA | C38: ='[1]Tabel 2 Sydj DATA'!K38 -> 18 | D38: ='[1]Tabel 2 Sydj DATA'!L38 -> 15.35832346 | F38: ='[1]Tabel 2 Sydj DATA'!N38 -> 15 | G38: ='[1]Tabel 2 Sydj DATA'!O38 -> 13.25141895 | I38: ='[1]Tabel 2 Sydj DATA'!Q38 -> 33 | J38: ='[1]Tabel 2 Sydj DATA'!R38 -> 28.60974241
A39: ='[1]Tabel 2 Sydj DATA'!I39 -> HD | C39: ='[1]Tabel 2 Sydj DATA'!K39 -> 10 | D39: ='[1]Tabel 2 Sydj DATA'!L39 -> 9.398116385 | F39: ='[1]Tabel 2 Sydj DATA'!N39 -> 11 | G39: ='[1]Tabel 2 Sydj DATA'!O39 -> 9.3207759 | I39: ='[1]Tabel 2 Sydj DATA'!Q39 -> 21 | J39: ='[1]Tabel 2 Sydj DATA'!R39 -> 18.71889228
A40: ='[1]Tabel 2 Sydj DATA'!I40 -> Komm. og Sprog | C40: ='[1]Tabel 2 Sydj DATA'!K40 -> 9 | D40: ='[1]Tabel 2 Sydj DATA'!L40 -> 7.182061997 | F40: ='[1]Tabel 2 Sydj DATA'!N40 -> 24 | G40: ='[1]Tabel 2 Sydj DATA'!O40 -> 21.53620657 | I40: ='[1]Tabel 2 Sydj DATA'!Q40 -> 33 | J40: ='[1]Tabel 2 Sydj DATA'!R40 -> 28.71826857
A41: ='[1]Tabel 2 Sydj DATA'!I41 -> Bygningskonst. | C41: ='[1]Tabel 2 Sydj DATA'!K41 -> 20 | D41: ='[1]Tabel 2 Sydj DATA'!L41 -> 16.01790058 | F41: ='[1]Tabel 2 Sydj DATA'!N41 -> 6 | G41: ='[1]Tabel 2 Sydj DATA'!O41 -> 5.03074908 | I41: ='[1]Tabel 2 Sydj DATA'!Q41 -> 26 | J41: ='[1]Tabel 2 Sydj DATA'!R41 -> 21.04864966
A42: ='[1]Tabel 2 Sydj DATA'!I42 -> Cand. IT. | C42: ='[1]Tabel 2 Sydj DATA'!K42 -> 9 | D42: ='[1]Tabel 2 Sydj DATA'!L42 -> 8.198091436 | F42: ='[1]Tabel 2 Sydj DATA'!N42 -> 14 | G42: ='[1]Tabel 2 Sydj DATA'!O42 -> 13.01004179 | I42: ='[1]Tabel 2 Sydj DATA'!Q42 -> 23 | J42: ='[1]Tabel 2 Sydj DATA'!R42 -> 21.20813323
A43: ='[1]Tabel 2 Sydj DATA'!I43 -> Bac. Samf. | C43: ='[1]Tabel 2 Sydj DATA'!K43 -> 5 | D43: ='[1]Tabel 2 Sydj DATA'!L43 -> 4.606124867 | F43: ='[1]Tabel 2 Sydj DATA'!N43 -> 5 | G43: ='[1]Tabel 2 Sydj DATA'!O43 -> 4.029189796 | I43: ='[1]Tabel 2 Sydj DATA'!Q43 -> 10 | J43: ='[1]Tabel 2 Sydj DATA'!R43 -> 8.635314664
A44: ='[1]Tabel 2 Sydj DATA'!I44 -> Bac. Hum. | C44: ='[1]Tabel 2 Sydj DATA'!K44 -> 8 | D44: ='[1]Tabel 2 Sydj DATA'!L44 -> 7.005551051 | F44: ='[1]Tabel 2 Sydj DATA'!N44 -> 19 | G44: ='[1]Tabel 2 Sydj DATA'!O44 -> 16.15168715 | I44: ='[1]Tabel 2 Sydj DATA'!Q44 -> 27 | J44: ='[1]Tabel 2 Sydj DATA'!R44 -> 23.1572382
A45: ='[1]Tabel 2 Sydj DATA'!I45 -> Bac. Nat. | C45: ='[1]Tabel 2 Sydj DATA'!K45 -> 23 | D45: ='[1]Tabel 2 Sydj DATA'!L45 -> 17.40971746 | F45: ='[1]Tabel 2 Sydj DATA'!N45 -> 4 | G45: ='[1]Tabel 2 Sydj DATA'!O45 -> 3.138526788 | I45: ='[1]Tabel 2 Sydj DATA'!Q45 -> 27 | J45: ='[1]Tabel 2 Sydj DATA'!R45 -> 20.54824425
A46: ='[1]Tabel 2 Sydj DATA'!I46 -> Andre | C46: ='[1]Tabel 2 Sydj DATA'!K46 -> 43 | D46: ='[1]Tabel 2 Sydj DATA'!L46 -> 38.13821493 | F46: ='[1]Tabel 2 Sydj DATA'!N46 -> 25 | G46: ='[1]Tabel 2 Sydj DATA'!O46 -> 21.97155866 | I46: ='[1]Tabel 2 Sydj DATA'!Q46 -> 68 | J46: ='[1]Tabel 2 Sydj DATA'!R46 -> 60.10977359
A48: ='[1]Tabel 2 Sydj DATA'!I48 -> Total | C48: ='[1]Tabel 2 Sydj DATA'!K48 -> 545 | D48: ='[1]Tabel 2 Sydj DATA'!L48 -> 483.9509137 | F48: ='[1]Tabel 2 Sydj DATA'!N48 -> 563 | G48: ='[1]Tabel 2 Sydj DATA'!O48 -> 485.8690201 | I48: ='[1]Tabel 2 Sydj DATA'!Q48 -> 1108 | J48: ='[1]Tabel 2 Sydj DATA'!R48 -> 969.8199339
A50: ='[1]Tabel 2 Sydj DATA'!I50 -> Ingeniører i alt | C50: ='[1]Tabel 2 Sydj DATA'!K50 -> 158 | D50: ='[1]Tabel 2 Sydj DATA'!L50 -> 140.0941808 | F50: ='[1]Tabel 2 Sydj DATA'!N50 -> 53 | G50: ='[1]Tabel 2 Sydj DATA'!O50 -> 48.90226408 | I50: ='[1]Tabel 2 Sydj DATA'!Q50 -> 211 | J50: ='[1]Tabel 2 Sydj DATA'!R50 -> 188.9964448
A51: ='[1]Tabel 2 Sydj DATA'!I51 -> Magistre i alt | C51: ='[1]Tabel 2 Sydj DATA'!K51 -> 80 | D51: ='[1]Tabel 2 Sydj DATA'!L51 -> 69.72182374 | F51: ='[1]Tabel 2 Sydj DATA'!N51 -> 213 | G51: ='[1]Tabel 2 Sydj DATA'!O51 -> 179.3245182 | I51: ='[1]Tabel 2 Sydj DATA'!Q51 -> 293 | J51: ='[1]Tabel 2 Sydj DATA'!R51 -> 249.0463419
A52: ='[1]Tabel 2 Sydj DATA'!I52 -> DJØF'ere i alt | C52: ='[1]Tabel 2 Sydj DATA'!K52 -> 110 | D52: ='[1]Tabel 2 Sydj DATA'!L52 -> 102.7206387 | F52: ='[1]Tabel 2 Sydj DATA'!N52 -> 110 | G52: ='[1]Tabel 2 Sydj DATA'!O52 -> 96.27580615 | I52: ='[1]Tabel 2 Sydj DATA'!Q52 -> 220 | J52: ='[1]Tabel 2 Sydj DATA'!R52 -> 198.9964448
A57: Haderslev
C59: ='[1]Tabel 2 Sydj DATA'!K56 -> Mænd | F59: ='[1]Tabel 2 Sydj DATA'!N56 -> Kvinder | I59: ='[1]Tabel 2 Sydj DATA'!Q56 -> I alt
C60: ='[1]Tabel 2 Sydj DATA'!K57 -> Ledigheds- berørte | D60: ='[1]Tabel 2 Sydj DATA'!L57 -> Gns. brutto- ledighed | F60: ='[1]Tabel 2 Sydj DATA'!N57 -> Ledigheds- berørte | G60: ='[1]Tabel 2 Sydj DATA'!O57 -> Gns. brutto- ledighed | I60: ='[1]Tabel 2 Sydj DATA'!Q57 -> Ledigheds- berørte | J60: ='[1]Tabel 2 Sydj DATA'!R57 -> Gns. brutto- ledighed
A63: ='[1]Tabel 2 Sydj DATA'!I60 -> Civ. ing. | C63: ='[1]Tabel 2 Sydj DATA'!K60 -> 0 | D63: ='[1]Tabel 2 Sydj DATA'!L60 -> 0 | F63: ='[1]Tabel 2 Sydj DATA'!N60 -> 1 | G63: ='[1]Tabel 2 Sydj DATA'!O60 -> 0.9998128859 | I63: ='[1]Tabel 2 Sydj DATA'!Q60 -> 1 | J63: ='[1]Tabel 2 Sydj DATA'!R60 -> 0.9998128859
A64: ='[1]Tabel 2 Sydj DATA'!I61 -> Diplom ing. | C64: ='[1]Tabel 2 Sydj DATA'!K61 -> 2 | D64: ='[1]Tabel 2 Sydj DATA'!L61 -> 1.399613298 | F64: ='[1]Tabel 2 Sydj DATA'!N61 -> 1 | G64: ='[1]Tabel 2 Sydj DATA'!O61 -> 0.9998128859 | I64: ='[1]Tabel 2 Sydj DATA'!Q61 -> 3 | J64: ='[1]Tabel 2 Sydj DATA'!R61 -> 2.399426183
A65: ='[1]Tabel 2 Sydj DATA'!I62 -> Cand. Scient. Tek. | C65: ='[1]Tabel 2 Sydj DATA'!K62 -> 3 | D65: ='[1]Tabel 2 Sydj DATA'!L62 -> 2.174889291 | F65: ='[1]Tabel 2 Sydj DATA'!N62 -> 2 | G65: ='[1]Tabel 2 Sydj DATA'!O62 -> 1.815006549 | I65: ='[1]Tabel 2 Sydj DATA'!Q62 -> 5 | J65: ='[1]Tabel 2 Sydj DATA'!R62 -> 3.98989584
A66: ='[1]Tabel 2 Sydj DATA'!I63 -> MA. Hum. | C66: ='[1]Tabel 2 Sydj DATA'!K63 -> 6 | D66: ='[1]Tabel 2 Sydj DATA'!L63 -> 4.462670742 | F66: ='[1]Tabel 2 Sydj DATA'!N63 -> 10 | G66: ='[1]Tabel 2 Sydj DATA'!O63 -> 6.874571197 | I66: ='[1]Tabel 2 Sydj DATA'!Q63 -> 16 | J66: ='[1]Tabel 2 Sydj DATA'!R63 -> 11.33724194
A67: ='[1]Tabel 2 Sydj DATA'!I64 -> MA. Nat. | C67: ='[1]Tabel 2 Sydj DATA'!K64 -> 0 | D67: ='[1]Tabel 2 Sydj DATA'!L64 -> 0 | F67: ='[1]Tabel 2 Sydj DATA'!N64 -> 0 | G67: ='[1]Tabel 2 Sydj DATA'!O64 -> 0 | I67: ='[1]Tabel 2 Sydj DATA'!Q64 -> 0 | J67: ='[1]Tabel 2 Sydj DATA'!R64 -> 0
A68: ='[1]Tabel 2 Sydj DATA'!I65 -> MA. Ph.d. | C68: ='[1]Tabel 2 Sydj DATA'!K65 -> 0 | D68: ='[1]Tabel 2 Sydj DATA'!L65 -> 0 | F68: ='[1]Tabel 2 Sydj DATA'!N65 -> 0 | G68: ='[1]Tabel 2 Sydj DATA'!O65 -> 0 | I68: ='[1]Tabel 2 Sydj DATA'!Q65 -> 0 | J68: ='[1]Tabel 2 Sydj DATA'!R65 -> 0
A69: ='[1]Tabel 2 Sydj DATA'!I66 -> MA. Samf. | C69: ='[1]Tabel 2 Sydj DATA'!K66 -> 1 | D69: ='[1]Tabel 2 Sydj DATA'!L66 -> 0.9998128859 | F69: ='[1]Tabel 2 Sydj DATA'!N66 -> 0 | G69: ='[1]Tabel 2 Sydj DATA'!O66 -> 0 | I69: ='[1]Tabel 2 Sydj DATA'!Q66 -> 1 | J69: ='[1]Tabel 2 Sydj DATA'!R66 -> 0.9998128859
A70: ='[1]Tabel 2 Sydj DATA'!I67 -> Øvrige Mag. | C70: ='[1]Tabel 2 Sydj DATA'!K67 -> 0 | D70: ='[1]Tabel 2 Sydj DATA'!L67 -> 0 | F70: ='[1]Tabel 2 Sydj DATA'!N67 -> 0 | G70: ='[1]Tabel 2 Sydj DATA'!O67 -> 0 | I70: ='[1]Tabel 2 Sydj DATA'!Q67 -> 0 | J70: ='[1]Tabel 2 Sydj DATA'!R67 -> 0
A71: ='[1]Tabel 2 Sydj DATA'!I68 -> Agronom | C71: ='[1]Tabel 2 Sydj DATA'!K68 -> 0 | D71: ='[1]Tabel 2 Sydj DATA'!L68 -> 0 | F71: ='[1]Tabel 2 Sydj DATA'!N68 -> 0 | G71: ='[1]Tabel 2 Sydj DATA'!O68 -> 0 | I71: ='[1]Tabel 2 Sydj DATA'!Q68 -> 0 | J71: ='[1]Tabel 2 Sydj DATA'!R68 -> 0
A72: ='[1]Tabel 2 Sydj DATA'!I69 -> Landsk. Arkt. | C72: ='[1]Tabel 2 Sydj DATA'!K69 -> 0 | D72: ='[1]Tabel 2 Sydj DATA'!L69 -> 0 | F72: ='[1]Tabel 2 Sydj DATA'!N69 -> 0 | G72: ='[1]Tabel 2 Sydj DATA'!O69 -> 0 | I72: ='[1]Tabel 2 Sydj DATA'!Q69 -> 0 | J72: ='[1]Tabel 2 Sydj DATA'!R69 -> 0
A73: ='[1]Tabel 2 Sydj DATA'!I70 -> Hortonom | C73: ='[1]Tabel 2 Sydj DATA'!K70 -> 0 | D73: ='[1]Tabel 2 Sydj DATA'!L70 -> 0 | F73: ='[1]Tabel 2 Sydj DATA'!N70 -> 0 | G73: ='[1]Tabel 2 Sydj DATA'!O70 -> 0 | I73: ='[1]Tabel 2 Sydj DATA'!Q70 -> 0 | J73: ='[1]Tabel 2 Sydj DATA'!R70 -> 0
A74: ='[1]Tabel 2 Sydj DATA'!I71 -> Forstkand. | C74: ='[1]Tabel 2 Sydj DATA'!K71 -> 0 | D74: ='[1]Tabel 2 Sydj DATA'!L71 -> 0 | F74: ='[1]Tabel 2 Sydj DATA'!N71 -> 0 | G74: ='[1]Tabel 2 Sydj DATA'!O71 -> 0 | I74: ='[1]Tabel 2 Sydj DATA'!Q71 -> 0 | J74: ='[1]Tabel 2 Sydj DATA'!R71 -> 0
A75: ='[1]Tabel 2 Sydj DATA'!I72 -> Jordbrugsakad. | C75: ='[1]Tabel 2 Sydj DATA'!K72 -> 0 | D75: ='[1]Tabel 2 Sydj DATA'!L72 -> 0 | F75: ='[1]Tabel 2 Sydj DATA'!N72 -> 0 | G75: ='[1]Tabel 2 Sydj DATA'!O72 -> 0 | I75: ='[1]Tabel 2 Sydj DATA'!Q72 -> 0 | J75: ='[1]Tabel 2 Sydj DATA'!R72 -> 0
A76: ='[1]Tabel 2 Sydj DATA'!I73 -> Mejeriing. | C76: ='[1]Tabel 2 Sydj DATA'!K73 -> 0 | D76: ='[1]Tabel 2 Sydj DATA'!L73 -> 0 | F76: ='[1]Tabel 2 Sydj DATA'!N73 -> 0 | G76: ='[1]Tabel 2 Sydj DATA'!O73 -> 0 | I76: ='[1]Tabel 2 Sydj DATA'!Q73 -> 0 | J76: ='[1]Tabel 2 Sydj DATA'!R73 -> 0
A77: ='[1]Tabel 2 Sydj DATA'!I74 -> Levn.m.kand. | C77: ='[1]Tabel 2 Sydj DATA'!K74 -> 0 | D77: ='[1]Tabel 2 Sydj DATA'!L74 -> 0 | F77: ='[1]Tabel 2 Sydj DATA'!N74 -> 0 | G77: ='[1]Tabel 2 Sydj DATA'!O74 -> 0 | I77: ='[1]Tabel 2 Sydj DATA'!Q74 -> 0 | J77: ='[1]Tabel 2 Sydj DATA'!R74 -> 0
A78: ='[1]Tabel 2 Sydj DATA'!I75 -> Dyrlæge | C78: ='[1]Tabel 2 Sydj DATA'!K75 -> 0 | D78: ='[1]Tabel 2 Sydj DATA'!L75 -> 0 | F78: ='[1]Tabel 2 Sydj DATA'!N75 -> 2 | G78: ='[1]Tabel 2 Sydj DATA'!O75 -> 0.7946111146 | I78: ='[1]Tabel 2 Sydj DATA'!Q75 -> 2 | J78: ='[1]Tabel 2 Sydj DATA'!R75 -> 0.7946111146
A79: ='[1]Tabel 2 Sydj DATA'!I76 -> Farmaceut | C79: ='[1]Tabel 2 Sydj DATA'!K76 -> 0 | D79: ='[1]Tabel 2 Sydj DATA'!L76 -> 0 | F79: ='[1]Tabel 2 Sydj DATA'!N76 -> 0 | G79: ='[1]Tabel 2 Sydj DATA'!O76 -> 0 | I79: ='[1]Tabel 2 Sydj DATA'!Q76 -> 0 | J79: ='[1]Tabel 2 Sydj DATA'!R76 -> 0
A80: ='[1]Tabel 2 Sydj DATA'!I77 -> Læge | C80: ='[1]Tabel 2 Sydj DATA'!K77 -> 0 | D80: ='[1]Tabel 2 Sydj DATA'!L77 -> 0 | F80: ='[1]Tabel 2 Sydj DATA'!N77 -> 0 | G80: ='[1]Tabel 2 Sydj DATA'!O77 -> 0 | I80: ='[1]Tabel 2 Sydj DATA'!Q77 -> 0 | J80: ='[1]Tabel 2 Sydj DATA'!R77 -> 0
A81: ='[1]Tabel 2 Sydj DATA'!I78 -> Tandlæge | C81: ='[1]Tabel 2 Sydj DATA'!K78 -> 0 | D81: ='[1]Tabel 2 Sydj DATA'!L78 -> 0 | F81: ='[1]Tabel 2 Sydj DATA'!N78 -> 0 | G81: ='[1]Tabel 2 Sydj DATA'!O78 -> 0 | I81: ='[1]Tabel 2 Sydj DATA'!Q78 -> 0 | J81: ='[1]Tabel 2 Sydj DATA'!R78 -> 0
A82: ='[1]Tabel 2 Sydj DATA'!I79 -> Arkitekt | C82: ='[1]Tabel 2 Sydj DATA'!K79 -> 1 | D82: ='[1]Tabel 2 Sydj DATA'!L79 -> 0.9075032745 | F82: ='[1]Tabel 2 Sydj DATA'!N79 -> 0 | G82: ='[1]Tabel 2 Sydj DATA'!O79 -> 0 | I82: ='[1]Tabel 2 Sydj DATA'!Q79 -> 1 | J82: ='[1]Tabel 2 Sydj DATA'!R79 -> 0.9075032745
A83: ='[1]Tabel 2 Sydj DATA'!I80 -> Landinspek. | C83: ='[1]Tabel 2 Sydj DATA'!K80 -> 0 | D83: ='[1]Tabel 2 Sydj DATA'!L80 -> 0 | F83: ='[1]Tabel 2 Sydj DATA'!N80 -> 0 | G83: ='[1]Tabel 2 Sydj DATA'!O80 -> 0 | I83: ='[1]Tabel 2 Sydj DATA'!Q80 -> 0 | J83: ='[1]Tabel 2 Sydj DATA'!R80 -> 0
A84: ='[1]Tabel 2 Sydj DATA'!I81 -> Bibliotekar | C84: ='[1]Tabel 2 Sydj DATA'!K81 -> 0 | D84: ='[1]Tabel 2 Sydj DATA'!L81 -> 0 | F84: ='[1]Tabel 2 Sydj DATA'!N81 -> 0 | G84: ='[1]Tabel 2 Sydj DATA'!O81 -> 0 | I84: ='[1]Tabel 2 Sydj DATA'!Q81 -> 0 | J84: ='[1]Tabel 2 Sydj DATA'!R81 -> 0
A85: ='[1]Tabel 2 Sydj DATA'!I82 -> Musikudd. | C85: ='[1]Tabel 2 Sydj DATA'!K82 -> 0 | D85: ='[1]Tabel 2 Sydj DATA'!L82 -> 0 | F85: ='[1]Tabel 2 Sydj DATA'!N82 -> 1 | G85: ='[1]Tabel 2 Sydj DATA'!O82 -> 0.6754818187 | I85: ='[1]Tabel 2 Sydj DATA'!Q82 -> 1 | J85: ='[1]Tabel 2 Sydj DATA'!R82 -> 0.6754818187
A86: ='[1]Tabel 2 Sydj DATA'!I83 -> Teolog | C86: ='[1]Tabel 2 Sydj DATA'!K83 -> 0 | D86: ='[1]Tabel 2 Sydj DATA'!L83 -> 0 | F86: ='[1]Tabel 2 Sydj DATA'!N83 -> 0 | G86: ='[1]Tabel 2 Sydj DATA'!O83 -> 0 | I86: ='[1]Tabel 2 Sydj DATA'!Q83 -> 0 | J86: ='[1]Tabel 2 Sydj DATA'!R83 -> 0
A87: ='[1]Tabel 2 Sydj DATA'!I84 -> Psykolog | C87: ='[1]Tabel 2 Sydj DATA'!K84 -> 0 | D87: ='[1]Tabel 2 Sydj DATA'!L84 -> 0 | F87: ='[1]Tabel 2 Sydj DATA'!N84 -> 0 | G87: ='[1]Tabel 2 Sydj DATA'!O84 -> 0 | I87: ='[1]Tabel 2 Sydj DATA'!Q84 -> 0 | J87: ='[1]Tabel 2 Sydj DATA'!R84 -> 0
A88: ='[1]Tabel 2 Sydj DATA'!I85 -> Jurist | C88: ='[1]Tabel 2 Sydj DATA'!K85 -> 2 | D88: ='[1]Tabel 2 Sydj DATA'!L85 -> 1.90731616 | F88: ='[1]Tabel 2 Sydj DATA'!N85 -> 1 | G88: ='[1]Tabel 2 Sydj DATA'!O85 -> 0.9998128859 | I88: ='[1]Tabel 2 Sydj DATA'!Q85 -> 3 | J88: ='[1]Tabel 2 Sydj DATA'!R85 -> 2.907129046
A89: ='[1]Tabel 2 Sydj DATA'!I86 -> Økonom | C89: ='[1]Tabel 2 Sydj DATA'!K86 -> 0 | D89: ='[1]Tabel 2 Sydj DATA'!L86 -> 0 | F89: ='[1]Tabel 2 Sydj DATA'!N86 -> 1 | G89: ='[1]Tabel 2 Sydj DATA'!O86 -> 0.8332813572 | I89: ='[1]Tabel 2 Sydj DATA'!Q86 -> 1 | J89: ='[1]Tabel 2 Sydj DATA'!R86 -> 0.8332813572
A90: ='[1]Tabel 2 Sydj DATA'!I87 -> Samf. Adm. | C90: ='[1]Tabel 2 Sydj DATA'!K87 -> 0 | D90: ='[1]Tabel 2 Sydj DATA'!L87 -> 0 | F90: ='[1]Tabel 2 Sydj DATA'!N87 -> 4 | G90: ='[1]Tabel 2 Sydj DATA'!O87 -> 3.999251544 | I90: ='[1]Tabel 2 Sydj DATA'!Q87 -> 4 | J90: ='[1]Tabel 2 Sydj DATA'!R87 -> 3.999251544
A91: ='[1]Tabel 2 Sydj DATA'!I88 -> Cand. Merc. | C91: ='[1]Tabel 2 Sydj DATA'!K88 -> 3 | D91: ='[1]Tabel 2 Sydj DATA'!L88 -> 2.81045344 | F91: ='[1]Tabel 2 Sydj DATA'!N88 -> 2 | G91: ='[1]Tabel 2 Sydj DATA'!O88 -> 1.353458492 | I91: ='[1]Tabel 2 Sydj DATA'!Q88 -> 5 | J91: ='[1]Tabel 2 Sydj DATA'!R88 -> 4.163911932
A92: ='[1]Tabel 2 Sydj DATA'!I89 -> HA | C92: ='[1]Tabel 2 Sydj DATA'!K89 -> 1 | D92: ='[1]Tabel 2 Sydj DATA'!L89 -> 0.9998128859 | F92: ='[1]Tabel 2 Sydj DATA'!N89 -> 0 | G92: ='[1]Tabel 2 Sydj DATA'!O89 -> 0 | I92: ='[1]Tabel 2 Sydj DATA'!Q89 -> 1 | J92: ='[1]Tabel 2 Sydj DATA'!R89 -> 0.9998128859
A93: ='[1]Tabel 2 Sydj DATA'!I90 -> HD | C93: ='[1]Tabel 2 Sydj DATA'!K90 -> 1 | D93: ='[1]Tabel 2 Sydj DATA'!L90 -> 0.9998128859 | F93: ='[1]Tabel 2 Sydj DATA'!N90 -> 1 | G93: ='[1]Tabel 2 Sydj DATA'!O90 -> 0.9998128859 | I93: ='[1]Tabel 2 Sydj DATA'!Q90 -> 2 | J93: ='[1]Tabel 2 Sydj DATA'!R90 -> 1.999625772
A94: ='[1]Tabel 2 Sydj DATA'!I91 -> Komm. og Sprog | C94: ='[1]Tabel 2 Sydj DATA'!K91 -> 2 | D94: ='[1]Tabel 2 Sydj DATA'!L91 -> 1.623526477 | F94: ='[1]Tabel 2 Sydj DATA'!N91 -> 3 | G94: ='[1]Tabel 2 Sydj DATA'!O91 -> 2.895902202 | I94: ='[1]Tabel 2 Sydj DATA'!Q91 -> 5 | J94: ='[1]Tabel 2 Sydj DATA'!R91 -> 4.519428678
A95: ='[1]Tabel 2 Sydj DATA'!I92 -> Bygningskonst. | C95: ='[1]Tabel 2 Sydj DATA'!K92 -> 2 | D95: ='[1]Tabel 2 Sydj DATA'!L92 -> 2 | F95: ='[1]Tabel 2 Sydj DATA'!N92 -> 1 | G95: ='[1]Tabel 2 Sydj DATA'!O92 -> 1 | I95: ='[1]Tabel 2 Sydj DATA'!Q92 -> 3 | J95: ='[1]Tabel 2 Sydj DATA'!R92 -> 3
A96: ='[1]Tabel 2 Sydj DATA'!I93 -> Cand. IT. | C96: ='[1]Tabel 2 Sydj DATA'!K93 -> 0 | D96: ='[1]Tabel 2 Sydj DATA'!L93 -> 0 | F96: ='[1]Tabel 2 Sydj DATA'!N93 -> 2 | G96: ='[1]Tabel 2 Sydj DATA'!O93 -> 1.750140336 | I96: ='[1]Tabel 2 Sydj DATA'!Q93 -> 2 | J96: ='[1]Tabel 2 Sydj DATA'!R93 -> 1.750140336
A97: ='[1]Tabel 2 Sydj DATA'!I94 -> Bac. Samf. | C97: ='[1]Tabel 2 Sydj DATA'!K94 -> 0 | D97: ='[1]Tabel 2 Sydj DATA'!L94 -> 0 | F97: ='[1]Tabel 2 Sydj DATA'!N94 -> 0 | G97: ='[1]Tabel 2 Sydj DATA'!O94 -> 0 | I97: ='[1]Tabel 2 Sydj DATA'!Q94 -> 0 | J97: ='[1]Tabel 2 Sydj DATA'!R94 -> 0
A98: ='[1]Tabel 2 Sydj DATA'!I95 -> Bac. Hum. | C98: ='[1]Tabel 2 Sydj DATA'!K95 -> 3 | D98: ='[1]Tabel 2 Sydj DATA'!L95 -> 2.606499096 | F98: ='[1]Tabel 2 Sydj DATA'!N95 -> 0 | G98: ='[1]Tabel 2 Sydj DATA'!O95 -> 0 | I98: ='[1]Tabel 2 Sydj DATA'!Q95 -> 3 | J98: ='[1]Tabel 2 Sydj DATA'!R95 -> 2.606499096
A99: ='[1]Tabel 2 Sydj DATA'!I96 -> Bac. Nat. | C99: ='[1]Tabel 2 Sydj DATA'!K96 -> 1 | D99: ='[1]Tabel 2 Sydj DATA'!L96 -> 0.9998128859 | F99: ='[1]Tabel 2 Sydj DATA'!N96 -> 1 | G99: ='[1]Tabel 2 Sydj DATA'!O96 -> 0.9998128859 | I99: ='[1]Tabel 2 Sydj DATA'!Q96 -> 2 | J99: ='[1]Tabel 2 Sydj DATA'!R96 -> 1.999625772
A100: ='[1]Tabel 2 Sydj DATA'!I97 -> Andre | C100: ='[1]Tabel 2 Sydj DATA'!K97 -> 1 | D100: ='[1]Tabel 2 Sydj DATA'!L97 -> 0.9998128859 | F100: ='[1]Tabel 2 Sydj DATA'!N97 -> 1 | G100: ='[1]Tabel 2 Sydj DATA'!O97 -> 0.9998128859 | I100: ='[1]Tabel 2 Sydj DATA'!Q97 -> 2 | J100: ='[1]Tabel 2 Sydj DATA'!R97 -> 1.999625772
A102: ='[1]Tabel 2 Sydj DATA'!I99 -> Total | C102: ='[1]Tabel 2 Sydj DATA'!K99 -> 29 | D102: ='[1]Tabel 2 Sydj DATA'!L99 -> 24.89153621 | F102: ='[1]Tabel 2 Sydj DATA'!N99 -> 34 | G102: ='[1]Tabel 2 Sydj DATA'!O99 -> 27.99058192 | I102: ='[1]Tabel 2 Sydj DATA'!Q99 -> 63 | J102: ='[1]Tabel 2 Sydj DATA'!R99 -> 52.88211813
A104: ='[1]Tabel 2 Sydj DATA'!I101 -> Ingeniører i alt | C104: ='[1]Tabel 2 Sydj DATA'!K101 -> 2 | D104: ='[1]Tabel 2 Sydj DATA'!L101 -> 1.399613298 | F104: ='[1]Tabel 2 Sydj DATA'!N101 -> 2 | G104: ='[1]Tabel 2 Sydj DATA'!O101 -> 1.999625772 | I104: ='[1]Tabel 2 Sydj DATA'!Q101 -> 4 | J104: ='[1]Tabel 2 Sydj DATA'!R101 -> 3.399239069
A105: ='[1]Tabel 2 Sydj DATA'!I102 -> Magistre i alt | C105: ='[1]Tabel 2 Sydj DATA'!K102 -> 7 | D105: ='[1]Tabel 2 Sydj DATA'!L102 -> 5.462483628 | F105: ='[1]Tabel 2 Sydj DATA'!N102 -> 10 | G105: ='[1]Tabel 2 Sydj DATA'!O102 -> 6.874571197 | I105: ='[1]Tabel 2 Sydj DATA'!Q102 -> 17 | J105: ='[1]Tabel 2 Sydj DATA'!R102 -> 12.33705482
A106: ='[1]Tabel 2 Sydj DATA'!I103 -> DJØF'ere i alt | C106: ='[1]Tabel 2 Sydj DATA'!K103 -> 6 | D106: ='[1]Tabel 2 Sydj DATA'!L103 -> 5.717582486 | F106: ='[1]Tabel 2 Sydj DATA'!N103 -> 8 | G106: ='[1]Tabel 2 Sydj DATA'!O103 -> 7.185804279 | I106: ='[1]Tabel 2 Sydj DATA'!Q103 -> 14 | J106: ='[1]Tabel 2 Sydj DATA'!R103 -> 12.90338676
A111: ='[1]Tabel 2 Sydj DATA'!I106 -> Billund
C113: ='[1]Tabel 2 Sydj DATA'!K108 -> Mænd | F113: ='[1]Tabel 2 Sydj DATA'!N108 -> Kvinder | I113: ='[1]Tabel 2 Sydj DATA'!Q108 -> I alt
C114: ='[1]Tabel 2 Sydj DATA'!K109 -> Ledigheds- berørte | D114: ='[1]Tabel 2 Sydj DATA'!L109 -> Gns. brutto- ledighed | F114: ='[1]Tabel 2 Sydj DATA'!N109 -> Ledigheds- berørte | G114: ='[1]Tabel 2 Sydj DATA'!O109 -> Gns. brutto- ledighed | I114: ='[1]Tabel 2 Sydj DATA'!Q109 -> Ledigheds- berørte | J114: ='[1]Tabel 2 Sydj DATA'!R109 -> Gns. brutto- ledighed
A117: ='[1]Tabel 2 Sydj DATA'!I112 -> Civ. ing. | C117: ='[1]Tabel 2 Sydj DATA'!K112 -> 0 | D117: ='[1]Tabel 2 Sydj DATA'!L112 -> 0 | F117: ='[1]Tabel 2 Sydj DATA'!N112 -> 2 | G117: ='[1]Tabel 2 Sydj DATA'!O112 -> 1.999625772 | I117: ='[1]Tabel 2 Sydj DATA'!Q112 -> 2 | J117: ='[1]Tabel 2 Sydj DATA'!R112 -> 1.999625772
A118: ='[1]Tabel 2 Sydj DATA'!I113 -> Diplom ing. | C118: ='[1]Tabel 2 Sydj DATA'!K113 -> 3 | D118: ='[1]Tabel 2 Sydj DATA'!L113 -> 2.053888854 | F118: ='[1]Tabel 2 Sydj DATA'!N113 -> 1 | G118: ='[1]Tabel 2 Sydj DATA'!O113 -> 0.9998128859 | I118: ='[1]Tabel 2 Sydj DATA'!Q113 -> 4 | J118: ='[1]Tabel 2 Sydj DATA'!R113 -> 3.05370174
A119: ='[1]Tabel 2 Sydj DATA'!I114 -> Cand. Scient. Tek. | C119: ='[1]Tabel 2 Sydj DATA'!K114 -> 1 | D119: ='[1]Tabel 2 Sydj DATA'!L114 -> 0.4584294892 | F119: ='[1]Tabel 2 Sydj DATA'!N114 -> 0 | G119: ='[1]Tabel 2 Sydj DATA'!O114 -> 0 | I119: ='[1]Tabel 2 Sydj DATA'!Q114 -> 1 | J119: ='[1]Tabel 2 Sydj DATA'!R114 -> 0.4584294892
A120: ='[1]Tabel 2 Sydj DATA'!I115 -> MA. Hum. | C120: ='[1]Tabel 2 Sydj DATA'!K115 -> 3 | D120: ='[1]Tabel 2 Sydj DATA'!L115 -> 2.099419946 | F120: ='[1]Tabel 2 Sydj DATA'!N115 -> 3 | G120: ='[1]Tabel 2 Sydj DATA'!O115 -> 2.793613173 | I120: ='[1]Tabel 2 Sydj DATA'!Q115 -> 6 | J120: ='[1]Tabel 2 Sydj DATA'!R115 -> 4.893033119
A121: ='[1]Tabel 2 Sydj DATA'!I116 -> MA. Nat. | C121: ='[1]Tabel 2 Sydj DATA'!K116 -> 0 | D121: ='[1]Tabel 2 Sydj DATA'!L116 -> 0 | F121: ='[1]Tabel 2 Sydj DATA'!N116 -> 1 | G121: ='[1]Tabel 2 Sydj DATA'!O116 -> 0.9998128859 | I121: ='[1]Tabel 2 Sydj DATA'!Q116 -> 1 | J121: ='[1]Tabel 2 Sydj DATA'!R116 -> 0.9998128859
A122: ='[1]Tabel 2 Sydj DATA'!I117 -> MA. Ph.d. | C122: ='[1]Tabel 2 Sydj DATA'!K117 -> 0 | D122: ='[1]Tabel 2 Sydj DATA'!L117 -> 0 | F122: ='[1]Tabel 2 Sydj DATA'!N117 -> 0 | G122: ='[1]Tabel 2 Sydj DATA'!O117 -> 0 | I122: ='[1]Tabel 2 Sydj DATA'!Q117 -> 0 | J122: ='[1]Tabel 2 Sydj DATA'!R117 -> 0
A123: ='[1]Tabel 2 Sydj DATA'!I118 -> MA. Samf. | C123: ='[1]Tabel 2 Sydj DATA'!K118 -> 0 | D123: ='[1]Tabel 2 Sydj DATA'!L118 -> 0 | F123: ='[1]Tabel 2 Sydj DATA'!N118 -> 0 | G123: ='[1]Tabel 2 Sydj DATA'!O118 -> 0 | I123: ='[1]Tabel 2 Sydj DATA'!Q118 -> 0 | J123: ='[1]Tabel 2 Sydj DATA'!R118 -> 0
A124: ='[1]Tabel 2 Sydj DATA'!I119 -> Øvrige Mag. | C124: ='[1]Tabel 2 Sydj DATA'!K119 -> 1 | D124: ='[1]Tabel 2 Sydj DATA'!L119 -> 0.9998128859 | F124: ='[1]Tabel 2 Sydj DATA'!N119 -> 0 | G124: ='[1]Tabel 2 Sydj DATA'!O119 -> 0 | I124: ='[1]Tabel 2 Sydj DATA'!Q119 -> 1 | J124: ='[1]Tabel 2 Sydj DATA'!R119 -> 0.9998128859
A125: ='[1]Tabel 2 Sydj DATA'!I120 -> Agronom | C125: ='[1]Tabel 2 Sydj DATA'!K120 -> 0 | D125: ='[1]Tabel 2 Sydj DATA'!L120 -> 0 | F125: ='[1]Tabel 2 Sydj DATA'!N120 -> 0 | G125: ='[1]Tabel 2 Sydj DATA'!O120 -> 0 | I125: ='[1]Tabel 2 Sydj DATA'!Q120 -> 0 | J125: ='[1]Tabel 2 Sydj DATA'!R120 -> 0
A126: ='[1]Tabel 2 Sydj DATA'!I121 -> Landsk. Arkt. | C126: ='[1]Tabel 2 Sydj DATA'!K121 -> 0 | D126: ='[1]Tabel 2 Sydj DATA'!L121 -> 0 | F126: ='[1]Tabel 2 Sydj DATA'!N121 -> 0 | G126: ='[1]Tabel 2 Sydj DATA'!O121 -> 0 | I126: ='[1]Tabel 2 Sydj DATA'!Q121 -> 0 | J126: ='[1]Tabel 2 Sydj DATA'!R121 -> 0
A127: ='[1]Tabel 2 Sydj DATA'!I122 -> Hortonom | C127: ='[1]Tabel 2 Sydj DATA'!K122 -> 0 | D127: ='[1]Tabel 2 Sydj DATA'!L122 -> 0 | F127: ='[1]Tabel 2 Sydj DATA'!N122 -> 0 | G127: ='[1]Tabel 2 Sydj DATA'!O122 -> 0 | I127: ='[1]Tabel 2 Sydj DATA'!Q122 -> 0 | J127: ='[1]Tabel 2 Sydj DATA'!R122 -> 0
A128: ='[1]Tabel 2 Sydj DATA'!I123 -> Forstkand. | C128: ='[1]Tabel 2 Sydj DATA'!K123 -> 0 | D128: ='[1]Tabel 2 Sydj DATA'!L123 -> 0 | F128: ='[1]Tabel 2 Sydj DATA'!N123 -> 0 | G128: ='[1]Tabel 2 Sydj DATA'!O123 -> 0 | I128: ='[1]Tabel 2 Sydj DATA'!Q123 -> 0 | J128: ='[1]Tabel 2 Sydj DATA'!R123 -> 0
A129: ='[1]Tabel 2 Sydj DATA'!I124 -> Jordbrugsakad. | C129: ='[1]Tabel 2 Sydj DATA'!K124 -> 0 | D129: ='[1]Tabel 2 Sydj DATA'!L124 -> 0 | F129: ='[1]Tabel 2 Sydj DATA'!N124 -> 0 | G129: ='[1]Tabel 2 Sydj DATA'!O124 -> 0 | I129: ='[1]Tabel 2 Sydj DATA'!Q124 -> 0 | J129: ='[1]Tabel 2 Sydj DATA'!R124 -> 0
A130: ='[1]Tabel 2 Sydj DATA'!I125 -> Mejeriing. | C130: ='[1]Tabel 2 Sydj DATA'!K125 -> 0 | D130: ='[1]Tabel 2 Sydj DATA'!L125 -> 0 | F130: ='[1]Tabel 2 Sydj DATA'!N125 -> 0 | G130: ='[1]Tabel 2 Sydj DATA'!O125 -> 0 | I130: ='[1]Tabel 2 Sydj DATA'!Q125 -> 0 | J130: ='[1]Tabel 2 Sydj DATA'!R125 -> 0
A131: ='[1]Tabel 2 Sydj DATA'!I126 -> Levn.m.kand. | C131: ='[1]Tabel 2 Sydj DATA'!K126 -> 0 | D131: ='[1]Tabel 2 Sydj DATA'!L126 -> 0 | F131: ='[1]Tabel 2 Sydj DATA'!N126 -> 0 | G131: ='[1]Tabel 2 Sydj DATA'!O126 -> 0 | I131: ='[1]Tabel 2 Sydj DATA'!Q126 -> 0 | J131: ='[1]Tabel 2 Sydj DATA'!R126 -> 0
A132: ='[1]Tabel 2 Sydj DATA'!I127 -> Dyrlæge | C132: ='[1]Tabel 2 Sydj DATA'!K127 -> 0 | D132: ='[1]Tabel 2 Sydj DATA'!L127 -> 0 | F132: ='[1]Tabel 2 Sydj DATA'!N127 -> 0 | G132: ='[1]Tabel 2 Sydj DATA'!O127 -> 0 | I132: ='[1]Tabel 2 Sydj DATA'!Q127 -> 0 | J132: ='[1]Tabel 2 Sydj DATA'!R127 -> 0
A133: ='[1]Tabel 2 Sydj DATA'!I128 -> Farmaceut | C133: ='[1]Tabel 2 Sydj DATA'!K128 -> 0 | D133: ='[1]Tabel 2 Sydj DATA'!L128 -> 0 | F133: ='[1]Tabel 2 Sydj DATA'!N128 -> 0 | G133: ='[1]Tabel 2 Sydj DATA'!O128 -> 0 | I133: ='[1]Tabel 2 Sydj DATA'!Q128 -> 0 | J133: ='[1]Tabel 2 Sydj DATA'!R128 -> 0
A134: ='[1]Tabel 2 Sydj DATA'!I129 -> Læge | C134: ='[1]Tabel 2 Sydj DATA'!K129 -> 0 | D134: ='[1]Tabel 2 Sydj DATA'!L129 -> 0 | F134: ='[1]Tabel 2 Sydj DATA'!N129 -> 0 | G134: ='[1]Tabel 2 Sydj DATA'!O129 -> 0 | I134: ='[1]Tabel 2 Sydj DATA'!Q129 -> 0 | J134: ='[1]Tabel 2 Sydj DATA'!R129 -> 0
A135: ='[1]Tabel 2 Sydj DATA'!I130 -> Tandlæge | C135: ='[1]Tabel 2 Sydj DATA'!K130 -> 0 | D135: ='[1]Tabel 2 Sydj DATA'!L130 -> 0 | F135: ='[1]Tabel 2 Sydj DATA'!N130 -> 0 | G135: ='[1]Tabel 2 Sydj DATA'!O130 -> 0 | I135: ='[1]Tabel 2 Sydj DATA'!Q130 -> 0 | J135: ='[1]Tabel 2 Sydj DATA'!R130 -> 0
A136: ='[1]Tabel 2 Sydj DATA'!I131 -> Arkitekt | C136: ='[1]Tabel 2 Sydj DATA'!K131 -> 0 | D136: ='[1]Tabel 2 Sydj DATA'!L131 -> 0 | F136: ='[1]Tabel 2 Sydj DATA'!N131 -> 0 | G136: ='[1]Tabel 2 Sydj DATA'!O131 -> 0 | I136: ='[1]Tabel 2 Sydj DATA'!Q131 -> 0 | J136: ='[1]Tabel 2 Sydj DATA'!R131 -> 0
A137: ='[1]Tabel 2 Sydj DATA'!I132 -> Landinspek. | C137: ='[1]Tabel 2 Sydj DATA'!K132 -> 0 | D137: ='[1]Tabel 2 Sydj DATA'!L132 -> 0 | F137: ='[1]Tabel 2 Sydj DATA'!N132 -> 0 | G137: ='[1]Tabel 2 Sydj DATA'!O132 -> 0 | I137: ='[1]Tabel 2 Sydj DATA'!Q132 -> 0 | J137: ='[1]Tabel 2 Sydj DATA'!R132 -> 0
A138: ='[1]Tabel 2 Sydj DATA'!I133 -> Bibliotekar | C138: ='[1]Tabel 2 Sydj DATA'!K133 -> 0 | D138: ='[1]Tabel 2 Sydj DATA'!L133 -> 0 | F138: ='[1]Tabel 2 Sydj DATA'!N133 -> 0 | G138: ='[1]Tabel 2 Sydj DATA'!O133 -> 0 | I138: ='[1]Tabel 2 Sydj DATA'!Q133 -> 0 | J138: ='[1]Tabel 2 Sydj DATA'!R133 -> 0
A139: ='[1]Tabel 2 Sydj DATA'!I134 -> Musikudd. | C139: ='[1]Tabel 2 Sydj DATA'!K134 -> 0 | D139: ='[1]Tabel 2 Sydj DATA'!L134 -> 0 | F139: ='[1]Tabel 2 Sydj DATA'!N134 -> 0 | G139: ='[1]Tabel 2 Sydj DATA'!O134 -> 0 | I139: ='[1]Tabel 2 Sydj DATA'!Q134 -> 0 | J139: ='[1]Tabel 2 Sydj DATA'!R134 -> 0
A140: ='[1]Tabel 2 Sydj DATA'!I135 -> Teolog | C140: ='[1]Tabel 2 Sydj DATA'!K135 -> 0 | D140: ='[1]Tabel 2 Sydj DATA'!L135 -> 0 | F140: ='[1]Tabel 2 Sydj DATA'!N135 -> 0 | G140: ='[1]Tabel 2 Sydj DATA'!O135 -> 0 | I140: ='[1]Tabel 2 Sydj DATA'!Q135 -> 0 | J140: ='[1]Tabel 2 Sydj DATA'!R135 -> 0
A141: ='[1]Tabel 2 Sydj DATA'!I136 -> Psykolog | C141: ='[1]Tabel 2 Sydj DATA'!K136 -> 0 | D141: ='[1]Tabel 2 Sydj DATA'!L136 -> 0 | F141: ='[1]Tabel 2 Sydj DATA'!N136 -> 2 | G141: ='[1]Tabel 2 Sydj DATA'!O136 -> 1.999625772 | I141: ='[1]Tabel 2 Sydj DATA'!Q136 -> 2 | J141: ='[1]Tabel 2 Sydj DATA'!R136 -> 1.999625772
A142: ='[1]Tabel 2 Sydj DATA'!I137 -> Jurist | C142: ='[1]Tabel 2 Sydj DATA'!K137 -> 0 | D142: ='[1]Tabel 2 Sydj DATA'!L137 -> 0 | F142: ='[1]Tabel 2 Sydj DATA'!N137 -> 0 | G142: ='[1]Tabel 2 Sydj DATA'!O137 -> 0 | I142: ='[1]Tabel 2 Sydj DATA'!Q137 -> 0 | J142: ='[1]Tabel 2 Sydj DATA'!R137 -> 0
A143: ='[1]Tabel 2 Sydj DATA'!I138 -> Økonom | C143: ='[1]Tabel 2 Sydj DATA'!K138 -> 1 | D143: ='[1]Tabel 2 Sydj DATA'!L138 -> 0.3998004117 | F143: ='[1]Tabel 2 Sydj DATA'!N138 -> 0 | G143: ='[1]Tabel 2 Sydj DATA'!O138 -> 0 | I143: ='[1]Tabel 2 Sydj DATA'!Q138 -> 1 | J143: ='[1]Tabel 2 Sydj DATA'!R138 -> 0.3998004117
A144: ='[1]Tabel 2 Sydj DATA'!I139 -> Samf. Adm. | C144: ='[1]Tabel 2 Sydj DATA'!K139 -> 1 | D144: ='[1]Tabel 2 Sydj DATA'!L139 -> 0.9998128859 | F144: ='[1]Tabel 2 Sydj DATA'!N139 -> 1 | G144: ='[1]Tabel 2 Sydj DATA'!O139 -> 0.4309860912 | I144: ='[1]Tabel 2 Sydj DATA'!Q139 -> 2 | J144: ='[1]Tabel 2 Sydj DATA'!R139 -> 1.430798977
A145: ='[1]Tabel 2 Sydj DATA'!I140 -> Cand. Merc. | C145: ='[1]Tabel 2 Sydj DATA'!K140 -> 3 | D145: ='[1]Tabel 2 Sydj DATA'!L140 -> 2.500467785 | F145: ='[1]Tabel 2 Sydj DATA'!N140 -> 3 | G145: ='[1]Tabel 2 Sydj DATA'!O140 -> 2.993201522 | I145: ='[1]Tabel 2 Sydj DATA'!Q140 -> 6 | J145: ='[1]Tabel 2 Sydj DATA'!R140 -> 5.493669307
A146: ='[1]Tabel 2 Sydj DATA'!I141 -> HA | C146: ='[1]Tabel 2 Sydj DATA'!K141 -> 1 | D146: ='[1]Tabel 2 Sydj DATA'!L141 -> 0.9075032745 | F146: ='[1]Tabel 2 Sydj DATA'!N141 -> 0 | G146: ='[1]Tabel 2 Sydj DATA'!O141 -> 0 | I146: ='[1]Tabel 2 Sydj DATA'!Q141 -> 1 | J146: ='[1]Tabel 2 Sydj DATA'!R141 -> 0.9075032745
A147: ='[1]Tabel 2 Sydj DATA'!I142 -> HD | C147: ='[1]Tabel 2 Sydj DATA'!K142 -> 0 | D147: ='[1]Tabel 2 Sydj DATA'!L142 -> 0 | F147: ='[1]Tabel 2 Sydj DATA'!N142 -> 1 | G147: ='[1]Tabel 2 Sydj DATA'!O142 -> 0.3998004117 | I147: ='[1]Tabel 2 Sydj DATA'!Q142 -> 1 | J147: ='[1]Tabel 2 Sydj DATA'!R142 -> 0.3998004117
A148: ='[1]Tabel 2 Sydj DATA'!I143 -> Komm. og Sprog | C148: ='[1]Tabel 2 Sydj DATA'!K143 -> 0 | D148: ='[1]Tabel 2 Sydj DATA'!L143 -> 0 | F148: ='[1]Tabel 2 Sydj DATA'!N143 -> 3 | G148: ='[1]Tabel 2 Sydj DATA'!O143 -> 2.81045344 | I148: ='[1]Tabel 2 Sydj DATA'!Q143 -> 3 | J148: ='[1]Tabel 2 Sydj DATA'!R143 -> 2.81045344
A149: ='[1]Tabel 2 Sydj DATA'!I144 -> Bygningskonst. | C149: ='[1]Tabel 2 Sydj DATA'!K144 -> 0 | D149: ='[1]Tabel 2 Sydj DATA'!L144 -> 0 | F149: ='[1]Tabel 2 Sydj DATA'!N144 -> 0 | G149: ='[1]Tabel 2 Sydj DATA'!O144 -> 0 | I149: ='[1]Tabel 2 Sydj DATA'!Q144 -> 0 | J149: ='[1]Tabel 2 Sydj DATA'!R144 -> 0
A150: ='[1]Tabel 2 Sydj DATA'!I145 -> Cand. IT. | C150: ='[1]Tabel 2 Sydj DATA'!K145 -> 0 | D150: ='[1]Tabel 2 Sydj DATA'!L145 -> 0 | F150: ='[1]Tabel 2 Sydj DATA'!N145 -> 2 | G150: ='[1]Tabel 2 Sydj DATA'!O145 -> 1.999625772 | I150: ='[1]Tabel 2 Sydj DATA'!Q145 -> 2 | J150: ='[1]Tabel 2 Sydj DATA'!R145 -> 1.999625772
A151: ='[1]Tabel 2 Sydj DATA'!I146 -> Bac. Samf. | C151: ='[1]Tabel 2 Sydj DATA'!K146 -> 0 | D151: ='[1]Tabel 2 Sydj DATA'!L146 -> 0 | F151: ='[1]Tabel 2 Sydj DATA'!N146 -> 0 | G151: ='[1]Tabel 2 Sydj DATA'!O146 -> 0 | I151: ='[1]Tabel 2 Sydj DATA'!Q146 -> 0 | J151: ='[1]Tabel 2 Sydj DATA'!R146 -> 0
A152: ='[1]Tabel 2 Sydj DATA'!I147 -> Bac. Hum. | C152: ='[1]Tabel 2 Sydj DATA'!K147 -> 0 | D152: ='[1]Tabel 2 Sydj DATA'!L147 -> 0 | F152: ='[1]Tabel 2 Sydj DATA'!N147 -> 0 | G152: ='[1]Tabel 2 Sydj DATA'!O147 -> 0 | I152: ='[1]Tabel 2 Sydj DATA'!Q147 -> 0 | J152: ='[1]Tabel 2 Sydj DATA'!R147 -> 0
A153: ='[1]Tabel 2 Sydj DATA'!I148 -> Bac. Nat. | C153: ='[1]Tabel 2 Sydj DATA'!K148 -> 1 | D153: ='[1]Tabel 2 Sydj DATA'!L148 -> 0.9873386141 | F153: ='[1]Tabel 2 Sydj DATA'!N148 -> 0 | G153: ='[1]Tabel 2 Sydj DATA'!O148 -> 0 | I153: ='[1]Tabel 2 Sydj DATA'!Q148 -> 1 | J153: ='[1]Tabel 2 Sydj DATA'!R148 -> 0.9873386141
A154: ='[1]Tabel 2 Sydj DATA'!I149 -> Andre | C154: ='[1]Tabel 2 Sydj DATA'!K149 -> 1 | D154: ='[1]Tabel 2 Sydj DATA'!L149 -> 0.1690263831 | F154: ='[1]Tabel 2 Sydj DATA'!N149 -> 1 | G154: ='[1]Tabel 2 Sydj DATA'!O149 -> 0.9075032745 | I154: ='[1]Tabel 2 Sydj DATA'!Q149 -> 2 | J154: ='[1]Tabel 2 Sydj DATA'!R149 -> 1.076529658
A156: ='[1]Tabel 2 Sydj DATA'!I151 -> Total | C156: ='[1]Tabel 2 Sydj DATA'!K151 -> 16 | D156: ='[1]Tabel 2 Sydj DATA'!L151 -> 11.57550053 | F156: ='[1]Tabel 2 Sydj DATA'!N151 -> 20 | G156: ='[1]Tabel 2 Sydj DATA'!O151 -> 18.334061 | I156: ='[1]Tabel 2 Sydj DATA'!Q151 -> 36 | J156: ='[1]Tabel 2 Sydj DATA'!R151 -> 29.90956153
A158: ='[1]Tabel 2 Sydj DATA'!I153 -> Ingeniører i alt | C158: ='[1]Tabel 2 Sydj DATA'!K153 -> 3 | D158: ='[1]Tabel 2 Sydj DATA'!L153 -> 2.053888854 | F158: ='[1]Tabel 2 Sydj DATA'!N153 -> 3 | G158: ='[1]Tabel 2 Sydj DATA'!O153 -> 2.999438658 | I158: ='[1]Tabel 2 Sydj DATA'!Q153 -> 6 | J158: ='[1]Tabel 2 Sydj DATA'!R153 -> 5.053327512
A159: ='[1]Tabel 2 Sydj DATA'!I154 -> Magistre i alt | C159: ='[1]Tabel 2 Sydj DATA'!K154 -> 4 | D159: ='[1]Tabel 2 Sydj DATA'!L154 -> 3.099232832 | F159: ='[1]Tabel 2 Sydj DATA'!N154 -> 4 | G159: ='[1]Tabel 2 Sydj DATA'!O154 -> 3.793426059 | I159: ='[1]Tabel 2 Sydj DATA'!Q154 -> 8 | J159: ='[1]Tabel 2 Sydj DATA'!R154 -> 6.892658891
A160: ='[1]Tabel 2 Sydj DATA'!I155 -> DJØF'ere i alt | C160: ='[1]Tabel 2 Sydj DATA'!K155 -> 6 | D160: ='[1]Tabel 2 Sydj DATA'!L155 -> 4.807584357 | F160: ='[1]Tabel 2 Sydj DATA'!N155 -> 4 | G160: ='[1]Tabel 2 Sydj DATA'!O155 -> 3.424187613 | I160: ='[1]Tabel 2 Sydj DATA'!Q155 -> 10 | J160: ='[1]Tabel 2 Sydj DATA'!R155 -> 8.23177197
A165: ='[1]Tabel 2 Sydj DATA'!I158 -> Sønderborg
C167: ='[1]Tabel 2 Sydj DATA'!K160 -> Mænd | F167: ='[1]Tabel 2 Sydj DATA'!N160 -> Kvinder | I167: ='[1]Tabel 2 Sydj DATA'!Q160 -> I alt
C168: ='[1]Tabel 2 Sydj DATA'!K161 -> Ledigheds- berørte | D168: ='[1]Tabel 2 Sydj DATA'!L161 -> Gns. brutto- ledighed | F168: ='[1]Tabel 2 Sydj DATA'!N161 -> Ledigheds- berørte | G168: ='[1]Tabel 2 Sydj DATA'!O161 -> Gns. brutto- ledighed | I168: ='[1]Tabel 2 Sydj DATA'!Q161 -> Ledigheds- berørte | J168: ='[1]Tabel 2 Sydj DATA'!R161 -> Gns. brutto- ledighed
A171: ='[1]Tabel 2 Sydj DATA'!I164 -> Civ. ing. | C171: ='[1]Tabel 2 Sydj DATA'!K164 -> 10 | D171: ='[1]Tabel 2 Sydj DATA'!L164 -> 9.453626895 | F171: ='[1]Tabel 2 Sydj DATA'!N164 -> 2 | G171: ='[1]Tabel 2 Sydj DATA'!O164 -> 1.999625772 | I171: ='[1]Tabel 2 Sydj DATA'!Q164 -> 12 | J171: ='[1]Tabel 2 Sydj DATA'!R164 -> 11.45325267
A172: ='[1]Tabel 2 Sydj DATA'!I165 -> Diplom ing. | C172: ='[1]Tabel 2 Sydj DATA'!K165 -> 23 | D172: ='[1]Tabel 2 Sydj DATA'!L165 -> 17.83509013 | F172: ='[1]Tabel 2 Sydj DATA'!N165 -> 5 | G172: ='[1]Tabel 2 Sydj DATA'!O165 -> 4.609243435 | I172: ='[1]Tabel 2 Sydj DATA'!Q165 -> 28 | J172: ='[1]Tabel 2 Sydj DATA'!R165 -> 22.44433356
A173: ='[1]Tabel 2 Sydj DATA'!I166 -> Cand. Scient. Tek. | C173: ='[1]Tabel 2 Sydj DATA'!K166 -> 7 | D173: ='[1]Tabel 2 Sydj DATA'!L166 -> 6.335058941 | F173: ='[1]Tabel 2 Sydj DATA'!N166 -> 4 | G173: ='[1]Tabel 2 Sydj DATA'!O166 -> 3.999251544 | I173: ='[1]Tabel 2 Sydj DATA'!Q166 -> 11 | J173: ='[1]Tabel 2 Sydj DATA'!R166 -> 10.33431048
A174: ='[1]Tabel 2 Sydj DATA'!I167 -> MA. Hum. | C174: ='[1]Tabel 2 Sydj DATA'!K167 -> 2 | D174: ='[1]Tabel 2 Sydj DATA'!L167 -> 1.445768103 | F174: ='[1]Tabel 2 Sydj DATA'!N167 -> 20 | G174: ='[1]Tabel 2 Sydj DATA'!O167 -> 17.52385704 | I174: ='[1]Tabel 2 Sydj DATA'!Q167 -> 22 | J174: ='[1]Tabel 2 Sydj DATA'!R167 -> 18.96962515
A175: ='[1]Tabel 2 Sydj DATA'!I168 -> MA. Nat. | C175: ='[1]Tabel 2 Sydj DATA'!K168 -> 1 | D175: ='[1]Tabel 2 Sydj DATA'!L168 -> 0.9998128859 | F175: ='[1]Tabel 2 Sydj DATA'!N168 -> 1 | G175: ='[1]Tabel 2 Sydj DATA'!O168 -> 0.9998128859 | I175: ='[1]Tabel 2 Sydj DATA'!Q168 -> 2 | J175: ='[1]Tabel 2 Sydj DATA'!R168 -> 1.999625772
A176: ='[1]Tabel 2 Sydj DATA'!I169 -> MA. Ph.d. | C176: ='[1]Tabel 2 Sydj DATA'!K169 -> 0 | D176: ='[1]Tabel 2 Sydj DATA'!L169 -> 0 | F176: ='[1]Tabel 2 Sydj DATA'!N169 -> 0 | G176: ='[1]Tabel 2 Sydj DATA'!O169 -> 0 | I176: ='[1]Tabel 2 Sydj DATA'!Q169 -> 0 | J176: ='[1]Tabel 2 Sydj DATA'!R169 -> 0
A177: ='[1]Tabel 2 Sydj DATA'!I170 -> MA. Samf. | C177: ='[1]Tabel 2 Sydj DATA'!K170 -> 0 | D177: ='[1]Tabel 2 Sydj DATA'!L170 -> 0 | F177: ='[1]Tabel 2 Sydj DATA'!N170 -> 0 | G177: ='[1]Tabel 2 Sydj DATA'!O170 -> 0 | I177: ='[1]Tabel 2 Sydj DATA'!Q170 -> 0 | J177: ='[1]Tabel 2 Sydj DATA'!R170 -> 0
A178: ='[1]Tabel 2 Sydj DATA'!I171 -> Øvrige Mag. | C178: ='[1]Tabel 2 Sydj DATA'!K171 -> 1 | D178: ='[1]Tabel 2 Sydj DATA'!L171 -> 0.2151811888 | F178: ='[1]Tabel 2 Sydj DATA'!N171 -> 0 | G178: ='[1]Tabel 2 Sydj DATA'!O171 -> 0 | I178: ='[1]Tabel 2 Sydj DATA'!Q171 -> 1 | J178: ='[1]Tabel 2 Sydj DATA'!R171 -> 0.2151811888
A179: ='[1]Tabel 2 Sydj DATA'!I172 -> Agronom | C179: ='[1]Tabel 2 Sydj DATA'!K172 -> 0 | D179: ='[1]Tabel 2 Sydj DATA'!L172 -> 0 | F179: ='[1]Tabel 2 Sydj DATA'!N172 -> 0 | G179: ='[1]Tabel 2 Sydj DATA'!O172 -> 0 | I179: ='[1]Tabel 2 Sydj DATA'!Q172 -> 0 | J179: ='[1]Tabel 2 Sydj DATA'!R172 -> 0
A180: ='[1]Tabel 2 Sydj DATA'!I173 -> Landsk. Arkt. | C180: ='[1]Tabel 2 Sydj DATA'!K173 -> 0 | D180: ='[1]Tabel 2 Sydj DATA'!L173 -> 0 | F180: ='[1]Tabel 2 Sydj DATA'!N173 -> 0 | G180: ='[1]Tabel 2 Sydj DATA'!O173 -> 0 | I180: ='[1]Tabel 2 Sydj DATA'!Q173 -> 0 | J180: ='[1]Tabel 2 Sydj DATA'!R173 -> 0
A181: ='[1]Tabel 2 Sydj DATA'!I174 -> Hortonom | C181: ='[1]Tabel 2 Sydj DATA'!K174 -> 0 | D181: ='[1]Tabel 2 Sydj DATA'!L174 -> 0 | F181: ='[1]Tabel 2 Sydj DATA'!N174 -> 0 | G181: ='[1]Tabel 2 Sydj DATA'!O174 -> 0 | I181: ='[1]Tabel 2 Sydj DATA'!Q174 -> 0 | J181: ='[1]Tabel 2 Sydj DATA'!R174 -> 0
A182: ='[1]Tabel 2 Sydj DATA'!I175 -> Forstkand. | C182: ='[1]Tabel 2 Sydj DATA'!K175 -> 0 | D182: ='[1]Tabel 2 Sydj DATA'!L175 -> 0 | F182: ='[1]Tabel 2 Sydj DATA'!N175 -> 0 | G182: ='[1]Tabel 2 Sydj DATA'!O175 -> 0 | I182: ='[1]Tabel 2 Sydj DATA'!Q175 -> 0 | J182: ='[1]Tabel 2 Sydj DATA'!R175 -> 0
A183: ='[1]Tabel 2 Sydj DATA'!I176 -> Jordbrugsakad. | C183: ='[1]Tabel 2 Sydj DATA'!K176 -> 0 | D183: ='[1]Tabel 2 Sydj DATA'!L176 -> 0 | F183: ='[1]Tabel 2 Sydj DATA'!N176 -> 0 | G183: ='[1]Tabel 2 Sydj DATA'!O176 -> 0 | I183: ='[1]Tabel 2 Sydj DATA'!Q176 -> 0 | J183: ='[1]Tabel 2 Sydj DATA'!R176 -> 0
A184: ='[1]Tabel 2 Sydj DATA'!I177 -> Mejeriing. | C184: ='[1]Tabel 2 Sydj DATA'!K177 -> 0 | D184: ='[1]Tabel 2 Sydj DATA'!L177 -> 0 | F184: ='[1]Tabel 2 Sydj DATA'!N177 -> 0 | G184: ='[1]Tabel 2 Sydj DATA'!O177 -> 0 | I184: ='[1]Tabel 2 Sydj DATA'!Q177 -> 0 | J184: ='[1]Tabel 2 Sydj DATA'!R177 -> 0
A185: ='[1]Tabel 2 Sydj DATA'!I178 -> Levn.m.kand. | C185: ='[1]Tabel 2 Sydj DATA'!K178 -> 0 | D185: ='[1]Tabel 2 Sydj DATA'!L178 -> 0 | F185: ='[1]Tabel 2 Sydj DATA'!N178 -> 0 | G185: ='[1]Tabel 2 Sydj DATA'!O178 -> 0 | I185: ='[1]Tabel 2 Sydj DATA'!Q178 -> 0 | J185: ='[1]Tabel 2 Sydj DATA'!R178 -> 0
A186: ='[1]Tabel 2 Sydj DATA'!I179 -> Dyrlæge | C186: ='[1]Tabel 2 Sydj DATA'!K179 -> 0 | D186: ='[1]Tabel 2 Sydj DATA'!L179 -> 0 | F186: ='[1]Tabel 2 Sydj DATA'!N179 -> 0 | G186: ='[1]Tabel 2 Sydj DATA'!O179 -> 0 | I186: ='[1]Tabel 2 Sydj DATA'!Q179 -> 0 | J186: ='[1]Tabel 2 Sydj DATA'!R179 -> 0
A187: ='[1]Tabel 2 Sydj DATA'!I180 -> Farmaceut | C187: ='[1]Tabel 2 Sydj DATA'!K180 -> 0 | D187: ='[1]Tabel 2 Sydj DATA'!L180 -> 0 | F187: ='[1]Tabel 2 Sydj DATA'!N180 -> 0 | G187: ='[1]Tabel 2 Sydj DATA'!O180 -> 0 | I187: ='[1]Tabel 2 Sydj DATA'!Q180 -> 0 | J187: ='[1]Tabel 2 Sydj DATA'!R180 -> 0
A188: ='[1]Tabel 2 Sydj DATA'!I181 -> Læge | C188: ='[1]Tabel 2 Sydj DATA'!K181 -> 0 | D188: ='[1]Tabel 2 Sydj DATA'!L181 -> 0 | F188: ='[1]Tabel 2 Sydj DATA'!N181 -> 1 | G188: ='[1]Tabel 2 Sydj DATA'!O181 -> 0.2151811888 | I188: ='[1]Tabel 2 Sydj DATA'!Q181 -> 1 | J188: ='[1]Tabel 2 Sydj DATA'!R181 -> 0.2151811888
A189: ='[1]Tabel 2 Sydj DATA'!I182 -> Tandlæge | C189: ='[1]Tabel 2 Sydj DATA'!K182 -> 0 | D189: ='[1]Tabel 2 Sydj DATA'!L182 -> 0 | F189: ='[1]Tabel 2 Sydj DATA'!N182 -> 0 | G189: ='[1]Tabel 2 Sydj DATA'!O182 -> 0 | I189: ='[1]Tabel 2 Sydj DATA'!Q182 -> 0 | J189: ='[1]Tabel 2 Sydj DATA'!R182 -> 0
A190: ='[1]Tabel 2 Sydj DATA'!I183 -> Arkitekt | C190: ='[1]Tabel 2 Sydj DATA'!K183 -> 0 | D190: ='[1]Tabel 2 Sydj DATA'!L183 -> 0 | F190: ='[1]Tabel 2 Sydj DATA'!N183 -> 0 | G190: ='[1]Tabel 2 Sydj DATA'!O183 -> 0 | I190: ='[1]Tabel 2 Sydj DATA'!Q183 -> 0 | J190: ='[1]Tabel 2 Sydj DATA'!R183 -> 0
A191: ='[1]Tabel 2 Sydj DATA'!I184 -> Landinspek. | C191: ='[1]Tabel 2 Sydj DATA'!K184 -> 0 | D191: ='[1]Tabel 2 Sydj DATA'!L184 -> 0 | F191: ='[1]Tabel 2 Sydj DATA'!N184 -> 0 | G191: ='[1]Tabel 2 Sydj DATA'!O184 -> 0 | I191: ='[1]Tabel 2 Sydj DATA'!Q184 -> 0 | J191: ='[1]Tabel 2 Sydj DATA'!R184 -> 0
A192: ='[1]Tabel 2 Sydj DATA'!I185 -> Bibliotekar | C192: ='[1]Tabel 2 Sydj DATA'!K185 -> 1 | D192: ='[1]Tabel 2 Sydj DATA'!L185 -> 0.9998128859 | F192: ='[1]Tabel 2 Sydj DATA'!N185 -> 1 | G192: ='[1]Tabel 2 Sydj DATA'!O185 -> 0.9998128859 | I192: ='[1]Tabel 2 Sydj DATA'!Q185 -> 2 | J192: ='[1]Tabel 2 Sydj DATA'!R185 -> 1.999625772
A193: ='[1]Tabel 2 Sydj DATA'!I186 -> Musikudd. | C193: ='[1]Tabel 2 Sydj DATA'!K186 -> 0 | D193: ='[1]Tabel 2 Sydj DATA'!L186 -> 0 | F193: ='[1]Tabel 2 Sydj DATA'!N186 -> 1 | G193: ='[1]Tabel 2 Sydj DATA'!O186 -> 0.9998128859 | I193: ='[1]Tabel 2 Sydj DATA'!Q186 -> 1 | J193: ='[1]Tabel 2 Sydj DATA'!R186 -> 0.9998128859
A194: ='[1]Tabel 2 Sydj DATA'!I187 -> Teolog | C194: ='[1]Tabel 2 Sydj DATA'!K187 -> 0 | D194: ='[1]Tabel 2 Sydj DATA'!L187 -> 0 | F194: ='[1]Tabel 2 Sydj DATA'!N187 -> 0 | G194: ='[1]Tabel 2 Sydj DATA'!O187 -> 0 | I194: ='[1]Tabel 2 Sydj DATA'!Q187 -> 0 | J194: ='[1]Tabel 2 Sydj DATA'!R187 -> 0
A195: ='[1]Tabel 2 Sydj DATA'!I188 -> Psykolog | C195: ='[1]Tabel 2 Sydj DATA'!K188 -> 0 | D195: ='[1]Tabel 2 Sydj DATA'!L188 -> 0 | F195: ='[1]Tabel 2 Sydj DATA'!N188 -> 0 | G195: ='[1]Tabel 2 Sydj DATA'!O188 -> 0 | I195: ='[1]Tabel 2 Sydj DATA'!Q188 -> 0 | J195: ='[1]Tabel 2 Sydj DATA'!R188 -> 0
A196: ='[1]Tabel 2 Sydj DATA'!I189 -> Jurist | C196: ='[1]Tabel 2 Sydj DATA'!K189 -> 2 | D196: ='[1]Tabel 2 Sydj DATA'!L189 -> 1.999625772 | F196: ='[1]Tabel 2 Sydj DATA'!N189 -> 0 | G196: ='[1]Tabel 2 Sydj DATA'!O189 -> 0 | I196: ='[1]Tabel 2 Sydj DATA'!Q189 -> 2 | J196: ='[1]Tabel 2 Sydj DATA'!R189 -> 1.999625772
A197: ='[1]Tabel 2 Sydj DATA'!I190 -> Økonom | C197: ='[1]Tabel 2 Sydj DATA'!K190 -> 0 | D197: ='[1]Tabel 2 Sydj DATA'!L190 -> 0 | F197: ='[1]Tabel 2 Sydj DATA'!N190 -> 0 | G197: ='[1]Tabel 2 Sydj DATA'!O190 -> 0 | I197: ='[1]Tabel 2 Sydj DATA'!Q190 -> 0 | J197: ='[1]Tabel 2 Sydj DATA'!R190 -> 0
A198: ='[1]Tabel 2 Sydj DATA'!I191 -> Samf. Adm. | C198: ='[1]Tabel 2 Sydj DATA'!K191 -> 5 | D198: ='[1]Tabel 2 Sydj DATA'!L191 -> 4.99906443 | F198: ='[1]Tabel 2 Sydj DATA'!N191 -> 1 | G198: ='[1]Tabel 2 Sydj DATA'!O191 -> 0.9998128859 | I198: ='[1]Tabel 2 Sydj DATA'!Q191 -> 6 | J198: ='[1]Tabel 2 Sydj DATA'!R191 -> 5.998877316
A199: ='[1]Tabel 2 Sydj DATA'!I192 -> Cand. Merc. | C199: ='[1]Tabel 2 Sydj DATA'!K192 -> 6 | D199: ='[1]Tabel 2 Sydj DATA'!L192 -> 5.9614545 | F199: ='[1]Tabel 2 Sydj DATA'!N192 -> 1 | G199: ='[1]Tabel 2 Sydj DATA'!O192 -> 0.9998128859 | I199: ='[1]Tabel 2 Sydj DATA'!Q192 -> 7 | J199: ='[1]Tabel 2 Sydj DATA'!R192 -> 6.961267386
A200: ='[1]Tabel 2 Sydj DATA'!I193 -> HA | C200: ='[1]Tabel 2 Sydj DATA'!K193 -> 1 | D200: ='[1]Tabel 2 Sydj DATA'!L193 -> 0.9998128859 | F200: ='[1]Tabel 2 Sydj DATA'!N193 -> 0 | G200: ='[1]Tabel 2 Sydj DATA'!O193 -> 0 | I200: ='[1]Tabel 2 Sydj DATA'!Q193 -> 1 | J200: ='[1]Tabel 2 Sydj DATA'!R193 -> 0.9998128859
A201: ='[1]Tabel 2 Sydj DATA'!I194 -> HD | C201: ='[1]Tabel 2 Sydj DATA'!K194 -> 2 | D201: ='[1]Tabel 2 Sydj DATA'!L194 -> 1.999625772 | F201: ='[1]Tabel 2 Sydj DATA'!N194 -> 2 | G201: ='[1]Tabel 2 Sydj DATA'!O194 -> 1.887357326 | I201: ='[1]Tabel 2 Sydj DATA'!Q194 -> 4 | J201: ='[1]Tabel 2 Sydj DATA'!R194 -> 3.886983097
A202: ='[1]Tabel 2 Sydj DATA'!I195 -> Komm. og Sprog | C202: ='[1]Tabel 2 Sydj DATA'!K195 -> 1 | D202: ='[1]Tabel 2 Sydj DATA'!L195 -> 0.9998128859 | F202: ='[1]Tabel 2 Sydj DATA'!N195 -> 3 | G202: ='[1]Tabel 2 Sydj DATA'!O195 -> 2.227904946 | I202: ='[1]Tabel 2 Sydj DATA'!Q195 -> 4 | J202: ='[1]Tabel 2 Sydj DATA'!R195 -> 3.227717832
A203: ='[1]Tabel 2 Sydj DATA'!I196 -> Bygningskonst. | C203: ='[1]Tabel 2 Sydj DATA'!K196 -> 1 | D203: ='[1]Tabel 2 Sydj DATA'!L196 -> 0.4853739163 | F203: ='[1]Tabel 2 Sydj DATA'!N196 -> 0 | G203: ='[1]Tabel 2 Sydj DATA'!O196 -> 0 | I203: ='[1]Tabel 2 Sydj DATA'!Q196 -> 1 | J203: ='[1]Tabel 2 Sydj DATA'!R196 -> 0.4853739163
A204: ='[1]Tabel 2 Sydj DATA'!I197 -> Cand. IT. | C204: ='[1]Tabel 2 Sydj DATA'!K197 -> 2 | D204: ='[1]Tabel 2 Sydj DATA'!L197 -> 1.999625772 | F204: ='[1]Tabel 2 Sydj DATA'!N197 -> 0 | G204: ='[1]Tabel 2 Sydj DATA'!O197 -> 0 | I204: ='[1]Tabel 2 Sydj DATA'!Q197 -> 2 | J204: ='[1]Tabel 2 Sydj DATA'!R197 -> 1.999625772
A205: ='[1]Tabel 2 Sydj DATA'!I198 -> Bac. Samf. | C205: ='[1]Tabel 2 Sydj DATA'!K198 -> 2 | D205: ='[1]Tabel 2 Sydj DATA'!L198 -> 1.999625772 | F205: ='[1]Tabel 2 Sydj DATA'!N198 -> 1 | G205: ='[1]Tabel 2 Sydj DATA'!O198 -> 0.3991766981 | I205: ='[1]Tabel 2 Sydj DATA'!Q198 -> 3 | J205: ='[1]Tabel 2 Sydj DATA'!R198 -> 2.39880247
A206: ='[1]Tabel 2 Sydj DATA'!I199 -> Bac. Hum. | C206: ='[1]Tabel 2 Sydj DATA'!K199 -> 0 | D206: ='[1]Tabel 2 Sydj DATA'!L199 -> 0 | F206: ='[1]Tabel 2 Sydj DATA'!N199 -> 2 | G206: ='[1]Tabel 2 Sydj DATA'!O199 -> 1.400237011 | I206: ='[1]Tabel 2 Sydj DATA'!Q199 -> 2 | J206: ='[1]Tabel 2 Sydj DATA'!R199 -> 1.400237011
A207: ='[1]Tabel 2 Sydj DATA'!I200 -> Bac. Nat. | C207: ='[1]Tabel 2 Sydj DATA'!K200 -> 9 | D207: ='[1]Tabel 2 Sydj DATA'!L200 -> 6.761679037 | F207: ='[1]Tabel 2 Sydj DATA'!N200 -> 0 | G207: ='[1]Tabel 2 Sydj DATA'!O200 -> 0 | I207: ='[1]Tabel 2 Sydj DATA'!Q200 -> 9 | J207: ='[1]Tabel 2 Sydj DATA'!R200 -> 6.761679037
A208: ='[1]Tabel 2 Sydj DATA'!I201 -> Andre | C208: ='[1]Tabel 2 Sydj DATA'!K201 -> 7 | D208: ='[1]Tabel 2 Sydj DATA'!L201 -> 6.988710784 | F208: ='[1]Tabel 2 Sydj DATA'!N201 -> 3 | G208: ='[1]Tabel 2 Sydj DATA'!O201 -> 2.949541571 | I208: ='[1]Tabel 2 Sydj DATA'!Q201 -> 10 | J208: ='[1]Tabel 2 Sydj DATA'!R201 -> 9.938252355
A210: ='[1]Tabel 2 Sydj DATA'!I203 -> Total | C210: ='[1]Tabel 2 Sydj DATA'!K203 -> 83 | D210: ='[1]Tabel 2 Sydj DATA'!L203 -> 72.47876255 | F210: ='[1]Tabel 2 Sydj DATA'!N203 -> 48 | G210: ='[1]Tabel 2 Sydj DATA'!O203 -> 42.21044097 | I210: ='[1]Tabel 2 Sydj DATA'!Q203 -> 131 | J210: ='[1]Tabel 2 Sydj DATA'!R203 -> 114.6892035
A212: ='[1]Tabel 2 Sydj DATA'!I205 -> Ingeniører i alt | C212: ='[1]Tabel 2 Sydj DATA'!K205 -> 33 | D212: ='[1]Tabel 2 Sydj DATA'!L205 -> 27.28871702 | F212: ='[1]Tabel 2 Sydj DATA'!N205 -> 7 | G212: ='[1]Tabel 2 Sydj DATA'!O205 -> 6.608869207 | I212: ='[1]Tabel 2 Sydj DATA'!Q205 -> 40 | J212: ='[1]Tabel 2 Sydj DATA'!R205 -> 33.89758623
A213: ='[1]Tabel 2 Sydj DATA'!I206 -> Magistre i alt | C213: ='[1]Tabel 2 Sydj DATA'!K206 -> 4 | D213: ='[1]Tabel 2 Sydj DATA'!L206 -> 2.660762178 | F213: ='[1]Tabel 2 Sydj DATA'!N206 -> 21 | G213: ='[1]Tabel 2 Sydj DATA'!O206 -> 18.52366993 | I213: ='[1]Tabel 2 Sydj DATA'!Q206 -> 25 | J213: ='[1]Tabel 2 Sydj DATA'!R206 -> 21.18443211
A214: ='[1]Tabel 2 Sydj DATA'!I207 -> DJØF'ere i alt | C214: ='[1]Tabel 2 Sydj DATA'!K207 -> 14 | D214: ='[1]Tabel 2 Sydj DATA'!L207 -> 13.95995759 | F214: ='[1]Tabel 2 Sydj DATA'!N207 -> 2 | G214: ='[1]Tabel 2 Sydj DATA'!O207 -> 1.999625772 | I214: ='[1]Tabel 2 Sydj DATA'!Q207 -> 16 | J214: ='[1]Tabel 2 Sydj DATA'!R207 -> 15.95958336
A219: ='[1]Tabel 2 Sydj DATA'!I210 -> Tønder
C221: ='[1]Tabel 2 Sydj DATA'!K212 -> Mænd | F221: ='[1]Tabel 2 Sydj DATA'!N212 -> Kvinder | I221: ='[1]Tabel 2 Sydj DATA'!Q212 -> I alt
C222: ='[1]Tabel 2 Sydj DATA'!K213 -> Ledigheds- berørte | D222: ='[1]Tabel 2 Sydj DATA'!L213 -> Gns. brutto- ledighed | F222: ='[1]Tabel 2 Sydj DATA'!N213 -> Ledigheds- berørte | G222: ='[1]Tabel 2 Sydj DATA'!O213 -> Gns. brutto- ledighed | I222: ='[1]Tabel 2 Sydj DATA'!Q213 -> Ledigheds- berørte | J222: ='[1]Tabel 2 Sydj DATA'!R213 -> Gns. brutto- ledighed
A225: ='[1]Tabel 2 Sydj DATA'!I216 -> Civ. ing. | C225: ='[1]Tabel 2 Sydj DATA'!K216 -> 0 | D225: ='[1]Tabel 2 Sydj DATA'!L216 -> 0 | F225: ='[1]Tabel 2 Sydj DATA'!N216 -> 0 | G225: ='[1]Tabel 2 Sydj DATA'!O216 -> 0 | I225: ='[1]Tabel 2 Sydj DATA'!Q216 -> 0 | J225: ='[1]Tabel 2 Sydj DATA'!R216 -> 0
A226: ='[1]Tabel 2 Sydj DATA'!I217 -> Diplom ing. | C226: ='[1]Tabel 2 Sydj DATA'!K217 -> 2 | D226: ='[1]Tabel 2 Sydj DATA'!L217 -> 1.999625772 | F226: ='[1]Tabel 2 Sydj DATA'!N217 -> 0 | G226: ='[1]Tabel 2 Sydj DATA'!O217 -> 0 | I226: ='[1]Tabel 2 Sydj DATA'!Q217 -> 2 | J226: ='[1]Tabel 2 Sydj DATA'!R217 -> 1.999625772
A227: ='[1]Tabel 2 Sydj DATA'!I218 -> Cand. Scient. Tek. | C227: ='[1]Tabel 2 Sydj DATA'!K218 -> 0 | D227: ='[1]Tabel 2 Sydj DATA'!L218 -> 0 | F227: ='[1]Tabel 2 Sydj DATA'!N218 -> 0 | G227: ='[1]Tabel 2 Sydj DATA'!O218 -> 0 | I227: ='[1]Tabel 2 Sydj DATA'!Q218 -> 0 | J227: ='[1]Tabel 2 Sydj DATA'!R218 -> 0
A228: ='[1]Tabel 2 Sydj DATA'!I219 -> MA. Hum. | C228: ='[1]Tabel 2 Sydj DATA'!K219 -> 1 | D228: ='[1]Tabel 2 Sydj DATA'!L219 -> 0.9998128859 | F228: ='[1]Tabel 2 Sydj DATA'!N219 -> 5 | G228: ='[1]Tabel 2 Sydj DATA'!O219 -> 4.306742344 | I228: ='[1]Tabel 2 Sydj DATA'!Q219 -> 6 | J228: ='[1]Tabel 2 Sydj DATA'!R219 -> 5.30655523
A229: ='[1]Tabel 2 Sydj DATA'!I220 -> MA. Nat. | C229: ='[1]Tabel 2 Sydj DATA'!K220 -> 1 | D229: ='[1]Tabel 2 Sydj DATA'!L220 -> 0.8108276679 | F229: ='[1]Tabel 2 Sydj DATA'!N220 -> 1 | G229: ='[1]Tabel 2 Sydj DATA'!O220 -> 0.9998128859 | I229: ='[1]Tabel 2 Sydj DATA'!Q220 -> 2 | J229: ='[1]Tabel 2 Sydj DATA'!R220 -> 1.810640554
A230: ='[1]Tabel 2 Sydj DATA'!I221 -> MA. Ph.d. | C230: ='[1]Tabel 2 Sydj DATA'!K221 -> 0 | D230: ='[1]Tabel 2 Sydj DATA'!L221 -> 0 | F230: ='[1]Tabel 2 Sydj DATA'!N221 -> 0 | G230: ='[1]Tabel 2 Sydj DATA'!O221 -> 0 | I230: ='[1]Tabel 2 Sydj DATA'!Q221 -> 0 | J230: ='[1]Tabel 2 Sydj DATA'!R221 -> 0
A231: ='[1]Tabel 2 Sydj DATA'!I222 -> MA. Samf. | C231: ='[1]Tabel 2 Sydj DATA'!K222 -> 0 | D231: ='[1]Tabel 2 Sydj DATA'!L222 -> 0 | F231: ='[1]Tabel 2 Sydj DATA'!N222 -> 0 | G231: ='[1]Tabel 2 Sydj DATA'!O222 -> 0 | I231: ='[1]Tabel 2 Sydj DATA'!Q222 -> 0 | J231: ='[1]Tabel 2 Sydj DATA'!R222 -> 0
A232: ='[1]Tabel 2 Sydj DATA'!I223 -> Øvrige Mag. | C232: ='[1]Tabel 2 Sydj DATA'!K223 -> 0 | D232: ='[1]Tabel 2 Sydj DATA'!L223 -> 0 | F232: ='[1]Tabel 2 Sydj DATA'!N223 -> 0 | G232: ='[1]Tabel 2 Sydj DATA'!O223 -> 0 | I232: ='[1]Tabel 2 Sydj DATA'!Q223 -> 0 | J232: ='[1]Tabel 2 Sydj DATA'!R223 -> 0
A233: ='[1]Tabel 2 Sydj DATA'!I224 -> Agronom | C233: ='[1]Tabel 2 Sydj DATA'!K224 -> 0 | D233: ='[1]Tabel 2 Sydj DATA'!L224 -> 0 | F233: ='[1]Tabel 2 Sydj DATA'!N224 -> 0 | G233: ='[1]Tabel 2 Sydj DATA'!O224 -> 0 | I233: ='[1]Tabel 2 Sydj DATA'!Q224 -> 0 | J233: ='[1]Tabel 2 Sydj DATA'!R224 -> 0
A234: ='[1]Tabel 2 Sydj DATA'!I225 -> Landsk. Arkt. | C234: ='[1]Tabel 2 Sydj DATA'!K225 -> 0 | D234: ='[1]Tabel 2 Sydj DATA'!L225 -> 0 | F234: ='[1]Tabel 2 Sydj DATA'!N225 -> 0 | G234: ='[1]Tabel 2 Sydj DATA'!O225 -> 0 | I234: ='[1]Tabel 2 Sydj DATA'!Q225 -> 0 | J234: ='[1]Tabel 2 Sydj DATA'!R225 -> 0
A235: ='[1]Tabel 2 Sydj DATA'!I226 -> Hortonom | C235: ='[1]Tabel 2 Sydj DATA'!K226 -> 0 | D235: ='[1]Tabel 2 Sydj DATA'!L226 -> 0 | F235: ='[1]Tabel 2 Sydj DATA'!N226 -> 0 | G235: ='[1]Tabel 2 Sydj DATA'!O226 -> 0 | I235: ='[1]Tabel 2 Sydj DATA'!Q226 -> 0 | J235: ='[1]Tabel 2 Sydj DATA'!R226 -> 0
A236: ='[1]Tabel 2 Sydj DATA'!I227 -> Forstkand. | C236: ='[1]Tabel 2 Sydj DATA'!K227 -> 0 | D236: ='[1]Tabel 2 Sydj DATA'!L227 -> 0 | F236: ='[1]Tabel 2 Sydj DATA'!N227 -> 0 | G236: ='[1]Tabel 2 Sydj DATA'!O227 -> 0 | I236: ='[1]Tabel 2 Sydj DATA'!Q227 -> 0 | J236: ='[1]Tabel 2 Sydj DATA'!R227 -> 0
A237: ='[1]Tabel 2 Sydj DATA'!I228 -> Jordbrugsakad. | C237: ='[1]Tabel 2 Sydj DATA'!K228 -> 0 | D237: ='[1]Tabel 2 Sydj DATA'!L228 -> 0 | F237: ='[1]Tabel 2 Sydj DATA'!N228 -> 0 | G237: ='[1]Tabel 2 Sydj DATA'!O228 -> 0 | I237: ='[1]Tabel 2 Sydj DATA'!Q228 -> 0 | J237: ='[1]Tabel 2 Sydj DATA'!R228 -> 0
A238: ='[1]Tabel 2 Sydj DATA'!I229 -> Mejeriing. | C238: ='[1]Tabel 2 Sydj DATA'!K229 -> 0 | D238: ='[1]Tabel 2 Sydj DATA'!L229 -> 0 | F238: ='[1]Tabel 2 Sydj DATA'!N229 -> 0 | G238: ='[1]Tabel 2 Sydj DATA'!O229 -> 0 | I238: ='[1]Tabel 2 Sydj DATA'!Q229 -> 0 | J238: ='[1]Tabel 2 Sydj DATA'!R229 -> 0
A239: ='[1]Tabel 2 Sydj DATA'!I230 -> Levn.m.kand. | C239: ='[1]Tabel 2 Sydj DATA'!K230 -> 0 | D239: ='[1]Tabel 2 Sydj DATA'!L230 -> 0 | F239: ='[1]Tabel 2 Sydj DATA'!N230 -> 0 | G239: ='[1]Tabel 2 Sydj DATA'!O230 -> 0 | I239: ='[1]Tabel 2 Sydj DATA'!Q230 -> 0 | J239: ='[1]Tabel 2 Sydj DATA'!R230 -> 0
A240: ='[1]Tabel 2 Sydj DATA'!I231 -> Dyrlæge | C240: ='[1]Tabel 2 Sydj DATA'!K231 -> 0 | D240: ='[1]Tabel 2 Sydj DATA'!L231 -> 0 | F240: ='[1]Tabel 2 Sydj DATA'!N231 -> 1 | G240: ='[1]Tabel 2 Sydj DATA'!O231 -> 0.7690388574 | I240: ='[1]Tabel 2 Sydj DATA'!Q231 -> 1 | J240: ='[1]Tabel 2 Sydj DATA'!R231 -> 0.7690388574
... 386 more rows

Sheet Tabel 3 Sydj
A1: Tabel 3. Ledige i procent af forsikrede
A3: ='[1]Tabel 2 Sydj DATA'!I3 -> Sydjylland
C5: Mænd | F5: Kvinder | I5: I alt
C6: Ledigheds- berørte | D6: Gns. brutto- ledighed | F6: Ledigheds- berørte | G6: Gns. brutto- ledighed | I6: Ledigheds- berørte | J6: Gns. brutto- ledighed
A9: ='[1]Tabel 2 Sydj DATA'!I9 -> Civ. ing. | C9: =IF(OR('Tabel 1 Sydj'!C7<5,'Tabel 2 Sydj'!C9<0.5),"-",IFERROR('Tabel 2 Sydj'!C9/'Tabel 1 Sydj'!C7*100,"-")) -> 3.430079156 | D9: =IF(OR('Tabel 1 Sydj'!C7<5,'Tabel 2 Sydj'!D9<0.5),"-",IFERROR('Tabel 2 Sydj'!D9/'Tabel 1 Sydj'!C7*100,"-")) -> 3.125767814 | F9: =IF(OR('Tabel 1 Sydj'!E7<5,'Tabel 2 Sydj'!F9<0.5),"-",IFERROR('Tabel 2 Sydj'!F9/'Tabel 1 Sydj'!E7*100,"-")) -> 4.268292683 | G9: =IF(OR('Tabel 1 Sydj'!E7<5,'Tabel 2 Sydj'!G9<0.5),"-",IFERROR('Tabel 2 Sydj'!G9/'Tabel 1 Sydj'!E7*100,"-")) -> 3.901252447 | I9: =IF(OR('Tabel 1 Sydj'!G7<5,'Tabel 2 Sydj'!I9<0.5),"-",IFERROR('Tabel 2 Sydj'!I9/'Tabel 1 Sydj'!G7*100,"-")) -> 3.635458167 | J9: =IF(OR('Tabel 1 Sydj'!G7<5,'Tabel 2 Sydj'!J9<0.5),"-",IFERROR('Tabel 2 Sydj'!J9/'Tabel 1 Sydj'!G7*100,"-")) -> 3.315776997
A10: ='[1]Tabel 2 Sydj DATA'!I10 -> Diplom ing. | C10: =IF(OR('Tabel 1 Sydj'!C8<5,'Tabel 2 Sydj'!C10<0.5),"-",IFERROR('Tabel 2 Sydj'!C10/'Tabel 1 Sydj'!C8*100,"-")) -> 3.146334224 | D10: =IF(OR('Tabel 1 Sydj'!C8<5,'Tabel 2 Sydj'!D10<0.5),"-",IFERROR('Tabel 2 Sydj'!D10/'Tabel 1 Sydj'!C8*100,"-")) -> 2.751782152 | F10: =IF(OR('Tabel 1 Sydj'!E8<5,'Tabel 2 Sydj'!F10<0.5),"-",IFERROR('Tabel 2 Sydj'!F10/'Tabel 1 Sydj'!E8*100,"-")) -> 3.786982249 | G10: =IF(OR('Tabel 1 Sydj'!E8<5,'Tabel 2 Sydj'!G10<0.5),"-",IFERROR('Tabel 2 Sydj'!G10/'Tabel 1 Sydj'!E8*100,"-")) -> 3.515751721 | I10: =IF(OR('Tabel 1 Sydj'!G8<5,'Tabel 2 Sydj'!I10<0.5),"-",IFERROR('Tabel 2 Sydj'!I10/'Tabel 1 Sydj'!G8*100,"-")) -> 3.274798291 | J10: =IF(OR('Tabel 1 Sydj'!G8<5,'Tabel 2 Sydj'!J10<0.5),"-",IFERROR('Tabel 2 Sydj'!J10/'Tabel 1 Sydj'!G8*100,"-")) -> 2.904974911
A11: ='[1]Tabel 2 Sydj DATA'!I11 -> Cand. Scient. Tek. | C11: =IF(OR('Tabel 1 Sydj'!C9<5,'Tabel 2 Sydj'!C11<0.5),"-",IFERROR('Tabel 2 Sydj'!C11/'Tabel 1 Sydj'!C9*100,"-")) -> 7.282415631 | D11: =IF(OR('Tabel 1 Sydj'!C9<5,'Tabel 2 Sydj'!D11<0.5),"-",IFERROR('Tabel 2 Sydj'!D11/'Tabel 1 Sydj'!C9*100,"-")) -> 6.676948155 | F11: =IF(OR('Tabel 1 Sydj'!E9<5,'Tabel 2 Sydj'!F11<0.5),"-",IFERROR('Tabel 2 Sydj'!F11/'Tabel 1 Sydj'!E9*100,"-")) -> 5.050505051 | G11: =IF(OR('Tabel 1 Sydj'!E9<5,'Tabel 2 Sydj'!G11<0.5),"-",IFERROR('Tabel 2 Sydj'!G11/'Tabel 1 Sydj'!E9*100,"-")) -> 4.702422466 | I11: =IF(OR('Tabel 1 Sydj'!G9<5,'Tabel 2 Sydj'!I11<0.5),"-",IFERROR('Tabel 2 Sydj'!I11/'Tabel 1 Sydj'!G9*100,"-")) -> 6.360792492 | J11: =IF(OR('Tabel 1 Sydj'!G9<5,'Tabel 2 Sydj'!J11<0.5),"-",IFERROR('Tabel 2 Sydj'!J11/'Tabel 1 Sydj'!G9*100,"-")) -> 5.861606994
A12: ='[1]Tabel 2 Sydj DATA'!I12 -> MA. Hum. | C12: =IF(OR('Tabel 1 Sydj'!C10<5,'Tabel 2 Sydj'!C12<0.5),"-",IFERROR('Tabel 2 Sydj'!C12/'Tabel 1 Sydj'!C10*100,"-")) -> 7.462686567 | D12: =IF(OR('Tabel 1 Sydj'!C10<5,'Tabel 2 Sydj'!D12<0.5),"-",IFERROR('Tabel 2 Sydj'!D12/'Tabel 1 Sydj'!C10*100,"-")) -> 6.52292706 | F12: =IF(OR('Tabel 1 Sydj'!E10<5,'Tabel 2 Sydj'!F12<0.5),"-",IFERROR('Tabel 2 Sydj'!F12/'Tabel 1 Sydj'!E10*100,"-")) -> 10.92489137 | G12: =IF(OR('Tabel 1 Sydj'!E10<5,'Tabel 2 Sydj'!G12<0.5),"-",IFERROR('Tabel 2 Sydj'!G12/'Tabel 1 Sydj'!E10*100,"-")) -> 9.130609459 | I12: =IF(OR('Tabel 1 Sydj'!G10<5,'Tabel 2 Sydj'!I12<0.5),"-",IFERROR('Tabel 2 Sydj'!I12/'Tabel 1 Sydj'!G10*100,"-")) -> 9.838160136 | J12: =IF(OR('Tabel 1 Sydj'!G10<5,'Tabel 2 Sydj'!J12<0.5),"-",IFERROR('Tabel 2 Sydj'!J12/'Tabel 1 Sydj'!G10*100,"-")) -> 8.312099268
A13: ='[1]Tabel 2 Sydj DATA'!I13 -> MA. Nat. | C13: =IF(OR('Tabel 1 Sydj'!C11<5,'Tabel 2 Sydj'!C13<0.5),"-",IFERROR('Tabel 2 Sydj'!C13/'Tabel 1 Sydj'!C11*100,"-")) -> 3.266331658 | D13: =IF(OR('Tabel 1 Sydj'!C11<5,'Tabel 2 Sydj'!D13<0.5),"-",IFERROR('Tabel 2 Sydj'!D13/'Tabel 1 Sydj'!C11*100,"-")) -> 2.842128061 | F13: =IF(OR('Tabel 1 Sydj'!E11<5,'Tabel 2 Sydj'!F13<0.5),"-",IFERROR('Tabel 2 Sydj'!F13/'Tabel 1 Sydj'!E11*100,"-")) -> 3.714285714 | G13: =IF(OR('Tabel 1 Sydj'!E11<5,'Tabel 2 Sydj'!G13<0.5),"-",IFERROR('Tabel 2 Sydj'!G13/'Tabel 1 Sydj'!E11*100,"-")) -> 3.196086643 | I13: =IF(OR('Tabel 1 Sydj'!G11<5,'Tabel 2 Sydj'!I13<0.5),"-",IFERROR('Tabel 2 Sydj'!I13/'Tabel 1 Sydj'!G11*100,"-")) -> 3.475935829 | J13: =IF(OR('Tabel 1 Sydj'!G11<5,'Tabel 2 Sydj'!J13<0.5),"-",IFERROR('Tabel 2 Sydj'!J13/'Tabel 1 Sydj'!G11*100,"-")) -> 3.007750392
A14: ='[1]Tabel 2 Sydj DATA'!I14 -> MA. Ph.d. | C14: =IF(OR('Tabel 1 Sydj'!C12<5,'Tabel 2 Sydj'!C14<0.5),"-",IFERROR('Tabel 2 Sydj'!C14/'Tabel 1 Sydj'!C12*100,"-")) -> 8.108108108 | D14: =IF(OR('Tabel 1 Sydj'!C12<5,'Tabel 2 Sydj'!D14<0.5),"-",IFERROR('Tabel 2 Sydj'!D14/'Tabel 1 Sydj'!C12*100,"-")) -> 8.106590967 | F14: =IF(OR('Tabel 1 Sydj'!E12<5,'Tabel 2 Sydj'!F14<0.5),"-",IFERROR('Tabel 2 Sydj'!F14/'Tabel 1 Sydj'!E12*100,"-")) -> 2.5 | G14: =IF(OR('Tabel 1 Sydj'!E12<5,'Tabel 2 Sydj'!G14<0.5),"-",IFERROR('Tabel 2 Sydj'!G14/'Tabel 1 Sydj'!E12*100,"-")) -> 2.499532215 | I14: =IF(OR('Tabel 1 Sydj'!G12<5,'Tabel 2 Sydj'!I14<0.5),"-",IFERROR('Tabel 2 Sydj'!I14/'Tabel 1 Sydj'!G12*100,"-")) -> 5.194805195 | J14: =IF(OR('Tabel 1 Sydj'!G12<5,'Tabel 2 Sydj'!J14<0.5),"-",IFERROR('Tabel 2 Sydj'!J14/'Tabel 1 Sydj'!G12*100,"-")) -> 5.193833174
A15: ='[1]Tabel 2 Sydj DATA'!I15 -> MA. Samf. | C15: =IF(OR('Tabel 1 Sydj'!C13<5,'Tabel 2 Sydj'!C15<0.5),"-",IFERROR('Tabel 2 Sydj'!C15/'Tabel 1 Sydj'!C13*100,"-")) -> 18.18181818 | D15: =IF(OR('Tabel 1 Sydj'!C13<5,'Tabel 2 Sydj'!D15<0.5),"-",IFERROR('Tabel 2 Sydj'!D15/'Tabel 1 Sydj'!C13*100,"-")) -> 15.5210182 | F15: =IF(OR('Tabel 1 Sydj'!E13<5,'Tabel 2 Sydj'!F15<0.5),"-",IFERROR('Tabel 2 Sydj'!F15/'Tabel 1 Sydj'!E13*100,"-")) -> 15.38461538 | G15: =IF(OR('Tabel 1 Sydj'!E13<5,'Tabel 2 Sydj'!G15<0.5),"-",IFERROR('Tabel 2 Sydj'!G15/'Tabel 1 Sydj'!E13*100,"-")) -> 13.2539138 | I15: =IF(OR('Tabel 1 Sydj'!G13<5,'Tabel 2 Sydj'!I15<0.5),"-",IFERROR('Tabel 2 Sydj'!I15/'Tabel 1 Sydj'!G13*100,"-")) -> 16.05839416 | J15: =IF(OR('Tabel 1 Sydj'!G13<5,'Tabel 2 Sydj'!J15<0.5),"-",IFERROR('Tabel 2 Sydj'!J15/'Tabel 1 Sydj'!G13*100,"-")) -> 13.80000464
A16: ='[1]Tabel 2 Sydj DATA'!I16 -> Øvrige Mag. | C16: =IF(OR('Tabel 1 Sydj'!C14<5,'Tabel 2 Sydj'!C16<0.5),"-",IFERROR('Tabel 2 Sydj'!C16/'Tabel 1 Sydj'!C14*100,"-")) -> 4.545454545 | D16: =IF(OR('Tabel 1 Sydj'!C14<5,'Tabel 2 Sydj'!D16<0.5),"-",IFERROR('Tabel 2 Sydj'!D16/'Tabel 1 Sydj'!C14*100,"-")) -> 3.355768122 | F16: =IF(OR('Tabel 1 Sydj'!E14<5,'Tabel 2 Sydj'!F16<0.5),"-",IFERROR('Tabel 2 Sydj'!F16/'Tabel 1 Sydj'!E14*100,"-")) -> 4.72972973 | G16: =IF(OR('Tabel 1 Sydj'!E14<5,'Tabel 2 Sydj'!G16<0.5),"-",IFERROR('Tabel 2 Sydj'!G16/'Tabel 1 Sydj'!E14*100,"-")) -> 4.229873858 | I16: =IF(OR('Tabel 1 Sydj'!G14<5,'Tabel 2 Sydj'!I16<0.5),"-",IFERROR('Tabel 2 Sydj'!I16/'Tabel 1 Sydj'!G14*100,"-")) -> 4.672897196 | J16: =IF(OR('Tabel 1 Sydj'!G14<5,'Tabel 2 Sydj'!J16<0.5),"-",IFERROR('Tabel 2 Sydj'!J16/'Tabel 1 Sydj'!G14*100,"-")) -> 3.960289846
A17: ='[1]Tabel 2 Sydj DATA'!I17 -> Agronom | C17: =IF(OR('Tabel 1 Sydj'!C15<5,'Tabel 2 Sydj'!C17<0.5),"-",IFERROR('Tabel 2 Sydj'!C17/'Tabel 1 Sydj'!C15*100,"-")) -> 2.803738318 | D17: =IF(OR('Tabel 1 Sydj'!C15<5,'Tabel 2 Sydj'!D17<0.5),"-",IFERROR('Tabel 2 Sydj'!D17/'Tabel 1 Sydj'!C15*100,"-")) -> 2.803213699 | F17: =IF(OR('Tabel 1 Sydj'!E15<5,'Tabel 2 Sydj'!F17<0.5),"-",IFERROR('Tabel 2 Sydj'!F17/'Tabel 1 Sydj'!E15*100,"-")) -> 1.754385965 | G17: =IF(OR('Tabel 1 Sydj'!E15<5,'Tabel 2 Sydj'!G17<0.5),"-",IFERROR('Tabel 2 Sydj'!G17/'Tabel 1 Sydj'!E15*100,"-")) -> 1.392413235 | I17: =IF(OR('Tabel 1 Sydj'!G15<5,'Tabel 2 Sydj'!I17<0.5),"-",IFERROR('Tabel 2 Sydj'!I17/'Tabel 1 Sydj'!G15*100,"-")) -> 2.262443439 | J17: =IF(OR('Tabel 1 Sydj'!G15<5,'Tabel 2 Sydj'!J17<0.5),"-",IFERROR('Tabel 2 Sydj'!J17/'Tabel 1 Sydj'!G15*100,"-")) -> 2.075470473
A18: ='[1]Tabel 2 Sydj DATA'!I18 -> Landsk. Arkt. | C18: =IF(OR('Tabel 1 Sydj'!C16<5,'Tabel 2 Sydj'!C18<0.5),"-",IFERROR('Tabel 2 Sydj'!C18/'Tabel 1 Sydj'!C16*100,"-")) -> - | D18: =IF(OR('Tabel 1 Sydj'!C16<5,'Tabel 2 Sydj'!D18<0.5),"-",IFERROR('Tabel 2 Sydj'!D18/'Tabel 1 Sydj'!C16*100,"-")) -> - | F18: =IF(OR('Tabel 1 Sydj'!E16<5,'Tabel 2 Sydj'!F18<0.5),"-",IFERROR('Tabel 2 Sydj'!F18/'Tabel 1 Sydj'!E16*100,"-")) -> 4.761904762 | G18: =IF(OR('Tabel 1 Sydj'!E16<5,'Tabel 2 Sydj'!G18<0.5),"-",IFERROR('Tabel 2 Sydj'!G18/'Tabel 1 Sydj'!E16*100,"-")) -> 3.483885914 | I18: =IF(OR('Tabel 1 Sydj'!G16<5,'Tabel 2 Sydj'!I18<0.5),"-",IFERROR('Tabel 2 Sydj'!I18/'Tabel 1 Sydj'!G16*100,"-")) -> 3.225806452 | J18: =IF(OR('Tabel 1 Sydj'!G16<5,'Tabel 2 Sydj'!J18<0.5),"-",IFERROR('Tabel 2 Sydj'!J18/'Tabel 1 Sydj'!G16*100,"-")) -> 2.360051748
A19: ='[1]Tabel 2 Sydj DATA'!I19 -> Hortonom | C19: =IF(OR('Tabel 1 Sydj'!C17<5,'Tabel 2 Sydj'!C19<0.5),"-",IFERROR('Tabel 2 Sydj'!C19/'Tabel 1 Sydj'!C17*100,"-")) -> - | D19: =IF(OR('Tabel 1 Sydj'!C17<5,'Tabel 2 Sydj'!D19<0.5),"-",IFERROR('Tabel 2 Sydj'!D19/'Tabel 1 Sydj'!C17*100,"-")) -> - | F19: =IF(OR('Tabel 1 Sydj'!E17<5,'Tabel 2 Sydj'!F19<0.5),"-",IFERROR('Tabel 2 Sydj'!F19/'Tabel 1 Sydj'!E17*100,"-")) -> - | G19: =IF(OR('Tabel 1 Sydj'!E17<5,'Tabel 2 Sydj'!G19<0.5),"-",IFERROR('Tabel 2 Sydj'!G19/'Tabel 1 Sydj'!E17*100,"-")) -> - | I19: =IF(OR('Tabel 1 Sydj'!G17<5,'Tabel 2 Sydj'!I19<0.5),"-",IFERROR('Tabel 2 Sydj'!I19/'Tabel 1 Sydj'!G17*100,"-")) -> - | J19: =IF(OR('Tabel 1 Sydj'!G17<5,'Tabel 2 Sydj'!J19<0.5),"-",IFERROR('Tabel 2 Sydj'!J19/'Tabel 1 Sydj'!G17*100,"-")) -> -
A20: ='[1]Tabel 2 Sydj DATA'!I20 -> Forstkand. | C20: =IF(OR('Tabel 1 Sydj'!C18<5,'Tabel 2 Sydj'!C20<0.5),"-",IFERROR('Tabel 2 Sydj'!C20/'Tabel 1 Sydj'!C18*100,"-")) -> 7.142857143 | D20: =IF(OR('Tabel 1 Sydj'!C18<5,'Tabel 2 Sydj'!D20<0.5),"-",IFERROR('Tabel 2 Sydj'!D20/'Tabel 1 Sydj'!C18*100,"-")) -> 7.141520614 | F20: =IF(OR('Tabel 1 Sydj'!E18<5,'Tabel 2 Sydj'!F20<0.5),"-",IFERROR('Tabel 2 Sydj'!F20/'Tabel 1 Sydj'!E18*100,"-")) -> 9.090909091 | G20: =IF(OR('Tabel 1 Sydj'!E18<5,'Tabel 2 Sydj'!G20<0.5),"-",IFERROR('Tabel 2 Sydj'!G20/'Tabel 1 Sydj'!E18*100,"-")) -> 9.089208054 | I20: =IF(OR('Tabel 1 Sydj'!G18<5,'Tabel 2 Sydj'!I20<0.5),"-",IFERROR('Tabel 2 Sydj'!I20/'Tabel 1 Sydj'!G18*100,"-")) -> 7.692307692 | J20: =IF(OR('Tabel 1 Sydj'!G18<5,'Tabel 2 Sydj'!J20<0.5),"-",IFERROR('Tabel 2 Sydj'!J20/'Tabel 1 Sydj'!G18*100,"-")) -> 7.690868353
A21: ='[1]Tabel 2 Sydj DATA'!I21 -> Jordbrugsakad. | C21: =IF(OR('Tabel 1 Sydj'!C19<5,'Tabel 2 Sydj'!C21<0.5),"-",IFERROR('Tabel 2 Sydj'!C21/'Tabel 1 Sydj'!C19*100,"-")) -> 3.355704698 | D21: =IF(OR('Tabel 1 Sydj'!C19<5,'Tabel 2 Sydj'!D21<0.5),"-",IFERROR('Tabel 2 Sydj'!D21/'Tabel 1 Sydj'!C19*100,"-")) -> 3.355076798 | F21: =IF(OR('Tabel 1 Sydj'!E19<5,'Tabel 2 Sydj'!F21<0.5),"-",IFERROR('Tabel 2 Sydj'!F21/'Tabel 1 Sydj'!E19*100,"-")) -> 1.70212766 | G21: =IF(OR('Tabel 1 Sydj'!E19<5,'Tabel 2 Sydj'!G21<0.5),"-",IFERROR('Tabel 2 Sydj'!G21/'Tabel 1 Sydj'!E19*100,"-")) -> 1.412246815 | I21: =IF(OR('Tabel 1 Sydj'!G19<5,'Tabel 2 Sydj'!I21<0.5),"-",IFERROR('Tabel 2 Sydj'!I21/'Tabel 1 Sydj'!G19*100,"-")) -> 2.34375 | J21: =IF(OR('Tabel 1 Sydj'!G19<5,'Tabel 2 Sydj'!J21<0.5),"-",IFERROR('Tabel 2 Sydj'!J21/'Tabel 1 Sydj'!G19*100,"-")) -> 2.166105324
A22: ='[1]Tabel 2 Sydj DATA'!I22 -> Mejeriing. | C22: =IF(OR('Tabel 1 Sydj'!C20<5,'Tabel 2 Sydj'!C22<0.5),"-",IFERROR('Tabel 2 Sydj'!C22/'Tabel 1 Sydj'!C20*100,"-")) -> - | D22: =IF(OR('Tabel 1 Sydj'!C20<5,'Tabel 2 Sydj'!D22<0.5),"-",IFERROR('Tabel 2 Sydj'!D22/'Tabel 1 Sydj'!C20*100,"-")) -> - | F22: =IF(OR('Tabel 1 Sydj'!E20<5,'Tabel 2 Sydj'!F22<0.5),"-",IFERROR('Tabel 2 Sydj'!F22/'Tabel 1 Sydj'!E20*100,"-")) -> - | G22: =IF(OR('Tabel 1 Sydj'!E20<5,'Tabel 2 Sydj'!G22<0.5),"-",IFERROR('Tabel 2 Sydj'!G22/'Tabel 1 Sydj'!E20*100,"-")) -> - | I22: =IF(OR('Tabel 1 Sydj'!G20<5,'Tabel 2 Sydj'!I22<0.5),"-",IFERROR('Tabel 2 Sydj'!I22/'Tabel 1 Sydj'!G20*100,"-")) -> - | J22: =IF(OR('Tabel 1 Sydj'!G20<5,'Tabel 2 Sydj'!J22<0.5),"-",IFERROR('Tabel 2 Sydj'!J22/'Tabel 1 Sydj'!G20*100,"-")) -> -
A23: ='[1]Tabel 2 Sydj DATA'!I23 -> Levn.m.kand. | C23: =IF(OR('Tabel 1 Sydj'!C21<5,'Tabel 2 Sydj'!C23<0.5),"-",IFERROR('Tabel 2 Sydj'!C23/'Tabel 1 Sydj'!C21*100,"-")) -> - | D23: =IF(OR('Tabel 1 Sydj'!C21<5,'Tabel 2 Sydj'!D23<0.5),"-",IFERROR('Tabel 2 Sydj'!D23/'Tabel 1 Sydj'!C21*100,"-")) -> - | F23: =IF(OR('Tabel 1 Sydj'!E21<5,'Tabel 2 Sydj'!F23<0.5),"-",IFERROR('Tabel 2 Sydj'!F23/'Tabel 1 Sydj'!E21*100,"-")) -> - | G23: =IF(OR('Tabel 1 Sydj'!E21<5,'Tabel 2 Sydj'!G23<0.5),"-",IFERROR('Tabel 2 Sydj'!G23/'Tabel 1 Sydj'!E21*100,"-")) -> - | I23: =IF(OR('Tabel 1 Sydj'!G21<5,'Tabel 2 Sydj'!I23<0.5),"-",IFERROR('Tabel 2 Sydj'!I23/'Tabel 1 Sydj'!G21*100,"-")) -> - | J23: =IF(OR('Tabel 1 Sydj'!G21<5,'Tabel 2 Sydj'!J23<0.5),"-",IFERROR('Tabel 2 Sydj'!J23/'Tabel 1 Sydj'!G21*100,"-")) -> -
A24: ='[1]Tabel 2 Sydj DATA'!I24 -> Dyrlæge | C24: =IF(OR('Tabel 1 Sydj'!C22<5,'Tabel 2 Sydj'!C24<0.5),"-",IFERROR('Tabel 2 Sydj'!C24/'Tabel 1 Sydj'!C22*100,"-")) -> 1.515151515 | D24: =IF(OR('Tabel 1 Sydj'!C22<5,'Tabel 2 Sydj'!D24<0.5),"-",IFERROR('Tabel 2 Sydj'!D24/'Tabel 1 Sydj'!C22*100,"-")) -> 0.8193328533 | F24: =IF(OR('Tabel 1 Sydj'!E22<5,'Tabel 2 Sydj'!F24<0.5),"-",IFERROR('Tabel 2 Sydj'!F24/'Tabel 1 Sydj'!E22*100,"-")) -> 2.978723404 | G24: =IF(OR('Tabel 1 Sydj'!E22<5,'Tabel 2 Sydj'!G24<0.5),"-",IFERROR('Tabel 2 Sydj'!G24/'Tabel 1 Sydj'!E22*100,"-")) -> 2.045249757 | I24: =IF(OR('Tabel 1 Sydj'!G22<5,'Tabel 2 Sydj'!I24<0.5),"-",IFERROR('Tabel 2 Sydj'!I24/'Tabel 1 Sydj'!G22*100,"-")) -> 2.657807309 | J24: =IF(OR('Tabel 1 Sydj'!G22<5,'Tabel 2 Sydj'!J24<0.5),"-",IFERROR('Tabel 2 Sydj'!J24/'Tabel 1 Sydj'!G22*100,"-")) -> 1.776444058
A25: ='[1]Tabel 2 Sydj DATA'!I25 -> Farmaceut | C25: =IF(OR('Tabel 1 Sydj'!C23<5,'Tabel 2 Sydj'!C25<0.5),"-",IFERROR('Tabel 2 Sydj'!C25/'Tabel 1 Sydj'!C23*100,"-")) -> 10.81081081 | D25: =IF(OR('Tabel 1 Sydj'!C23<5,'Tabel 2 Sydj'!D25<0.5),"-",IFERROR('Tabel 2 Sydj'!D25/'Tabel 1 Sydj'!C23*100,"-")) -> 7.841934119 | F25: =IF(OR('Tabel 1 Sydj'!E23<5,'Tabel 2 Sydj'!F25<0.5),"-",IFERROR('Tabel 2 Sydj'!F25/'Tabel 1 Sydj'!E23*100,"-")) -> 4.545454545 | G25: =IF(OR('Tabel 1 Sydj'!E23<5,'Tabel 2 Sydj'!G25<0.5),"-",IFERROR('Tabel 2 Sydj'!G25/'Tabel 1 Sydj'!E23*100,"-")) -> 4.484662721 | I25: =IF(OR('Tabel 1 Sydj'!G23<5,'Tabel 2 Sydj'!I25<0.5),"-",IFERROR('Tabel 2 Sydj'!I25/'Tabel 1 Sydj'!G23*100,"-")) -> 5.759162304 | J25: =IF(OR('Tabel 1 Sydj'!G23<5,'Tabel 2 Sydj'!J25<0.5),"-",IFERROR('Tabel 2 Sydj'!J25/'Tabel 1 Sydj'!G23*100,"-")) -> 5.135024196
A26: ='[1]Tabel 2 Sydj DATA'!I26 -> Læge | C26: =IF(OR('Tabel 1 Sydj'!C24<5,'Tabel 2 Sydj'!C26<0.5),"-",IFERROR('Tabel 2 Sydj'!C26/'Tabel 1 Sydj'!C24*100,"-")) -> 1.19047619 | D26: =IF(OR('Tabel 1 Sydj'!C24<5,'Tabel 2 Sydj'!D26<0.5),"-",IFERROR('Tabel 2 Sydj'!D26/'Tabel 1 Sydj'!C24*100,"-")) -> 1.116991839 | F26: =IF(OR('Tabel 1 Sydj'!E24<5,'Tabel 2 Sydj'!F26<0.5),"-",IFERROR('Tabel 2 Sydj'!F26/'Tabel 1 Sydj'!E24*100,"-")) -> 1.058201058 | G26: =IF(OR('Tabel 1 Sydj'!E24<5,'Tabel 2 Sydj'!G26<0.5),"-",IFERROR('Tabel 2 Sydj'!G26/'Tabel 1 Sydj'!E24*100,"-")) -> 0.6520942091 | I26: =IF(OR('Tabel 1 Sydj'!G24<5,'Tabel 2 Sydj'!I26<0.5),"-",IFERROR('Tabel 2 Sydj'!I26/'Tabel 1 Sydj'!G24*100,"-")) -> 1.098901099 | J26: =IF(OR('Tabel 1 Sydj'!G24<5,'Tabel 2 Sydj'!J26<0.5),"-",IFERROR('Tabel 2 Sydj'!J26/'Tabel 1 Sydj'!G24*100,"-")) -> 0.7951396338
A27: ='[1]Tabel 2 Sydj DATA'!I27 -> Tandlæge | C27: =IF(OR('Tabel 1 Sydj'!C25<5,'Tabel 2 Sydj'!C27<0.5),"-",IFERROR('Tabel 2 Sydj'!C27/'Tabel 1 Sydj'!C25*100,"-")) -> 5.555555556 | D27: =IF(OR('Tabel 1 Sydj'!C25<5,'Tabel 2 Sydj'!D27<0.5),"-",IFERROR('Tabel 2 Sydj'!D27/'Tabel 1 Sydj'!C25*100,"-")) -> 5.554516033 | F27: =IF(OR('Tabel 1 Sydj'!E25<5,'Tabel 2 Sydj'!F27<0.5),"-",IFERROR('Tabel 2 Sydj'!F27/'Tabel 1 Sydj'!E25*100,"-")) -> 0.5988023952 | G27: =IF(OR('Tabel 1 Sydj'!E25<5,'Tabel 2 Sydj'!G27<0.5),"-",IFERROR('Tabel 2 Sydj'!G27/'Tabel 1 Sydj'!E25*100,"-")) -> - | I27: =IF(OR('Tabel 1 Sydj'!G25<5,'Tabel 2 Sydj'!I27<0.5),"-",IFERROR('Tabel 2 Sydj'!I27/'Tabel 1 Sydj'!G25*100,"-")) -> 1.081081081 | J27: =IF(OR('Tabel 1 Sydj'!G25<5,'Tabel 2 Sydj'!J27<0.5),"-",IFERROR('Tabel 2 Sydj'!J27/'Tabel 1 Sydj'!G25*100,"-")) -> 0.781496272
A28: ='[1]Tabel 2 Sydj DATA'!I28 -> Arkitekt | C28: =IF(OR('Tabel 1 Sydj'!C26<5,'Tabel 2 Sydj'!C28<0.5),"-",IFERROR('Tabel 2 Sydj'!C28/'Tabel 1 Sydj'!C26*100,"-")) -> 6.315789474 | D28: =IF(OR('Tabel 1 Sydj'!C26<5,'Tabel 2 Sydj'!D28<0.5),"-",IFERROR('Tabel 2 Sydj'!D28/'Tabel 1 Sydj'!C26*100,"-")) -> 5.551707498 | F28: =IF(OR('Tabel 1 Sydj'!E26<5,'Tabel 2 Sydj'!F28<0.5),"-",IFERROR('Tabel 2 Sydj'!F28/'Tabel 1 Sydj'!E26*100,"-")) -> 4.201680672 | G28: =IF(OR('Tabel 1 Sydj'!E26<5,'Tabel 2 Sydj'!G28<0.5),"-",IFERROR('Tabel 2 Sydj'!G28/'Tabel 1 Sydj'!E26*100,"-")) -> 3.076113499 | I28: =IF(OR('Tabel 1 Sydj'!G26<5,'Tabel 2 Sydj'!I28<0.5),"-",IFERROR('Tabel 2 Sydj'!I28/'Tabel 1 Sydj'!G26*100,"-")) -> 5.140186916 | J28: =IF(OR('Tabel 1 Sydj'!G26<5,'Tabel 2 Sydj'!J28<0.5),"-",IFERROR('Tabel 2 Sydj'!J28/'Tabel 1 Sydj'!G26*100,"-")) -> 4.175092143
A29: ='[1]Tabel 2 Sydj DATA'!I29 -> Landinspek. | C29: =IF(OR('Tabel 1 Sydj'!C27<5,'Tabel 2 Sydj'!C29<0.5),"-",IFERROR('Tabel 2 Sydj'!C29/'Tabel 1 Sydj'!C27*100,"-")) -> - | D29: =IF(OR('Tabel 1 Sydj'!C27<5,'Tabel 2 Sydj'!D29<0.5),"-",IFERROR('Tabel 2 Sydj'!D29/'Tabel 1 Sydj'!C27*100,"-")) -> - | F29: =IF(OR('Tabel 1 Sydj'!E27<5,'Tabel 2 Sydj'!F29<0.5),"-",IFERROR('Tabel 2 Sydj'!F29/'Tabel 1 Sydj'!E27*100,"-")) -> - | G29: =IF(OR('Tabel 1 Sydj'!E27<5,'Tabel 2 Sydj'!G29<0.5),"-",IFERROR('Tabel 2 Sydj'!G29/'Tabel 1 Sydj'!E27*100,"-")) -> - | I29: =IF(OR('Tabel 1 Sydj'!G27<5,'Tabel 2 Sydj'!I29<0.5),"-",IFERROR('Tabel 2 Sydj'!I29/'Tabel 1 Sydj'!G27*100,"-")) -> - | J29: =IF(OR('Tabel 1 Sydj'!G27<5,'Tabel 2 Sydj'!J29<0.5),"-",IFERROR('Tabel 2 Sydj'!J29/'Tabel 1 Sydj'!G27*100,"-")) -> -
A30: ='[1]Tabel 2 Sydj DATA'!I30 -> Bibliotekar | C30: =IF(OR('Tabel 1 Sydj'!C28<5,'Tabel 2 Sydj'!C30<0.5),"-",IFERROR('Tabel 2 Sydj'!C30/'Tabel 1 Sydj'!C28*100,"-")) -> 7.01754386 | D30: =IF(OR('Tabel 1 Sydj'!C28<5,'Tabel 2 Sydj'!D30<0.5),"-",IFERROR('Tabel 2 Sydj'!D30/'Tabel 1 Sydj'!C28*100,"-")) -> 7.016230778 | F30: =IF(OR('Tabel 1 Sydj'!E28<5,'Tabel 2 Sydj'!F30<0.5),"-",IFERROR('Tabel 2 Sydj'!F30/'Tabel 1 Sydj'!E28*100,"-")) -> 4.102564103 | G30: =IF(OR('Tabel 1 Sydj'!E28<5,'Tabel 2 Sydj'!G30<0.5),"-",IFERROR('Tabel 2 Sydj'!G30/'Tabel 1 Sydj'!E28*100,"-")) -> 3.312079093 | I30: =IF(OR('Tabel 1 Sydj'!G28<5,'Tabel 2 Sydj'!I30<0.5),"-",IFERROR('Tabel 2 Sydj'!I30/'Tabel 1 Sydj'!G28*100,"-")) -> 4.761904762 | J30: =IF(OR('Tabel 1 Sydj'!G28<5,'Tabel 2 Sydj'!J30<0.5),"-",IFERROR('Tabel 2 Sydj'!J30/'Tabel 1 Sydj'!G28*100,"-")) -> 4.149922927
A31: ='[1]Tabel 2 Sydj DATA'!I31 -> Musikudd. | C31: =IF(OR('Tabel 1 Sydj'!C29<5,'Tabel 2 Sydj'!C31<0.5),"-",IFERROR('Tabel 2 Sydj'!C31/'Tabel 1 Sydj'!C29*100,"-")) -> 4.545454545 | D31: =IF(OR('Tabel 1 Sydj'!C29<5,'Tabel 2 Sydj'!D31<0.5),"-",IFERROR('Tabel 2 Sydj'!D31/'Tabel 1 Sydj'!C29*100,"-")) -> 3.042021286 | F31: =IF(OR('Tabel 1 Sydj'!E29<5,'Tabel 2 Sydj'!F31<0.5),"-",IFERROR('Tabel 2 Sydj'!F31/'Tabel 1 Sydj'!E29*100,"-")) -> 5 | G31: =IF(OR('Tabel 1 Sydj'!E29<5,'Tabel 2 Sydj'!G31<0.5),"-",IFERROR('Tabel 2 Sydj'!G31/'Tabel 1 Sydj'!E29*100,"-")) -> 4.458512651 | I31: =IF(OR('Tabel 1 Sydj'!G29<5,'Tabel 2 Sydj'!I31<0.5),"-",IFERROR('Tabel 2 Sydj'!I31/'Tabel 1 Sydj'!G29*100,"-")) -> 4.807692308 | J31: =IF(OR('Tabel 1 Sydj'!G29<5,'Tabel 2 Sydj'!J31<0.5),"-",IFERROR('Tabel 2 Sydj'!J31/'Tabel 1 Sydj'!G29*100,"-")) -> 3.859227843
A32: ='[1]Tabel 2 Sydj DATA'!I32 -> Teolog | C32: =IF(OR('Tabel 1 Sydj'!C30<5,'Tabel 2 Sydj'!C32<0.5),"-",IFERROR('Tabel 2 Sydj'!C32/'Tabel 1 Sydj'!C30*100,"-")) -> 1.234567901 | D32: =IF(OR('Tabel 1 Sydj'!C30<5,'Tabel 2 Sydj'!D32<0.5),"-",IFERROR('Tabel 2 Sydj'!D32/'Tabel 1 Sydj'!C30*100,"-")) -> 1.234336896 | F32: =IF(OR('Tabel 1 Sydj'!E30<5,'Tabel 2 Sydj'!F32<0.5),"-",IFERROR('Tabel 2 Sydj'!F32/'Tabel 1 Sydj'!E30*100,"-")) -> 1.680672269 | G32: =IF(OR('Tabel 1 Sydj'!E30<5,'Tabel 2 Sydj'!G32<0.5),"-",IFERROR('Tabel 2 Sydj'!G32/'Tabel 1 Sydj'!E30*100,"-")) -> 1.680357791 | I32: =IF(OR('Tabel 1 Sydj'!G30<5,'Tabel 2 Sydj'!I32<0.5),"-",IFERROR('Tabel 2 Sydj'!I32/'Tabel 1 Sydj'!G30*100,"-")) -> 1.5 | J32: =IF(OR('Tabel 1 Sydj'!G30<5,'Tabel 2 Sydj'!J32<0.5),"-",IFERROR('Tabel 2 Sydj'!J32/'Tabel 1 Sydj'!G30*100,"-")) -> 1.499719329
A33: ='[1]Tabel 2 Sydj DATA'!I33 -> Psykolog | C33: =IF(OR('Tabel 1 Sydj'!C31<5,'Tabel 2 Sydj'!C33<0.5),"-",IFERROR('Tabel 2 Sydj'!C33/'Tabel 1 Sydj'!C31*100,"-")) -> 2.564102564 | D33: =IF(OR('Tabel 1 Sydj'!C31<5,'Tabel 2 Sydj'!D33<0.5),"-",IFERROR('Tabel 2 Sydj'!D33/'Tabel 1 Sydj'!C31*100,"-")) -> 2.563622784 | F33: =IF(OR('Tabel 1 Sydj'!E31<5,'Tabel 2 Sydj'!F33<0.5),"-",IFERROR('Tabel 2 Sydj'!F33/'Tabel 1 Sydj'!E31*100,"-")) -> 3.87409201 | G33: =IF(OR('Tabel 1 Sydj'!E31<5,'Tabel 2 Sydj'!G33<0.5),"-",IFERROR('Tabel 2 Sydj'!G33/'Tabel 1 Sydj'!E31*100,"-")) -> 3.53206137 | I33: =IF(OR('Tabel 1 Sydj'!G31<5,'Tabel 2 Sydj'!I33<0.5),"-",IFERROR('Tabel 2 Sydj'!I33/'Tabel 1 Sydj'!G31*100,"-")) -> 3.66598778 | J33: =IF(OR('Tabel 1 Sydj'!G31<5,'Tabel 2 Sydj'!J33<0.5),"-",IFERROR('Tabel 2 Sydj'!J33/'Tabel 1 Sydj'!G31*100,"-")) -> 3.378215729
A34: ='[1]Tabel 2 Sydj DATA'!I34 -> Jurist | C34: =IF(OR('Tabel 1 Sydj'!C32<5,'Tabel 2 Sydj'!C34<0.5),"-",IFERROR('Tabel 2 Sydj'!C34/'Tabel 1 Sydj'!C32*100,"-")) -> 3.629032258 | D34: =IF(OR('Tabel 1 Sydj'!C32<5,'Tabel 2 Sydj'!D34<0.5),"-",IFERROR('Tabel 2 Sydj'!D34/'Tabel 1 Sydj'!C32*100,"-")) -> 3.557933939 | F34: =IF(OR('Tabel 1 Sydj'!E32<5,'Tabel 2 Sydj'!F34<0.5),"-",IFERROR('Tabel 2 Sydj'!F34/'Tabel 1 Sydj'!E32*100,"-")) -> 0.9345794393 | G34: =IF(OR('Tabel 1 Sydj'!E32<5,'Tabel 2 Sydj'!G34<0.5),"-",IFERROR('Tabel 2 Sydj'!G34/'Tabel 1 Sydj'!E32*100,"-")) -> 0.6497113722 | I34: =IF(OR('Tabel 1 Sydj'!G32<5,'Tabel 2 Sydj'!I34<0.5),"-",IFERROR('Tabel 2 Sydj'!I34/'Tabel 1 Sydj'!G32*100,"-")) -> 1.787994891 | J34: =IF(OR('Tabel 1 Sydj'!G32<5,'Tabel 2 Sydj'!J34<0.5),"-",IFERROR('Tabel 2 Sydj'!J34/'Tabel 1 Sydj'!G32*100,"-")) -> 1.570834228
A35: ='[1]Tabel 2 Sydj DATA'!I35 -> Økonom | C35: =IF(OR('Tabel 1 Sydj'!C33<5,'Tabel 2 Sydj'!C35<0.5),"-",IFERROR('Tabel 2 Sydj'!C35/'Tabel 1 Sydj'!C33*100,"-")) -> 2.040816327 | D35: =IF(OR('Tabel 1 Sydj'!C33<5,'Tabel 2 Sydj'!D35<0.5),"-",IFERROR('Tabel 2 Sydj'!D35/'Tabel 1 Sydj'!C33*100,"-")) -> 1.739015322 | F35: =IF(OR('Tabel 1 Sydj'!E33<5,'Tabel 2 Sydj'!F35<0.5),"-",IFERROR('Tabel 2 Sydj'!F35/'Tabel 1 Sydj'!E33*100,"-")) -> 1.829268293 | G35: =IF(OR('Tabel 1 Sydj'!E33<5,'Tabel 2 Sydj'!G35<0.5),"-",IFERROR('Tabel 2 Sydj'!G35/'Tabel 1 Sydj'!E33*100,"-")) -> 1.530380176 | I35: =IF(OR('Tabel 1 Sydj'!G33<5,'Tabel 2 Sydj'!I35<0.5),"-",IFERROR('Tabel 2 Sydj'!I35/'Tabel 1 Sydj'!G33*100,"-")) -> 1.95599022 | J35: =IF(OR('Tabel 1 Sydj'!G33<5,'Tabel 2 Sydj'!J35<0.5),"-",IFERROR('Tabel 2 Sydj'!J35/'Tabel 1 Sydj'!G33*100,"-")) -> 1.655357219
A36: ='[1]Tabel 2 Sydj DATA'!I36 -> Samf. Adm. | C36: =IF(OR('Tabel 1 Sydj'!C34<5,'Tabel 2 Sydj'!C36<0.5),"-",IFERROR('Tabel 2 Sydj'!C36/'Tabel 1 Sydj'!C34*100,"-")) -> 6.473214286 | D36: =IF(OR('Tabel 1 Sydj'!C34<5,'Tabel 2 Sydj'!D36<0.5),"-",IFERROR('Tabel 2 Sydj'!D36/'Tabel 1 Sydj'!C34*100,"-")) -> 6.386799325 | F36: =IF(OR('Tabel 1 Sydj'!E34<5,'Tabel 2 Sydj'!F36<0.5),"-",IFERROR('Tabel 2 Sydj'!F36/'Tabel 1 Sydj'!E34*100,"-")) -> 5.916305916 | G36: =IF(OR('Tabel 1 Sydj'!E34<5,'Tabel 2 Sydj'!G36<0.5),"-",IFERROR('Tabel 2 Sydj'!G36/'Tabel 1 Sydj'!E34*100,"-")) -> 5.229833958 | I36: =IF(OR('Tabel 1 Sydj'!G34<5,'Tabel 2 Sydj'!I36<0.5),"-",IFERROR('Tabel 2 Sydj'!I36/'Tabel 1 Sydj'!G34*100,"-")) -> 6.134969325 | J36: =IF(OR('Tabel 1 Sydj'!G34<5,'Tabel 2 Sydj'!J36<0.5),"-",IFERROR('Tabel 2 Sydj'!J36/'Tabel 1 Sydj'!G34*100,"-")) -> 5.684102568
A37: ='[1]Tabel 2 Sydj DATA'!I37 -> Cand. Merc. | C37: =IF(OR('Tabel 1 Sydj'!C35<5,'Tabel 2 Sydj'!C37<0.5),"-",IFERROR('Tabel 2 Sydj'!C37/'Tabel 1 Sydj'!C35*100,"-")) -> 4.253472222 | D37: =IF(OR('Tabel 1 Sydj'!C35<5,'Tabel 2 Sydj'!D37<0.5),"-",IFERROR('Tabel 2 Sydj'!D37/'Tabel 1 Sydj'!C35*100,"-")) -> 3.963992235 | F37: =IF(OR('Tabel 1 Sydj'!E35<5,'Tabel 2 Sydj'!F37<0.5),"-",IFERROR('Tabel 2 Sydj'!F37/'Tabel 1 Sydj'!E35*100,"-")) -> 4.410354746 | G37: =IF(OR('Tabel 1 Sydj'!E35<5,'Tabel 2 Sydj'!G37<0.5),"-",IFERROR('Tabel 2 Sydj'!G37/'Tabel 1 Sydj'!E35*100,"-")) -> 3.911395833 | I37: =IF(OR('Tabel 1 Sydj'!G35<5,'Tabel 2 Sydj'!I37<0.5),"-",IFERROR('Tabel 2 Sydj'!I37/'Tabel 1 Sydj'!G35*100,"-")) -> 4.328018223 | J37: =IF(OR('Tabel 1 Sydj'!G35<5,'Tabel 2 Sydj'!J37<0.5),"-",IFERROR('Tabel 2 Sydj'!J37/'Tabel 1 Sydj'!G35*100,"-")) -> 3.938999958
A38: ='[1]Tabel 2 Sydj DATA'!I38 -> HA | C38: =IF(OR('Tabel 1 Sydj'!C36<5,'Tabel 2 Sydj'!C38<0.5),"-",IFERROR('Tabel 2 Sydj'!C38/'Tabel 1 Sydj'!C36*100,"-")) -> 5.714285714 | D38: =IF(OR('Tabel 1 Sydj'!C36<5,'Tabel 2 Sydj'!D38<0.5),"-",IFERROR('Tabel 2 Sydj'!D38/'Tabel 1 Sydj'!C36*100,"-")) -> 4.875658241 | F38: =IF(OR('Tabel 1 Sydj'!E36<5,'Tabel 2 Sydj'!F38<0.5),"-",IFERROR('Tabel 2 Sydj'!F38/'Tabel 1 Sydj'!E36*100,"-")) -> 4.838709677 | G38: =IF(OR('Tabel 1 Sydj'!E36<5,'Tabel 2 Sydj'!G38<0.5),"-",IFERROR('Tabel 2 Sydj'!G38/'Tabel 1 Sydj'!E36*100,"-")) -> 4.274651274 | I38: =IF(OR('Tabel 1 Sydj'!G36<5,'Tabel 2 Sydj'!I38<0.5),"-",IFERROR('Tabel 2 Sydj'!I38/'Tabel 1 Sydj'!G36*100,"-")) -> 5.28 | J38: =IF(OR('Tabel 1 Sydj'!G36<5,'Tabel 2 Sydj'!J38<0.5),"-",IFERROR('Tabel 2 Sydj'!J38/'Tabel 1 Sydj'!G36*100,"-")) -> 4.577558785
A39: ='[1]Tabel 2 Sydj DATA'!I39 -> HD | C39: =IF(OR('Tabel 1 Sydj'!C37<5,'Tabel 2 Sydj'!C39<0.5),"-",IFERROR('Tabel 2 Sydj'!C39/'Tabel 1 Sydj'!C37*100,"-")) -> 3.636363636 | D39: =IF(OR('Tabel 1 Sydj'!C37<5,'Tabel 2 Sydj'!D39<0.5),"-",IFERROR('Tabel 2 Sydj'!D39/'Tabel 1 Sydj'!C37*100,"-")) -> 3.417496867 | F39: =IF(OR('Tabel 1 Sydj'!E37<5,'Tabel 2 Sydj'!F39<0.5),"-",IFERROR('Tabel 2 Sydj'!F39/'Tabel 1 Sydj'!E37*100,"-")) -> 5.527638191 | G39: =IF(OR('Tabel 1 Sydj'!E37<5,'Tabel 2 Sydj'!G39<0.5),"-",IFERROR('Tabel 2 Sydj'!G39/'Tabel 1 Sydj'!E37*100,"-")) -> 4.683806985 | I39: =IF(OR('Tabel 1 Sydj'!G37<5,'Tabel 2 Sydj'!I39<0.5),"-",IFERROR('Tabel 2 Sydj'!I39/'Tabel 1 Sydj'!G37*100,"-")) -> 4.430379747 | J39: =IF(OR('Tabel 1 Sydj'!G37<5,'Tabel 2 Sydj'!J39<0.5),"-",IFERROR('Tabel 2 Sydj'!J39/'Tabel 1 Sydj'!G37*100,"-")) -> 3.949133393
A40: ='[1]Tabel 2 Sydj DATA'!I40 -> Komm. og Sprog | C40: =IF(OR('Tabel 1 Sydj'!C38<5,'Tabel 2 Sydj'!C40<0.5),"-",IFERROR('Tabel 2 Sydj'!C40/'Tabel 1 Sydj'!C38*100,"-")) -> 17.30769231 | D40: =IF(OR('Tabel 1 Sydj'!C38<5,'Tabel 2 Sydj'!D40<0.5),"-",IFERROR('Tabel 2 Sydj'!D40/'Tabel 1 Sydj'!C38*100,"-")) -> 13.81165769 | F40: =IF(OR('Tabel 1 Sydj'!E38<5,'Tabel 2 Sydj'!F40<0.5),"-",IFERROR('Tabel 2 Sydj'!F40/'Tabel 1 Sydj'!E38*100,"-")) -> 5.940594059 | G40: =IF(OR('Tabel 1 Sydj'!E38<5,'Tabel 2 Sydj'!G40<0.5),"-",IFERROR('Tabel 2 Sydj'!G40/'Tabel 1 Sydj'!E38*100,"-")) -> 5.330744201 | I40: =IF(OR('Tabel 1 Sydj'!G38<5,'Tabel 2 Sydj'!I40<0.5),"-",IFERROR('Tabel 2 Sydj'!I40/'Tabel 1 Sydj'!G38*100,"-")) -> 7.236842105 | J40: =IF(OR('Tabel 1 Sydj'!G38<5,'Tabel 2 Sydj'!J40<0.5),"-",IFERROR('Tabel 2 Sydj'!J40/'Tabel 1 Sydj'!G38*100,"-")) -> 6.297865915
A41: ='[1]Tabel 2 Sydj DATA'!I41 -> Bygningskonst. | C41: =IF(OR('Tabel 1 Sydj'!C39<5,'Tabel 2 Sydj'!C41<0.5),"-",IFERROR('Tabel 2 Sydj'!C41/'Tabel 1 Sydj'!C39*100,"-")) -> 3.072196621 | D41: =IF(OR('Tabel 1 Sydj'!C39<5,'Tabel 2 Sydj'!D41<0.5),"-",IFERROR('Tabel 2 Sydj'!D41/'Tabel 1 Sydj'!C39*100,"-")) -> 2.460507002 | F41: =IF(OR('Tabel 1 Sydj'!E39<5,'Tabel 2 Sydj'!F41<0.5),"-",IFERROR('Tabel 2 Sydj'!F41/'Tabel 1 Sydj'!E39*100,"-")) -> 5.940594059 | G41: =IF(OR('Tabel 1 Sydj'!E39<5,'Tabel 2 Sydj'!G41<0.5),"-",IFERROR('Tabel 2 Sydj'!G41/'Tabel 1 Sydj'!E39*100,"-")) -> 4.980939683 | I41: =IF(OR('Tabel 1 Sydj'!G39<5,'Tabel 2 Sydj'!I41<0.5),"-",IFERROR('Tabel 2 Sydj'!I41/'Tabel 1 Sydj'!G39*100,"-")) -> 3.457446809 | J41: =IF(OR('Tabel 1 Sydj'!G39<5,'Tabel 2 Sydj'!J41<0.5),"-",IFERROR('Tabel 2 Sydj'!J41/'Tabel 1 Sydj'!G39*100,"-")) -> 2.799022561
A42: ='[1]Tabel 2 Sydj DATA'!I42 -> Cand. IT. | C42: =IF(OR('Tabel 1 Sydj'!C40<5,'Tabel 2 Sydj'!C42<0.5),"-",IFERROR('Tabel 2 Sydj'!C42/'Tabel 1 Sydj'!C40*100,"-")) -> 8.035714286 | D42: =IF(OR('Tabel 1 Sydj'!C40<5,'Tabel 2 Sydj'!D42<0.5),"-",IFERROR('Tabel 2 Sydj'!D42/'Tabel 1 Sydj'!C40*100,"-")) -> 7.319724497 | F42: =IF(OR('Tabel 1 Sydj'!E40<5,'Tabel 2 Sydj'!F42<0.5),"-",IFERROR('Tabel 2 Sydj'!F42/'Tabel 1 Sydj'!E40*100,"-")) -> 11.96581197 | G42: =IF(OR('Tabel 1 Sydj'!E40<5,'Tabel 2 Sydj'!G42<0.5),"-",IFERROR('Tabel 2 Sydj'!G42/'Tabel 1 Sydj'!E40*100,"-")) -> 11.11969384 | I42: =IF(OR('Tabel 1 Sydj'!G40<5,'Tabel 2 Sydj'!I42<0.5),"-",IFERROR('Tabel 2 Sydj'!I42/'Tabel 1 Sydj'!G40*100,"-")) -> 10.04366812 | J42: =IF(OR('Tabel 1 Sydj'!G40<5,'Tabel 2 Sydj'!J42<0.5),"-",IFERROR('Tabel 2 Sydj'!J42/'Tabel 1 Sydj'!G40*100,"-")) -> 9.261193548
A43: ='[1]Tabel 2 Sydj DATA'!I43 -> Bac. Samf. | C43: =IF(OR('Tabel 1 Sydj'!C41<5,'Tabel 2 Sydj'!C43<0.5),"-",IFERROR('Tabel 2 Sydj'!C43/'Tabel 1 Sydj'!C41*100,"-")) -> 16.66666667 | D43: =IF(OR('Tabel 1 Sydj'!C41<5,'Tabel 2 Sydj'!D43<0.5),"-",IFERROR('Tabel 2 Sydj'!D43/'Tabel 1 Sydj'!C41*100,"-")) -> 15.35374956 | F43: =IF(OR('Tabel 1 Sydj'!E41<5,'Tabel 2 Sydj'!F43<0.5),"-",IFERROR('Tabel 2 Sydj'!F43/'Tabel 1 Sydj'!E41*100,"-")) -> 9.259259259 | G43: =IF(OR('Tabel 1 Sydj'!E41<5,'Tabel 2 Sydj'!G43<0.5),"-",IFERROR('Tabel 2 Sydj'!G43/'Tabel 1 Sydj'!E41*100,"-")) -> 7.461462585 | I43: =IF(OR('Tabel 1 Sydj'!G41<5,'Tabel 2 Sydj'!I43<0.5),"-",IFERROR('Tabel 2 Sydj'!I43/'Tabel 1 Sydj'!G41*100,"-")) -> 11.9047619 | J43: =IF(OR('Tabel 1 Sydj'!G41<5,'Tabel 2 Sydj'!J43<0.5),"-",IFERROR('Tabel 2 Sydj'!J43/'Tabel 1 Sydj'!G41*100,"-")) -> 10.2801365
A44: ='[1]Tabel 2 Sydj DATA'!I44 -> Bac. Hum. | C44: =IF(OR('Tabel 1 Sydj'!C42<5,'Tabel 2 Sydj'!C44<0.5),"-",IFERROR('Tabel 2 Sydj'!C44/'Tabel 1 Sydj'!C42*100,"-")) -> 12.12121212 | D44: =IF(OR('Tabel 1 Sydj'!C42<5,'Tabel 2 Sydj'!D44<0.5),"-",IFERROR('Tabel 2 Sydj'!D44/'Tabel 1 Sydj'!C42*100,"-")) -> 10.61447129 | F44: =IF(OR('Tabel 1 Sydj'!E42<5,'Tabel 2 Sydj'!F44<0.5),"-",IFERROR('Tabel 2 Sydj'!F44/'Tabel 1 Sydj'!E42*100,"-")) -> 15.96638655 | G44: =IF(OR('Tabel 1 Sydj'!E42<5,'Tabel 2 Sydj'!G44<0.5),"-",IFERROR('Tabel 2 Sydj'!G44/'Tabel 1 Sydj'!E42*100,"-")) -> 13.57284634 | I44: =IF(OR('Tabel 1 Sydj'!G42<5,'Tabel 2 Sydj'!I44<0.5),"-",IFERROR('Tabel 2 Sydj'!I44/'Tabel 1 Sydj'!G42*100,"-")) -> 14.59459459 | J44: =IF(OR('Tabel 1 Sydj'!G42<5,'Tabel 2 Sydj'!J44<0.5),"-",IFERROR('Tabel 2 Sydj'!J44/'Tabel 1 Sydj'!G42*100,"-")) -> 12.51742605
A45: ='[1]Tabel 2 Sydj DATA'!I45 -> Bac. Nat. | C45: =IF(OR('Tabel 1 Sydj'!C43<5,'Tabel 2 Sydj'!C45<0.5),"-",IFERROR('Tabel 2 Sydj'!C45/'Tabel 1 Sydj'!C43*100,"-")) -> 13.85542169 | D45: =IF(OR('Tabel 1 Sydj'!C43<5,'Tabel 2 Sydj'!D45<0.5),"-",IFERROR('Tabel 2 Sydj'!D45/'Tabel 1 Sydj'!C43*100,"-")) -> 10.4877816 | F45: =IF(OR('Tabel 1 Sydj'!E43<5,'Tabel 2 Sydj'!F45<0.5),"-",IFERROR('Tabel 2 Sydj'!F45/'Tabel 1 Sydj'!E43*100,"-")) -> 5.128205128 | G45: =IF(OR('Tabel 1 Sydj'!E43<5,'Tabel 2 Sydj'!G45<0.5),"-",IFERROR('Tabel 2 Sydj'!G45/'Tabel 1 Sydj'!E43*100,"-")) -> 4.023752293 | I45: =IF(OR('Tabel 1 Sydj'!G43<5,'Tabel 2 Sydj'!I45<0.5),"-",IFERROR('Tabel 2 Sydj'!I45/'Tabel 1 Sydj'!G43*100,"-")) -> 11.06557377 | J45: =IF(OR('Tabel 1 Sydj'!G43<5,'Tabel 2 Sydj'!J45<0.5),"-",IFERROR('Tabel 2 Sydj'!J45/'Tabel 1 Sydj'!G43*100,"-")) -> 8.421411576
A46: ='[1]Tabel 2 Sydj DATA'!I46 -> Andre | C46: =IF(OR('Tabel 1 Sydj'!C44<5,'Tabel 2 Sydj'!C46<0.5),"-",IFERROR('Tabel 2 Sydj'!C46/'Tabel 1 Sydj'!C44*100,"-")) -> 5.628272251 | D46: =IF(OR('Tabel 1 Sydj'!C44<5,'Tabel 2 Sydj'!D46<0.5),"-",IFERROR('Tabel 2 Sydj'!D46/'Tabel 1 Sydj'!C44*100,"-")) -> 4.991912949 | F46: =IF(OR('Tabel 1 Sydj'!E44<5,'Tabel 2 Sydj'!F46<0.5),"-",IFERROR('Tabel 2 Sydj'!F46/'Tabel 1 Sydj'!E44*100,"-")) -> 4.173622705 | G46: =IF(OR('Tabel 1 Sydj'!E44<5,'Tabel 2 Sydj'!G46<0.5),"-",IFERROR('Tabel 2 Sydj'!G46/'Tabel 1 Sydj'!E44*100,"-")) -> 3.668039843 | I46: =IF(OR('Tabel 1 Sydj'!G44<5,'Tabel 2 Sydj'!I46<0.5),"-",IFERROR('Tabel 2 Sydj'!I46/'Tabel 1 Sydj'!G44*100,"-")) -> 4.988994864 | J46: =IF(OR('Tabel 1 Sydj'!G44<5,'Tabel 2 Sydj'!J46<0.5),"-",IFERROR('Tabel 2 Sydj'!J46/'Tabel 1 Sydj'!G44*100,"-")) -> 4.410108114
A48: ='[1]Tabel 2 Sydj DATA'!I48 -> Total | C48: =IF(OR('Tabel 1 Sydj'!C46<5,'Tabel 2 Sydj'!C48<0.5),"-",IFERROR('Tabel 2 Sydj'!C48/'Tabel 1 Sydj'!C46*100,"-")) -> 4.46611489 | D48: =IF(OR('Tabel 1 Sydj'!C46<5,'Tabel 2 Sydj'!D48<0.5),"-",IFERROR('Tabel 2 Sydj'!D48/'Tabel 1 Sydj'!C46*100,"-")) -> 3.965835563 | F48: =IF(OR('Tabel 1 Sydj'!E46<5,'Tabel 2 Sydj'!F48<0.5),"-",IFERROR('Tabel 2 Sydj'!F48/'Tabel 1 Sydj'!E46*100,"-")) -> 5.286384977 | G48: =IF(OR('Tabel 1 Sydj'!E46<5,'Tabel 2 Sydj'!G48<0.5),"-",IFERROR('Tabel 2 Sydj'!G48/'Tabel 1 Sydj'!E46*100,"-")) -> 4.562150424 | I48: =IF(OR('Tabel 1 Sydj'!G46<5,'Tabel 2 Sydj'!I48<0.5),"-",IFERROR('Tabel 2 Sydj'!I48/'Tabel 1 Sydj'!G46*100,"-")) -> 4.848378769 | J48: =IF(OR('Tabel 1 Sydj'!G46<5,'Tabel 2 Sydj'!J48<0.5),"-",IFERROR('Tabel 2 Sydj'!J48/'Tabel 1 Sydj'!G46*100,"-")) -> 4.243731387
A50: ='[1]Tabel 2 Sydj DATA'!I50 -> Ingeniører i alt | C50: =IF(OR('Tabel 1 Sydj'!C48<5,'Tabel 2 Sydj'!C50<0.5),"-",IFERROR('Tabel 2 Sydj'!C50/'Tabel 1 Sydj'!C48*100,"-")) -> 3.234390993 | D50: =IF(OR('Tabel 1 Sydj'!C48<5,'Tabel 2 Sydj'!D50<0.5),"-",IFERROR('Tabel 2 Sydj'!D50/'Tabel 1 Sydj'!C48*100,"-")) -> 2.867844028 | F50: =IF(OR('Tabel 1 Sydj'!E48<5,'Tabel 2 Sydj'!F50<0.5),"-",IFERROR('Tabel 2 Sydj'!F50/'Tabel 1 Sydj'!E48*100,"-")) -> 3.964098728 | G50: =IF(OR('Tabel 1 Sydj'!E48<5,'Tabel 2 Sydj'!G50<0.5),"-",IFERROR('Tabel 2 Sydj'!G50/'Tabel 1 Sydj'!E48*100,"-")) -> 3.657611375 | I50: =IF(OR('Tabel 1 Sydj'!G48<5,'Tabel 2 Sydj'!I50<0.5),"-",IFERROR('Tabel 2 Sydj'!I50/'Tabel 1 Sydj'!G48*100,"-")) -> 3.391192543 | J50: =IF(OR('Tabel 1 Sydj'!G48<5,'Tabel 2 Sydj'!J50<0.5),"-",IFERROR('Tabel 2 Sydj'!J50/'Tabel 1 Sydj'!G48*100,"-")) -> 3.037551347
A51: ='[1]Tabel 2 Sydj DATA'!I51 -> Magistre i alt | C51: =IF(OR('Tabel 1 Sydj'!C49<5,'Tabel 2 Sydj'!C51<0.5),"-",IFERROR('Tabel 2 Sydj'!C51/'Tabel 1 Sydj'!C49*100,"-")) -> 6.294256491 | D51: =IF(OR('Tabel 1 Sydj'!C49<5,'Tabel 2 Sydj'!D51<0.5),"-",IFERROR('Tabel 2 Sydj'!D51/'Tabel 1 Sydj'!C49*100,"-")) -> 5.48558802 | F51: =IF(OR('Tabel 1 Sydj'!E49<5,'Tabel 2 Sydj'!F51<0.5),"-",IFERROR('Tabel 2 Sydj'!F51/'Tabel 1 Sydj'!E49*100,"-")) -> 9.454061252 | G51: =IF(OR('Tabel 1 Sydj'!E49<5,'Tabel 2 Sydj'!G51<0.5),"-",IFERROR('Tabel 2 Sydj'!G51/'Tabel 1 Sydj'!E49*100,"-")) -> 7.959366098 | I51: =IF(OR('Tabel 1 Sydj'!G49<5,'Tabel 2 Sydj'!I51<0.5),"-",IFERROR('Tabel 2 Sydj'!I51/'Tabel 1 Sydj'!G49*100,"-")) -> 8.314415437 | J51: =IF(OR('Tabel 1 Sydj'!G49<5,'Tabel 2 Sydj'!J51<0.5),"-",IFERROR('Tabel 2 Sydj'!J51/'Tabel 1 Sydj'!G49*100,"-")) -> 7.067149317
A52: ='[1]Tabel 2 Sydj DATA'!I52 -> DJØF'ere i alt | C52: =IF(OR('Tabel 1 Sydj'!C50<5,'Tabel 2 Sydj'!C52<0.5),"-",IFERROR('Tabel 2 Sydj'!C52/'Tabel 1 Sydj'!C50*100,"-")) -> 4.568106312 | D52: =IF(OR('Tabel 1 Sydj'!C50<5,'Tabel 2 Sydj'!D52<0.5),"-",IFERROR('Tabel 2 Sydj'!D52/'Tabel 1 Sydj'!C50*100,"-")) -> 4.265807254 | F52: =IF(OR('Tabel 1 Sydj'!E50<5,'Tabel 2 Sydj'!F52<0.5),"-",IFERROR('Tabel 2 Sydj'!F52/'Tabel 1 Sydj'!E50*100,"-")) -> 4.007285974 | G52: =IF(OR('Tabel 1 Sydj'!E50<5,'Tabel 2 Sydj'!G52<0.5),"-",IFERROR('Tabel 2 Sydj'!G52/'Tabel 1 Sydj'!E50*100,"-")) -> 3.507315342 | I52: =IF(OR('Tabel 1 Sydj'!G50<5,'Tabel 2 Sydj'!I52<0.5),"-",IFERROR('Tabel 2 Sydj'!I52/'Tabel 1 Sydj'!G50*100,"-")) -> 4.269357656 | J52: =IF(OR('Tabel 1 Sydj'!G50<5,'Tabel 2 Sydj'!J52<0.5),"-",IFERROR('Tabel 2 Sydj'!J52/'Tabel 1 Sydj'!G50*100,"-")) -> 3.861759069
A57: Haderslev
C59: Mænd | F59: Kvinder | I59: I alt
C60: Ledigheds- berørte | D60: Gns. brutto- ledighed | F60: Ledigheds- berørte | G60: Gns. brutto- ledighed | I60: Ledigheds- berørte | J60: Gns. brutto- ledighed
A63: ='[1]Tabel 2 Sydj DATA'!I60 -> Civ. ing. | C63: =IF(OR('Tabel 1 Sydj'!C61<5,'Tabel 2 Sydj'!C63<0.5),"-",IFERROR('Tabel 2 Sydj'!C63/'Tabel 1 Sydj'!C61*100,"-")) -> - | D63: =IF(OR('Tabel 1 Sydj'!C61<5,'Tabel 2 Sydj'!D63<0.5),"-",IFERROR('Tabel 2 Sydj'!D63/'Tabel 1 Sydj'!C61*100,"-")) -> - | F63: =IF(OR('Tabel 1 Sydj'!E61<5,'Tabel 2 Sydj'!F63<0.5),"-",IFERROR('Tabel 2 Sydj'!F63/'Tabel 1 Sydj'!E61*100,"-")) -> 8.333333333 | G63: =IF(OR('Tabel 1 Sydj'!E61<5,'Tabel 2 Sydj'!G63<0.5),"-",IFERROR('Tabel 2 Sydj'!G63/'Tabel 1 Sydj'!E61*100,"-")) -> 8.331774049 | I63: =IF(OR('Tabel 1 Sydj'!G61<5,'Tabel 2 Sydj'!I63<0.5),"-",IFERROR('Tabel 2 Sydj'!I63/'Tabel 1 Sydj'!G61*100,"-")) -> 1.785714286 | J63: =IF(OR('Tabel 1 Sydj'!G61<5,'Tabel 2 Sydj'!J63<0.5),"-",IFERROR('Tabel 2 Sydj'!J63/'Tabel 1 Sydj'!G61*100,"-")) -> 1.785380153
A64: ='[1]Tabel 2 Sydj DATA'!I61 -> Diplom ing. | C64: =IF(OR('Tabel 1 Sydj'!C62<5,'Tabel 2 Sydj'!C64<0.5),"-",IFERROR('Tabel 2 Sydj'!C64/'Tabel 1 Sydj'!C62*100,"-")) -> 1.438848921 | D64: =IF(OR('Tabel 1 Sydj'!C62<5,'Tabel 2 Sydj'!D64<0.5),"-",IFERROR('Tabel 2 Sydj'!D64/'Tabel 1 Sydj'!C62*100,"-")) -> 1.006916041 | F64: =IF(OR('Tabel 1 Sydj'!E62<5,'Tabel 2 Sydj'!F64<0.5),"-",IFERROR('Tabel 2 Sydj'!F64/'Tabel 1 Sydj'!E62*100,"-")) -> 2.857142857 | G64: =IF(OR('Tabel 1 Sydj'!E62<5,'Tabel 2 Sydj'!G64<0.5),"-",IFERROR('Tabel 2 Sydj'!G64/'Tabel 1 Sydj'!E62*100,"-")) -> 2.856608245 | I64: =IF(OR('Tabel 1 Sydj'!G62<5,'Tabel 2 Sydj'!I64<0.5),"-",IFERROR('Tabel 2 Sydj'!I64/'Tabel 1 Sydj'!G62*100,"-")) -> 1.724137931 | J64: =IF(OR('Tabel 1 Sydj'!G62<5,'Tabel 2 Sydj'!J64<0.5),"-",IFERROR('Tabel 2 Sydj'!J64/'Tabel 1 Sydj'!G62*100,"-")) -> 1.378980565
A65: ='[1]Tabel 2 Sydj DATA'!I62 -> Cand. Scient. Tek. | C65: =IF(OR('Tabel 1 Sydj'!C63<5,'Tabel 2 Sydj'!C65<0.5),"-",IFERROR('Tabel 2 Sydj'!C65/'Tabel 1 Sydj'!C63*100,"-")) -> 15.78947368 | D65: =IF(OR('Tabel 1 Sydj'!C63<5,'Tabel 2 Sydj'!D65<0.5),"-",IFERROR('Tabel 2 Sydj'!D65/'Tabel 1 Sydj'!C63*100,"-")) -> 11.44678574 | F65: =IF(OR('Tabel 1 Sydj'!E63<5,'Tabel 2 Sydj'!F65<0.5),"-",IFERROR('Tabel 2 Sydj'!F65/'Tabel 1 Sydj'!E63*100,"-")) -> 11.11111111 | G65: =IF(OR('Tabel 1 Sydj'!E63<5,'Tabel 2 Sydj'!G65<0.5),"-",IFERROR('Tabel 2 Sydj'!G65/'Tabel 1 Sydj'!E63*100,"-")) -> 10.08336972 | I65: =IF(OR('Tabel 1 Sydj'!G63<5,'Tabel 2 Sydj'!I65<0.5),"-",IFERROR('Tabel 2 Sydj'!I65/'Tabel 1 Sydj'!G63*100,"-")) -> 13.51351351 | J65: =IF(OR('Tabel 1 Sydj'!G63<5,'Tabel 2 Sydj'!J65<0.5),"-",IFERROR('Tabel 2 Sydj'!J65/'Tabel 1 Sydj'!G63*100,"-")) -> 10.78350227
A66: ='[1]Tabel 2 Sydj DATA'!I63 -> MA. Hum. | C66: =IF(OR('Tabel 1 Sydj'!C64<5,'Tabel 2 Sydj'!C66<0.5),"-",IFERROR('Tabel 2 Sydj'!C66/'Tabel 1 Sydj'!C64*100,"-")) -> 9.836065574 | D66: =IF(OR('Tabel 1 Sydj'!C64<5,'Tabel 2 Sydj'!D66<0.5),"-",IFERROR('Tabel 2 Sydj'!D66/'Tabel 1 Sydj'!C64*100,"-")) -> 7.315853675 | F66: =IF(OR('Tabel 1 Sydj'!E64<5,'Tabel 2 Sydj'!F66<0.5),"-",IFERROR('Tabel 2 Sydj'!F66/'Tabel 1 Sydj'!E64*100,"-")) -> 8.196721311 | G66: =IF(OR('Tabel 1 Sydj'!E64<5,'Tabel 2 Sydj'!G66<0.5),"-",IFERROR('Tabel 2 Sydj'!G66/'Tabel 1 Sydj'!E64*100,"-")) -> 5.634894424 | I66: =IF(OR('Tabel 1 Sydj'!G64<5,'Tabel 2 Sydj'!I66<0.5),"-",IFERROR('Tabel 2 Sydj'!I66/'Tabel 1 Sydj'!G64*100,"-")) -> 8.743169399 | J66: =IF(OR('Tabel 1 Sydj'!G64<5,'Tabel 2 Sydj'!J66<0.5),"-",IFERROR('Tabel 2 Sydj'!J66/'Tabel 1 Sydj'!G64*100,"-")) -> 6.195214174
A67: ='[1]Tabel 2 Sydj DATA'!I64 -> MA. Nat. | C67: =IF(OR('Tabel 1 Sydj'!C65<5,'Tabel 2 Sydj'!C67<0.5),"-",IFERROR('Tabel 2 Sydj'!C67/'Tabel 1 Sydj'!C65*100,"-")) -> - | D67: =IF(OR('Tabel 1 Sydj'!C65<5,'Tabel 2 Sydj'!D67<0.5),"-",IFERROR('Tabel 2 Sydj'!D67/'Tabel 1 Sydj'!C65*100,"-")) -> - | F67: =IF(OR('Tabel 1 Sydj'!E65<5,'Tabel 2 Sydj'!F67<0.5),"-",IFERROR('Tabel 2 Sydj'!F67/'Tabel 1 Sydj'!E65*100,"-")) -> - | G67: =IF(OR('Tabel 1 Sydj'!E65<5,'Tabel 2 Sydj'!G67<0.5),"-",IFERROR('Tabel 2 Sydj'!G67/'Tabel 1 Sydj'!E65*100,"-")) -> - | I67: =IF(OR('Tabel 1 Sydj'!G65<5,'Tabel 2 Sydj'!I67<0.5),"-",IFERROR('Tabel 2 Sydj'!I67/'Tabel 1 Sydj'!G65*100,"-")) -> - | J67: =IF(OR('Tabel 1 Sydj'!G65<5,'Tabel 2 Sydj'!J67<0.5),"-",IFERROR('Tabel 2 Sydj'!J67/'Tabel 1 Sydj'!G65*100,"-")) -> -
A68: ='[1]Tabel 2 Sydj DATA'!I65 -> MA. Ph.d. | C68: =IF(OR('Tabel 1 Sydj'!C66<5,'Tabel 2 Sydj'!C68<0.5),"-",IFERROR('Tabel 2 Sydj'!C68/'Tabel 1 Sydj'!C66*100,"-")) -> - | D68: =IF(OR('Tabel 1 Sydj'!C66<5,'Tabel 2 Sydj'!D68<0.5),"-",IFERROR('Tabel 2 Sydj'!D68/'Tabel 1 Sydj'!C66*100,"-")) -> - | F68: =IF(OR('Tabel 1 Sydj'!E66<5,'Tabel 2 Sydj'!F68<0.5),"-",IFERROR('Tabel 2 Sydj'!F68/'Tabel 1 Sydj'!E66*100,"-")) -> - | G68: =IF(OR('Tabel 1 Sydj'!E66<5,'Tabel 2 Sydj'!G68<0.5),"-",IFERROR('Tabel 2 Sydj'!G68/'Tabel 1 Sydj'!E66*100,"-")) -> - | I68: =IF(OR('Tabel 1 Sydj'!G66<5,'Tabel 2 Sydj'!I68<0.5),"-",IFERROR('Tabel 2 Sydj'!I68/'Tabel 1 Sydj'!G66*100,"-")) -> - | J68: =IF(OR('Tabel 1 Sydj'!G66<5,'Tabel 2 Sydj'!J68<0.5),"-",IFERROR('Tabel 2 Sydj'!J68/'Tabel 1 Sydj'!G66*100,"-")) -> -
A69: ='[1]Tabel 2 Sydj DATA'!I66 -> MA. Samf. | C69: =IF(OR('Tabel 1 Sydj'!C67<5,'Tabel 2 Sydj'!C69<0.5),"-",IFERROR('Tabel 2 Sydj'!C69/'Tabel 1 Sydj'!C67*100,"-")) -> - | D69: =IF(OR('Tabel 1 Sydj'!C67<5,'Tabel 2 Sydj'!D69<0.5),"-",IFERROR('Tabel 2 Sydj'!D69/'Tabel 1 Sydj'!C67*100,"-")) -> - | F69: =IF(OR('Tabel 1 Sydj'!E67<5,'Tabel 2 Sydj'!F69<0.5),"-",IFERROR('Tabel 2 Sydj'!F69/'Tabel 1 Sydj'!E67*100,"-")) -> - | G69: =IF(OR('Tabel 1 Sydj'!E67<5,'Tabel 2 Sydj'!G69<0.5),"-",IFERROR('Tabel 2 Sydj'!G69/'Tabel 1 Sydj'!E67*100,"-")) -> - | I69: =IF(OR('Tabel 1 Sydj'!G67<5,'Tabel 2 Sydj'!I69<0.5),"-",IFERROR('Tabel 2 Sydj'!I69/'Tabel 1 Sydj'!G67*100,"-")) -> 16.66666667 | J69: =IF(OR('Tabel 1 Sydj'!G67<5,'Tabel 2 Sydj'!J69<0.5),"-",IFERROR('Tabel 2 Sydj'!J69/'Tabel 1 Sydj'!G67*100,"-")) -> 16.6635481
A70: ='[1]Tabel 2 Sydj DATA'!I67 -> Øvrige Mag. | C70: =IF(OR('Tabel 1 Sydj'!C68<5,'Tabel 2 Sydj'!C70<0.5),"-",IFERROR('Tabel 2 Sydj'!C70/'Tabel 1 Sydj'!C68*100,"-")) -> - | D70: =IF(OR('Tabel 1 Sydj'!C68<5,'Tabel 2 Sydj'!D70<0.5),"-",IFERROR('Tabel 2 Sydj'!D70/'Tabel 1 Sydj'!C68*100,"-")) -> - | F70: =IF(OR('Tabel 1 Sydj'!E68<5,'Tabel 2 Sydj'!F70<0.5),"-",IFERROR('Tabel 2 Sydj'!F70/'Tabel 1 Sydj'!E68*100,"-")) -> - | G70: =IF(OR('Tabel 1 Sydj'!E68<5,'Tabel 2 Sydj'!G70<0.5),"-",IFERROR('Tabel 2 Sydj'!G70/'Tabel 1 Sydj'!E68*100,"-")) -> - | I70: =IF(OR('Tabel 1 Sydj'!G68<5,'Tabel 2 Sydj'!I70<0.5),"-",IFERROR('Tabel 2 Sydj'!I70/'Tabel 1 Sydj'!G68*100,"-")) -> - | J70: =IF(OR('Tabel 1 Sydj'!G68<5,'Tabel 2 Sydj'!J70<0.5),"-",IFERROR('Tabel 2 Sydj'!J70/'Tabel 1 Sydj'!G68*100,"-")) -> -
A71: ='[1]Tabel 2 Sydj DATA'!I68 -> Agronom | C71: =IF(OR('Tabel 1 Sydj'!C69<5,'Tabel 2 Sydj'!C71<0.5),"-",IFERROR('Tabel 2 Sydj'!C71/'Tabel 1 Sydj'!C69*100,"-")) -> - | D71: =IF(OR('Tabel 1 Sydj'!C69<5,'Tabel 2 Sydj'!D71<0.5),"-",IFERROR('Tabel 2 Sydj'!D71/'Tabel 1 Sydj'!C69*100,"-")) -> - | F71: =IF(OR('Tabel 1 Sydj'!E69<5,'Tabel 2 Sydj'!F71<0.5),"-",IFERROR('Tabel 2 Sydj'!F71/'Tabel 1 Sydj'!E69*100,"-")) -> - | G71: =IF(OR('Tabel 1 Sydj'!E69<5,'Tabel 2 Sydj'!G71<0.5),"-",IFERROR('Tabel 2 Sydj'!G71/'Tabel 1 Sydj'!E69*100,"-")) -> - | I71: =IF(OR('Tabel 1 Sydj'!G69<5,'Tabel 2 Sydj'!I71<0.5),"-",IFERROR('Tabel 2 Sydj'!I71/'Tabel 1 Sydj'!G69*100,"-")) -> - | J71: =IF(OR('Tabel 1 Sydj'!G69<5,'Tabel 2 Sydj'!J71<0.5),"-",IFERROR('Tabel 2 Sydj'!J71/'Tabel 1 Sydj'!G69*100,"-")) -> -
A72: ='[1]Tabel 2 Sydj DATA'!I69 -> Landsk. Arkt. | C72: =IF(OR('Tabel 1 Sydj'!C70<5,'Tabel 2 Sydj'!C72<0.5),"-",IFERROR('Tabel 2 Sydj'!C72/'Tabel 1 Sydj'!C70*100,"-")) -> - | D72: =IF(OR('Tabel 1 Sydj'!C70<5,'Tabel 2 Sydj'!D72<0.5),"-",IFERROR('Tabel 2 Sydj'!D72/'Tabel 1 Sydj'!C70*100,"-")) -> - | F72: =IF(OR('Tabel 1 Sydj'!E70<5,'Tabel 2 Sydj'!F72<0.5),"-",IFERROR('Tabel 2 Sydj'!F72/'Tabel 1 Sydj'!E70*100,"-")) -> - | G72: =IF(OR('Tabel 1 Sydj'!E70<5,'Tabel 2 Sydj'!G72<0.5),"-",IFERROR('Tabel 2 Sydj'!G72/'Tabel 1 Sydj'!E70*100,"-")) -> - | I72: =IF(OR('Tabel 1 Sydj'!G70<5,'Tabel 2 Sydj'!I72<0.5),"-",IFERROR('Tabel 2 Sydj'!I72/'Tabel 1 Sydj'!G70*100,"-")) -> - | J72: =IF(OR('Tabel 1 Sydj'!G70<5,'Tabel 2 Sydj'!J72<0.5),"-",IFERROR('Tabel 2 Sydj'!J72/'Tabel 1 Sydj'!G70*100,"-")) -> -
A73: ='[1]Tabel 2 Sydj DATA'!I70 -> Hortonom | C73: =IF(OR('Tabel 1 Sydj'!C71<5,'Tabel 2 Sydj'!C73<0.5),"-",IFERROR('Tabel 2 Sydj'!C73/'Tabel 1 Sydj'!C71*100,"-")) -> - | D73: =IF(OR('Tabel 1 Sydj'!C71<5,'Tabel 2 Sydj'!D73<0.5),"-",IFERROR('Tabel 2 Sydj'!D73/'Tabel 1 Sydj'!C71*100,"-")) -> - | F73: =IF(OR('Tabel 1 Sydj'!E71<5,'Tabel 2 Sydj'!F73<0.5),"-",IFERROR('Tabel 2 Sydj'!F73/'Tabel 1 Sydj'!E71*100,"-")) -> - | G73: =IF(OR('Tabel 1 Sydj'!E71<5,'Tabel 2 Sydj'!G73<0.5),"-",IFERROR('Tabel 2 Sydj'!G73/'Tabel 1 Sydj'!E71*100,"-")) -> - | I73: =IF(OR('Tabel 1 Sydj'!G71<5,'Tabel 2 Sydj'!I73<0.5),"-",IFERROR('Tabel 2 Sydj'!I73/'Tabel 1 Sydj'!G71*100,"-")) -> - | J73: =IF(OR('Tabel 1 Sydj'!G71<5,'Tabel 2 Sydj'!J73<0.5),"-",IFERROR('Tabel 2 Sydj'!J73/'Tabel 1 Sydj'!G71*100,"-")) -> -
A74: ='[1]Tabel 2 Sydj DATA'!I71 -> Forstkand. | C74: =IF(OR('Tabel 1 Sydj'!C72<5,'Tabel 2 Sydj'!C74<0.5),"-",IFERROR('Tabel 2 Sydj'!C74/'Tabel 1 Sydj'!C72*100,"-")) -> - | D74: =IF(OR('Tabel 1 Sydj'!C72<5,'Tabel 2 Sydj'!D74<0.5),"-",IFERROR('Tabel 2 Sydj'!D74/'Tabel 1 Sydj'!C72*100,"-")) -> - | F74: =IF(OR('Tabel 1 Sydj'!E72<5,'Tabel 2 Sydj'!F74<0.5),"-",IFERROR('Tabel 2 Sydj'!F74/'Tabel 1 Sydj'!E72*100,"-")) -> - | G74: =IF(OR('Tabel 1 Sydj'!E72<5,'Tabel 2 Sydj'!G74<0.5),"-",IFERROR('Tabel 2 Sydj'!G74/'Tabel 1 Sydj'!E72*100,"-")) -> - | I74: =IF(OR('Tabel 1 Sydj'!G72<5,'Tabel 2 Sydj'!I74<0.5),"-",IFERROR('Tabel 2 Sydj'!I74/'Tabel 1 Sydj'!G72*100,"-")) -> - | J74: =IF(OR('Tabel 1 Sydj'!G72<5,'Tabel 2 Sydj'!J74<0.5),"-",IFERROR('Tabel 2 Sydj'!J74/'Tabel 1 Sydj'!G72*100,"-")) -> -
A75: ='[1]Tabel 2 Sydj DATA'!I72 -> Jordbrugsakad. | C75: =IF(OR('Tabel 1 Sydj'!C73<5,'Tabel 2 Sydj'!C75<0.5),"-",IFERROR('Tabel 2 Sydj'!C75/'Tabel 1 Sydj'!C73*100,"-")) -> - | D75: =IF(OR('Tabel 1 Sydj'!C73<5,'Tabel 2 Sydj'!D75<0.5),"-",IFERROR('Tabel 2 Sydj'!D75/'Tabel 1 Sydj'!C73*100,"-")) -> - | F75: =IF(OR('Tabel 1 Sydj'!E73<5,'Tabel 2 Sydj'!F75<0.5),"-",IFERROR('Tabel 2 Sydj'!F75/'Tabel 1 Sydj'!E73*100,"-")) -> - | G75: =IF(OR('Tabel 1 Sydj'!E73<5,'Tabel 2 Sydj'!G75<0.5),"-",IFERROR('Tabel 2 Sydj'!G75/'Tabel 1 Sydj'!E73*100,"-")) -> - | I75: =IF(OR('Tabel 1 Sydj'!G73<5,'Tabel 2 Sydj'!I75<0.5),"-",IFERROR('Tabel 2 Sydj'!I75/'Tabel 1 Sydj'!G73*100,"-")) -> - | J75: =IF(OR('Tabel 1 Sydj'!G73<5,'Tabel 2 Sydj'!J75<0.5),"-",IFERROR('Tabel 2 Sydj'!J75/'Tabel 1 Sydj'!G73*100,"-")) -> -
A76: ='[1]Tabel 2 Sydj DATA'!I73 -> Mejeriing. | C76: =IF(OR('Tabel 1 Sydj'!C74<5,'Tabel 2 Sydj'!C76<0.5),"-",IFERROR('Tabel 2 Sydj'!C76/'Tabel 1 Sydj'!C74*100,"-")) -> - | D76: =IF(OR('Tabel 1 Sydj'!C74<5,'Tabel 2 Sydj'!D76<0.5),"-",IFERROR('Tabel 2 Sydj'!D76/'Tabel 1 Sydj'!C74*100,"-")) -> - | F76: =IF(OR('Tabel 1 Sydj'!E74<5,'Tabel 2 Sydj'!F76<0.5),"-",IFERROR('Tabel 2 Sydj'!F76/'Tabel 1 Sydj'!E74*100,"-")) -> - | G76: =IF(OR('Tabel 1 Sydj'!E74<5,'Tabel 2 Sydj'!G76<0.5),"-",IFERROR('Tabel 2 Sydj'!G76/'Tabel 1 Sydj'!E74*100,"-")) -> - | I76: =IF(OR('Tabel 1 Sydj'!G74<5,'Tabel 2 Sydj'!I76<0.5),"-",IFERROR('Tabel 2 Sydj'!I76/'Tabel 1 Sydj'!G74*100,"-")) -> - | J76: =IF(OR('Tabel 1 Sydj'!G74<5,'Tabel 2 Sydj'!J76<0.5),"-",IFERROR('Tabel 2 Sydj'!J76/'Tabel 1 Sydj'!G74*100,"-")) -> -
A77: ='[1]Tabel 2 Sydj DATA'!I74 -> Levn.m.kand. | C77: =IF(OR('Tabel 1 Sydj'!C75<5,'Tabel 2 Sydj'!C77<0.5),"-",IFERROR('Tabel 2 Sydj'!C77/'Tabel 1 Sydj'!C75*100,"-")) -> - | D77: =IF(OR('Tabel 1 Sydj'!C75<5,'Tabel 2 Sydj'!D77<0.5),"-",IFERROR('Tabel 2 Sydj'!D77/'Tabel 1 Sydj'!C75*100,"-")) -> - | F77: =IF(OR('Tabel 1 Sydj'!E75<5,'Tabel 2 Sydj'!F77<0.5),"-",IFERROR('Tabel 2 Sydj'!F77/'Tabel 1 Sydj'!E75*100,"-")) -> - | G77: =IF(OR('Tabel 1 Sydj'!E75<5,'Tabel 2 Sydj'!G77<0.5),"-",IFERROR('Tabel 2 Sydj'!G77/'Tabel 1 Sydj'!E75*100,"-")) -> - | I77: =IF(OR('Tabel 1 Sydj'!G75<5,'Tabel 2 Sydj'!I77<0.5),"-",IFERROR('Tabel 2 Sydj'!I77/'Tabel 1 Sydj'!G75*100,"-")) -> - | J77: =IF(OR('Tabel 1 Sydj'!G75<5,'Tabel 2 Sydj'!J77<0.5),"-",IFERROR('Tabel 2 Sydj'!J77/'Tabel 1 Sydj'!G75*100,"-")) -> -
A78: ='[1]Tabel 2 Sydj DATA'!I75 -> Dyrlæge | C78: =IF(OR('Tabel 1 Sydj'!C76<5,'Tabel 2 Sydj'!C78<0.5),"-",IFERROR('Tabel 2 Sydj'!C78/'Tabel 1 Sydj'!C76*100,"-")) -> - | D78: =IF(OR('Tabel 1 Sydj'!C76<5,'Tabel 2 Sydj'!D78<0.5),"-",IFERROR('Tabel 2 Sydj'!D78/'Tabel 1 Sydj'!C76*100,"-")) -> - | F78: =IF(OR('Tabel 1 Sydj'!E76<5,'Tabel 2 Sydj'!F78<0.5),"-",IFERROR('Tabel 2 Sydj'!F78/'Tabel 1 Sydj'!E76*100,"-")) -> 10.52631579 | G78: =IF(OR('Tabel 1 Sydj'!E76<5,'Tabel 2 Sydj'!G78<0.5),"-",IFERROR('Tabel 2 Sydj'!G78/'Tabel 1 Sydj'!E76*100,"-")) -> 4.182163761 | I78: =IF(OR('Tabel 1 Sydj'!G76<5,'Tabel 2 Sydj'!I78<0.5),"-",IFERROR('Tabel 2 Sydj'!I78/'Tabel 1 Sydj'!G76*100,"-")) -> 9.523809524 | J78: =IF(OR('Tabel 1 Sydj'!G76<5,'Tabel 2 Sydj'!J78<0.5),"-",IFERROR('Tabel 2 Sydj'!J78/'Tabel 1 Sydj'!G76*100,"-")) -> 3.78386245
A79: ='[1]Tabel 2 Sydj DATA'!I76 -> Farmaceut | C79: =IF(OR('Tabel 1 Sydj'!C77<5,'Tabel 2 Sydj'!C79<0.5),"-",IFERROR('Tabel 2 Sydj'!C79/'Tabel 1 Sydj'!C77*100,"-")) -> - | D79: =IF(OR('Tabel 1 Sydj'!C77<5,'Tabel 2 Sydj'!D79<0.5),"-",IFERROR('Tabel 2 Sydj'!D79/'Tabel 1 Sydj'!C77*100,"-")) -> - | F79: =IF(OR('Tabel 1 Sydj'!E77<5,'Tabel 2 Sydj'!F79<0.5),"-",IFERROR('Tabel 2 Sydj'!F79/'Tabel 1 Sydj'!E77*100,"-")) -> - | G79: =IF(OR('Tabel 1 Sydj'!E77<5,'Tabel 2 Sydj'!G79<0.5),"-",IFERROR('Tabel 2 Sydj'!G79/'Tabel 1 Sydj'!E77*100,"-")) -> - | I79: =IF(OR('Tabel 1 Sydj'!G77<5,'Tabel 2 Sydj'!I79<0.5),"-",IFERROR('Tabel 2 Sydj'!I79/'Tabel 1 Sydj'!G77*100,"-")) -> - | J79: =IF(OR('Tabel 1 Sydj'!G77<5,'Tabel 2 Sydj'!J79<0.5),"-",IFERROR('Tabel 2 Sydj'!J79/'Tabel 1 Sydj'!G77*100,"-")) -> -
A80: ='[1]Tabel 2 Sydj DATA'!I77 -> Læge | C80: =IF(OR('Tabel 1 Sydj'!C78<5,'Tabel 2 Sydj'!C80<0.5),"-",IFERROR('Tabel 2 Sydj'!C80/'Tabel 1 Sydj'!C78*100,"-")) -> - | D80: =IF(OR('Tabel 1 Sydj'!C78<5,'Tabel 2 Sydj'!D80<0.5),"-",IFERROR('Tabel 2 Sydj'!D80/'Tabel 1 Sydj'!C78*100,"-")) -> - | F80: =IF(OR('Tabel 1 Sydj'!E78<5,'Tabel 2 Sydj'!F80<0.5),"-",IFERROR('Tabel 2 Sydj'!F80/'Tabel 1 Sydj'!E78*100,"-")) -> - | G80: =IF(OR('Tabel 1 Sydj'!E78<5,'Tabel 2 Sydj'!G80<0.5),"-",IFERROR('Tabel 2 Sydj'!G80/'Tabel 1 Sydj'!E78*100,"-")) -> - | I80: =IF(OR('Tabel 1 Sydj'!G78<5,'Tabel 2 Sydj'!I80<0.5),"-",IFERROR('Tabel 2 Sydj'!I80/'Tabel 1 Sydj'!G78*100,"-")) -> - | J80: =IF(OR('Tabel 1 Sydj'!G78<5,'Tabel 2 Sydj'!J80<0.5),"-",IFERROR('Tabel 2 Sydj'!J80/'Tabel 1 Sydj'!G78*100,"-")) -> -
A81: ='[1]Tabel 2 Sydj DATA'!I78 -> Tandlæge | C81: =IF(OR('Tabel 1 Sydj'!C79<5,'Tabel 2 Sydj'!C81<0.5),"-",IFERROR('Tabel 2 Sydj'!C81/'Tabel 1 Sydj'!C79*100,"-")) -> - | D81: =IF(OR('Tabel 1 Sydj'!C79<5,'Tabel 2 Sydj'!D81<0.5),"-",IFERROR('Tabel 2 Sydj'!D81/'Tabel 1 Sydj'!C79*100,"-")) -> - | F81: =IF(OR('Tabel 1 Sydj'!E79<5,'Tabel 2 Sydj'!F81<0.5),"-",IFERROR('Tabel 2 Sydj'!F81/'Tabel 1 Sydj'!E79*100,"-")) -> - | G81: =IF(OR('Tabel 1 Sydj'!E79<5,'Tabel 2 Sydj'!G81<0.5),"-",IFERROR('Tabel 2 Sydj'!G81/'Tabel 1 Sydj'!E79*100,"-")) -> - | I81: =IF(OR('Tabel 1 Sydj'!G79<5,'Tabel 2 Sydj'!I81<0.5),"-",IFERROR('Tabel 2 Sydj'!I81/'Tabel 1 Sydj'!G79*100,"-")) -> - | J81: =IF(OR('Tabel 1 Sydj'!G79<5,'Tabel 2 Sydj'!J81<0.5),"-",IFERROR('Tabel 2 Sydj'!J81/'Tabel 1 Sydj'!G79*100,"-")) -> -
A82: ='[1]Tabel 2 Sydj DATA'!I79 -> Arkitekt | C82: =IF(OR('Tabel 1 Sydj'!C80<5,'Tabel 2 Sydj'!C82<0.5),"-",IFERROR('Tabel 2 Sydj'!C82/'Tabel 1 Sydj'!C80*100,"-")) -> 12.5 | D82: =IF(OR('Tabel 1 Sydj'!C80<5,'Tabel 2 Sydj'!D82<0.5),"-",IFERROR('Tabel 2 Sydj'!D82/'Tabel 1 Sydj'!C80*100,"-")) -> 11.34379093 | F82: =IF(OR('Tabel 1 Sydj'!E80<5,'Tabel 2 Sydj'!F82<0.5),"-",IFERROR('Tabel 2 Sydj'!F82/'Tabel 1 Sydj'!E80*100,"-")) -> - | G82: =IF(OR('Tabel 1 Sydj'!E80<5,'Tabel 2 Sydj'!G82<0.5),"-",IFERROR('Tabel 2 Sydj'!G82/'Tabel 1 Sydj'!E80*100,"-")) -> - | I82: =IF(OR('Tabel 1 Sydj'!G80<5,'Tabel 2 Sydj'!I82<0.5),"-",IFERROR('Tabel 2 Sydj'!I82/'Tabel 1 Sydj'!G80*100,"-")) -> 6.666666667 | J82: =IF(OR('Tabel 1 Sydj'!G80<5,'Tabel 2 Sydj'!J82<0.5),"-",IFERROR('Tabel 2 Sydj'!J82/'Tabel 1 Sydj'!G80*100,"-")) -> 6.05002183
A83: ='[1]Tabel 2 Sydj DATA'!I80 -> Landinspek. | C83: =IF(OR('Tabel 1 Sydj'!C81<5,'Tabel 2 Sydj'!C83<0.5),"-",IFERROR('Tabel 2 Sydj'!C83/'Tabel 1 Sydj'!C81*100,"-")) -> - | D83: =IF(OR('Tabel 1 Sydj'!C81<5,'Tabel 2 Sydj'!D83<0.5),"-",IFERROR('Tabel 2 Sydj'!D83/'Tabel 1 Sydj'!C81*100,"-")) -> - | F83: =IF(OR('Tabel 1 Sydj'!E81<5,'Tabel 2 Sydj'!F83<0.5),"-",IFERROR('Tabel 2 Sydj'!F83/'Tabel 1 Sydj'!E81*100,"-")) -> - | G83: =IF(OR('Tabel 1 Sydj'!E81<5,'Tabel 2 Sydj'!G83<0.5),"-",IFERROR('Tabel 2 Sydj'!G83/'Tabel 1 Sydj'!E81*100,"-")) -> - | I83: =IF(OR('Tabel 1 Sydj'!G81<5,'Tabel 2 Sydj'!I83<0.5),"-",IFERROR('Tabel 2 Sydj'!I83/'Tabel 1 Sydj'!G81*100,"-")) -> - | J83: =IF(OR('Tabel 1 Sydj'!G81<5,'Tabel 2 Sydj'!J83<0.5),"-",IFERROR('Tabel 2 Sydj'!J83/'Tabel 1 Sydj'!G81*100,"-")) -> -
A84: ='[1]Tabel 2 Sydj DATA'!I81 -> Bibliotekar | C84: =IF(OR('Tabel 1 Sydj'!C82<5,'Tabel 2 Sydj'!C84<0.5),"-",IFERROR('Tabel 2 Sydj'!C84/'Tabel 1 Sydj'!C82*100,"-")) -> - | D84: =IF(OR('Tabel 1 Sydj'!C82<5,'Tabel 2 Sydj'!D84<0.5),"-",IFERROR('Tabel 2 Sydj'!D84/'Tabel 1 Sydj'!C82*100,"-")) -> - | F84: =IF(OR('Tabel 1 Sydj'!E82<5,'Tabel 2 Sydj'!F84<0.5),"-",IFERROR('Tabel 2 Sydj'!F84/'Tabel 1 Sydj'!E82*100,"-")) -> - | G84: =IF(OR('Tabel 1 Sydj'!E82<5,'Tabel 2 Sydj'!G84<0.5),"-",IFERROR('Tabel 2 Sydj'!G84/'Tabel 1 Sydj'!E82*100,"-")) -> - | I84: =IF(OR('Tabel 1 Sydj'!G82<5,'Tabel 2 Sydj'!I84<0.5),"-",IFERROR('Tabel 2 Sydj'!I84/'Tabel 1 Sydj'!G82*100,"-")) -> - | J84: =IF(OR('Tabel 1 Sydj'!G82<5,'Tabel 2 Sydj'!J84<0.5),"-",IFERROR('Tabel 2 Sydj'!J84/'Tabel 1 Sydj'!G82*100,"-")) -> -
A85: ='[1]Tabel 2 Sydj DATA'!I82 -> Musikudd. | C85: =IF(OR('Tabel 1 Sydj'!C83<5,'Tabel 2 Sydj'!C85<0.5),"-",IFERROR('Tabel 2 Sydj'!C85/'Tabel 1 Sydj'!C83*100,"-")) -> - | D85: =IF(OR('Tabel 1 Sydj'!C83<5,'Tabel 2 Sydj'!D85<0.5),"-",IFERROR('Tabel 2 Sydj'!D85/'Tabel 1 Sydj'!C83*100,"-")) -> - | F85: =IF(OR('Tabel 1 Sydj'!E83<5,'Tabel 2 Sydj'!F85<0.5),"-",IFERROR('Tabel 2 Sydj'!F85/'Tabel 1 Sydj'!E83*100,"-")) -> 12.5 | G85: =IF(OR('Tabel 1 Sydj'!E83<5,'Tabel 2 Sydj'!G85<0.5),"-",IFERROR('Tabel 2 Sydj'!G85/'Tabel 1 Sydj'!E83*100,"-")) -> 8.443522734 | I85: =IF(OR('Tabel 1 Sydj'!G83<5,'Tabel 2 Sydj'!I85<0.5),"-",IFERROR('Tabel 2 Sydj'!I85/'Tabel 1 Sydj'!G83*100,"-")) -> 8.333333333 | J85: =IF(OR('Tabel 1 Sydj'!G83<5,'Tabel 2 Sydj'!J85<0.5),"-",IFERROR('Tabel 2 Sydj'!J85/'Tabel 1 Sydj'!G83*100,"-")) -> 5.629015156
A86: ='[1]Tabel 2 Sydj DATA'!I83 -> Teolog | C86: =IF(OR('Tabel 1 Sydj'!C84<5,'Tabel 2 Sydj'!C86<0.5),"-",IFERROR('Tabel 2 Sydj'!C86/'Tabel 1 Sydj'!C84*100,"-")) -> - | D86: =IF(OR('Tabel 1 Sydj'!C84<5,'Tabel 2 Sydj'!D86<0.5),"-",IFERROR('Tabel 2 Sydj'!D86/'Tabel 1 Sydj'!C84*100,"-")) -> - | F86: =IF(OR('Tabel 1 Sydj'!E84<5,'Tabel 2 Sydj'!F86<0.5),"-",IFERROR('Tabel 2 Sydj'!F86/'Tabel 1 Sydj'!E84*100,"-")) -> - | G86: =IF(OR('Tabel 1 Sydj'!E84<5,'Tabel 2 Sydj'!G86<0.5),"-",IFERROR('Tabel 2 Sydj'!G86/'Tabel 1 Sydj'!E84*100,"-")) -> - | I86: =IF(OR('Tabel 1 Sydj'!G84<5,'Tabel 2 Sydj'!I86<0.5),"-",IFERROR('Tabel 2 Sydj'!I86/'Tabel 1 Sydj'!G84*100,"-")) -> - | J86: =IF(OR('Tabel 1 Sydj'!G84<5,'Tabel 2 Sydj'!J86<0.5),"-",IFERROR('Tabel 2 Sydj'!J86/'Tabel 1 Sydj'!G84*100,"-")) -> -
A87: ='[1]Tabel 2 Sydj DATA'!I84 -> Psykolog | C87: =IF(OR('Tabel 1 Sydj'!C85<5,'Tabel 2 Sydj'!C87<0.5),"-",IFERROR('Tabel 2 Sydj'!C87/'Tabel 1 Sydj'!C85*100,"-")) -> - | D87: =IF(OR('Tabel 1 Sydj'!C85<5,'Tabel 2 Sydj'!D87<0.5),"-",IFERROR('Tabel 2 Sydj'!D87/'Tabel 1 Sydj'!C85*100,"-")) -> - | F87: =IF(OR('Tabel 1 Sydj'!E85<5,'Tabel 2 Sydj'!F87<0.5),"-",IFERROR('Tabel 2 Sydj'!F87/'Tabel 1 Sydj'!E85*100,"-")) -> - | G87: =IF(OR('Tabel 1 Sydj'!E85<5,'Tabel 2 Sydj'!G87<0.5),"-",IFERROR('Tabel 2 Sydj'!G87/'Tabel 1 Sydj'!E85*100,"-")) -> - | I87: =IF(OR('Tabel 1 Sydj'!G85<5,'Tabel 2 Sydj'!I87<0.5),"-",IFERROR('Tabel 2 Sydj'!I87/'Tabel 1 Sydj'!G85*100,"-")) -> - | J87: =IF(OR('Tabel 1 Sydj'!G85<5,'Tabel 2 Sydj'!J87<0.5),"-",IFERROR('Tabel 2 Sydj'!J87/'Tabel 1 Sydj'!G85*100,"-")) -> -
A88: ='[1]Tabel 2 Sydj DATA'!I85 -> Jurist | C88: =IF(OR('Tabel 1 Sydj'!C86<5,'Tabel 2 Sydj'!C88<0.5),"-",IFERROR('Tabel 2 Sydj'!C88/'Tabel 1 Sydj'!C86*100,"-")) -> 16.66666667 | D88: =IF(OR('Tabel 1 Sydj'!C86<5,'Tabel 2 Sydj'!D88<0.5),"-",IFERROR('Tabel 2 Sydj'!D88/'Tabel 1 Sydj'!C86*100,"-")) -> 15.89430134 | F88: =IF(OR('Tabel 1 Sydj'!E86<5,'Tabel 2 Sydj'!F88<0.5),"-",IFERROR('Tabel 2 Sydj'!F88/'Tabel 1 Sydj'!E86*100,"-")) -> 3.125 | G88: =IF(OR('Tabel 1 Sydj'!E86<5,'Tabel 2 Sydj'!G88<0.5),"-",IFERROR('Tabel 2 Sydj'!G88/'Tabel 1 Sydj'!E86*100,"-")) -> 3.124415269 | I88: =IF(OR('Tabel 1 Sydj'!G86<5,'Tabel 2 Sydj'!I88<0.5),"-",IFERROR('Tabel 2 Sydj'!I88/'Tabel 1 Sydj'!G86*100,"-")) -> 6.818181818 | J88: =IF(OR('Tabel 1 Sydj'!G86<5,'Tabel 2 Sydj'!J88<0.5),"-",IFERROR('Tabel 2 Sydj'!J88/'Tabel 1 Sydj'!G86*100,"-")) -> 6.607111469
A89: ='[1]Tabel 2 Sydj DATA'!I86 -> Økonom | C89: =IF(OR('Tabel 1 Sydj'!C87<5,'Tabel 2 Sydj'!C89<0.5),"-",IFERROR('Tabel 2 Sydj'!C89/'Tabel 1 Sydj'!C87*100,"-")) -> - | D89: =IF(OR('Tabel 1 Sydj'!C87<5,'Tabel 2 Sydj'!D89<0.5),"-",IFERROR('Tabel 2 Sydj'!D89/'Tabel 1 Sydj'!C87*100,"-")) -> - | F89: =IF(OR('Tabel 1 Sydj'!E87<5,'Tabel 2 Sydj'!F89<0.5),"-",IFERROR('Tabel 2 Sydj'!F89/'Tabel 1 Sydj'!E87*100,"-")) -> 10 | G89: =IF(OR('Tabel 1 Sydj'!E87<5,'Tabel 2 Sydj'!G89<0.5),"-",IFERROR('Tabel 2 Sydj'!G89/'Tabel 1 Sydj'!E87*100,"-")) -> 8.332813572 | I89: =IF(OR('Tabel 1 Sydj'!G87<5,'Tabel 2 Sydj'!I89<0.5),"-",IFERROR('Tabel 2 Sydj'!I89/'Tabel 1 Sydj'!G87*100,"-")) -> 4.545454545 | J89: =IF(OR('Tabel 1 Sydj'!G87<5,'Tabel 2 Sydj'!J89<0.5),"-",IFERROR('Tabel 2 Sydj'!J89/'Tabel 1 Sydj'!G87*100,"-")) -> 3.787642533
A90: ='[1]Tabel 2 Sydj DATA'!I87 -> Samf. Adm. | C90: =IF(OR('Tabel 1 Sydj'!C88<5,'Tabel 2 Sydj'!C90<0.5),"-",IFERROR('Tabel 2 Sydj'!C90/'Tabel 1 Sydj'!C88*100,"-")) -> - | D90: =IF(OR('Tabel 1 Sydj'!C88<5,'Tabel 2 Sydj'!D90<0.5),"-",IFERROR('Tabel 2 Sydj'!D90/'Tabel 1 Sydj'!C88*100,"-")) -> - | F90: =IF(OR('Tabel 1 Sydj'!E88<5,'Tabel 2 Sydj'!F90<0.5),"-",IFERROR('Tabel 2 Sydj'!F90/'Tabel 1 Sydj'!E88*100,"-")) -> 16 | G90: =IF(OR('Tabel 1 Sydj'!E88<5,'Tabel 2 Sydj'!G90<0.5),"-",IFERROR('Tabel 2 Sydj'!G90/'Tabel 1 Sydj'!E88*100,"-")) -> 15.99700617 | I90: =IF(OR('Tabel 1 Sydj'!G88<5,'Tabel 2 Sydj'!I90<0.5),"-",IFERROR('Tabel 2 Sydj'!I90/'Tabel 1 Sydj'!G88*100,"-")) -> 8.510638298 | J90: =IF(OR('Tabel 1 Sydj'!G88<5,'Tabel 2 Sydj'!J90<0.5),"-",IFERROR('Tabel 2 Sydj'!J90/'Tabel 1 Sydj'!G88*100,"-")) -> 8.509045838
A91: ='[1]Tabel 2 Sydj DATA'!I88 -> Cand. Merc. | C91: =IF(OR('Tabel 1 Sydj'!C89<5,'Tabel 2 Sydj'!C91<0.5),"-",IFERROR('Tabel 2 Sydj'!C91/'Tabel 1 Sydj'!C89*100,"-")) -> 5.882352941 | D91: =IF(OR('Tabel 1 Sydj'!C89<5,'Tabel 2 Sydj'!D91<0.5),"-",IFERROR('Tabel 2 Sydj'!D91/'Tabel 1 Sydj'!C89*100,"-")) -> 5.510693019 | F91: =IF(OR('Tabel 1 Sydj'!E89<5,'Tabel 2 Sydj'!F91<0.5),"-",IFERROR('Tabel 2 Sydj'!F91/'Tabel 1 Sydj'!E89*100,"-")) -> 3.50877193 | G91: =IF(OR('Tabel 1 Sydj'!E89<5,'Tabel 2 Sydj'!G91<0.5),"-",IFERROR('Tabel 2 Sydj'!G91/'Tabel 1 Sydj'!E89*100,"-")) -> 2.374488582 | I91: =IF(OR('Tabel 1 Sydj'!G89<5,'Tabel 2 Sydj'!I91<0.5),"-",IFERROR('Tabel 2 Sydj'!I91/'Tabel 1 Sydj'!G89*100,"-")) -> 4.62962963 | J91: =IF(OR('Tabel 1 Sydj'!G89<5,'Tabel 2 Sydj'!J91<0.5),"-",IFERROR('Tabel 2 Sydj'!J91/'Tabel 1 Sydj'!G89*100,"-")) -> 3.855474011
A92: ='[1]Tabel 2 Sydj DATA'!I89 -> HA | C92: =IF(OR('Tabel 1 Sydj'!C90<5,'Tabel 2 Sydj'!C92<0.5),"-",IFERROR('Tabel 2 Sydj'!C92/'Tabel 1 Sydj'!C90*100,"-")) -> 5.263157895 | D92: =IF(OR('Tabel 1 Sydj'!C90<5,'Tabel 2 Sydj'!D92<0.5),"-",IFERROR('Tabel 2 Sydj'!D92/'Tabel 1 Sydj'!C90*100,"-")) -> 5.262173084 | F92: =IF(OR('Tabel 1 Sydj'!E90<5,'Tabel 2 Sydj'!F92<0.5),"-",IFERROR('Tabel 2 Sydj'!F92/'Tabel 1 Sydj'!E90*100,"-")) -> - | G92: =IF(OR('Tabel 1 Sydj'!E90<5,'Tabel 2 Sydj'!G92<0.5),"-",IFERROR('Tabel 2 Sydj'!G92/'Tabel 1 Sydj'!E90*100,"-")) -> - | I92: =IF(OR('Tabel 1 Sydj'!G90<5,'Tabel 2 Sydj'!I92<0.5),"-",IFERROR('Tabel 2 Sydj'!I92/'Tabel 1 Sydj'!G90*100,"-")) -> 3.125 | J92: =IF(OR('Tabel 1 Sydj'!G90<5,'Tabel 2 Sydj'!J92<0.5),"-",IFERROR('Tabel 2 Sydj'!J92/'Tabel 1 Sydj'!G90*100,"-")) -> 3.124415269
A93: ='[1]Tabel 2 Sydj DATA'!I90 -> HD | C93: =IF(OR('Tabel 1 Sydj'!C91<5,'Tabel 2 Sydj'!C93<0.5),"-",IFERROR('Tabel 2 Sydj'!C93/'Tabel 1 Sydj'!C91*100,"-")) -> 5.555555556 | D93: =IF(OR('Tabel 1 Sydj'!C91<5,'Tabel 2 Sydj'!D93<0.5),"-",IFERROR('Tabel 2 Sydj'!D93/'Tabel 1 Sydj'!C91*100,"-")) -> 5.554516033 | F93: =IF(OR('Tabel 1 Sydj'!E91<5,'Tabel 2 Sydj'!F93<0.5),"-",IFERROR('Tabel 2 Sydj'!F93/'Tabel 1 Sydj'!E91*100,"-")) -> 10 | G93: =IF(OR('Tabel 1 Sydj'!E91<5,'Tabel 2 Sydj'!G93<0.5),"-",IFERROR('Tabel 2 Sydj'!G93/'Tabel 1 Sydj'!E91*100,"-")) -> 9.998128859 | I93: =IF(OR('Tabel 1 Sydj'!G91<5,'Tabel 2 Sydj'!I93<0.5),"-",IFERROR('Tabel 2 Sydj'!I93/'Tabel 1 Sydj'!G91*100,"-")) -> 7.142857143 | J93: =IF(OR('Tabel 1 Sydj'!G91<5,'Tabel 2 Sydj'!J93<0.5),"-",IFERROR('Tabel 2 Sydj'!J93/'Tabel 1 Sydj'!G91*100,"-")) -> 7.141520614
A94: ='[1]Tabel 2 Sydj DATA'!I91 -> Komm. og Sprog | C94: =IF(OR('Tabel 1 Sydj'!C92<5,'Tabel 2 Sydj'!C94<0.5),"-",IFERROR('Tabel 2 Sydj'!C94/'Tabel 1 Sydj'!C92*100,"-")) -> - | D94: =IF(OR('Tabel 1 Sydj'!C92<5,'Tabel 2 Sydj'!D94<0.5),"-",IFERROR('Tabel 2 Sydj'!D94/'Tabel 1 Sydj'!C92*100,"-")) -> - | F94: =IF(OR('Tabel 1 Sydj'!E92<5,'Tabel 2 Sydj'!F94<0.5),"-",IFERROR('Tabel 2 Sydj'!F94/'Tabel 1 Sydj'!E92*100,"-")) -> 11.53846154 | G94: =IF(OR('Tabel 1 Sydj'!E92<5,'Tabel 2 Sydj'!G94<0.5),"-",IFERROR('Tabel 2 Sydj'!G94/'Tabel 1 Sydj'!E92*100,"-")) -> 11.13808539 | I94: =IF(OR('Tabel 1 Sydj'!G92<5,'Tabel 2 Sydj'!I94<0.5),"-",IFERROR('Tabel 2 Sydj'!I94/'Tabel 1 Sydj'!G92*100,"-")) -> 17.24137931 | J94: =IF(OR('Tabel 1 Sydj'!G92<5,'Tabel 2 Sydj'!J94<0.5),"-",IFERROR('Tabel 2 Sydj'!J94/'Tabel 1 Sydj'!G92*100,"-")) -> 15.58423682
A95: ='[1]Tabel 2 Sydj DATA'!I92 -> Bygningskonst. | C95: =IF(OR('Tabel 1 Sydj'!C93<5,'Tabel 2 Sydj'!C95<0.5),"-",IFERROR('Tabel 2 Sydj'!C95/'Tabel 1 Sydj'!C93*100,"-")) -> 4 | D95: =IF(OR('Tabel 1 Sydj'!C93<5,'Tabel 2 Sydj'!D95<0.5),"-",IFERROR('Tabel 2 Sydj'!D95/'Tabel 1 Sydj'!C93*100,"-")) -> 4 | F95: =IF(OR('Tabel 1 Sydj'!E93<5,'Tabel 2 Sydj'!F95<0.5),"-",IFERROR('Tabel 2 Sydj'!F95/'Tabel 1 Sydj'!E93*100,"-")) -> 14.28571429 | G95: =IF(OR('Tabel 1 Sydj'!E93<5,'Tabel 2 Sydj'!G95<0.5),"-",IFERROR('Tabel 2 Sydj'!G95/'Tabel 1 Sydj'!E93*100,"-")) -> 14.28571429 | I95: =IF(OR('Tabel 1 Sydj'!G93<5,'Tabel 2 Sydj'!I95<0.5),"-",IFERROR('Tabel 2 Sydj'!I95/'Tabel 1 Sydj'!G93*100,"-")) -> 5.263157895 | J95: =IF(OR('Tabel 1 Sydj'!G93<5,'Tabel 2 Sydj'!J95<0.5),"-",IFERROR('Tabel 2 Sydj'!J95/'Tabel 1 Sydj'!G93*100,"-")) -> 5.263157895
A96: ='[1]Tabel 2 Sydj DATA'!I93 -> Cand. IT. | C96: =IF(OR('Tabel 1 Sydj'!C94<5,'Tabel 2 Sydj'!C96<0.5),"-",IFERROR('Tabel 2 Sydj'!C96/'Tabel 1 Sydj'!C94*100,"-")) -> - | D96: =IF(OR('Tabel 1 Sydj'!C94<5,'Tabel 2 Sydj'!D96<0.5),"-",IFERROR('Tabel 2 Sydj'!D96/'Tabel 1 Sydj'!C94*100,"-")) -> - | F96: =IF(OR('Tabel 1 Sydj'!E94<5,'Tabel 2 Sydj'!F96<0.5),"-",IFERROR('Tabel 2 Sydj'!F96/'Tabel 1 Sydj'!E94*100,"-")) -> 28.57142857 | G96: =IF(OR('Tabel 1 Sydj'!E94<5,'Tabel 2 Sydj'!G96<0.5),"-",IFERROR('Tabel 2 Sydj'!G96/'Tabel 1 Sydj'!E94*100,"-")) -> 25.00200479 | I96: =IF(OR('Tabel 1 Sydj'!G94<5,'Tabel 2 Sydj'!I96<0.5),"-",IFERROR('Tabel 2 Sydj'!I96/'Tabel 1 Sydj'!G94*100,"-")) -> 20 | J96: =IF(OR('Tabel 1 Sydj'!G94<5,'Tabel 2 Sydj'!J96<0.5),"-",IFERROR('Tabel 2 Sydj'!J96/'Tabel 1 Sydj'!G94*100,"-")) -> 17.50140336
A97: ='[1]Tabel 2 Sydj DATA'!I94 -> Bac. Samf. | C97: =IF(OR('Tabel 1 Sydj'!C95<5,'Tabel 2 Sydj'!C97<0.5),"-",IFERROR('Tabel 2 Sydj'!C97/'Tabel 1 Sydj'!C95*100,"-")) -> - | D97: =IF(OR('Tabel 1 Sydj'!C95<5,'Tabel 2 Sydj'!D97<0.5),"-",IFERROR('Tabel 2 Sydj'!D97/'Tabel 1 Sydj'!C95*100,"-")) -> - | F97: =IF(OR('Tabel 1 Sydj'!E95<5,'Tabel 2 Sydj'!F97<0.5),"-",IFERROR('Tabel 2 Sydj'!F97/'Tabel 1 Sydj'!E95*100,"-")) -> - | G97: =IF(OR('Tabel 1 Sydj'!E95<5,'Tabel 2 Sydj'!G97<0.5),"-",IFERROR('Tabel 2 Sydj'!G97/'Tabel 1 Sydj'!E95*100,"-")) -> - | I97: =IF(OR('Tabel 1 Sydj'!G95<5,'Tabel 2 Sydj'!I97<0.5),"-",IFERROR('Tabel 2 Sydj'!I97/'Tabel 1 Sydj'!G95*100,"-")) -> - | J97: =IF(OR('Tabel 1 Sydj'!G95<5,'Tabel 2 Sydj'!J97<0.5),"-",IFERROR('Tabel 2 Sydj'!J97/'Tabel 1 Sydj'!G95*100,"-")) -> -
A98: ='[1]Tabel 2 Sydj DATA'!I95 -> Bac. Hum. | C98: =IF(OR('Tabel 1 Sydj'!C96<5,'Tabel 2 Sydj'!C98<0.5),"-",IFERROR('Tabel 2 Sydj'!C98/'Tabel 1 Sydj'!C96*100,"-")) -> 50 | D98: =IF(OR('Tabel 1 Sydj'!C96<5,'Tabel 2 Sydj'!D98<0.5),"-",IFERROR('Tabel 2 Sydj'!D98/'Tabel 1 Sydj'!C96*100,"-")) -> 43.44165159 | F98: =IF(OR('Tabel 1 Sydj'!E96<5,'Tabel 2 Sydj'!F98<0.5),"-",IFERROR('Tabel 2 Sydj'!F98/'Tabel 1 Sydj'!E96*100,"-")) -> - | G98: =IF(OR('Tabel 1 Sydj'!E96<5,'Tabel 2 Sydj'!G98<0.5),"-",IFERROR('Tabel 2 Sydj'!G98/'Tabel 1 Sydj'!E96*100,"-")) -> - | I98: =IF(OR('Tabel 1 Sydj'!G96<5,'Tabel 2 Sydj'!I98<0.5),"-",IFERROR('Tabel 2 Sydj'!I98/'Tabel 1 Sydj'!G96*100,"-")) -> 25 | J98: =IF(OR('Tabel 1 Sydj'!G96<5,'Tabel 2 Sydj'!J98<0.5),"-",IFERROR('Tabel 2 Sydj'!J98/'Tabel 1 Sydj'!G96*100,"-")) -> 21.7208258
A99: ='[1]Tabel 2 Sydj DATA'!I96 -> Bac. Nat. | C99: =IF(OR('Tabel 1 Sydj'!C97<5,'Tabel 2 Sydj'!C99<0.5),"-",IFERROR('Tabel 2 Sydj'!C99/'Tabel 1 Sydj'!C97*100,"-")) -> 20 | D99: =IF(OR('Tabel 1 Sydj'!C97<5,'Tabel 2 Sydj'!D99<0.5),"-",IFERROR('Tabel 2 Sydj'!D99/'Tabel 1 Sydj'!C97*100,"-")) -> 19.99625772 | F99: =IF(OR('Tabel 1 Sydj'!E97<5,'Tabel 2 Sydj'!F99<0.5),"-",IFERROR('Tabel 2 Sydj'!F99/'Tabel 1 Sydj'!E97*100,"-")) -> 14.28571429 | G99: =IF(OR('Tabel 1 Sydj'!E97<5,'Tabel 2 Sydj'!G99<0.5),"-",IFERROR('Tabel 2 Sydj'!G99/'Tabel 1 Sydj'!E97*100,"-")) -> 14.28304123 | I99: =IF(OR('Tabel 1 Sydj'!G97<5,'Tabel 2 Sydj'!I99<0.5),"-",IFERROR('Tabel 2 Sydj'!I99/'Tabel 1 Sydj'!G97*100,"-")) -> 16.66666667 | J99: =IF(OR('Tabel 1 Sydj'!G97<5,'Tabel 2 Sydj'!J99<0.5),"-",IFERROR('Tabel 2 Sydj'!J99/'Tabel 1 Sydj'!G97*100,"-")) -> 16.6635481
A100: ='[1]Tabel 2 Sydj DATA'!I97 -> Andre | C100: =IF(OR('Tabel 1 Sydj'!C98<5,'Tabel 2 Sydj'!C100<0.5),"-",IFERROR('Tabel 2 Sydj'!C100/'Tabel 1 Sydj'!C98*100,"-")) -> 3.333333333 | D100: =IF(OR('Tabel 1 Sydj'!C98<5,'Tabel 2 Sydj'!D100<0.5),"-",IFERROR('Tabel 2 Sydj'!D100/'Tabel 1 Sydj'!C98*100,"-")) -> 3.33270962 | F100: =IF(OR('Tabel 1 Sydj'!E98<5,'Tabel 2 Sydj'!F100<0.5),"-",IFERROR('Tabel 2 Sydj'!F100/'Tabel 1 Sydj'!E98*100,"-")) -> 4 | G100: =IF(OR('Tabel 1 Sydj'!E98<5,'Tabel 2 Sydj'!G100<0.5),"-",IFERROR('Tabel 2 Sydj'!G100/'Tabel 1 Sydj'!E98*100,"-")) -> 3.999251544 | I100: =IF(OR('Tabel 1 Sydj'!G98<5,'Tabel 2 Sydj'!I100<0.5),"-",IFERROR('Tabel 2 Sydj'!I100/'Tabel 1 Sydj'!G98*100,"-")) -> 3.636363636 | J100: =IF(OR('Tabel 1 Sydj'!G98<5,'Tabel 2 Sydj'!J100<0.5),"-",IFERROR('Tabel 2 Sydj'!J100/'Tabel 1 Sydj'!G98*100,"-")) -> 3.635683222
A102: ='[1]Tabel 2 Sydj DATA'!I99 -> Total | C102: =IF(OR('Tabel 1 Sydj'!C100<5,'Tabel 2 Sydj'!C102<0.5),"-",IFERROR('Tabel 2 Sydj'!C102/'Tabel 1 Sydj'!C100*100,"-")) -> 4.982817869 | D102: =IF(OR('Tabel 1 Sydj'!C100<5,'Tabel 2 Sydj'!D102<0.5),"-",IFERROR('Tabel 2 Sydj'!D102/'Tabel 1 Sydj'!C100*100,"-")) -> 4.276896255 | F102: =IF(OR('Tabel 1 Sydj'!E100<5,'Tabel 2 Sydj'!F102<0.5),"-",IFERROR('Tabel 2 Sydj'!F102/'Tabel 1 Sydj'!E100*100,"-")) -> 5.882352941 | G102: =IF(OR('Tabel 1 Sydj'!E100<5,'Tabel 2 Sydj'!G102<0.5),"-",IFERROR('Tabel 2 Sydj'!G102/'Tabel 1 Sydj'!E100*100,"-")) -> 4.842661233 | I102: =IF(OR('Tabel 1 Sydj'!G100<5,'Tabel 2 Sydj'!I102<0.5),"-",IFERROR('Tabel 2 Sydj'!I102/'Tabel 1 Sydj'!G100*100,"-")) -> 5.431034483 | J102: =IF(OR('Tabel 1 Sydj'!G100<5,'Tabel 2 Sydj'!J102<0.5),"-",IFERROR('Tabel 2 Sydj'!J102/'Tabel 1 Sydj'!G100*100,"-")) -> 4.558803287
A104: ='[1]Tabel 2 Sydj DATA'!I101 -> Ingeniører i alt | C104: =IF(OR('Tabel 1 Sydj'!C102<5,'Tabel 2 Sydj'!C104<0.5),"-",IFERROR('Tabel 2 Sydj'!C104/'Tabel 1 Sydj'!C102*100,"-")) -> 1.092896175 | D104: =IF(OR('Tabel 1 Sydj'!C102<5,'Tabel 2 Sydj'!D104<0.5),"-",IFERROR('Tabel 2 Sydj'!D104/'Tabel 1 Sydj'!C102*100,"-")) -> 0.7648160096 | F104: =IF(OR('Tabel 1 Sydj'!E102<5,'Tabel 2 Sydj'!F104<0.5),"-",IFERROR('Tabel 2 Sydj'!F104/'Tabel 1 Sydj'!E102*100,"-")) -> 4.255319149 | G104: =IF(OR('Tabel 1 Sydj'!E102<5,'Tabel 2 Sydj'!G104<0.5),"-",IFERROR('Tabel 2 Sydj'!G104/'Tabel 1 Sydj'!E102*100,"-")) -> 4.254522919 | I104: =IF(OR('Tabel 1 Sydj'!G102<5,'Tabel 2 Sydj'!I104<0.5),"-",IFERROR('Tabel 2 Sydj'!I104/'Tabel 1 Sydj'!G102*100,"-")) -> 1.739130435 | J104: =IF(OR('Tabel 1 Sydj'!G102<5,'Tabel 2 Sydj'!J104<0.5),"-",IFERROR('Tabel 2 Sydj'!J104/'Tabel 1 Sydj'!G102*100,"-")) -> 1.47793003
A105: ='[1]Tabel 2 Sydj DATA'!I102 -> Magistre i alt | C105: =IF(OR('Tabel 1 Sydj'!C103<5,'Tabel 2 Sydj'!C105<0.5),"-",IFERROR('Tabel 2 Sydj'!C105/'Tabel 1 Sydj'!C103*100,"-")) -> 7.52688172 | D105: =IF(OR('Tabel 1 Sydj'!C103<5,'Tabel 2 Sydj'!D105<0.5),"-",IFERROR('Tabel 2 Sydj'!D105/'Tabel 1 Sydj'!C103*100,"-")) -> 5.873638309 | F105: =IF(OR('Tabel 1 Sydj'!E103<5,'Tabel 2 Sydj'!F105<0.5),"-",IFERROR('Tabel 2 Sydj'!F105/'Tabel 1 Sydj'!E103*100,"-")) -> 6.41025641 | G105: =IF(OR('Tabel 1 Sydj'!E103<5,'Tabel 2 Sydj'!G105<0.5),"-",IFERROR('Tabel 2 Sydj'!G105/'Tabel 1 Sydj'!E103*100,"-")) -> 4.406776408 | I105: =IF(OR('Tabel 1 Sydj'!G103<5,'Tabel 2 Sydj'!I105<0.5),"-",IFERROR('Tabel 2 Sydj'!I105/'Tabel 1 Sydj'!G103*100,"-")) -> 6.827309237 | J105: =IF(OR('Tabel 1 Sydj'!G103<5,'Tabel 2 Sydj'!J105<0.5),"-",IFERROR('Tabel 2 Sydj'!J105/'Tabel 1 Sydj'!G103*100,"-")) -> 4.954640492
A106: ='[1]Tabel 2 Sydj DATA'!I103 -> DJØF'ere i alt | C106: =IF(OR('Tabel 1 Sydj'!C104<5,'Tabel 2 Sydj'!C106<0.5),"-",IFERROR('Tabel 2 Sydj'!C106/'Tabel 1 Sydj'!C104*100,"-")) -> 5.172413793 | D106: =IF(OR('Tabel 1 Sydj'!C104<5,'Tabel 2 Sydj'!D106<0.5),"-",IFERROR('Tabel 2 Sydj'!D106/'Tabel 1 Sydj'!C104*100,"-")) -> 4.928950419 | F106: =IF(OR('Tabel 1 Sydj'!E104<5,'Tabel 2 Sydj'!F106<0.5),"-",IFERROR('Tabel 2 Sydj'!F106/'Tabel 1 Sydj'!E104*100,"-")) -> 5.839416058 | G106: =IF(OR('Tabel 1 Sydj'!E104<5,'Tabel 2 Sydj'!G106<0.5),"-",IFERROR('Tabel 2 Sydj'!G106/'Tabel 1 Sydj'!E104*100,"-")) -> 5.245112612 | I106: =IF(OR('Tabel 1 Sydj'!G104<5,'Tabel 2 Sydj'!I106<0.5),"-",IFERROR('Tabel 2 Sydj'!I106/'Tabel 1 Sydj'!G104*100,"-")) -> 5.533596838 | J106: =IF(OR('Tabel 1 Sydj'!G104<5,'Tabel 2 Sydj'!J106<0.5),"-",IFERROR('Tabel 2 Sydj'!J106/'Tabel 1 Sydj'!G104*100,"-")) -> 5.100152871
A111: ='[1]Tabel 2 Sydj DATA'!I106 -> Billund
C113: Mænd | F113: Kvinder | I113: I alt
C114: Ledigheds- berørte | D114: Gns. brutto- ledighed | F114: Ledigheds- berørte | G114: Gns. brutto- ledighed | I114: Ledigheds- berørte | J114: Gns. brutto- ledighed
A117: ='[1]Tabel 2 Sydj DATA'!I112 -> Civ. ing. | C117: =IF(OR('Tabel 1 Sydj'!C115<5,'Tabel 2 Sydj'!C117<0.5),"-",IFERROR('Tabel 2 Sydj'!C117/'Tabel 1 Sydj'!C115*100,"-")) -> - | D117: =IF(OR('Tabel 1 Sydj'!C115<5,'Tabel 2 Sydj'!D117<0.5),"-",IFERROR('Tabel 2 Sydj'!D117/'Tabel 1 Sydj'!C115*100,"-")) -> - | F117: =IF(OR('Tabel 1 Sydj'!E115<5,'Tabel 2 Sydj'!F117<0.5),"-",IFERROR('Tabel 2 Sydj'!F117/'Tabel 1 Sydj'!E115*100,"-")) -> 20 | G117: =IF(OR('Tabel 1 Sydj'!E115<5,'Tabel 2 Sydj'!G117<0.5),"-",IFERROR('Tabel 2 Sydj'!G117/'Tabel 1 Sydj'!E115*100,"-")) -> 19.99625772 | I117: =IF(OR('Tabel 1 Sydj'!G115<5,'Tabel 2 Sydj'!I117<0.5),"-",IFERROR('Tabel 2 Sydj'!I117/'Tabel 1 Sydj'!G115*100,"-")) -> 4.87804878 | J117: =IF(OR('Tabel 1 Sydj'!G115<5,'Tabel 2 Sydj'!J117<0.5),"-",IFERROR('Tabel 2 Sydj'!J117/'Tabel 1 Sydj'!G115*100,"-")) -> 4.877136029
A118: ='[1]Tabel 2 Sydj DATA'!I113 -> Diplom ing. | C118: =IF(OR('Tabel 1 Sydj'!C116<5,'Tabel 2 Sydj'!C118<0.5),"-",IFERROR('Tabel 2 Sydj'!C118/'Tabel 1 Sydj'!C116*100,"-")) -> 4.615384615 | D118: =IF(OR('Tabel 1 Sydj'!C116<5,'Tabel 2 Sydj'!D118<0.5),"-",IFERROR('Tabel 2 Sydj'!D118/'Tabel 1 Sydj'!C116*100,"-")) -> 3.159829007 | F118: =IF(OR('Tabel 1 Sydj'!E116<5,'Tabel 2 Sydj'!F118<0.5),"-",IFERROR('Tabel 2 Sydj'!F118/'Tabel 1 Sydj'!E116*100,"-")) -> 4.347826087 | G118: =IF(OR('Tabel 1 Sydj'!E116<5,'Tabel 2 Sydj'!G118<0.5),"-",IFERROR('Tabel 2 Sydj'!G118/'Tabel 1 Sydj'!E116*100,"-")) -> 4.347012547 | I118: =IF(OR('Tabel 1 Sydj'!G116<5,'Tabel 2 Sydj'!I118<0.5),"-",IFERROR('Tabel 2 Sydj'!I118/'Tabel 1 Sydj'!G116*100,"-")) -> 4.545454545 | J118: =IF(OR('Tabel 1 Sydj'!G116<5,'Tabel 2 Sydj'!J118<0.5),"-",IFERROR('Tabel 2 Sydj'!J118/'Tabel 1 Sydj'!G116*100,"-")) -> 3.470115614
A119: ='[1]Tabel 2 Sydj DATA'!I114 -> Cand. Scient. Tek. | C119: =IF(OR('Tabel 1 Sydj'!C117<5,'Tabel 2 Sydj'!C119<0.5),"-",IFERROR('Tabel 2 Sydj'!C119/'Tabel 1 Sydj'!C117*100,"-")) -> 7.692307692 | D119: =IF(OR('Tabel 1 Sydj'!C117<5,'Tabel 2 Sydj'!D119<0.5),"-",IFERROR('Tabel 2 Sydj'!D119/'Tabel 1 Sydj'!C117*100,"-")) -> - | F119: =IF(OR('Tabel 1 Sydj'!E117<5,'Tabel 2 Sydj'!F119<0.5),"-",IFERROR('Tabel 2 Sydj'!F119/'Tabel 1 Sydj'!E117*100,"-")) -> - | G119: =IF(OR('Tabel 1 Sydj'!E117<5,'Tabel 2 Sydj'!G119<0.5),"-",IFERROR('Tabel 2 Sydj'!G119/'Tabel 1 Sydj'!E117*100,"-")) -> - | I119: =IF(OR('Tabel 1 Sydj'!G117<5,'Tabel 2 Sydj'!I119<0.5),"-",IFERROR('Tabel 2 Sydj'!I119/'Tabel 1 Sydj'!G117*100,"-")) -> 4.761904762 | J119: =IF(OR('Tabel 1 Sydj'!G117<5,'Tabel 2 Sydj'!J119<0.5),"-",IFERROR('Tabel 2 Sydj'!J119/'Tabel 1 Sydj'!G117*100,"-")) -> -
A120: ='[1]Tabel 2 Sydj DATA'!I115 -> MA. Hum. | C120: =IF(OR('Tabel 1 Sydj'!C118<5,'Tabel 2 Sydj'!C120<0.5),"-",IFERROR('Tabel 2 Sydj'!C120/'Tabel 1 Sydj'!C118*100,"-")) -> 20 | D120: =IF(OR('Tabel 1 Sydj'!C118<5,'Tabel 2 Sydj'!D120<0.5),"-",IFERROR('Tabel 2 Sydj'!D120/'Tabel 1 Sydj'!C118*100,"-")) -> 13.99613298 | F120: =IF(OR('Tabel 1 Sydj'!E118<5,'Tabel 2 Sydj'!F120<0.5),"-",IFERROR('Tabel 2 Sydj'!F120/'Tabel 1 Sydj'!E118*100,"-")) -> 10 | G120: =IF(OR('Tabel 1 Sydj'!E118<5,'Tabel 2 Sydj'!G120<0.5),"-",IFERROR('Tabel 2 Sydj'!G120/'Tabel 1 Sydj'!E118*100,"-")) -> 9.312043909 | I120: =IF(OR('Tabel 1 Sydj'!G118<5,'Tabel 2 Sydj'!I120<0.5),"-",IFERROR('Tabel 2 Sydj'!I120/'Tabel 1 Sydj'!G118*100,"-")) -> 13.33333333 | J120: =IF(OR('Tabel 1 Sydj'!G118<5,'Tabel 2 Sydj'!J120<0.5),"-",IFERROR('Tabel 2 Sydj'!J120/'Tabel 1 Sydj'!G118*100,"-")) -> 10.87340693
A121: ='[1]Tabel 2 Sydj DATA'!I116 -> MA. Nat. | C121: =IF(OR('Tabel 1 Sydj'!C119<5,'Tabel 2 Sydj'!C121<0.5),"-",IFERROR('Tabel 2 Sydj'!C121/'Tabel 1 Sydj'!C119*100,"-")) -> - | D121: =IF(OR('Tabel 1 Sydj'!C119<5,'Tabel 2 Sydj'!D121<0.5),"-",IFERROR('Tabel 2 Sydj'!D121/'Tabel 1 Sydj'!C119*100,"-")) -> - | F121: =IF(OR('Tabel 1 Sydj'!E119<5,'Tabel 2 Sydj'!F121<0.5),"-",IFERROR('Tabel 2 Sydj'!F121/'Tabel 1 Sydj'!E119*100,"-")) -> 8.333333333 | G121: =IF(OR('Tabel 1 Sydj'!E119<5,'Tabel 2 Sydj'!G121<0.5),"-",IFERROR('Tabel 2 Sydj'!G121/'Tabel 1 Sydj'!E119*100,"-")) -> 8.331774049 | I121: =IF(OR('Tabel 1 Sydj'!G119<5,'Tabel 2 Sydj'!I121<0.5),"-",IFERROR('Tabel 2 Sydj'!I121/'Tabel 1 Sydj'!G119*100,"-")) -> 5.555555556 | J121: =IF(OR('Tabel 1 Sydj'!G119<5,'Tabel 2 Sydj'!J121<0.5),"-",IFERROR('Tabel 2 Sydj'!J121/'Tabel 1 Sydj'!G119*100,"-")) -> 5.554516033
A122: ='[1]Tabel 2 Sydj DATA'!I117 -> MA. Ph.d. | C122: =IF(OR('Tabel 1 Sydj'!C120<5,'Tabel 2 Sydj'!C122<0.5),"-",IFERROR('Tabel 2 Sydj'!C122/'Tabel 1 Sydj'!C120*100,"-")) -> - | D122: =IF(OR('Tabel 1 Sydj'!C120<5,'Tabel 2 Sydj'!D122<0.5),"-",IFERROR('Tabel 2 Sydj'!D122/'Tabel 1 Sydj'!C120*100,"-")) -> - | F122: =IF(OR('Tabel 1 Sydj'!E120<5,'Tabel 2 Sydj'!F122<0.5),"-",IFERROR('Tabel 2 Sydj'!F122/'Tabel 1 Sydj'!E120*100,"-")) -> - | G122: =IF(OR('Tabel 1 Sydj'!E120<5,'Tabel 2 Sydj'!G122<0.5),"-",IFERROR('Tabel 2 Sydj'!G122/'Tabel 1 Sydj'!E120*100,"-")) -> - | I122: =IF(OR('Tabel 1 Sydj'!G120<5,'Tabel 2 Sydj'!I122<0.5),"-",IFERROR('Tabel 2 Sydj'!I122/'Tabel 1 Sydj'!G120*100,"-")) -> - | J122: =IF(OR('Tabel 1 Sydj'!G120<5,'Tabel 2 Sydj'!J122<0.5),"-",IFERROR('Tabel 2 Sydj'!J122/'Tabel 1 Sydj'!G120*100,"-")) -> -
A123: ='[1]Tabel 2 Sydj DATA'!I118 -> MA. Samf. | C123: =IF(OR('Tabel 1 Sydj'!C121<5,'Tabel 2 Sydj'!C123<0.5),"-",IFERROR('Tabel 2 Sydj'!C123/'Tabel 1 Sydj'!C121*100,"-")) -> - | D123: =IF(OR('Tabel 1 Sydj'!C121<5,'Tabel 2 Sydj'!D123<0.5),"-",IFERROR('Tabel 2 Sydj'!D123/'Tabel 1 Sydj'!C121*100,"-")) -> - | F123: =IF(OR('Tabel 1 Sydj'!E121<5,'Tabel 2 Sydj'!F123<0.5),"-",IFERROR('Tabel 2 Sydj'!F123/'Tabel 1 Sydj'!E121*100,"-")) -> - | G123: =IF(OR('Tabel 1 Sydj'!E121<5,'Tabel 2 Sydj'!G123<0.5),"-",IFERROR('Tabel 2 Sydj'!G123/'Tabel 1 Sydj'!E121*100,"-")) -> - | I123: =IF(OR('Tabel 1 Sydj'!G121<5,'Tabel 2 Sydj'!I123<0.5),"-",IFERROR('Tabel 2 Sydj'!I123/'Tabel 1 Sydj'!G121*100,"-")) -> - | J123: =IF(OR('Tabel 1 Sydj'!G121<5,'Tabel 2 Sydj'!J123<0.5),"-",IFERROR('Tabel 2 Sydj'!J123/'Tabel 1 Sydj'!G121*100,"-")) -> -
A124: ='[1]Tabel 2 Sydj DATA'!I119 -> Øvrige Mag. | C124: =IF(OR('Tabel 1 Sydj'!C122<5,'Tabel 2 Sydj'!C124<0.5),"-",IFERROR('Tabel 2 Sydj'!C124/'Tabel 1 Sydj'!C122*100,"-")) -> - | D124: =IF(OR('Tabel 1 Sydj'!C122<5,'Tabel 2 Sydj'!D124<0.5),"-",IFERROR('Tabel 2 Sydj'!D124/'Tabel 1 Sydj'!C122*100,"-")) -> - | F124: =IF(OR('Tabel 1 Sydj'!E122<5,'Tabel 2 Sydj'!F124<0.5),"-",IFERROR('Tabel 2 Sydj'!F124/'Tabel 1 Sydj'!E122*100,"-")) -> - | G124: =IF(OR('Tabel 1 Sydj'!E122<5,'Tabel 2 Sydj'!G124<0.5),"-",IFERROR('Tabel 2 Sydj'!G124/'Tabel 1 Sydj'!E122*100,"-")) -> - | I124: =IF(OR('Tabel 1 Sydj'!G122<5,'Tabel 2 Sydj'!I124<0.5),"-",IFERROR('Tabel 2 Sydj'!I124/'Tabel 1 Sydj'!G122*100,"-")) -> 20 | J124: =IF(OR('Tabel 1 Sydj'!G122<5,'Tabel 2 Sydj'!J124<0.5),"-",IFERROR('Tabel 2 Sydj'!J124/'Tabel 1 Sydj'!G122*100,"-")) -> 19.99625772
A125: ='[1]Tabel 2 Sydj DATA'!I120 -> Agronom | C125: =IF(OR('Tabel 1 Sydj'!C123<5,'Tabel 2 Sydj'!C125<0.5),"-",IFERROR('Tabel 2 Sydj'!C125/'Tabel 1 Sydj'!C123*100,"-")) -> - | D125: =IF(OR('Tabel 1 Sydj'!C123<5,'Tabel 2 Sydj'!D125<0.5),"-",IFERROR('Tabel 2 Sydj'!D125/'Tabel 1 Sydj'!C123*100,"-")) -> - | F125: =IF(OR('Tabel 1 Sydj'!E123<5,'Tabel 2 Sydj'!F125<0.5),"-",IFERROR('Tabel 2 Sydj'!F125/'Tabel 1 Sydj'!E123*100,"-")) -> - | G125: =IF(OR('Tabel 1 Sydj'!E123<5,'Tabel 2 Sydj'!G125<0.5),"-",IFERROR('Tabel 2 Sydj'!G125/'Tabel 1 Sydj'!E123*100,"-")) -> - | I125: =IF(OR('Tabel 1 Sydj'!G123<5,'Tabel 2 Sydj'!I125<0.5),"-",IFERROR('Tabel 2 Sydj'!I125/'Tabel 1 Sydj'!G123*100,"-")) -> - | J125: =IF(OR('Tabel 1 Sydj'!G123<5,'Tabel 2 Sydj'!J125<0.5),"-",IFERROR('Tabel 2 Sydj'!J125/'Tabel 1 Sydj'!G123*100,"-")) -> -
A126: ='[1]Tabel 2 Sydj DATA'!I121 -> Landsk. Arkt. | C126: =IF(OR('Tabel 1 Sydj'!C124<5,'Tabel 2 Sydj'!C126<0.5),"-",IFERROR('Tabel 2 Sydj'!C126/'Tabel 1 Sydj'!C124*100,"-")) -> - | D126: =IF(OR('Tabel 1 Sydj'!C124<5,'Tabel 2 Sydj'!D126<0.5),"-",IFERROR('Tabel 2 Sydj'!D126/'Tabel 1 Sydj'!C124*100,"-")) -> - | F126: =IF(OR('Tabel 1 Sydj'!E124<5,'Tabel 2 Sydj'!F126<0.5),"-",IFERROR('Tabel 2 Sydj'!F126/'Tabel 1 Sydj'!E124*100,"-")) -> - | G126: =IF(OR('Tabel 1 Sydj'!E124<5,'Tabel 2 Sydj'!G126<0.5),"-",IFERROR('Tabel 2 Sydj'!G126/'Tabel 1 Sydj'!E124*100,"-")) -> - | I126: =IF(OR('Tabel 1 Sydj'!G124<5,'Tabel 2 Sydj'!I126<0.5),"-",IFERROR('Tabel 2 Sydj'!I126/'Tabel 1 Sydj'!G124*100,"-")) -> - | J126: =IF(OR('Tabel 1 Sydj'!G124<5,'Tabel 2 Sydj'!J126<0.5),"-",IFERROR('Tabel 2 Sydj'!J126/'Tabel 1 Sydj'!G124*100,"-")) -> -
A127: ='[1]Tabel 2 Sydj DATA'!I122 -> Hortonom | C127: =IF(OR('Tabel 1 Sydj'!C125<5,'Tabel 2 Sydj'!C127<0.5),"-",IFERROR('Tabel 2 Sydj'!C127/'Tabel 1 Sydj'!C125*100,"-")) -> - | D127: =IF(OR('Tabel 1 Sydj'!C125<5,'Tabel 2 Sydj'!D127<0.5),"-",IFERROR('Tabel 2 Sydj'!D127/'Tabel 1 Sydj'!C125*100,"-")) -> - | F127: =IF(OR('Tabel 1 Sydj'!E125<5,'Tabel 2 Sydj'!F127<0.5),"-",IFERROR('Tabel 2 Sydj'!F127/'Tabel 1 Sydj'!E125*100,"-")) -> - | G127: =IF(OR('Tabel 1 Sydj'!E125<5,'Tabel 2 Sydj'!G127<0.5),"-",IFERROR('Tabel 2 Sydj'!G127/'Tabel 1 Sydj'!E125*100,"-")) -> - | I127: =IF(OR('Tabel 1 Sydj'!G125<5,'Tabel 2 Sydj'!I127<0.5),"-",IFERROR('Tabel 2 Sydj'!I127/'Tabel 1 Sydj'!G125*100,"-")) -> - | J127: =IF(OR('Tabel 1 Sydj'!G125<5,'Tabel 2 Sydj'!J127<0.5),"-",IFERROR('Tabel 2 Sydj'!J127/'Tabel 1 Sydj'!G125*100,"-")) -> -
A128: ='[1]Tabel 2 Sydj DATA'!I123 -> Forstkand. | C128: =IF(OR('Tabel 1 Sydj'!C126<5,'Tabel 2 Sydj'!C128<0.5),"-",IFERROR('Tabel 2 Sydj'!C128/'Tabel 1 Sydj'!C126*100,"-")) -> - | D128: =IF(OR('Tabel 1 Sydj'!C126<5,'Tabel 2 Sydj'!D128<0.5),"-",IFERROR('Tabel 2 Sydj'!D128/'Tabel 1 Sydj'!C126*100,"-")) -> - | F128: =IF(OR('Tabel 1 Sydj'!E126<5,'Tabel 2 Sydj'!F128<0.5),"-",IFERROR('Tabel 2 Sydj'!F128/'Tabel 1 Sydj'!E126*100,"-")) -> - | G128: =IF(OR('Tabel 1 Sydj'!E126<5,'Tabel 2 Sydj'!G128<0.5),"-",IFERROR('Tabel 2 Sydj'!G128/'Tabel 1 Sydj'!E126*100,"-")) -> - | I128: =IF(OR('Tabel 1 Sydj'!G126<5,'Tabel 2 Sydj'!I128<0.5),"-",IFERROR('Tabel 2 Sydj'!I128/'Tabel 1 Sydj'!G126*100,"-")) -> - | J128: =IF(OR('Tabel 1 Sydj'!G126<5,'Tabel 2 Sydj'!J128<0.5),"-",IFERROR('Tabel 2 Sydj'!J128/'Tabel 1 Sydj'!G126*100,"-")) -> -
A129: ='[1]Tabel 2 Sydj DATA'!I124 -> Jordbrugsakad. | C129: =IF(OR('Tabel 1 Sydj'!C127<5,'Tabel 2 Sydj'!C129<0.5),"-",IFERROR('Tabel 2 Sydj'!C129/'Tabel 1 Sydj'!C127*100,"-")) -> - | D129: =IF(OR('Tabel 1 Sydj'!C127<5,'Tabel 2 Sydj'!D129<0.5),"-",IFERROR('Tabel 2 Sydj'!D129/'Tabel 1 Sydj'!C127*100,"-")) -> - | F129: =IF(OR('Tabel 1 Sydj'!E127<5,'Tabel 2 Sydj'!F129<0.5),"-",IFERROR('Tabel 2 Sydj'!F129/'Tabel 1 Sydj'!E127*100,"-")) -> - | G129: =IF(OR('Tabel 1 Sydj'!E127<5,'Tabel 2 Sydj'!G129<0.5),"-",IFERROR('Tabel 2 Sydj'!G129/'Tabel 1 Sydj'!E127*100,"-")) -> - | I129: =IF(OR('Tabel 1 Sydj'!G127<5,'Tabel 2 Sydj'!I129<0.5),"-",IFERROR('Tabel 2 Sydj'!I129/'Tabel 1 Sydj'!G127*100,"-")) -> - | J129: =IF(OR('Tabel 1 Sydj'!G127<5,'Tabel 2 Sydj'!J129<0.5),"-",IFERROR('Tabel 2 Sydj'!J129/'Tabel 1 Sydj'!G127*100,"-")) -> -
A130: ='[1]Tabel 2 Sydj DATA'!I125 -> Mejeriing. | C130: =IF(OR('Tabel 1 Sydj'!C128<5,'Tabel 2 Sydj'!C130<0.5),"-",IFERROR('Tabel 2 Sydj'!C130/'Tabel 1 Sydj'!C128*100,"-")) -> - | D130: =IF(OR('Tabel 1 Sydj'!C128<5,'Tabel 2 Sydj'!D130<0.5),"-",IFERROR('Tabel 2 Sydj'!D130/'Tabel 1 Sydj'!C128*100,"-")) -> - | F130: =IF(OR('Tabel 1 Sydj'!E128<5,'Tabel 2 Sydj'!F130<0.5),"-",IFERROR('Tabel 2 Sydj'!F130/'Tabel 1 Sydj'!E128*100,"-")) -> - | G130: =IF(OR('Tabel 1 Sydj'!E128<5,'Tabel 2 Sydj'!G130<0.5),"-",IFERROR('Tabel 2 Sydj'!G130/'Tabel 1 Sydj'!E128*100,"-")) -> - | I130: =IF(OR('Tabel 1 Sydj'!G128<5,'Tabel 2 Sydj'!I130<0.5),"-",IFERROR('Tabel 2 Sydj'!I130/'Tabel 1 Sydj'!G128*100,"-")) -> - | J130: =IF(OR('Tabel 1 Sydj'!G128<5,'Tabel 2 Sydj'!J130<0.5),"-",IFERROR('Tabel 2 Sydj'!J130/'Tabel 1 Sydj'!G128*100,"-")) -> -
A131: ='[1]Tabel 2 Sydj DATA'!I126 -> Levn.m.kand. | C131: =IF(OR('Tabel 1 Sydj'!C129<5,'Tabel 2 Sydj'!C131<0.5),"-",IFERROR('Tabel 2 Sydj'!C131/'Tabel 1 Sydj'!C129*100,"-")) -> - | D131: =IF(OR('Tabel 1 Sydj'!C129<5,'Tabel 2 Sydj'!D131<0.5),"-",IFERROR('Tabel 2 Sydj'!D131/'Tabel 1 Sydj'!C129*100,"-")) -> - | F131: =IF(OR('Tabel 1 Sydj'!E129<5,'Tabel 2 Sydj'!F131<0.5),"-",IFERROR('Tabel 2 Sydj'!F131/'Tabel 1 Sydj'!E129*100,"-")) -> - | G131: =IF(OR('Tabel 1 Sydj'!E129<5,'Tabel 2 Sydj'!G131<0.5),"-",IFERROR('Tabel 2 Sydj'!G131/'Tabel 1 Sydj'!E129*100,"-")) -> - | I131: =IF(OR('Tabel 1 Sydj'!G129<5,'Tabel 2 Sydj'!I131<0.5),"-",IFERROR('Tabel 2 Sydj'!I131/'Tabel 1 Sydj'!G129*100,"-")) -> - | J131: =IF(OR('Tabel 1 Sydj'!G129<5,'Tabel 2 Sydj'!J131<0.5),"-",IFERROR('Tabel 2 Sydj'!J131/'Tabel 1 Sydj'!G129*100,"-")) -> -
A132: ='[1]Tabel 2 Sydj DATA'!I127 -> Dyrlæge | C132: =IF(OR('Tabel 1 Sydj'!C130<5,'Tabel 2 Sydj'!C132<0.5),"-",IFERROR('Tabel 2 Sydj'!C132/'Tabel 1 Sydj'!C130*100,"-")) -> - | D132: =IF(OR('Tabel 1 Sydj'!C130<5,'Tabel 2 Sydj'!D132<0.5),"-",IFERROR('Tabel 2 Sydj'!D132/'Tabel 1 Sydj'!C130*100,"-")) -> - | F132: =IF(OR('Tabel 1 Sydj'!E130<5,'Tabel 2 Sydj'!F132<0.5),"-",IFERROR('Tabel 2 Sydj'!F132/'Tabel 1 Sydj'!E130*100,"-")) -> - | G132: =IF(OR('Tabel 1 Sydj'!E130<5,'Tabel 2 Sydj'!G132<0.5),"-",IFERROR('Tabel 2 Sydj'!G132/'Tabel 1 Sydj'!E130*100,"-")) -> - | I132: =IF(OR('Tabel 1 Sydj'!G130<5,'Tabel 2 Sydj'!I132<0.5),"-",IFERROR('Tabel 2 Sydj'!I132/'Tabel 1 Sydj'!G130*100,"-")) -> - | J132: =IF(OR('Tabel 1 Sydj'!G130<5,'Tabel 2 Sydj'!J132<0.5),"-",IFERROR('Tabel 2 Sydj'!J132/'Tabel 1 Sydj'!G130*100,"-")) -> -
A133: ='[1]Tabel 2 Sydj DATA'!I128 -> Farmaceut | C133: =IF(OR('Tabel 1 Sydj'!C131<5,'Tabel 2 Sydj'!C133<0.5),"-",IFERROR('Tabel 2 Sydj'!C133/'Tabel 1 Sydj'!C131*100,"-")) -> - | D133: =IF(OR('Tabel 1 Sydj'!C131<5,'Tabel 2 Sydj'!D133<0.5),"-",IFERROR('Tabel 2 Sydj'!D133/'Tabel 1 Sydj'!C131*100,"-")) -> - | F133: =IF(OR('Tabel 1 Sydj'!E131<5,'Tabel 2 Sydj'!F133<0.5),"-",IFERROR('Tabel 2 Sydj'!F133/'Tabel 1 Sydj'!E131*100,"-")) -> - | G133: =IF(OR('Tabel 1 Sydj'!E131<5,'Tabel 2 Sydj'!G133<0.5),"-",IFERROR('Tabel 2 Sydj'!G133/'Tabel 1 Sydj'!E131*100,"-")) -> - | I133: =IF(OR('Tabel 1 Sydj'!G131<5,'Tabel 2 Sydj'!I133<0.5),"-",IFERROR('Tabel 2 Sydj'!I133/'Tabel 1 Sydj'!G131*100,"-")) -> - | J133: =IF(OR('Tabel 1 Sydj'!G131<5,'Tabel 2 Sydj'!J133<0.5),"-",IFERROR('Tabel 2 Sydj'!J133/'Tabel 1 Sydj'!G131*100,"-")) -> -
A134: ='[1]Tabel 2 Sydj DATA'!I129 -> Læge | C134: =IF(OR('Tabel 1 Sydj'!C132<5,'Tabel 2 Sydj'!C134<0.5),"-",IFERROR('Tabel 2 Sydj'!C134/'Tabel 1 Sydj'!C132*100,"-")) -> - | D134: =IF(OR('Tabel 1 Sydj'!C132<5,'Tabel 2 Sydj'!D134<0.5),"-",IFERROR('Tabel 2 Sydj'!D134/'Tabel 1 Sydj'!C132*100,"-")) -> - | F134: =IF(OR('Tabel 1 Sydj'!E132<5,'Tabel 2 Sydj'!F134<0.5),"-",IFERROR('Tabel 2 Sydj'!F134/'Tabel 1 Sydj'!E132*100,"-")) -> - | G134: =IF(OR('Tabel 1 Sydj'!E132<5,'Tabel 2 Sydj'!G134<0.5),"-",IFERROR('Tabel 2 Sydj'!G134/'Tabel 1 Sydj'!E132*100,"-")) -> - | I134: =IF(OR('Tabel 1 Sydj'!G132<5,'Tabel 2 Sydj'!I134<0.5),"-",IFERROR('Tabel 2 Sydj'!I134/'Tabel 1 Sydj'!G132*100,"-")) -> - | J134: =IF(OR('Tabel 1 Sydj'!G132<5,'Tabel 2 Sydj'!J134<0.5),"-",IFERROR('Tabel 2 Sydj'!J134/'Tabel 1 Sydj'!G132*100,"-")) -> -
A135: ='[1]Tabel 2 Sydj DATA'!I130 -> Tandlæge | C135: =IF(OR('Tabel 1 Sydj'!C133<5,'Tabel 2 Sydj'!C135<0.5),"-",IFERROR('Tabel 2 Sydj'!C135/'Tabel 1 Sydj'!C133*100,"-")) -> - | D135: =IF(OR('Tabel 1 Sydj'!C133<5,'Tabel 2 Sydj'!D135<0.5),"-",IFERROR('Tabel 2 Sydj'!D135/'Tabel 1 Sydj'!C133*100,"-")) -> - | F135: =IF(OR('Tabel 1 Sydj'!E133<5,'Tabel 2 Sydj'!F135<0.5),"-",IFERROR('Tabel 2 Sydj'!F135/'Tabel 1 Sydj'!E133*100,"-")) -> - | G135: =IF(OR('Tabel 1 Sydj'!E133<5,'Tabel 2 Sydj'!G135<0.5),"-",IFERROR('Tabel 2 Sydj'!G135/'Tabel 1 Sydj'!E133*100,"-")) -> - | I135: =IF(OR('Tabel 1 Sydj'!G133<5,'Tabel 2 Sydj'!I135<0.5),"-",IFERROR('Tabel 2 Sydj'!I135/'Tabel 1 Sydj'!G133*100,"-")) -> - | J135: =IF(OR('Tabel 1 Sydj'!G133<5,'Tabel 2 Sydj'!J135<0.5),"-",IFERROR('Tabel 2 Sydj'!J135/'Tabel 1 Sydj'!G133*100,"-")) -> -
A136: ='[1]Tabel 2 Sydj DATA'!I131 -> Arkitekt | C136: =IF(OR('Tabel 1 Sydj'!C134<5,'Tabel 2 Sydj'!C136<0.5),"-",IFERROR('Tabel 2 Sydj'!C136/'Tabel 1 Sydj'!C134*100,"-")) -> - | D136: =IF(OR('Tabel 1 Sydj'!C134<5,'Tabel 2 Sydj'!D136<0.5),"-",IFERROR('Tabel 2 Sydj'!D136/'Tabel 1 Sydj'!C134*100,"-")) -> - | F136: =IF(OR('Tabel 1 Sydj'!E134<5,'Tabel 2 Sydj'!F136<0.5),"-",IFERROR('Tabel 2 Sydj'!F136/'Tabel 1 Sydj'!E134*100,"-")) -> - | G136: =IF(OR('Tabel 1 Sydj'!E134<5,'Tabel 2 Sydj'!G136<0.5),"-",IFERROR('Tabel 2 Sydj'!G136/'Tabel 1 Sydj'!E134*100,"-")) -> - | I136: =IF(OR('Tabel 1 Sydj'!G134<5,'Tabel 2 Sydj'!I136<0.5),"-",IFERROR('Tabel 2 Sydj'!I136/'Tabel 1 Sydj'!G134*100,"-")) -> - | J136: =IF(OR('Tabel 1 Sydj'!G134<5,'Tabel 2 Sydj'!J136<0.5),"-",IFERROR('Tabel 2 Sydj'!J136/'Tabel 1 Sydj'!G134*100,"-")) -> -
A137: ='[1]Tabel 2 Sydj DATA'!I132 -> Landinspek. | C137: =IF(OR('Tabel 1 Sydj'!C135<5,'Tabel 2 Sydj'!C137<0.5),"-",IFERROR('Tabel 2 Sydj'!C137/'Tabel 1 Sydj'!C135*100,"-")) -> - | D137: =IF(OR('Tabel 1 Sydj'!C135<5,'Tabel 2 Sydj'!D137<0.5),"-",IFERROR('Tabel 2 Sydj'!D137/'Tabel 1 Sydj'!C135*100,"-")) -> - | F137: =IF(OR('Tabel 1 Sydj'!E135<5,'Tabel 2 Sydj'!F137<0.5),"-",IFERROR('Tabel 2 Sydj'!F137/'Tabel 1 Sydj'!E135*100,"-")) -> - | G137: =IF(OR('Tabel 1 Sydj'!E135<5,'Tabel 2 Sydj'!G137<0.5),"-",IFERROR('Tabel 2 Sydj'!G137/'Tabel 1 Sydj'!E135*100,"-")) -> - | I137: =IF(OR('Tabel 1 Sydj'!G135<5,'Tabel 2 Sydj'!I137<0.5),"-",IFERROR('Tabel 2 Sydj'!I137/'Tabel 1 Sydj'!G135*100,"-")) -> - | J137: =IF(OR('Tabel 1 Sydj'!G135<5,'Tabel 2 Sydj'!J137<0.5),"-",IFERROR('Tabel 2 Sydj'!J137/'Tabel 1 Sydj'!G135*100,"-")) -> -
A138: ='[1]Tabel 2 Sydj DATA'!I133 -> Bibliotekar | C138: =IF(OR('Tabel 1 Sydj'!C136<5,'Tabel 2 Sydj'!C138<0.5),"-",IFERROR('Tabel 2 Sydj'!C138/'Tabel 1 Sydj'!C136*100,"-")) -> - | D138: =IF(OR('Tabel 1 Sydj'!C136<5,'Tabel 2 Sydj'!D138<0.5),"-",IFERROR('Tabel 2 Sydj'!D138/'Tabel 1 Sydj'!C136*100,"-")) -> - | F138: =IF(OR('Tabel 1 Sydj'!E136<5,'Tabel 2 Sydj'!F138<0.5),"-",IFERROR('Tabel 2 Sydj'!F138/'Tabel 1 Sydj'!E136*100,"-")) -> - | G138: =IF(OR('Tabel 1 Sydj'!E136<5,'Tabel 2 Sydj'!G138<0.5),"-",IFERROR('Tabel 2 Sydj'!G138/'Tabel 1 Sydj'!E136*100,"-")) -> - | I138: =IF(OR('Tabel 1 Sydj'!G136<5,'Tabel 2 Sydj'!I138<0.5),"-",IFERROR('Tabel 2 Sydj'!I138/'Tabel 1 Sydj'!G136*100,"-")) -> - | J138: =IF(OR('Tabel 1 Sydj'!G136<5,'Tabel 2 Sydj'!J138<0.5),"-",IFERROR('Tabel 2 Sydj'!J138/'Tabel 1 Sydj'!G136*100,"-")) -> -
A139: ='[1]Tabel 2 Sydj DATA'!I134 -> Musikudd. | C139: =IF(OR('Tabel 1 Sydj'!C137<5,'Tabel 2 Sydj'!C139<0.5),"-",IFERROR('Tabel 2 Sydj'!C139/'Tabel 1 Sydj'!C137*100,"-")) -> - | D139: =IF(OR('Tabel 1 Sydj'!C137<5,'Tabel 2 Sydj'!D139<0.5),"-",IFERROR('Tabel 2 Sydj'!D139/'Tabel 1 Sydj'!C137*100,"-")) -> - | F139: =IF(OR('Tabel 1 Sydj'!E137<5,'Tabel 2 Sydj'!F139<0.5),"-",IFERROR('Tabel 2 Sydj'!F139/'Tabel 1 Sydj'!E137*100,"-")) -> - | G139: =IF(OR('Tabel 1 Sydj'!E137<5,'Tabel 2 Sydj'!G139<0.5),"-",IFERROR('Tabel 2 Sydj'!G139/'Tabel 1 Sydj'!E137*100,"-")) -> - | I139: =IF(OR('Tabel 1 Sydj'!G137<5,'Tabel 2 Sydj'!I139<0.5),"-",IFERROR('Tabel 2 Sydj'!I139/'Tabel 1 Sydj'!G137*100,"-")) -> - | J139: =IF(OR('Tabel 1 Sydj'!G137<5,'Tabel 2 Sydj'!J139<0.5),"-",IFERROR('Tabel 2 Sydj'!J139/'Tabel 1 Sydj'!G137*100,"-")) -> -
A140: ='[1]Tabel 2 Sydj DATA'!I135 -> Teolog | C140: =IF(OR('Tabel 1 Sydj'!C138<5,'Tabel 2 Sydj'!C140<0.5),"-",IFERROR('Tabel 2 Sydj'!C140/'Tabel 1 Sydj'!C138*100,"-")) -> - | D140: =IF(OR('Tabel 1 Sydj'!C138<5,'Tabel 2 Sydj'!D140<0.5),"-",IFERROR('Tabel 2 Sydj'!D140/'Tabel 1 Sydj'!C138*100,"-")) -> - | F140: =IF(OR('Tabel 1 Sydj'!E138<5,'Tabel 2 Sydj'!F140<0.5),"-",IFERROR('Tabel 2 Sydj'!F140/'Tabel 1 Sydj'!E138*100,"-")) -> - | G140: =IF(OR('Tabel 1 Sydj'!E138<5,'Tabel 2 Sydj'!G140<0.5),"-",IFERROR('Tabel 2 Sydj'!G140/'Tabel 1 Sydj'!E138*100,"-")) -> - | I140: =IF(OR('Tabel 1 Sydj'!G138<5,'Tabel 2 Sydj'!I140<0.5),"-",IFERROR('Tabel 2 Sydj'!I140/'Tabel 1 Sydj'!G138*100,"-")) -> - | J140: =IF(OR('Tabel 1 Sydj'!G138<5,'Tabel 2 Sydj'!J140<0.5),"-",IFERROR('Tabel 2 Sydj'!J140/'Tabel 1 Sydj'!G138*100,"-")) -> -
A141: ='[1]Tabel 2 Sydj DATA'!I136 -> Psykolog | C141: =IF(OR('Tabel 1 Sydj'!C139<5,'Tabel 2 Sydj'!C141<0.5),"-",IFERROR('Tabel 2 Sydj'!C141/'Tabel 1 Sydj'!C139*100,"-")) -> - | D141: =IF(OR('Tabel 1 Sydj'!C139<5,'Tabel 2 Sydj'!D141<0.5),"-",IFERROR('Tabel 2 Sydj'!D141/'Tabel 1 Sydj'!C139*100,"-")) -> - | F141: =IF(OR('Tabel 1 Sydj'!E139<5,'Tabel 2 Sydj'!F141<0.5),"-",IFERROR('Tabel 2 Sydj'!F141/'Tabel 1 Sydj'!E139*100,"-")) -> 25 | G141: =IF(OR('Tabel 1 Sydj'!E139<5,'Tabel 2 Sydj'!G141<0.5),"-",IFERROR('Tabel 2 Sydj'!G141/'Tabel 1 Sydj'!E139*100,"-")) -> 24.99532215 | I141: =IF(OR('Tabel 1 Sydj'!G139<5,'Tabel 2 Sydj'!I141<0.5),"-",IFERROR('Tabel 2 Sydj'!I141/'Tabel 1 Sydj'!G139*100,"-")) -> 25 | J141: =IF(OR('Tabel 1 Sydj'!G139<5,'Tabel 2 Sydj'!J141<0.5),"-",IFERROR('Tabel 2 Sydj'!J141/'Tabel 1 Sydj'!G139*100,"-")) -> 24.99532215
A142: ='[1]Tabel 2 Sydj DATA'!I137 -> Jurist | C142: =IF(OR('Tabel 1 Sydj'!C140<5,'Tabel 2 Sydj'!C142<0.5),"-",IFERROR('Tabel 2 Sydj'!C142/'Tabel 1 Sydj'!C140*100,"-")) -> - | D142: =IF(OR('Tabel 1 Sydj'!C140<5,'Tabel 2 Sydj'!D142<0.5),"-",IFERROR('Tabel 2 Sydj'!D142/'Tabel 1 Sydj'!C140*100,"-")) -> - | F142: =IF(OR('Tabel 1 Sydj'!E140<5,'Tabel 2 Sydj'!F142<0.5),"-",IFERROR('Tabel 2 Sydj'!F142/'Tabel 1 Sydj'!E140*100,"-")) -> - | G142: =IF(OR('Tabel 1 Sydj'!E140<5,'Tabel 2 Sydj'!G142<0.5),"-",IFERROR('Tabel 2 Sydj'!G142/'Tabel 1 Sydj'!E140*100,"-")) -> - | I142: =IF(OR('Tabel 1 Sydj'!G140<5,'Tabel 2 Sydj'!I142<0.5),"-",IFERROR('Tabel 2 Sydj'!I142/'Tabel 1 Sydj'!G140*100,"-")) -> - | J142: =IF(OR('Tabel 1 Sydj'!G140<5,'Tabel 2 Sydj'!J142<0.5),"-",IFERROR('Tabel 2 Sydj'!J142/'Tabel 1 Sydj'!G140*100,"-")) -> -
A143: ='[1]Tabel 2 Sydj DATA'!I138 -> Økonom | C143: =IF(OR('Tabel 1 Sydj'!C141<5,'Tabel 2 Sydj'!C143<0.5),"-",IFERROR('Tabel 2 Sydj'!C143/'Tabel 1 Sydj'!C141*100,"-")) -> 14.28571429 | D143: =IF(OR('Tabel 1 Sydj'!C141<5,'Tabel 2 Sydj'!D143<0.5),"-",IFERROR('Tabel 2 Sydj'!D143/'Tabel 1 Sydj'!C141*100,"-")) -> - | F143: =IF(OR('Tabel 1 Sydj'!E141<5,'Tabel 2 Sydj'!F143<0.5),"-",IFERROR('Tabel 2 Sydj'!F143/'Tabel 1 Sydj'!E141*100,"-")) -> - | G143: =IF(OR('Tabel 1 Sydj'!E141<5,'Tabel 2 Sydj'!G143<0.5),"-",IFERROR('Tabel 2 Sydj'!G143/'Tabel 1 Sydj'!E141*100,"-")) -> - | I143: =IF(OR('Tabel 1 Sydj'!G141<5,'Tabel 2 Sydj'!I143<0.5),"-",IFERROR('Tabel 2 Sydj'!I143/'Tabel 1 Sydj'!G141*100,"-")) -> 11.11111111 | J143: =IF(OR('Tabel 1 Sydj'!G141<5,'Tabel 2 Sydj'!J143<0.5),"-",IFERROR('Tabel 2 Sydj'!J143/'Tabel 1 Sydj'!G141*100,"-")) -> -
A144: ='[1]Tabel 2 Sydj DATA'!I139 -> Samf. Adm. | C144: =IF(OR('Tabel 1 Sydj'!C142<5,'Tabel 2 Sydj'!C144<0.5),"-",IFERROR('Tabel 2 Sydj'!C144/'Tabel 1 Sydj'!C142*100,"-")) -> 11.11111111 | D144: =IF(OR('Tabel 1 Sydj'!C142<5,'Tabel 2 Sydj'!D144<0.5),"-",IFERROR('Tabel 2 Sydj'!D144/'Tabel 1 Sydj'!C142*100,"-")) -> 11.10903207 | F144: =IF(OR('Tabel 1 Sydj'!E142<5,'Tabel 2 Sydj'!F144<0.5),"-",IFERROR('Tabel 2 Sydj'!F144/'Tabel 1 Sydj'!E142*100,"-")) -> 5.882352941 | G144: =IF(OR('Tabel 1 Sydj'!E142<5,'Tabel 2 Sydj'!G144<0.5),"-",IFERROR('Tabel 2 Sydj'!G144/'Tabel 1 Sydj'!E142*100,"-")) -> - | I144: =IF(OR('Tabel 1 Sydj'!G142<5,'Tabel 2 Sydj'!I144<0.5),"-",IFERROR('Tabel 2 Sydj'!I144/'Tabel 1 Sydj'!G142*100,"-")) -> 7.692307692 | J144: =IF(OR('Tabel 1 Sydj'!G142<5,'Tabel 2 Sydj'!J144<0.5),"-",IFERROR('Tabel 2 Sydj'!J144/'Tabel 1 Sydj'!G142*100,"-")) -> 5.503072989
A145: ='[1]Tabel 2 Sydj DATA'!I140 -> Cand. Merc. | C145: =IF(OR('Tabel 1 Sydj'!C143<5,'Tabel 2 Sydj'!C145<0.5),"-",IFERROR('Tabel 2 Sydj'!C145/'Tabel 1 Sydj'!C143*100,"-")) -> 9.375 | D145: =IF(OR('Tabel 1 Sydj'!C143<5,'Tabel 2 Sydj'!D145<0.5),"-",IFERROR('Tabel 2 Sydj'!D145/'Tabel 1 Sydj'!C143*100,"-")) -> 7.813961829 | F145: =IF(OR('Tabel 1 Sydj'!E143<5,'Tabel 2 Sydj'!F145<0.5),"-",IFERROR('Tabel 2 Sydj'!F145/'Tabel 1 Sydj'!E143*100,"-")) -> 9.677419355 | G145: =IF(OR('Tabel 1 Sydj'!E143<5,'Tabel 2 Sydj'!G145<0.5),"-",IFERROR('Tabel 2 Sydj'!G145/'Tabel 1 Sydj'!E143*100,"-")) -> 9.65548878 | I145: =IF(OR('Tabel 1 Sydj'!G143<5,'Tabel 2 Sydj'!I145<0.5),"-",IFERROR('Tabel 2 Sydj'!I145/'Tabel 1 Sydj'!G143*100,"-")) -> 9.523809524 | J145: =IF(OR('Tabel 1 Sydj'!G143<5,'Tabel 2 Sydj'!J145<0.5),"-",IFERROR('Tabel 2 Sydj'!J145/'Tabel 1 Sydj'!G143*100,"-")) -> 8.720110011
A146: ='[1]Tabel 2 Sydj DATA'!I141 -> HA | C146: =IF(OR('Tabel 1 Sydj'!C144<5,'Tabel 2 Sydj'!C146<0.5),"-",IFERROR('Tabel 2 Sydj'!C146/'Tabel 1 Sydj'!C144*100,"-")) -> 20 | D146: =IF(OR('Tabel 1 Sydj'!C144<5,'Tabel 2 Sydj'!D146<0.5),"-",IFERROR('Tabel 2 Sydj'!D146/'Tabel 1 Sydj'!C144*100,"-")) -> 18.15006549 | F146: =IF(OR('Tabel 1 Sydj'!E144<5,'Tabel 2 Sydj'!F146<0.5),"-",IFERROR('Tabel 2 Sydj'!F146/'Tabel 1 Sydj'!E144*100,"-")) -> - | G146: =IF(OR('Tabel 1 Sydj'!E144<5,'Tabel 2 Sydj'!G146<0.5),"-",IFERROR('Tabel 2 Sydj'!G146/'Tabel 1 Sydj'!E144*100,"-")) -> - | I146: =IF(OR('Tabel 1 Sydj'!G144<5,'Tabel 2 Sydj'!I146<0.5),"-",IFERROR('Tabel 2 Sydj'!I146/'Tabel 1 Sydj'!G144*100,"-")) -> 7.692307692 | J146: =IF(OR('Tabel 1 Sydj'!G144<5,'Tabel 2 Sydj'!J146<0.5),"-",IFERROR('Tabel 2 Sydj'!J146/'Tabel 1 Sydj'!G144*100,"-")) -> 6.980794419
A147: ='[1]Tabel 2 Sydj DATA'!I142 -> HD | C147: =IF(OR('Tabel 1 Sydj'!C145<5,'Tabel 2 Sydj'!C147<0.5),"-",IFERROR('Tabel 2 Sydj'!C147/'Tabel 1 Sydj'!C145*100,"-")) -> - | D147: =IF(OR('Tabel 1 Sydj'!C145<5,'Tabel 2 Sydj'!D147<0.5),"-",IFERROR('Tabel 2 Sydj'!D147/'Tabel 1 Sydj'!C145*100,"-")) -> - | F147: =IF(OR('Tabel 1 Sydj'!E145<5,'Tabel 2 Sydj'!F147<0.5),"-",IFERROR('Tabel 2 Sydj'!F147/'Tabel 1 Sydj'!E145*100,"-")) -> 14.28571429 | G147: =IF(OR('Tabel 1 Sydj'!E145<5,'Tabel 2 Sydj'!G147<0.5),"-",IFERROR('Tabel 2 Sydj'!G147/'Tabel 1 Sydj'!E145*100,"-")) -> - | I147: =IF(OR('Tabel 1 Sydj'!G145<5,'Tabel 2 Sydj'!I147<0.5),"-",IFERROR('Tabel 2 Sydj'!I147/'Tabel 1 Sydj'!G145*100,"-")) -> 10 | J147: =IF(OR('Tabel 1 Sydj'!G145<5,'Tabel 2 Sydj'!J147<0.5),"-",IFERROR('Tabel 2 Sydj'!J147/'Tabel 1 Sydj'!G145*100,"-")) -> -
A148: ='[1]Tabel 2 Sydj DATA'!I143 -> Komm. og Sprog | C148: =IF(OR('Tabel 1 Sydj'!C146<5,'Tabel 2 Sydj'!C148<0.5),"-",IFERROR('Tabel 2 Sydj'!C148/'Tabel 1 Sydj'!C146*100,"-")) -> - | D148: =IF(OR('Tabel 1 Sydj'!C146<5,'Tabel 2 Sydj'!D148<0.5),"-",IFERROR('Tabel 2 Sydj'!D148/'Tabel 1 Sydj'!C146*100,"-")) -> - | F148: =IF(OR('Tabel 1 Sydj'!E146<5,'Tabel 2 Sydj'!F148<0.5),"-",IFERROR('Tabel 2 Sydj'!F148/'Tabel 1 Sydj'!E146*100,"-")) -> 20 | G148: =IF(OR('Tabel 1 Sydj'!E146<5,'Tabel 2 Sydj'!G148<0.5),"-",IFERROR('Tabel 2 Sydj'!G148/'Tabel 1 Sydj'!E146*100,"-")) -> 18.73635627 | I148: =IF(OR('Tabel 1 Sydj'!G146<5,'Tabel 2 Sydj'!I148<0.5),"-",IFERROR('Tabel 2 Sydj'!I148/'Tabel 1 Sydj'!G146*100,"-")) -> 17.64705882 | J148: =IF(OR('Tabel 1 Sydj'!G146<5,'Tabel 2 Sydj'!J148<0.5),"-",IFERROR('Tabel 2 Sydj'!J148/'Tabel 1 Sydj'!G146*100,"-")) -> 16.53207906
A149: ='[1]Tabel 2 Sydj DATA'!I144 -> Bygningskonst. | C149: =IF(OR('Tabel 1 Sydj'!C147<5,'Tabel 2 Sydj'!C149<0.5),"-",IFERROR('Tabel 2 Sydj'!C149/'Tabel 1 Sydj'!C147*100,"-")) -> - | D149: =IF(OR('Tabel 1 Sydj'!C147<5,'Tabel 2 Sydj'!D149<0.5),"-",IFERROR('Tabel 2 Sydj'!D149/'Tabel 1 Sydj'!C147*100,"-")) -> - | F149: =IF(OR('Tabel 1 Sydj'!E147<5,'Tabel 2 Sydj'!F149<0.5),"-",IFERROR('Tabel 2 Sydj'!F149/'Tabel 1 Sydj'!E147*100,"-")) -> - | G149: =IF(OR('Tabel 1 Sydj'!E147<5,'Tabel 2 Sydj'!G149<0.5),"-",IFERROR('Tabel 2 Sydj'!G149/'Tabel 1 Sydj'!E147*100,"-")) -> - | I149: =IF(OR('Tabel 1 Sydj'!G147<5,'Tabel 2 Sydj'!I149<0.5),"-",IFERROR('Tabel 2 Sydj'!I149/'Tabel 1 Sydj'!G147*100,"-")) -> - | J149: =IF(OR('Tabel 1 Sydj'!G147<5,'Tabel 2 Sydj'!J149<0.5),"-",IFERROR('Tabel 2 Sydj'!J149/'Tabel 1 Sydj'!G147*100,"-")) -> -
A150: ='[1]Tabel 2 Sydj DATA'!I145 -> Cand. IT. | C150: =IF(OR('Tabel 1 Sydj'!C148<5,'Tabel 2 Sydj'!C150<0.5),"-",IFERROR('Tabel 2 Sydj'!C150/'Tabel 1 Sydj'!C148*100,"-")) -> - | D150: =IF(OR('Tabel 1 Sydj'!C148<5,'Tabel 2 Sydj'!D150<0.5),"-",IFERROR('Tabel 2 Sydj'!D150/'Tabel 1 Sydj'!C148*100,"-")) -> - | F150: =IF(OR('Tabel 1 Sydj'!E148<5,'Tabel 2 Sydj'!F150<0.5),"-",IFERROR('Tabel 2 Sydj'!F150/'Tabel 1 Sydj'!E148*100,"-")) -> - | G150: =IF(OR('Tabel 1 Sydj'!E148<5,'Tabel 2 Sydj'!G150<0.5),"-",IFERROR('Tabel 2 Sydj'!G150/'Tabel 1 Sydj'!E148*100,"-")) -> - | I150: =IF(OR('Tabel 1 Sydj'!G148<5,'Tabel 2 Sydj'!I150<0.5),"-",IFERROR('Tabel 2 Sydj'!I150/'Tabel 1 Sydj'!G148*100,"-")) -> 25 | J150: =IF(OR('Tabel 1 Sydj'!G148<5,'Tabel 2 Sydj'!J150<0.5),"-",IFERROR('Tabel 2 Sydj'!J150/'Tabel 1 Sydj'!G148*100,"-")) -> 24.99532215
A151: ='[1]Tabel 2 Sydj DATA'!I146 -> Bac. Samf. | C151: =IF(OR('Tabel 1 Sydj'!C149<5,'Tabel 2 Sydj'!C151<0.5),"-",IFERROR('Tabel 2 Sydj'!C151/'Tabel 1 Sydj'!C149*100,"-")) -> - | D151: =IF(OR('Tabel 1 Sydj'!C149<5,'Tabel 2 Sydj'!D151<0.5),"-",IFERROR('Tabel 2 Sydj'!D151/'Tabel 1 Sydj'!C149*100,"-")) -> - | F151: =IF(OR('Tabel 1 Sydj'!E149<5,'Tabel 2 Sydj'!F151<0.5),"-",IFERROR('Tabel 2 Sydj'!F151/'Tabel 1 Sydj'!E149*100,"-")) -> - | G151: =IF(OR('Tabel 1 Sydj'!E149<5,'Tabel 2 Sydj'!G151<0.5),"-",IFERROR('Tabel 2 Sydj'!G151/'Tabel 1 Sydj'!E149*100,"-")) -> - | I151: =IF(OR('Tabel 1 Sydj'!G149<5,'Tabel 2 Sydj'!I151<0.5),"-",IFERROR('Tabel 2 Sydj'!I151/'Tabel 1 Sydj'!G149*100,"-")) -> - | J151: =IF(OR('Tabel 1 Sydj'!G149<5,'Tabel 2 Sydj'!J151<0.5),"-",IFERROR('Tabel 2 Sydj'!J151/'Tabel 1 Sydj'!G149*100,"-")) -> -
A152: ='[1]Tabel 2 Sydj DATA'!I147 -> Bac. Hum. | C152: =IF(OR('Tabel 1 Sydj'!C150<5,'Tabel 2 Sydj'!C152<0.5),"-",IFERROR('Tabel 2 Sydj'!C152/'Tabel 1 Sydj'!C150*100,"-")) -> - | D152: =IF(OR('Tabel 1 Sydj'!C150<5,'Tabel 2 Sydj'!D152<0.5),"-",IFERROR('Tabel 2 Sydj'!D152/'Tabel 1 Sydj'!C150*100,"-")) -> - | F152: =IF(OR('Tabel 1 Sydj'!E150<5,'Tabel 2 Sydj'!F152<0.5),"-",IFERROR('Tabel 2 Sydj'!F152/'Tabel 1 Sydj'!E150*100,"-")) -> - | G152: =IF(OR('Tabel 1 Sydj'!E150<5,'Tabel 2 Sydj'!G152<0.5),"-",IFERROR('Tabel 2 Sydj'!G152/'Tabel 1 Sydj'!E150*100,"-")) -> - | I152: =IF(OR('Tabel 1 Sydj'!G150<5,'Tabel 2 Sydj'!I152<0.5),"-",IFERROR('Tabel 2 Sydj'!I152/'Tabel 1 Sydj'!G150*100,"-")) -> - | J152: =IF(OR('Tabel 1 Sydj'!G150<5,'Tabel 2 Sydj'!J152<0.5),"-",IFERROR('Tabel 2 Sydj'!J152/'Tabel 1 Sydj'!G150*100,"-")) -> -
A153: ='[1]Tabel 2 Sydj DATA'!I148 -> Bac. Nat. | C153: =IF(OR('Tabel 1 Sydj'!C151<5,'Tabel 2 Sydj'!C153<0.5),"-",IFERROR('Tabel 2 Sydj'!C153/'Tabel 1 Sydj'!C151*100,"-")) -> 14.28571429 | D153: =IF(OR('Tabel 1 Sydj'!C151<5,'Tabel 2 Sydj'!D153<0.5),"-",IFERROR('Tabel 2 Sydj'!D153/'Tabel 1 Sydj'!C151*100,"-")) -> 14.10483734 | F153: =IF(OR('Tabel 1 Sydj'!E151<5,'Tabel 2 Sydj'!F153<0.5),"-",IFERROR('Tabel 2 Sydj'!F153/'Tabel 1 Sydj'!E151*100,"-")) -> - | G153: =IF(OR('Tabel 1 Sydj'!E151<5,'Tabel 2 Sydj'!G153<0.5),"-",IFERROR('Tabel 2 Sydj'!G153/'Tabel 1 Sydj'!E151*100,"-")) -> - | I153: =IF(OR('Tabel 1 Sydj'!G151<5,'Tabel 2 Sydj'!I153<0.5),"-",IFERROR('Tabel 2 Sydj'!I153/'Tabel 1 Sydj'!G151*100,"-")) -> 10 | J153: =IF(OR('Tabel 1 Sydj'!G151<5,'Tabel 2 Sydj'!J153<0.5),"-",IFERROR('Tabel 2 Sydj'!J153/'Tabel 1 Sydj'!G151*100,"-")) -> 9.873386141
A154: ='[1]Tabel 2 Sydj DATA'!I149 -> Andre | C154: =IF(OR('Tabel 1 Sydj'!C152<5,'Tabel 2 Sydj'!C154<0.5),"-",IFERROR('Tabel 2 Sydj'!C154/'Tabel 1 Sydj'!C152*100,"-")) -> 3.846153846 | D154: =IF(OR('Tabel 1 Sydj'!C152<5,'Tabel 2 Sydj'!D154<0.5),"-",IFERROR('Tabel 2 Sydj'!D154/'Tabel 1 Sydj'!C152*100,"-")) -> - | F154: =IF(OR('Tabel 1 Sydj'!E152<5,'Tabel 2 Sydj'!F154<0.5),"-",IFERROR('Tabel 2 Sydj'!F154/'Tabel 1 Sydj'!E152*100,"-")) -> 4.166666667 | G154: =IF(OR('Tabel 1 Sydj'!E152<5,'Tabel 2 Sydj'!G154<0.5),"-",IFERROR('Tabel 2 Sydj'!G154/'Tabel 1 Sydj'!E152*100,"-")) -> 3.781263644 | I154: =IF(OR('Tabel 1 Sydj'!G152<5,'Tabel 2 Sydj'!I154<0.5),"-",IFERROR('Tabel 2 Sydj'!I154/'Tabel 1 Sydj'!G152*100,"-")) -> 4 | J154: =IF(OR('Tabel 1 Sydj'!G152<5,'Tabel 2 Sydj'!J154<0.5),"-",IFERROR('Tabel 2 Sydj'!J154/'Tabel 1 Sydj'!G152*100,"-")) -> 2.153059315
A156: ='[1]Tabel 2 Sydj DATA'!I151 -> Total | C156: =IF(OR('Tabel 1 Sydj'!C154<5,'Tabel 2 Sydj'!C156<0.5),"-",IFERROR('Tabel 2 Sydj'!C156/'Tabel 1 Sydj'!C154*100,"-")) -> 6.225680934 | D156: =IF(OR('Tabel 1 Sydj'!C154<5,'Tabel 2 Sydj'!D156<0.5),"-",IFERROR('Tabel 2 Sydj'!D156/'Tabel 1 Sydj'!C154*100,"-")) -> 4.504085809 | F156: =IF(OR('Tabel 1 Sydj'!E154<5,'Tabel 2 Sydj'!F156<0.5),"-",IFERROR('Tabel 2 Sydj'!F156/'Tabel 1 Sydj'!E154*100,"-")) -> 7.936507937 | G156: =IF(OR('Tabel 1 Sydj'!E154<5,'Tabel 2 Sydj'!G156<0.5),"-",IFERROR('Tabel 2 Sydj'!G156/'Tabel 1 Sydj'!E154*100,"-")) -> 7.275421031 | I156: =IF(OR('Tabel 1 Sydj'!G154<5,'Tabel 2 Sydj'!I156<0.5),"-",IFERROR('Tabel 2 Sydj'!I156/'Tabel 1 Sydj'!G154*100,"-")) -> 7.072691552 | J156: =IF(OR('Tabel 1 Sydj'!G154<5,'Tabel 2 Sydj'!J156<0.5),"-",IFERROR('Tabel 2 Sydj'!J156/'Tabel 1 Sydj'!G154*100,"-")) -> 5.876141754
A158: ='[1]Tabel 2 Sydj DATA'!I153 -> Ingeniører i alt | C158: =IF(OR('Tabel 1 Sydj'!C156<5,'Tabel 2 Sydj'!C158<0.5),"-",IFERROR('Tabel 2 Sydj'!C158/'Tabel 1 Sydj'!C156*100,"-")) -> 3.125 | D158: =IF(OR('Tabel 1 Sydj'!C156<5,'Tabel 2 Sydj'!D158<0.5),"-",IFERROR('Tabel 2 Sydj'!D158/'Tabel 1 Sydj'!C156*100,"-")) -> 2.139467556 | F158: =IF(OR('Tabel 1 Sydj'!E156<5,'Tabel 2 Sydj'!F158<0.5),"-",IFERROR('Tabel 2 Sydj'!F158/'Tabel 1 Sydj'!E156*100,"-")) -> 9.090909091 | G158: =IF(OR('Tabel 1 Sydj'!E156<5,'Tabel 2 Sydj'!G158<0.5),"-",IFERROR('Tabel 2 Sydj'!G158/'Tabel 1 Sydj'!E156*100,"-")) -> 9.089208054 | I158: =IF(OR('Tabel 1 Sydj'!G156<5,'Tabel 2 Sydj'!I158<0.5),"-",IFERROR('Tabel 2 Sydj'!I158/'Tabel 1 Sydj'!G156*100,"-")) -> 4.651162791 | J158: =IF(OR('Tabel 1 Sydj'!G156<5,'Tabel 2 Sydj'!J158<0.5),"-",IFERROR('Tabel 2 Sydj'!J158/'Tabel 1 Sydj'!G156*100,"-")) -> 3.917308149
A159: ='[1]Tabel 2 Sydj DATA'!I154 -> Magistre i alt | C159: =IF(OR('Tabel 1 Sydj'!C157<5,'Tabel 2 Sydj'!C159<0.5),"-",IFERROR('Tabel 2 Sydj'!C159/'Tabel 1 Sydj'!C157*100,"-")) -> 16 | D159: =IF(OR('Tabel 1 Sydj'!C157<5,'Tabel 2 Sydj'!D159<0.5),"-",IFERROR('Tabel 2 Sydj'!D159/'Tabel 1 Sydj'!C157*100,"-")) -> 12.39693133 | F159: =IF(OR('Tabel 1 Sydj'!E157<5,'Tabel 2 Sydj'!F159<0.5),"-",IFERROR('Tabel 2 Sydj'!F159/'Tabel 1 Sydj'!E157*100,"-")) -> 8.695652174 | G159: =IF(OR('Tabel 1 Sydj'!E157<5,'Tabel 2 Sydj'!G159<0.5),"-",IFERROR('Tabel 2 Sydj'!G159/'Tabel 1 Sydj'!E157*100,"-")) -> 8.246578389 | I159: =IF(OR('Tabel 1 Sydj'!G157<5,'Tabel 2 Sydj'!I159<0.5),"-",IFERROR('Tabel 2 Sydj'!I159/'Tabel 1 Sydj'!G157*100,"-")) -> 11.26760563 | J159: =IF(OR('Tabel 1 Sydj'!G157<5,'Tabel 2 Sydj'!J159<0.5),"-",IFERROR('Tabel 2 Sydj'!J159/'Tabel 1 Sydj'!G157*100,"-")) -> 9.707970269
A160: ='[1]Tabel 2 Sydj DATA'!I155 -> DJØF'ere i alt | C160: =IF(OR('Tabel 1 Sydj'!C158<5,'Tabel 2 Sydj'!C160<0.5),"-",IFERROR('Tabel 2 Sydj'!C160/'Tabel 1 Sydj'!C158*100,"-")) -> 10.52631579 | D160: =IF(OR('Tabel 1 Sydj'!C158<5,'Tabel 2 Sydj'!D160<0.5),"-",IFERROR('Tabel 2 Sydj'!D160/'Tabel 1 Sydj'!C158*100,"-")) -> 8.434358522 | F160: =IF(OR('Tabel 1 Sydj'!E158<5,'Tabel 2 Sydj'!F160<0.5),"-",IFERROR('Tabel 2 Sydj'!F160/'Tabel 1 Sydj'!E158*100,"-")) -> 5.970149254 | G160: =IF(OR('Tabel 1 Sydj'!E158<5,'Tabel 2 Sydj'!G160<0.5),"-",IFERROR('Tabel 2 Sydj'!G160/'Tabel 1 Sydj'!E158*100,"-")) -> 5.110727781 | I160: =IF(OR('Tabel 1 Sydj'!G158<5,'Tabel 2 Sydj'!I160<0.5),"-",IFERROR('Tabel 2 Sydj'!I160/'Tabel 1 Sydj'!G158*100,"-")) -> 8.064516129 | J160: =IF(OR('Tabel 1 Sydj'!G158<5,'Tabel 2 Sydj'!J160<0.5),"-",IFERROR('Tabel 2 Sydj'!J160/'Tabel 1 Sydj'!G158*100,"-")) -> 6.638525783
A165: ='[1]Tabel 2 Sydj DATA'!I158 -> Sønderborg
C167: Mænd | F167: Kvinder | I167: I alt
C168: Ledigheds- berørte | D168: Gns. brutto- ledighed | F168: Ledigheds- berørte | G168: Gns. brutto- ledighed | I168: Ledigheds- berørte | J168: Gns. brutto- ledighed
A171: ='[1]Tabel 2 Sydj DATA'!I164 -> Civ. ing. | C171: =IF(OR('Tabel 1 Sydj'!C169<5,'Tabel 2 Sydj'!C171<0.5),"-",IFERROR('Tabel 2 Sydj'!C171/'Tabel 1 Sydj'!C169*100,"-")) -> 4.310344828 | D171: =IF(OR('Tabel 1 Sydj'!C169<5,'Tabel 2 Sydj'!D171<0.5),"-",IFERROR('Tabel 2 Sydj'!D171/'Tabel 1 Sydj'!C169*100,"-")) -> 4.074839179 | F171: =IF(OR('Tabel 1 Sydj'!E169<5,'Tabel 2 Sydj'!F171<0.5),"-",IFERROR('Tabel 2 Sydj'!F171/'Tabel 1 Sydj'!E169*100,"-")) -> 4.444444444 | G171: =IF(OR('Tabel 1 Sydj'!E169<5,'Tabel 2 Sydj'!G171<0.5),"-",IFERROR('Tabel 2 Sydj'!G171/'Tabel 1 Sydj'!E169*100,"-")) -> 4.443612826 | I171: =IF(OR('Tabel 1 Sydj'!G169<5,'Tabel 2 Sydj'!I171<0.5),"-",IFERROR('Tabel 2 Sydj'!I171/'Tabel 1 Sydj'!G169*100,"-")) -> 4.332129964 | J171: =IF(OR('Tabel 1 Sydj'!G169<5,'Tabel 2 Sydj'!J171<0.5),"-",IFERROR('Tabel 2 Sydj'!J171/'Tabel 1 Sydj'!G169*100,"-")) -> 4.134748255
A172: ='[1]Tabel 2 Sydj DATA'!I165 -> Diplom ing. | C172: =IF(OR('Tabel 1 Sydj'!C170<5,'Tabel 2 Sydj'!C172<0.5),"-",IFERROR('Tabel 2 Sydj'!C172/'Tabel 1 Sydj'!C170*100,"-")) -> 3.437967115 | D172: =IF(OR('Tabel 1 Sydj'!C170<5,'Tabel 2 Sydj'!D172<0.5),"-",IFERROR('Tabel 2 Sydj'!D172/'Tabel 1 Sydj'!C170*100,"-")) -> 2.665932754 | F172: =IF(OR('Tabel 1 Sydj'!E170<5,'Tabel 2 Sydj'!F172<0.5),"-",IFERROR('Tabel 2 Sydj'!F172/'Tabel 1 Sydj'!E170*100,"-")) -> 5.376344086 | G172: =IF(OR('Tabel 1 Sydj'!E170<5,'Tabel 2 Sydj'!G172<0.5),"-",IFERROR('Tabel 2 Sydj'!G172/'Tabel 1 Sydj'!E170*100,"-")) -> 4.956175737 | I172: =IF(OR('Tabel 1 Sydj'!G170<5,'Tabel 2 Sydj'!I172<0.5),"-",IFERROR('Tabel 2 Sydj'!I172/'Tabel 1 Sydj'!G170*100,"-")) -> 3.674540682 | J172: =IF(OR('Tabel 1 Sydj'!G170<5,'Tabel 2 Sydj'!J172<0.5),"-",IFERROR('Tabel 2 Sydj'!J172/'Tabel 1 Sydj'!G170*100,"-")) -> 2.945450599
A173: ='[1]Tabel 2 Sydj DATA'!I166 -> Cand. Scient. Tek. | C173: =IF(OR('Tabel 1 Sydj'!C171<5,'Tabel 2 Sydj'!C173<0.5),"-",IFERROR('Tabel 2 Sydj'!C173/'Tabel 1 Sydj'!C171*100,"-")) -> 7.446808511 | D173: =IF(OR('Tabel 1 Sydj'!C171<5,'Tabel 2 Sydj'!D173<0.5),"-",IFERROR('Tabel 2 Sydj'!D173/'Tabel 1 Sydj'!C171*100,"-")) -> 6.739424405 | F173: =IF(OR('Tabel 1 Sydj'!E171<5,'Tabel 2 Sydj'!F173<0.5),"-",IFERROR('Tabel 2 Sydj'!F173/'Tabel 1 Sydj'!E171*100,"-")) -> 8.163265306 | G173: =IF(OR('Tabel 1 Sydj'!E171<5,'Tabel 2 Sydj'!G173<0.5),"-",IFERROR('Tabel 2 Sydj'!G173/'Tabel 1 Sydj'!E171*100,"-")) -> 8.161737844 | I173: =IF(OR('Tabel 1 Sydj'!G171<5,'Tabel 2 Sydj'!I173<0.5),"-",IFERROR('Tabel 2 Sydj'!I173/'Tabel 1 Sydj'!G171*100,"-")) -> 7.692307692 | J173: =IF(OR('Tabel 1 Sydj'!G171<5,'Tabel 2 Sydj'!J173<0.5),"-",IFERROR('Tabel 2 Sydj'!J173/'Tabel 1 Sydj'!G171*100,"-")) -> 7.226790549
A174: ='[1]Tabel 2 Sydj DATA'!I167 -> MA. Hum. | C174: =IF(OR('Tabel 1 Sydj'!C172<5,'Tabel 2 Sydj'!C174<0.5),"-",IFERROR('Tabel 2 Sydj'!C174/'Tabel 1 Sydj'!C172*100,"-")) -> 3.278688525 | D174: =IF(OR('Tabel 1 Sydj'!C172<5,'Tabel 2 Sydj'!D174<0.5),"-",IFERROR('Tabel 2 Sydj'!D174/'Tabel 1 Sydj'!C172*100,"-")) -> 2.370111645 | F174: =IF(OR('Tabel 1 Sydj'!E172<5,'Tabel 2 Sydj'!F174<0.5),"-",IFERROR('Tabel 2 Sydj'!F174/'Tabel 1 Sydj'!E172*100,"-")) -> 13.60544218 | G174: =IF(OR('Tabel 1 Sydj'!E172<5,'Tabel 2 Sydj'!G174<0.5),"-",IFERROR('Tabel 2 Sydj'!G174/'Tabel 1 Sydj'!E172*100,"-")) -> 11.92099119 | I174: =IF(OR('Tabel 1 Sydj'!G172<5,'Tabel 2 Sydj'!I174<0.5),"-",IFERROR('Tabel 2 Sydj'!I174/'Tabel 1 Sydj'!G172*100,"-")) -> 10.57692308 | J174: =IF(OR('Tabel 1 Sydj'!G172<5,'Tabel 2 Sydj'!J174<0.5),"-",IFERROR('Tabel 2 Sydj'!J174/'Tabel 1 Sydj'!G172*100,"-")) -> 9.12001209
A175: ='[1]Tabel 2 Sydj DATA'!I168 -> MA. Nat. | C175: =IF(OR('Tabel 1 Sydj'!C173<5,'Tabel 2 Sydj'!C175<0.5),"-",IFERROR('Tabel 2 Sydj'!C175/'Tabel 1 Sydj'!C173*100,"-")) -> 2.43902439 | D175: =IF(OR('Tabel 1 Sydj'!C173<5,'Tabel 2 Sydj'!D175<0.5),"-",IFERROR('Tabel 2 Sydj'!D175/'Tabel 1 Sydj'!C173*100,"-")) -> 2.438568014 | F175: =IF(OR('Tabel 1 Sydj'!E173<5,'Tabel 2 Sydj'!F175<0.5),"-",IFERROR('Tabel 2 Sydj'!F175/'Tabel 1 Sydj'!E173*100,"-")) -> 2.631578947 | G175: =IF(OR('Tabel 1 Sydj'!E173<5,'Tabel 2 Sydj'!G175<0.5),"-",IFERROR('Tabel 2 Sydj'!G175/'Tabel 1 Sydj'!E173*100,"-")) -> 2.631086542 | I175: =IF(OR('Tabel 1 Sydj'!G173<5,'Tabel 2 Sydj'!I175<0.5),"-",IFERROR('Tabel 2 Sydj'!I175/'Tabel 1 Sydj'!G173*100,"-")) -> 2.53164557 | J175: =IF(OR('Tabel 1 Sydj'!G173<5,'Tabel 2 Sydj'!J175<0.5),"-",IFERROR('Tabel 2 Sydj'!J175/'Tabel 1 Sydj'!G173*100,"-")) -> 2.531171863
A176: ='[1]Tabel 2 Sydj DATA'!I169 -> MA. Ph.d. | C176: =IF(OR('Tabel 1 Sydj'!C174<5,'Tabel 2 Sydj'!C176<0.5),"-",IFERROR('Tabel 2 Sydj'!C176/'Tabel 1 Sydj'!C174*100,"-")) -> - | D176: =IF(OR('Tabel 1 Sydj'!C174<5,'Tabel 2 Sydj'!D176<0.5),"-",IFERROR('Tabel 2 Sydj'!D176/'Tabel 1 Sydj'!C174*100,"-")) -> - | F176: =IF(OR('Tabel 1 Sydj'!E174<5,'Tabel 2 Sydj'!F176<0.5),"-",IFERROR('Tabel 2 Sydj'!F176/'Tabel 1 Sydj'!E174*100,"-")) -> - | G176: =IF(OR('Tabel 1 Sydj'!E174<5,'Tabel 2 Sydj'!G176<0.5),"-",IFERROR('Tabel 2 Sydj'!G176/'Tabel 1 Sydj'!E174*100,"-")) -> - | I176: =IF(OR('Tabel 1 Sydj'!G174<5,'Tabel 2 Sydj'!I176<0.5),"-",IFERROR('Tabel 2 Sydj'!I176/'Tabel 1 Sydj'!G174*100,"-")) -> - | J176: =IF(OR('Tabel 1 Sydj'!G174<5,'Tabel 2 Sydj'!J176<0.5),"-",IFERROR('Tabel 2 Sydj'!J176/'Tabel 1 Sydj'!G174*100,"-")) -> -
A177: ='[1]Tabel 2 Sydj DATA'!I170 -> MA. Samf. | C177: =IF(OR('Tabel 1 Sydj'!C175<5,'Tabel 2 Sydj'!C177<0.5),"-",IFERROR('Tabel 2 Sydj'!C177/'Tabel 1 Sydj'!C175*100,"-")) -> - | D177: =IF(OR('Tabel 1 Sydj'!C175<5,'Tabel 2 Sydj'!D177<0.5),"-",IFERROR('Tabel 2 Sydj'!D177/'Tabel 1 Sydj'!C175*100,"-")) -> - | F177: =IF(OR('Tabel 1 Sydj'!E175<5,'Tabel 2 Sydj'!F177<0.5),"-",IFERROR('Tabel 2 Sydj'!F177/'Tabel 1 Sydj'!E175*100,"-")) -> - | G177: =IF(OR('Tabel 1 Sydj'!E175<5,'Tabel 2 Sydj'!G177<0.5),"-",IFERROR('Tabel 2 Sydj'!G177/'Tabel 1 Sydj'!E175*100,"-")) -> - | I177: =IF(OR('Tabel 1 Sydj'!G175<5,'Tabel 2 Sydj'!I177<0.5),"-",IFERROR('Tabel 2 Sydj'!I177/'Tabel 1 Sydj'!G175*100,"-")) -> - | J177: =IF(OR('Tabel 1 Sydj'!G175<5,'Tabel 2 Sydj'!J177<0.5),"-",IFERROR('Tabel 2 Sydj'!J177/'Tabel 1 Sydj'!G175*100,"-")) -> -
A178: ='[1]Tabel 2 Sydj DATA'!I171 -> Øvrige Mag. | C178: =IF(OR('Tabel 1 Sydj'!C176<5,'Tabel 2 Sydj'!C178<0.5),"-",IFERROR('Tabel 2 Sydj'!C178/'Tabel 1 Sydj'!C176*100,"-")) -> 16.66666667 | D178: =IF(OR('Tabel 1 Sydj'!C176<5,'Tabel 2 Sydj'!D178<0.5),"-",IFERROR('Tabel 2 Sydj'!D178/'Tabel 1 Sydj'!C176*100,"-")) -> - | F178: =IF(OR('Tabel 1 Sydj'!E176<5,'Tabel 2 Sydj'!F178<0.5),"-",IFERROR('Tabel 2 Sydj'!F178/'Tabel 1 Sydj'!E176*100,"-")) -> - | G178: =IF(OR('Tabel 1 Sydj'!E176<5,'Tabel 2 Sydj'!G178<0.5),"-",IFERROR('Tabel 2 Sydj'!G178/'Tabel 1 Sydj'!E176*100,"-")) -> - | I178: =IF(OR('Tabel 1 Sydj'!G176<5,'Tabel 2 Sydj'!I178<0.5),"-",IFERROR('Tabel 2 Sydj'!I178/'Tabel 1 Sydj'!G176*100,"-")) -> 4.761904762 | J178: =IF(OR('Tabel 1 Sydj'!G176<5,'Tabel 2 Sydj'!J178<0.5),"-",IFERROR('Tabel 2 Sydj'!J178/'Tabel 1 Sydj'!G176*100,"-")) -> -
A179: ='[1]Tabel 2 Sydj DATA'!I172 -> Agronom | C179: =IF(OR('Tabel 1 Sydj'!C177<5,'Tabel 2 Sydj'!C179<0.5),"-",IFERROR('Tabel 2 Sydj'!C179/'Tabel 1 Sydj'!C177*100,"-")) -> - | D179: =IF(OR('Tabel 1 Sydj'!C177<5,'Tabel 2 Sydj'!D179<0.5),"-",IFERROR('Tabel 2 Sydj'!D179/'Tabel 1 Sydj'!C177*100,"-")) -> - | F179: =IF(OR('Tabel 1 Sydj'!E177<5,'Tabel 2 Sydj'!F179<0.5),"-",IFERROR('Tabel 2 Sydj'!F179/'Tabel 1 Sydj'!E177*100,"-")) -> - | G179: =IF(OR('Tabel 1 Sydj'!E177<5,'Tabel 2 Sydj'!G179<0.5),"-",IFERROR('Tabel 2 Sydj'!G179/'Tabel 1 Sydj'!E177*100,"-")) -> - | I179: =IF(OR('Tabel 1 Sydj'!G177<5,'Tabel 2 Sydj'!I179<0.5),"-",IFERROR('Tabel 2 Sydj'!I179/'Tabel 1 Sydj'!G177*100,"-")) -> - | J179: =IF(OR('Tabel 1 Sydj'!G177<5,'Tabel 2 Sydj'!J179<0.5),"-",IFERROR('Tabel 2 Sydj'!J179/'Tabel 1 Sydj'!G177*100,"-")) -> -
A180: ='[1]Tabel 2 Sydj DATA'!I173 -> Landsk. Arkt. | C180: =IF(OR('Tabel 1 Sydj'!C178<5,'Tabel 2 Sydj'!C180<0.5),"-",IFERROR('Tabel 2 Sydj'!C180/'Tabel 1 Sydj'!C178*100,"-")) -> - | D180: =IF(OR('Tabel 1 Sydj'!C178<5,'Tabel 2 Sydj'!D180<0.5),"-",IFERROR('Tabel 2 Sydj'!D180/'Tabel 1 Sydj'!C178*100,"-")) -> - | F180: =IF(OR('Tabel 1 Sydj'!E178<5,'Tabel 2 Sydj'!F180<0.5),"-",IFERROR('Tabel 2 Sydj'!F180/'Tabel 1 Sydj'!E178*100,"-")) -> - | G180: =IF(OR('Tabel 1 Sydj'!E178<5,'Tabel 2 Sydj'!G180<0.5),"-",IFERROR('Tabel 2 Sydj'!G180/'Tabel 1 Sydj'!E178*100,"-")) -> - | I180: =IF(OR('Tabel 1 Sydj'!G178<5,'Tabel 2 Sydj'!I180<0.5),"-",IFERROR('Tabel 2 Sydj'!I180/'Tabel 1 Sydj'!G178*100,"-")) -> - | J180: =IF(OR('Tabel 1 Sydj'!G178<5,'Tabel 2 Sydj'!J180<0.5),"-",IFERROR('Tabel 2 Sydj'!J180/'Tabel 1 Sydj'!G178*100,"-")) -> -
A181: ='[1]Tabel 2 Sydj DATA'!I174 -> Hortonom | C181: =IF(OR('Tabel 1 Sydj'!C179<5,'Tabel 2 Sydj'!C181<0.5),"-",IFERROR('Tabel 2 Sydj'!C181/'Tabel 1 Sydj'!C179*100,"-")) -> - | D181: =IF(OR('Tabel 1 Sydj'!C179<5,'Tabel 2 Sydj'!D181<0.5),"-",IFERROR('Tabel 2 Sydj'!D181/'Tabel 1 Sydj'!C179*100,"-")) -> - | F181: =IF(OR('Tabel 1 Sydj'!E179<5,'Tabel 2 Sydj'!F181<0.5),"-",IFERROR('Tabel 2 Sydj'!F181/'Tabel 1 Sydj'!E179*100,"-")) -> - | G181: =IF(OR('Tabel 1 Sydj'!E179<5,'Tabel 2 Sydj'!G181<0.5),"-",IFERROR('Tabel 2 Sydj'!G181/'Tabel 1 Sydj'!E179*100,"-")) -> - | I181: =IF(OR('Tabel 1 Sydj'!G179<5,'Tabel 2 Sydj'!I181<0.5),"-",IFERROR('Tabel 2 Sydj'!I181/'Tabel 1 Sydj'!G179*100,"-")) -> - | J181: =IF(OR('Tabel 1 Sydj'!G179<5,'Tabel 2 Sydj'!J181<0.5),"-",IFERROR('Tabel 2 Sydj'!J181/'Tabel 1 Sydj'!G179*100,"-")) -> -
A182: ='[1]Tabel 2 Sydj DATA'!I175 -> Forstkand. | C182: =IF(OR('Tabel 1 Sydj'!C180<5,'Tabel 2 Sydj'!C182<0.5),"-",IFERROR('Tabel 2 Sydj'!C182/'Tabel 1 Sydj'!C180*100,"-")) -> - | D182: =IF(OR('Tabel 1 Sydj'!C180<5,'Tabel 2 Sydj'!D182<0.5),"-",IFERROR('Tabel 2 Sydj'!D182/'Tabel 1 Sydj'!C180*100,"-")) -> - | F182: =IF(OR('Tabel 1 Sydj'!E180<5,'Tabel 2 Sydj'!F182<0.5),"-",IFERROR('Tabel 2 Sydj'!F182/'Tabel 1 Sydj'!E180*100,"-")) -> - | G182: =IF(OR('Tabel 1 Sydj'!E180<5,'Tabel 2 Sydj'!G182<0.5),"-",IFERROR('Tabel 2 Sydj'!G182/'Tabel 1 Sydj'!E180*100,"-")) -> - | I182: =IF(OR('Tabel 1 Sydj'!G180<5,'Tabel 2 Sydj'!I182<0.5),"-",IFERROR('Tabel 2 Sydj'!I182/'Tabel 1 Sydj'!G180*100,"-")) -> - | J182: =IF(OR('Tabel 1 Sydj'!G180<5,'Tabel 2 Sydj'!J182<0.5),"-",IFERROR('Tabel 2 Sydj'!J182/'Tabel 1 Sydj'!G180*100,"-")) -> -
A183: ='[1]Tabel 2 Sydj DATA'!I176 -> Jordbrugsakad. | C183: =IF(OR('Tabel 1 Sydj'!C181<5,'Tabel 2 Sydj'!C183<0.5),"-",IFERROR('Tabel 2 Sydj'!C183/'Tabel 1 Sydj'!C181*100,"-")) -> - | D183: =IF(OR('Tabel 1 Sydj'!C181<5,'Tabel 2 Sydj'!D183<0.5),"-",IFERROR('Tabel 2 Sydj'!D183/'Tabel 1 Sydj'!C181*100,"-")) -> - | F183: =IF(OR('Tabel 1 Sydj'!E181<5,'Tabel 2 Sydj'!F183<0.5),"-",IFERROR('Tabel 2 Sydj'!F183/'Tabel 1 Sydj'!E181*100,"-")) -> - | G183: =IF(OR('Tabel 1 Sydj'!E181<5,'Tabel 2 Sydj'!G183<0.5),"-",IFERROR('Tabel 2 Sydj'!G183/'Tabel 1 Sydj'!E181*100,"-")) -> - | I183: =IF(OR('Tabel 1 Sydj'!G181<5,'Tabel 2 Sydj'!I183<0.5),"-",IFERROR('Tabel 2 Sydj'!I183/'Tabel 1 Sydj'!G181*100,"-")) -> - | J183: =IF(OR('Tabel 1 Sydj'!G181<5,'Tabel 2 Sydj'!J183<0.5),"-",IFERROR('Tabel 2 Sydj'!J183/'Tabel 1 Sydj'!G181*100,"-")) -> -
A184: ='[1]Tabel 2 Sydj DATA'!I177 -> Mejeriing. | C184: =IF(OR('Tabel 1 Sydj'!C182<5,'Tabel 2 Sydj'!C184<0.5),"-",IFERROR('Tabel 2 Sydj'!C184/'Tabel 1 Sydj'!C182*100,"-")) -> - | D184: =IF(OR('Tabel 1 Sydj'!C182<5,'Tabel 2 Sydj'!D184<0.5),"-",IFERROR('Tabel 2 Sydj'!D184/'Tabel 1 Sydj'!C182*100,"-")) -> - | F184: =IF(OR('Tabel 1 Sydj'!E182<5,'Tabel 2 Sydj'!F184<0.5),"-",IFERROR('Tabel 2 Sydj'!F184/'Tabel 1 Sydj'!E182*100,"-")) -> - | G184: =IF(OR('Tabel 1 Sydj'!E182<5,'Tabel 2 Sydj'!G184<0.5),"-",IFERROR('Tabel 2 Sydj'!G184/'Tabel 1 Sydj'!E182*100,"-")) -> - | I184: =IF(OR('Tabel 1 Sydj'!G182<5,'Tabel 2 Sydj'!I184<0.5),"-",IFERROR('Tabel 2 Sydj'!I184/'Tabel 1 Sydj'!G182*100,"-")) -> - | J184: =IF(OR('Tabel 1 Sydj'!G182<5,'Tabel 2 Sydj'!J184<0.5),"-",IFERROR('Tabel 2 Sydj'!J184/'Tabel 1 Sydj'!G182*100,"-")) -> -
A185: ='[1]Tabel 2 Sydj DATA'!I178 -> Levn.m.kand. | C185: =IF(OR('Tabel 1 Sydj'!C183<5,'Tabel 2 Sydj'!C185<0.5),"-",IFERROR('Tabel 2 Sydj'!C185/'Tabel 1 Sydj'!C183*100,"-")) -> - | D185: =IF(OR('Tabel 1 Sydj'!C183<5,'Tabel 2 Sydj'!D185<0.5),"-",IFERROR('Tabel 2 Sydj'!D185/'Tabel 1 Sydj'!C183*100,"-")) -> - | F185: =IF(OR('Tabel 1 Sydj'!E183<5,'Tabel 2 Sydj'!F185<0.5),"-",IFERROR('Tabel 2 Sydj'!F185/'Tabel 1 Sydj'!E183*100,"-")) -> - | G185: =IF(OR('Tabel 1 Sydj'!E183<5,'Tabel 2 Sydj'!G185<0.5),"-",IFERROR('Tabel 2 Sydj'!G185/'Tabel 1 Sydj'!E183*100,"-")) -> - | I185: =IF(OR('Tabel 1 Sydj'!G183<5,'Tabel 2 Sydj'!I185<0.5),"-",IFERROR('Tabel 2 Sydj'!I185/'Tabel 1 Sydj'!G183*100,"-")) -> - | J185: =IF(OR('Tabel 1 Sydj'!G183<5,'Tabel 2 Sydj'!J185<0.5),"-",IFERROR('Tabel 2 Sydj'!J185/'Tabel 1 Sydj'!G183*100,"-")) -> -
A186: ='[1]Tabel 2 Sydj DATA'!I179 -> Dyrlæge | C186: =IF(OR('Tabel 1 Sydj'!C184<5,'Tabel 2 Sydj'!C186<0.5),"-",IFERROR('Tabel 2 Sydj'!C186/'Tabel 1 Sydj'!C184*100,"-")) -> - | D186: =IF(OR('Tabel 1 Sydj'!C184<5,'Tabel 2 Sydj'!D186<0.5),"-",IFERROR('Tabel 2 Sydj'!D186/'Tabel 1 Sydj'!C184*100,"-")) -> - | F186: =IF(OR('Tabel 1 Sydj'!E184<5,'Tabel 2 Sydj'!F186<0.5),"-",IFERROR('Tabel 2 Sydj'!F186/'Tabel 1 Sydj'!E184*100,"-")) -> - | G186: =IF(OR('Tabel 1 Sydj'!E184<5,'Tabel 2 Sydj'!G186<0.5),"-",IFERROR('Tabel 2 Sydj'!G186/'Tabel 1 Sydj'!E184*100,"-")) -> - | I186: =IF(OR('Tabel 1 Sydj'!G184<5,'Tabel 2 Sydj'!I186<0.5),"-",IFERROR('Tabel 2 Sydj'!I186/'Tabel 1 Sydj'!G184*100,"-")) -> - | J186: =IF(OR('Tabel 1 Sydj'!G184<5,'Tabel 2 Sydj'!J186<0.5),"-",IFERROR('Tabel 2 Sydj'!J186/'Tabel 1 Sydj'!G184*100,"-")) -> -
A187: ='[1]Tabel 2 Sydj DATA'!I180 -> Farmaceut | C187: =IF(OR('Tabel 1 Sydj'!C185<5,'Tabel 2 Sydj'!C187<0.5),"-",IFERROR('Tabel 2 Sydj'!C187/'Tabel 1 Sydj'!C185*100,"-")) -> - | D187: =IF(OR('Tabel 1 Sydj'!C185<5,'Tabel 2 Sydj'!D187<0.5),"-",IFERROR('Tabel 2 Sydj'!D187/'Tabel 1 Sydj'!C185*100,"-")) -> - | F187: =IF(OR('Tabel 1 Sydj'!E185<5,'Tabel 2 Sydj'!F187<0.5),"-",IFERROR('Tabel 2 Sydj'!F187/'Tabel 1 Sydj'!E185*100,"-")) -> - | G187: =IF(OR('Tabel 1 Sydj'!E185<5,'Tabel 2 Sydj'!G187<0.5),"-",IFERROR('Tabel 2 Sydj'!G187/'Tabel 1 Sydj'!E185*100,"-")) -> - | I187: =IF(OR('Tabel 1 Sydj'!G185<5,'Tabel 2 Sydj'!I187<0.5),"-",IFERROR('Tabel 2 Sydj'!I187/'Tabel 1 Sydj'!G185*100,"-")) -> - | J187: =IF(OR('Tabel 1 Sydj'!G185<5,'Tabel 2 Sydj'!J187<0.5),"-",IFERROR('Tabel 2 Sydj'!J187/'Tabel 1 Sydj'!G185*100,"-")) -> -
A188: ='[1]Tabel 2 Sydj DATA'!I181 -> Læge | C188: =IF(OR('Tabel 1 Sydj'!C186<5,'Tabel 2 Sydj'!C188<0.5),"-",IFERROR('Tabel 2 Sydj'!C188/'Tabel 1 Sydj'!C186*100,"-")) -> - | D188: =IF(OR('Tabel 1 Sydj'!C186<5,'Tabel 2 Sydj'!D188<0.5),"-",IFERROR('Tabel 2 Sydj'!D188/'Tabel 1 Sydj'!C186*100,"-")) -> - | F188: =IF(OR('Tabel 1 Sydj'!E186<5,'Tabel 2 Sydj'!F188<0.5),"-",IFERROR('Tabel 2 Sydj'!F188/'Tabel 1 Sydj'!E186*100,"-")) -> 2.083333333 | G188: =IF(OR('Tabel 1 Sydj'!E186<5,'Tabel 2 Sydj'!G188<0.5),"-",IFERROR('Tabel 2 Sydj'!G188/'Tabel 1 Sydj'!E186*100,"-")) -> - | I188: =IF(OR('Tabel 1 Sydj'!G186<5,'Tabel 2 Sydj'!I188<0.5),"-",IFERROR('Tabel 2 Sydj'!I188/'Tabel 1 Sydj'!G186*100,"-")) -> 1.428571429 | J188: =IF(OR('Tabel 1 Sydj'!G186<5,'Tabel 2 Sydj'!J188<0.5),"-",IFERROR('Tabel 2 Sydj'!J188/'Tabel 1 Sydj'!G186*100,"-")) -> -
A189: ='[1]Tabel 2 Sydj DATA'!I182 -> Tandlæge | C189: =IF(OR('Tabel 1 Sydj'!C187<5,'Tabel 2 Sydj'!C189<0.5),"-",IFERROR('Tabel 2 Sydj'!C189/'Tabel 1 Sydj'!C187*100,"-")) -> - | D189: =IF(OR('Tabel 1 Sydj'!C187<5,'Tabel 2 Sydj'!D189<0.5),"-",IFERROR('Tabel 2 Sydj'!D189/'Tabel 1 Sydj'!C187*100,"-")) -> - | F189: =IF(OR('Tabel 1 Sydj'!E187<5,'Tabel 2 Sydj'!F189<0.5),"-",IFERROR('Tabel 2 Sydj'!F189/'Tabel 1 Sydj'!E187*100,"-")) -> - | G189: =IF(OR('Tabel 1 Sydj'!E187<5,'Tabel 2 Sydj'!G189<0.5),"-",IFERROR('Tabel 2 Sydj'!G189/'Tabel 1 Sydj'!E187*100,"-")) -> - | I189: =IF(OR('Tabel 1 Sydj'!G187<5,'Tabel 2 Sydj'!I189<0.5),"-",IFERROR('Tabel 2 Sydj'!I189/'Tabel 1 Sydj'!G187*100,"-")) -> - | J189: =IF(OR('Tabel 1 Sydj'!G187<5,'Tabel 2 Sydj'!J189<0.5),"-",IFERROR('Tabel 2 Sydj'!J189/'Tabel 1 Sydj'!G187*100,"-")) -> -
A190: ='[1]Tabel 2 Sydj DATA'!I183 -> Arkitekt | C190: =IF(OR('Tabel 1 Sydj'!C188<5,'Tabel 2 Sydj'!C190<0.5),"-",IFERROR('Tabel 2 Sydj'!C190/'Tabel 1 Sydj'!C188*100,"-")) -> - | D190: =IF(OR('Tabel 1 Sydj'!C188<5,'Tabel 2 Sydj'!D190<0.5),"-",IFERROR('Tabel 2 Sydj'!D190/'Tabel 1 Sydj'!C188*100,"-")) -> - | F190: =IF(OR('Tabel 1 Sydj'!E188<5,'Tabel 2 Sydj'!F190<0.5),"-",IFERROR('Tabel 2 Sydj'!F190/'Tabel 1 Sydj'!E188*100,"-")) -> - | G190: =IF(OR('Tabel 1 Sydj'!E188<5,'Tabel 2 Sydj'!G190<0.5),"-",IFERROR('Tabel 2 Sydj'!G190/'Tabel 1 Sydj'!E188*100,"-")) -> - | I190: =IF(OR('Tabel 1 Sydj'!G188<5,'Tabel 2 Sydj'!I190<0.5),"-",IFERROR('Tabel 2 Sydj'!I190/'Tabel 1 Sydj'!G188*100,"-")) -> - | J190: =IF(OR('Tabel 1 Sydj'!G188<5,'Tabel 2 Sydj'!J190<0.5),"-",IFERROR('Tabel 2 Sydj'!J190/'Tabel 1 Sydj'!G188*100,"-")) -> -
A191: ='[1]Tabel 2 Sydj DATA'!I184 -> Landinspek. | C191: =IF(OR('Tabel 1 Sydj'!C189<5,'Tabel 2 Sydj'!C191<0.5),"-",IFERROR('Tabel 2 Sydj'!C191/'Tabel 1 Sydj'!C189*100,"-")) -> - | D191: =IF(OR('Tabel 1 Sydj'!C189<5,'Tabel 2 Sydj'!D191<0.5),"-",IFERROR('Tabel 2 Sydj'!D191/'Tabel 1 Sydj'!C189*100,"-")) -> - | F191: =IF(OR('Tabel 1 Sydj'!E189<5,'Tabel 2 Sydj'!F191<0.5),"-",IFERROR('Tabel 2 Sydj'!F191/'Tabel 1 Sydj'!E189*100,"-")) -> - | G191: =IF(OR('Tabel 1 Sydj'!E189<5,'Tabel 2 Sydj'!G191<0.5),"-",IFERROR('Tabel 2 Sydj'!G191/'Tabel 1 Sydj'!E189*100,"-")) -> - | I191: =IF(OR('Tabel 1 Sydj'!G189<5,'Tabel 2 Sydj'!I191<0.5),"-",IFERROR('Tabel 2 Sydj'!I191/'Tabel 1 Sydj'!G189*100,"-")) -> - | J191: =IF(OR('Tabel 1 Sydj'!G189<5,'Tabel 2 Sydj'!J191<0.5),"-",IFERROR('Tabel 2 Sydj'!J191/'Tabel 1 Sydj'!G189*100,"-")) -> -
A192: ='[1]Tabel 2 Sydj DATA'!I185 -> Bibliotekar | C192: =IF(OR('Tabel 1 Sydj'!C190<5,'Tabel 2 Sydj'!C192<0.5),"-",IFERROR('Tabel 2 Sydj'!C192/'Tabel 1 Sydj'!C190*100,"-")) -> 11.11111111 | D192: =IF(OR('Tabel 1 Sydj'!C190<5,'Tabel 2 Sydj'!D192<0.5),"-",IFERROR('Tabel 2 Sydj'!D192/'Tabel 1 Sydj'!C190*100,"-")) -> 11.10903207 | F192: =IF(OR('Tabel 1 Sydj'!E190<5,'Tabel 2 Sydj'!F192<0.5),"-",IFERROR('Tabel 2 Sydj'!F192/'Tabel 1 Sydj'!E190*100,"-")) -> 4 | G192: =IF(OR('Tabel 1 Sydj'!E190<5,'Tabel 2 Sydj'!G192<0.5),"-",IFERROR('Tabel 2 Sydj'!G192/'Tabel 1 Sydj'!E190*100,"-")) -> 3.999251544 | I192: =IF(OR('Tabel 1 Sydj'!G190<5,'Tabel 2 Sydj'!I192<0.5),"-",IFERROR('Tabel 2 Sydj'!I192/'Tabel 1 Sydj'!G190*100,"-")) -> 5.882352941 | J192: =IF(OR('Tabel 1 Sydj'!G190<5,'Tabel 2 Sydj'!J192<0.5),"-",IFERROR('Tabel 2 Sydj'!J192/'Tabel 1 Sydj'!G190*100,"-")) -> 5.88125227
A193: ='[1]Tabel 2 Sydj DATA'!I186 -> Musikudd. | C193: =IF(OR('Tabel 1 Sydj'!C191<5,'Tabel 2 Sydj'!C193<0.5),"-",IFERROR('Tabel 2 Sydj'!C193/'Tabel 1 Sydj'!C191*100,"-")) -> - | D193: =IF(OR('Tabel 1 Sydj'!C191<5,'Tabel 2 Sydj'!D193<0.5),"-",IFERROR('Tabel 2 Sydj'!D193/'Tabel 1 Sydj'!C191*100,"-")) -> - | F193: =IF(OR('Tabel 1 Sydj'!E191<5,'Tabel 2 Sydj'!F193<0.5),"-",IFERROR('Tabel 2 Sydj'!F193/'Tabel 1 Sydj'!E191*100,"-")) -> - | G193: =IF(OR('Tabel 1 Sydj'!E191<5,'Tabel 2 Sydj'!G193<0.5),"-",IFERROR('Tabel 2 Sydj'!G193/'Tabel 1 Sydj'!E191*100,"-")) -> - | I193: =IF(OR('Tabel 1 Sydj'!G191<5,'Tabel 2 Sydj'!I193<0.5),"-",IFERROR('Tabel 2 Sydj'!I193/'Tabel 1 Sydj'!G191*100,"-")) -> - | J193: =IF(OR('Tabel 1 Sydj'!G191<5,'Tabel 2 Sydj'!J193<0.5),"-",IFERROR('Tabel 2 Sydj'!J193/'Tabel 1 Sydj'!G191*100,"-")) -> -
A194: ='[1]Tabel 2 Sydj DATA'!I187 -> Teolog | C194: =IF(OR('Tabel 1 Sydj'!C192<5,'Tabel 2 Sydj'!C194<0.5),"-",IFERROR('Tabel 2 Sydj'!C194/'Tabel 1 Sydj'!C192*100,"-")) -> - | D194: =IF(OR('Tabel 1 Sydj'!C192<5,'Tabel 2 Sydj'!D194<0.5),"-",IFERROR('Tabel 2 Sydj'!D194/'Tabel 1 Sydj'!C192*100,"-")) -> - | F194: =IF(OR('Tabel 1 Sydj'!E192<5,'Tabel 2 Sydj'!F194<0.5),"-",IFERROR('Tabel 2 Sydj'!F194/'Tabel 1 Sydj'!E192*100,"-")) -> - | G194: =IF(OR('Tabel 1 Sydj'!E192<5,'Tabel 2 Sydj'!G194<0.5),"-",IFERROR('Tabel 2 Sydj'!G194/'Tabel 1 Sydj'!E192*100,"-")) -> - | I194: =IF(OR('Tabel 1 Sydj'!G192<5,'Tabel 2 Sydj'!I194<0.5),"-",IFERROR('Tabel 2 Sydj'!I194/'Tabel 1 Sydj'!G192*100,"-")) -> - | J194: =IF(OR('Tabel 1 Sydj'!G192<5,'Tabel 2 Sydj'!J194<0.5),"-",IFERROR('Tabel 2 Sydj'!J194/'Tabel 1 Sydj'!G192*100,"-")) -> -
A195: ='[1]Tabel 2 Sydj DATA'!I188 -> Psykolog | C195: =IF(OR('Tabel 1 Sydj'!C193<5,'Tabel 2 Sydj'!C195<0.5),"-",IFERROR('Tabel 2 Sydj'!C195/'Tabel 1 Sydj'!C193*100,"-")) -> - | D195: =IF(OR('Tabel 1 Sydj'!C193<5,'Tabel 2 Sydj'!D195<0.5),"-",IFERROR('Tabel 2 Sydj'!D195/'Tabel 1 Sydj'!C193*100,"-")) -> - | F195: =IF(OR('Tabel 1 Sydj'!E193<5,'Tabel 2 Sydj'!F195<0.5),"-",IFERROR('Tabel 2 Sydj'!F195/'Tabel 1 Sydj'!E193*100,"-")) -> - | G195: =IF(OR('Tabel 1 Sydj'!E193<5,'Tabel 2 Sydj'!G195<0.5),"-",IFERROR('Tabel 2 Sydj'!G195/'Tabel 1 Sydj'!E193*100,"-")) -> - | I195: =IF(OR('Tabel 1 Sydj'!G193<5,'Tabel 2 Sydj'!I195<0.5),"-",IFERROR('Tabel 2 Sydj'!I195/'Tabel 1 Sydj'!G193*100,"-")) -> - | J195: =IF(OR('Tabel 1 Sydj'!G193<5,'Tabel 2 Sydj'!J195<0.5),"-",IFERROR('Tabel 2 Sydj'!J195/'Tabel 1 Sydj'!G193*100,"-")) -> -
A196: ='[1]Tabel 2 Sydj DATA'!I189 -> Jurist | C196: =IF(OR('Tabel 1 Sydj'!C194<5,'Tabel 2 Sydj'!C196<0.5),"-",IFERROR('Tabel 2 Sydj'!C196/'Tabel 1 Sydj'!C194*100,"-")) -> 8 | D196: =IF(OR('Tabel 1 Sydj'!C194<5,'Tabel 2 Sydj'!D196<0.5),"-",IFERROR('Tabel 2 Sydj'!D196/'Tabel 1 Sydj'!C194*100,"-")) -> 7.998503087 | F196: =IF(OR('Tabel 1 Sydj'!E194<5,'Tabel 2 Sydj'!F196<0.5),"-",IFERROR('Tabel 2 Sydj'!F196/'Tabel 1 Sydj'!E194*100,"-")) -> - | G196: =IF(OR('Tabel 1 Sydj'!E194<5,'Tabel 2 Sydj'!G196<0.5),"-",IFERROR('Tabel 2 Sydj'!G196/'Tabel 1 Sydj'!E194*100,"-")) -> - | I196: =IF(OR('Tabel 1 Sydj'!G194<5,'Tabel 2 Sydj'!I196<0.5),"-",IFERROR('Tabel 2 Sydj'!I196/'Tabel 1 Sydj'!G194*100,"-")) -> 3.278688525 | J196: =IF(OR('Tabel 1 Sydj'!G194<5,'Tabel 2 Sydj'!J196<0.5),"-",IFERROR('Tabel 2 Sydj'!J196/'Tabel 1 Sydj'!G194*100,"-")) -> 3.278075036
A197: ='[1]Tabel 2 Sydj DATA'!I190 -> Økonom | C197: =IF(OR('Tabel 1 Sydj'!C195<5,'Tabel 2 Sydj'!C197<0.5),"-",IFERROR('Tabel 2 Sydj'!C197/'Tabel 1 Sydj'!C195*100,"-")) -> - | D197: =IF(OR('Tabel 1 Sydj'!C195<5,'Tabel 2 Sydj'!D197<0.5),"-",IFERROR('Tabel 2 Sydj'!D197/'Tabel 1 Sydj'!C195*100,"-")) -> - | F197: =IF(OR('Tabel 1 Sydj'!E195<5,'Tabel 2 Sydj'!F197<0.5),"-",IFERROR('Tabel 2 Sydj'!F197/'Tabel 1 Sydj'!E195*100,"-")) -> - | G197: =IF(OR('Tabel 1 Sydj'!E195<5,'Tabel 2 Sydj'!G197<0.5),"-",IFERROR('Tabel 2 Sydj'!G197/'Tabel 1 Sydj'!E195*100,"-")) -> - | I197: =IF(OR('Tabel 1 Sydj'!G195<5,'Tabel 2 Sydj'!I197<0.5),"-",IFERROR('Tabel 2 Sydj'!I197/'Tabel 1 Sydj'!G195*100,"-")) -> - | J197: =IF(OR('Tabel 1 Sydj'!G195<5,'Tabel 2 Sydj'!J197<0.5),"-",IFERROR('Tabel 2 Sydj'!J197/'Tabel 1 Sydj'!G195*100,"-")) -> -
A198: ='[1]Tabel 2 Sydj DATA'!I191 -> Samf. Adm. | C198: =IF(OR('Tabel 1 Sydj'!C196<5,'Tabel 2 Sydj'!C198<0.5),"-",IFERROR('Tabel 2 Sydj'!C198/'Tabel 1 Sydj'!C196*100,"-")) -> 11.9047619 | D198: =IF(OR('Tabel 1 Sydj'!C196<5,'Tabel 2 Sydj'!D198<0.5),"-",IFERROR('Tabel 2 Sydj'!D198/'Tabel 1 Sydj'!C196*100,"-")) -> 11.90253436 | F198: =IF(OR('Tabel 1 Sydj'!E196<5,'Tabel 2 Sydj'!F198<0.5),"-",IFERROR('Tabel 2 Sydj'!F198/'Tabel 1 Sydj'!E196*100,"-")) -> 1.818181818 | G198: =IF(OR('Tabel 1 Sydj'!E196<5,'Tabel 2 Sydj'!G198<0.5),"-",IFERROR('Tabel 2 Sydj'!G198/'Tabel 1 Sydj'!E196*100,"-")) -> 1.817841611 | I198: =IF(OR('Tabel 1 Sydj'!G196<5,'Tabel 2 Sydj'!I198<0.5),"-",IFERROR('Tabel 2 Sydj'!I198/'Tabel 1 Sydj'!G196*100,"-")) -> 6.18556701 | J198: =IF(OR('Tabel 1 Sydj'!G196<5,'Tabel 2 Sydj'!J198<0.5),"-",IFERROR('Tabel 2 Sydj'!J198/'Tabel 1 Sydj'!G196*100,"-")) -> 6.184409604
A199: ='[1]Tabel 2 Sydj DATA'!I192 -> Cand. Merc. | C199: =IF(OR('Tabel 1 Sydj'!C197<5,'Tabel 2 Sydj'!C199<0.5),"-",IFERROR('Tabel 2 Sydj'!C199/'Tabel 1 Sydj'!C197*100,"-")) -> 5.357142857 | D199: =IF(OR('Tabel 1 Sydj'!C197<5,'Tabel 2 Sydj'!D199<0.5),"-",IFERROR('Tabel 2 Sydj'!D199/'Tabel 1 Sydj'!C197*100,"-")) -> 5.322727232 | F199: =IF(OR('Tabel 1 Sydj'!E197<5,'Tabel 2 Sydj'!F199<0.5),"-",IFERROR('Tabel 2 Sydj'!F199/'Tabel 1 Sydj'!E197*100,"-")) -> 0.9708737864 | G199: =IF(OR('Tabel 1 Sydj'!E197<5,'Tabel 2 Sydj'!G199<0.5),"-",IFERROR('Tabel 2 Sydj'!G199/'Tabel 1 Sydj'!E197*100,"-")) -> 0.9706921223 | I199: =IF(OR('Tabel 1 Sydj'!G197<5,'Tabel 2 Sydj'!I199<0.5),"-",IFERROR('Tabel 2 Sydj'!I199/'Tabel 1 Sydj'!G197*100,"-")) -> 3.255813953 | J199: =IF(OR('Tabel 1 Sydj'!G197<5,'Tabel 2 Sydj'!J199<0.5),"-",IFERROR('Tabel 2 Sydj'!J199/'Tabel 1 Sydj'!G197*100,"-")) -> 3.237798784
A200: ='[1]Tabel 2 Sydj DATA'!I193 -> HA | C200: =IF(OR('Tabel 1 Sydj'!C198<5,'Tabel 2 Sydj'!C200<0.5),"-",IFERROR('Tabel 2 Sydj'!C200/'Tabel 1 Sydj'!C198*100,"-")) -> 2.127659574 | D200: =IF(OR('Tabel 1 Sydj'!C198<5,'Tabel 2 Sydj'!D200<0.5),"-",IFERROR('Tabel 2 Sydj'!D200/'Tabel 1 Sydj'!C198*100,"-")) -> 2.127261459 | F200: =IF(OR('Tabel 1 Sydj'!E198<5,'Tabel 2 Sydj'!F200<0.5),"-",IFERROR('Tabel 2 Sydj'!F200/'Tabel 1 Sydj'!E198*100,"-")) -> - | G200: =IF(OR('Tabel 1 Sydj'!E198<5,'Tabel 2 Sydj'!G200<0.5),"-",IFERROR('Tabel 2 Sydj'!G200/'Tabel 1 Sydj'!E198*100,"-")) -> - | I200: =IF(OR('Tabel 1 Sydj'!G198<5,'Tabel 2 Sydj'!I200<0.5),"-",IFERROR('Tabel 2 Sydj'!I200/'Tabel 1 Sydj'!G198*100,"-")) -> 1.204819277 | J200: =IF(OR('Tabel 1 Sydj'!G198<5,'Tabel 2 Sydj'!J200<0.5),"-",IFERROR('Tabel 2 Sydj'!J200/'Tabel 1 Sydj'!G198*100,"-")) -> 1.204593838
A201: ='[1]Tabel 2 Sydj DATA'!I194 -> HD | C201: =IF(OR('Tabel 1 Sydj'!C199<5,'Tabel 2 Sydj'!C201<0.5),"-",IFERROR('Tabel 2 Sydj'!C201/'Tabel 1 Sydj'!C199*100,"-")) -> 7.142857143 | D201: =IF(OR('Tabel 1 Sydj'!C199<5,'Tabel 2 Sydj'!D201<0.5),"-",IFERROR('Tabel 2 Sydj'!D201/'Tabel 1 Sydj'!C199*100,"-")) -> 7.141520614 | F201: =IF(OR('Tabel 1 Sydj'!E199<5,'Tabel 2 Sydj'!F201<0.5),"-",IFERROR('Tabel 2 Sydj'!F201/'Tabel 1 Sydj'!E199*100,"-")) -> 9.090909091 | G201: =IF(OR('Tabel 1 Sydj'!E199<5,'Tabel 2 Sydj'!G201<0.5),"-",IFERROR('Tabel 2 Sydj'!G201/'Tabel 1 Sydj'!E199*100,"-")) -> 8.578896934 | I201: =IF(OR('Tabel 1 Sydj'!G199<5,'Tabel 2 Sydj'!I201<0.5),"-",IFERROR('Tabel 2 Sydj'!I201/'Tabel 1 Sydj'!G199*100,"-")) -> 8 | J201: =IF(OR('Tabel 1 Sydj'!G199<5,'Tabel 2 Sydj'!J201<0.5),"-",IFERROR('Tabel 2 Sydj'!J201/'Tabel 1 Sydj'!G199*100,"-")) -> 7.773966195
A202: ='[1]Tabel 2 Sydj DATA'!I195 -> Komm. og Sprog | C202: =IF(OR('Tabel 1 Sydj'!C200<5,'Tabel 2 Sydj'!C202<0.5),"-",IFERROR('Tabel 2 Sydj'!C202/'Tabel 1 Sydj'!C200*100,"-")) -> 20 | D202: =IF(OR('Tabel 1 Sydj'!C200<5,'Tabel 2 Sydj'!D202<0.5),"-",IFERROR('Tabel 2 Sydj'!D202/'Tabel 1 Sydj'!C200*100,"-")) -> 19.99625772 | F202: =IF(OR('Tabel 1 Sydj'!E200<5,'Tabel 2 Sydj'!F202<0.5),"-",IFERROR('Tabel 2 Sydj'!F202/'Tabel 1 Sydj'!E200*100,"-")) -> 5.454545455 | G202: =IF(OR('Tabel 1 Sydj'!E200<5,'Tabel 2 Sydj'!G202<0.5),"-",IFERROR('Tabel 2 Sydj'!G202/'Tabel 1 Sydj'!E200*100,"-")) -> 4.050736266 | I202: =IF(OR('Tabel 1 Sydj'!G200<5,'Tabel 2 Sydj'!I202<0.5),"-",IFERROR('Tabel 2 Sydj'!I202/'Tabel 1 Sydj'!G200*100,"-")) -> 6.666666667 | J202: =IF(OR('Tabel 1 Sydj'!G200<5,'Tabel 2 Sydj'!J202<0.5),"-",IFERROR('Tabel 2 Sydj'!J202/'Tabel 1 Sydj'!G200*100,"-")) -> 5.37952972
A203: ='[1]Tabel 2 Sydj DATA'!I196 -> Bygningskonst. | C203: =IF(OR('Tabel 1 Sydj'!C201<5,'Tabel 2 Sydj'!C203<0.5),"-",IFERROR('Tabel 2 Sydj'!C203/'Tabel 1 Sydj'!C201*100,"-")) -> 1.960784314 | D203: =IF(OR('Tabel 1 Sydj'!C201<5,'Tabel 2 Sydj'!D203<0.5),"-",IFERROR('Tabel 2 Sydj'!D203/'Tabel 1 Sydj'!C201*100,"-")) -> - | F203: =IF(OR('Tabel 1 Sydj'!E201<5,'Tabel 2 Sydj'!F203<0.5),"-",IFERROR('Tabel 2 Sydj'!F203/'Tabel 1 Sydj'!E201*100,"-")) -> - | G203: =IF(OR('Tabel 1 Sydj'!E201<5,'Tabel 2 Sydj'!G203<0.5),"-",IFERROR('Tabel 2 Sydj'!G203/'Tabel 1 Sydj'!E201*100,"-")) -> - | I203: =IF(OR('Tabel 1 Sydj'!G201<5,'Tabel 2 Sydj'!I203<0.5),"-",IFERROR('Tabel 2 Sydj'!I203/'Tabel 1 Sydj'!G201*100,"-")) -> 1.818181818 | J203: =IF(OR('Tabel 1 Sydj'!G201<5,'Tabel 2 Sydj'!J203<0.5),"-",IFERROR('Tabel 2 Sydj'!J203/'Tabel 1 Sydj'!G201*100,"-")) -> -
A204: ='[1]Tabel 2 Sydj DATA'!I197 -> Cand. IT. | C204: =IF(OR('Tabel 1 Sydj'!C202<5,'Tabel 2 Sydj'!C204<0.5),"-",IFERROR('Tabel 2 Sydj'!C204/'Tabel 1 Sydj'!C202*100,"-")) -> 12.5 | D204: =IF(OR('Tabel 1 Sydj'!C202<5,'Tabel 2 Sydj'!D204<0.5),"-",IFERROR('Tabel 2 Sydj'!D204/'Tabel 1 Sydj'!C202*100,"-")) -> 12.49766107 | F204: =IF(OR('Tabel 1 Sydj'!E202<5,'Tabel 2 Sydj'!F204<0.5),"-",IFERROR('Tabel 2 Sydj'!F204/'Tabel 1 Sydj'!E202*100,"-")) -> - | G204: =IF(OR('Tabel 1 Sydj'!E202<5,'Tabel 2 Sydj'!G204<0.5),"-",IFERROR('Tabel 2 Sydj'!G204/'Tabel 1 Sydj'!E202*100,"-")) -> - | I204: =IF(OR('Tabel 1 Sydj'!G202<5,'Tabel 2 Sydj'!I204<0.5),"-",IFERROR('Tabel 2 Sydj'!I204/'Tabel 1 Sydj'!G202*100,"-")) -> 8.695652174 | J204: =IF(OR('Tabel 1 Sydj'!G202<5,'Tabel 2 Sydj'!J204<0.5),"-",IFERROR('Tabel 2 Sydj'!J204/'Tabel 1 Sydj'!G202*100,"-")) -> 8.694025095
A205: ='[1]Tabel 2 Sydj DATA'!I198 -> Bac. Samf. | C205: =IF(OR('Tabel 1 Sydj'!C203<5,'Tabel 2 Sydj'!C205<0.5),"-",IFERROR('Tabel 2 Sydj'!C205/'Tabel 1 Sydj'!C203*100,"-")) -> - | D205: =IF(OR('Tabel 1 Sydj'!C203<5,'Tabel 2 Sydj'!D205<0.5),"-",IFERROR('Tabel 2 Sydj'!D205/'Tabel 1 Sydj'!C203*100,"-")) -> - | F205: =IF(OR('Tabel 1 Sydj'!E203<5,'Tabel 2 Sydj'!F205<0.5),"-",IFERROR('Tabel 2 Sydj'!F205/'Tabel 1 Sydj'!E203*100,"-")) -> 10 | G205: =IF(OR('Tabel 1 Sydj'!E203<5,'Tabel 2 Sydj'!G205<0.5),"-",IFERROR('Tabel 2 Sydj'!G205/'Tabel 1 Sydj'!E203*100,"-")) -> - | I205: =IF(OR('Tabel 1 Sydj'!G203<5,'Tabel 2 Sydj'!I205<0.5),"-",IFERROR('Tabel 2 Sydj'!I205/'Tabel 1 Sydj'!G203*100,"-")) -> 21.42857143 | J205: =IF(OR('Tabel 1 Sydj'!G203<5,'Tabel 2 Sydj'!J205<0.5),"-",IFERROR('Tabel 2 Sydj'!J205/'Tabel 1 Sydj'!G203*100,"-")) -> 17.13430336
A206: ='[1]Tabel 2 Sydj DATA'!I199 -> Bac. Hum. | C206: =IF(OR('Tabel 1 Sydj'!C204<5,'Tabel 2 Sydj'!C206<0.5),"-",IFERROR('Tabel 2 Sydj'!C206/'Tabel 1 Sydj'!C204*100,"-")) -> - | D206: =IF(OR('Tabel 1 Sydj'!C204<5,'Tabel 2 Sydj'!D206<0.5),"-",IFERROR('Tabel 2 Sydj'!D206/'Tabel 1 Sydj'!C204*100,"-")) -> - | F206: =IF(OR('Tabel 1 Sydj'!E204<5,'Tabel 2 Sydj'!F206<0.5),"-",IFERROR('Tabel 2 Sydj'!F206/'Tabel 1 Sydj'!E204*100,"-")) -> 20 | G206: =IF(OR('Tabel 1 Sydj'!E204<5,'Tabel 2 Sydj'!G206<0.5),"-",IFERROR('Tabel 2 Sydj'!G206/'Tabel 1 Sydj'!E204*100,"-")) -> 14.00237011 | I206: =IF(OR('Tabel 1 Sydj'!G204<5,'Tabel 2 Sydj'!I206<0.5),"-",IFERROR('Tabel 2 Sydj'!I206/'Tabel 1 Sydj'!G204*100,"-")) -> 11.11111111 | J206: =IF(OR('Tabel 1 Sydj'!G204<5,'Tabel 2 Sydj'!J206<0.5),"-",IFERROR('Tabel 2 Sydj'!J206/'Tabel 1 Sydj'!G204*100,"-")) -> 7.779094506
A207: ='[1]Tabel 2 Sydj DATA'!I200 -> Bac. Nat. | C207: =IF(OR('Tabel 1 Sydj'!C205<5,'Tabel 2 Sydj'!C207<0.5),"-",IFERROR('Tabel 2 Sydj'!C207/'Tabel 1 Sydj'!C205*100,"-")) -> 27.27272727 | D207: =IF(OR('Tabel 1 Sydj'!C205<5,'Tabel 2 Sydj'!D207<0.5),"-",IFERROR('Tabel 2 Sydj'!D207/'Tabel 1 Sydj'!C205*100,"-")) -> 20.48993648 | F207: =IF(OR('Tabel 1 Sydj'!E205<5,'Tabel 2 Sydj'!F207<0.5),"-",IFERROR('Tabel 2 Sydj'!F207/'Tabel 1 Sydj'!E205*100,"-")) -> - | G207: =IF(OR('Tabel 1 Sydj'!E205<5,'Tabel 2 Sydj'!G207<0.5),"-",IFERROR('Tabel 2 Sydj'!G207/'Tabel 1 Sydj'!E205*100,"-")) -> - | I207: =IF(OR('Tabel 1 Sydj'!G205<5,'Tabel 2 Sydj'!I207<0.5),"-",IFERROR('Tabel 2 Sydj'!I207/'Tabel 1 Sydj'!G205*100,"-")) -> 22.5 | J207: =IF(OR('Tabel 1 Sydj'!G205<5,'Tabel 2 Sydj'!J207<0.5),"-",IFERROR('Tabel 2 Sydj'!J207/'Tabel 1 Sydj'!G205*100,"-")) -> 16.90419759
A208: ='[1]Tabel 2 Sydj DATA'!I201 -> Andre | C208: =IF(OR('Tabel 1 Sydj'!C206<5,'Tabel 2 Sydj'!C208<0.5),"-",IFERROR('Tabel 2 Sydj'!C208/'Tabel 1 Sydj'!C206*100,"-")) -> 8.045977011 | D208: =IF(OR('Tabel 1 Sydj'!C206<5,'Tabel 2 Sydj'!D208<0.5),"-",IFERROR('Tabel 2 Sydj'!D208/'Tabel 1 Sydj'!C206*100,"-")) -> 8.033000901 | F208: =IF(OR('Tabel 1 Sydj'!E206<5,'Tabel 2 Sydj'!F208<0.5),"-",IFERROR('Tabel 2 Sydj'!F208/'Tabel 1 Sydj'!E206*100,"-")) -> 5.454545455 | G208: =IF(OR('Tabel 1 Sydj'!E206<5,'Tabel 2 Sydj'!G208<0.5),"-",IFERROR('Tabel 2 Sydj'!G208/'Tabel 1 Sydj'!E206*100,"-")) -> 5.362802855 | I208: =IF(OR('Tabel 1 Sydj'!G206<5,'Tabel 2 Sydj'!I208<0.5),"-",IFERROR('Tabel 2 Sydj'!I208/'Tabel 1 Sydj'!G206*100,"-")) -> 7.042253521 | J208: =IF(OR('Tabel 1 Sydj'!G206<5,'Tabel 2 Sydj'!J208<0.5),"-",IFERROR('Tabel 2 Sydj'!J208/'Tabel 1 Sydj'!G206*100,"-")) -> 6.998769264
A210: ='[1]Tabel 2 Sydj DATA'!I203 -> Total | C210: =IF(OR('Tabel 1 Sydj'!C208<5,'Tabel 2 Sydj'!C210<0.5),"-",IFERROR('Tabel 2 Sydj'!C210/'Tabel 1 Sydj'!C208*100,"-")) -> 4.955223881 | D210: =IF(OR('Tabel 1 Sydj'!C208<5,'Tabel 2 Sydj'!D210<0.5),"-",IFERROR('Tabel 2 Sydj'!D210/'Tabel 1 Sydj'!C208*100,"-")) -> 4.327090302 | F210: =IF(OR('Tabel 1 Sydj'!E208<5,'Tabel 2 Sydj'!F210<0.5),"-",IFERROR('Tabel 2 Sydj'!F210/'Tabel 1 Sydj'!E208*100,"-")) -> 4.678362573 | G210: =IF(OR('Tabel 1 Sydj'!E208<5,'Tabel 2 Sydj'!G210<0.5),"-",IFERROR('Tabel 2 Sydj'!G210/'Tabel 1 Sydj'!E208*100,"-")) -> 4.114078067 | I210: =IF(OR('Tabel 1 Sydj'!G208<5,'Tabel 2 Sydj'!I210<0.5),"-",IFERROR('Tabel 2 Sydj'!I210/'Tabel 1 Sydj'!G208*100,"-")) -> 4.850055535 | J210: =IF(OR('Tabel 1 Sydj'!G208<5,'Tabel 2 Sydj'!J210<0.5),"-",IFERROR('Tabel 2 Sydj'!J210/'Tabel 1 Sydj'!G208*100,"-")) -> 4.246175621
A212: ='[1]Tabel 2 Sydj DATA'!I205 -> Ingeniører i alt | C212: =IF(OR('Tabel 1 Sydj'!C210<5,'Tabel 2 Sydj'!C212<0.5),"-",IFERROR('Tabel 2 Sydj'!C212/'Tabel 1 Sydj'!C210*100,"-")) -> 3.662597114 | D212: =IF(OR('Tabel 1 Sydj'!C210<5,'Tabel 2 Sydj'!D212<0.5),"-",IFERROR('Tabel 2 Sydj'!D212/'Tabel 1 Sydj'!C210*100,"-")) -> 3.028714431 | F212: =IF(OR('Tabel 1 Sydj'!E210<5,'Tabel 2 Sydj'!F212<0.5),"-",IFERROR('Tabel 2 Sydj'!F212/'Tabel 1 Sydj'!E210*100,"-")) -> 5.072463768 | G212: =IF(OR('Tabel 1 Sydj'!E210<5,'Tabel 2 Sydj'!G212<0.5),"-",IFERROR('Tabel 2 Sydj'!G212/'Tabel 1 Sydj'!E210*100,"-")) -> 4.789035657 | I212: =IF(OR('Tabel 1 Sydj'!G210<5,'Tabel 2 Sydj'!I212<0.5),"-",IFERROR('Tabel 2 Sydj'!I212/'Tabel 1 Sydj'!G210*100,"-")) -> 3.84985563 | J212: =IF(OR('Tabel 1 Sydj'!G210<5,'Tabel 2 Sydj'!J212<0.5),"-",IFERROR('Tabel 2 Sydj'!J212/'Tabel 1 Sydj'!G210*100,"-")) -> 3.26252033
A213: ='[1]Tabel 2 Sydj DATA'!I206 -> Magistre i alt | C213: =IF(OR('Tabel 1 Sydj'!C211<5,'Tabel 2 Sydj'!C213<0.5),"-",IFERROR('Tabel 2 Sydj'!C213/'Tabel 1 Sydj'!C211*100,"-")) -> 3.418803419 | D213: =IF(OR('Tabel 1 Sydj'!C211<5,'Tabel 2 Sydj'!D213<0.5),"-",IFERROR('Tabel 2 Sydj'!D213/'Tabel 1 Sydj'!C211*100,"-")) -> 2.274155708 | F213: =IF(OR('Tabel 1 Sydj'!E211<5,'Tabel 2 Sydj'!F213<0.5),"-",IFERROR('Tabel 2 Sydj'!F213/'Tabel 1 Sydj'!E211*100,"-")) -> 9.76744186 | G213: =IF(OR('Tabel 1 Sydj'!E211<5,'Tabel 2 Sydj'!G213<0.5),"-",IFERROR('Tabel 2 Sydj'!G213/'Tabel 1 Sydj'!E211*100,"-")) -> 8.615660433 | I213: =IF(OR('Tabel 1 Sydj'!G211<5,'Tabel 2 Sydj'!I213<0.5),"-",IFERROR('Tabel 2 Sydj'!I213/'Tabel 1 Sydj'!G211*100,"-")) -> 7.530120482 | J213: =IF(OR('Tabel 1 Sydj'!G211<5,'Tabel 2 Sydj'!J213<0.5),"-",IFERROR('Tabel 2 Sydj'!J213/'Tabel 1 Sydj'!G211*100,"-")) -> 6.380853045
A214: ='[1]Tabel 2 Sydj DATA'!I207 -> DJØF'ere i alt | C214: =IF(OR('Tabel 1 Sydj'!C212<5,'Tabel 2 Sydj'!C214<0.5),"-",IFERROR('Tabel 2 Sydj'!C214/'Tabel 1 Sydj'!C212*100,"-")) -> 5.6 | D214: =IF(OR('Tabel 1 Sydj'!C212<5,'Tabel 2 Sydj'!D214<0.5),"-",IFERROR('Tabel 2 Sydj'!D214/'Tabel 1 Sydj'!C212*100,"-")) -> 5.583983035 | F214: =IF(OR('Tabel 1 Sydj'!E212<5,'Tabel 2 Sydj'!F214<0.5),"-",IFERROR('Tabel 2 Sydj'!F214/'Tabel 1 Sydj'!E212*100,"-")) -> 0.8196721311 | G214: =IF(OR('Tabel 1 Sydj'!E212<5,'Tabel 2 Sydj'!G214<0.5),"-",IFERROR('Tabel 2 Sydj'!G214/'Tabel 1 Sydj'!E212*100,"-")) -> 0.819518759 | I214: =IF(OR('Tabel 1 Sydj'!G212<5,'Tabel 2 Sydj'!I214<0.5),"-",IFERROR('Tabel 2 Sydj'!I214/'Tabel 1 Sydj'!G212*100,"-")) -> 3.238866397 | J214: =IF(OR('Tabel 1 Sydj'!G212<5,'Tabel 2 Sydj'!J214<0.5),"-",IFERROR('Tabel 2 Sydj'!J214/'Tabel 1 Sydj'!G212*100,"-")) -> 3.230684891
A219: ='[1]Tabel 2 Sydj DATA'!I210 -> Tønder
C221: Mænd | F221: Kvinder | I221: I alt
C222: Ledigheds- berørte | D222: Gns. brutto- ledighed | F222: Ledigheds- berørte | G222: Gns. brutto- ledighed | I222: Ledigheds- berørte | J222: Gns. brutto- ledighed
A225: ='[1]Tabel 2 Sydj DATA'!I216 -> Civ. ing. | C225: =IF(OR('Tabel 1 Sydj'!C223<5,'Tabel 2 Sydj'!C225<0.5),"-",IFERROR('Tabel 2 Sydj'!C225/'Tabel 1 Sydj'!C223*100,"-")) -> - | D225: =IF(OR('Tabel 1 Sydj'!C223<5,'Tabel 2 Sydj'!D225<0.5),"-",IFERROR('Tabel 2 Sydj'!D225/'Tabel 1 Sydj'!C223*100,"-")) -> - | F225: =IF(OR('Tabel 1 Sydj'!E223<5,'Tabel 2 Sydj'!F225<0.5),"-",IFERROR('Tabel 2 Sydj'!F225/'Tabel 1 Sydj'!E223*100,"-")) -> - | G225: =IF(OR('Tabel 1 Sydj'!E223<5,'Tabel 2 Sydj'!G225<0.5),"-",IFERROR('Tabel 2 Sydj'!G225/'Tabel 1 Sydj'!E223*100,"-")) -> - | I225: =IF(OR('Tabel 1 Sydj'!G223<5,'Tabel 2 Sydj'!I225<0.5),"-",IFERROR('Tabel 2 Sydj'!I225/'Tabel 1 Sydj'!G223*100,"-")) -> - | J225: =IF(OR('Tabel 1 Sydj'!G223<5,'Tabel 2 Sydj'!J225<0.5),"-",IFERROR('Tabel 2 Sydj'!J225/'Tabel 1 Sydj'!G223*100,"-")) -> -
A226: ='[1]Tabel 2 Sydj DATA'!I217 -> Diplom ing. | C226: =IF(OR('Tabel 1 Sydj'!C224<5,'Tabel 2 Sydj'!C226<0.5),"-",IFERROR('Tabel 2 Sydj'!C226/'Tabel 1 Sydj'!C224*100,"-")) -> 4.761904762 | D226: =IF(OR('Tabel 1 Sydj'!C224<5,'Tabel 2 Sydj'!D226<0.5),"-",IFERROR('Tabel 2 Sydj'!D226/'Tabel 1 Sydj'!C224*100,"-")) -> 4.761013742 | F226: =IF(OR('Tabel 1 Sydj'!E224<5,'Tabel 2 Sydj'!F226<0.5),"-",IFERROR('Tabel 2 Sydj'!F226/'Tabel 1 Sydj'!E224*100,"-")) -> - | G226: =IF(OR('Tabel 1 Sydj'!E224<5,'Tabel 2 Sydj'!G226<0.5),"-",IFERROR('Tabel 2 Sydj'!G226/'Tabel 1 Sydj'!E224*100,"-")) -> - | I226: =IF(OR('Tabel 1 Sydj'!G224<5,'Tabel 2 Sydj'!I226<0.5),"-",IFERROR('Tabel 2 Sydj'!I226/'Tabel 1 Sydj'!G224*100,"-")) -> 3.571428571 | J226: =IF(OR('Tabel 1 Sydj'!G224<5,'Tabel 2 Sydj'!J226<0.5),"-",IFERROR('Tabel 2 Sydj'!J226/'Tabel 1 Sydj'!G224*100,"-")) -> 3.570760307
A227: ='[1]Tabel 2 Sydj DATA'!I218 -> Cand. Scient. Tek. | C227: =IF(OR('Tabel 1 Sydj'!C225<5,'Tabel 2 Sydj'!C227<0.5),"-",IFERROR('Tabel 2 Sydj'!C227/'Tabel 1 Sydj'!C225*100,"-")) -> - | D227: =IF(OR('Tabel 1 Sydj'!C225<5,'Tabel 2 Sydj'!D227<0.5),"-",IFERROR('Tabel 2 Sydj'!D227/'Tabel 1 Sydj'!C225*100,"-")) -> - | F227: =IF(OR('Tabel 1 Sydj'!E225<5,'Tabel 2 Sydj'!F227<0.5),"-",IFERROR('Tabel 2 Sydj'!F227/'Tabel 1 Sydj'!E225*100,"-")) -> - | G227: =IF(OR('Tabel 1 Sydj'!E225<5,'Tabel 2 Sydj'!G227<0.5),"-",IFERROR('Tabel 2 Sydj'!G227/'Tabel 1 Sydj'!E225*100,"-")) -> - | I227: =IF(OR('Tabel 1 Sydj'!G225<5,'Tabel 2 Sydj'!I227<0.5),"-",IFERROR('Tabel 2 Sydj'!I227/'Tabel 1 Sydj'!G225*100,"-")) -> - | J227: =IF(OR('Tabel 1 Sydj'!G225<5,'Tabel 2 Sydj'!J227<0.5),"-",IFERROR('Tabel 2 Sydj'!J227/'Tabel 1 Sydj'!G225*100,"-")) -> -
A228: ='[1]Tabel 2 Sydj DATA'!I219 -> MA. Hum. | C228: =IF(OR('Tabel 1 Sydj'!C226<5,'Tabel 2 Sydj'!C228<0.5),"-",IFERROR('Tabel 2 Sydj'!C228/'Tabel 1 Sydj'!C226*100,"-")) -> 3.448275862 | D228: =IF(OR('Tabel 1 Sydj'!C226<5,'Tabel 2 Sydj'!D228<0.5),"-",IFERROR('Tabel 2 Sydj'!D228/'Tabel 1 Sydj'!C226*100,"-")) -> 3.447630641 | F228: =IF(OR('Tabel 1 Sydj'!E226<5,'Tabel 2 Sydj'!F228<0.5),"-",IFERROR('Tabel 2 Sydj'!F228/'Tabel 1 Sydj'!E226*100,"-")) -> 11.36363636 | G228: =IF(OR('Tabel 1 Sydj'!E226<5,'Tabel 2 Sydj'!G228<0.5),"-",IFERROR('Tabel 2 Sydj'!G228/'Tabel 1 Sydj'!E226*100,"-")) -> 9.788050782 | I228: =IF(OR('Tabel 1 Sydj'!G226<5,'Tabel 2 Sydj'!I228<0.5),"-",IFERROR('Tabel 2 Sydj'!I228/'Tabel 1 Sydj'!G226*100,"-")) -> 8.219178082 | J228: =IF(OR('Tabel 1 Sydj'!G226<5,'Tabel 2 Sydj'!J228<0.5),"-",IFERROR('Tabel 2 Sydj'!J228/'Tabel 1 Sydj'!G226*100,"-")) -> 7.26925374
A229: ='[1]Tabel 2 Sydj DATA'!I220 -> MA. Nat. | C229: =IF(OR('Tabel 1 Sydj'!C227<5,'Tabel 2 Sydj'!C229<0.5),"-",IFERROR('Tabel 2 Sydj'!C229/'Tabel 1 Sydj'!C227*100,"-")) -> 9.090909091 | D229: =IF(OR('Tabel 1 Sydj'!C227<5,'Tabel 2 Sydj'!D229<0.5),"-",IFERROR('Tabel 2 Sydj'!D229/'Tabel 1 Sydj'!C227*100,"-")) -> 7.371160618 | F229: =IF(OR('Tabel 1 Sydj'!E227<5,'Tabel 2 Sydj'!F229<0.5),"-",IFERROR('Tabel 2 Sydj'!F229/'Tabel 1 Sydj'!E227*100,"-")) -> 7.142857143 | G229: =IF(OR('Tabel 1 Sydj'!E227<5,'Tabel 2 Sydj'!G229<0.5),"-",IFERROR('Tabel 2 Sydj'!G229/'Tabel 1 Sydj'!E227*100,"-")) -> 7.141520614 | I229: =IF(OR('Tabel 1 Sydj'!G227<5,'Tabel 2 Sydj'!I229<0.5),"-",IFERROR('Tabel 2 Sydj'!I229/'Tabel 1 Sydj'!G227*100,"-")) -> 8 | J229: =IF(OR('Tabel 1 Sydj'!G227<5,'Tabel 2 Sydj'!J229<0.5),"-",IFERROR('Tabel 2 Sydj'!J229/'Tabel 1 Sydj'!G227*100,"-")) -> 7.242562215
A230: ='[1]Tabel 2 Sydj DATA'!I221 -> MA. Ph.d. | C230: =IF(OR('Tabel 1 Sydj'!C228<5,'Tabel 2 Sydj'!C230<0.5),"-",IFERROR('Tabel 2 Sydj'!C230/'Tabel 1 Sydj'!C228*100,"-")) -> - | D230: =IF(OR('Tabel 1 Sydj'!C228<5,'Tabel 2 Sydj'!D230<0.5),"-",IFERROR('Tabel 2 Sydj'!D230/'Tabel 1 Sydj'!C228*100,"-")) -> - | F230: =IF(OR('Tabel 1 Sydj'!E228<5,'Tabel 2 Sydj'!F230<0.5),"-",IFERROR('Tabel 2 Sydj'!F230/'Tabel 1 Sydj'!E228*100,"-")) -> - | G230: =IF(OR('Tabel 1 Sydj'!E228<5,'Tabel 2 Sydj'!G230<0.5),"-",IFERROR('Tabel 2 Sydj'!G230/'Tabel 1 Sydj'!E228*100,"-")) -> - | I230: =IF(OR('Tabel 1 Sydj'!G228<5,'Tabel 2 Sydj'!I230<0.5),"-",IFERROR('Tabel 2 Sydj'!I230/'Tabel 1 Sydj'!G228*100,"-")) -> - | J230: =IF(OR('Tabel 1 Sydj'!G228<5,'Tabel 2 Sydj'!J230<0.5),"-",IFERROR('Tabel 2 Sydj'!J230/'Tabel 1 Sydj'!G228*100,"-")) -> -
A231: ='[1]Tabel 2 Sydj DATA'!I222 -> MA. Samf. | C231: =IF(OR('Tabel 1 Sydj'!C229<5,'Tabel 2 Sydj'!C231<0.5),"-",IFERROR('Tabel 2 Sydj'!C231/'Tabel 1 Sydj'!C229*100,"-")) -> - | D231: =IF(OR('Tabel 1 Sydj'!C229<5,'Tabel 2 Sydj'!D231<0.5),"-",IFERROR('Tabel 2 Sydj'!D231/'Tabel 1 Sydj'!C229*100,"-")) -> - | F231: =IF(OR('Tabel 1 Sydj'!E229<5,'Tabel 2 Sydj'!F231<0.5),"-",IFERROR('Tabel 2 Sydj'!F231/'Tabel 1 Sydj'!E229*100,"-")) -> - | G231: =IF(OR('Tabel 1 Sydj'!E229<5,'Tabel 2 Sydj'!G231<0.5),"-",IFERROR('Tabel 2 Sydj'!G231/'Tabel 1 Sydj'!E229*100,"-")) -> - | I231: =IF(OR('Tabel 1 Sydj'!G229<5,'Tabel 2 Sydj'!I231<0.5),"-",IFERROR('Tabel 2 Sydj'!I231/'Tabel 1 Sydj'!G229*100,"-")) -> - | J231: =IF(OR('Tabel 1 Sydj'!G229<5,'Tabel 2 Sydj'!J231<0.5),"-",IFERROR('Tabel 2 Sydj'!J231/'Tabel 1 Sydj'!G229*100,"-")) -> -
A232: ='[1]Tabel 2 Sydj DATA'!I223 -> Øvrige Mag. | C232: =IF(OR('Tabel 1 Sydj'!C230<5,'Tabel 2 Sydj'!C232<0.5),"-",IFERROR('Tabel 2 Sydj'!C232/'Tabel 1 Sydj'!C230*100,"-")) -> - | D232: =IF(OR('Tabel 1 Sydj'!C230<5,'Tabel 2 Sydj'!D232<0.5),"-",IFERROR('Tabel 2 Sydj'!D232/'Tabel 1 Sydj'!C230*100,"-")) -> - | F232: =IF(OR('Tabel 1 Sydj'!E230<5,'Tabel 2 Sydj'!F232<0.5),"-",IFERROR('Tabel 2 Sydj'!F232/'Tabel 1 Sydj'!E230*100,"-")) -> - | G232: =IF(OR('Tabel 1 Sydj'!E230<5,'Tabel 2 Sydj'!G232<0.5),"-",IFERROR('Tabel 2 Sydj'!G232/'Tabel 1 Sydj'!E230*100,"-")) -> - | I232: =IF(OR('Tabel 1 Sydj'!G230<5,'Tabel 2 Sydj'!I232<0.5),"-",IFERROR('Tabel 2 Sydj'!I232/'Tabel 1 Sydj'!G230*100,"-")) -> - | J232: =IF(OR('Tabel 1 Sydj'!G230<5,'Tabel 2 Sydj'!J232<0.5),"-",IFERROR('Tabel 2 Sydj'!J232/'Tabel 1 Sydj'!G230*100,"-")) -> -
A233: ='[1]Tabel 2 Sydj DATA'!I224 -> Agronom | C233: =IF(OR('Tabel 1 Sydj'!C231<5,'Tabel 2 Sydj'!C233<0.5),"-",IFERROR('Tabel 2 Sydj'!C233/'Tabel 1 Sydj'!C231*100,"-")) -> - | D233: =IF(OR('Tabel 1 Sydj'!C231<5,'Tabel 2 Sydj'!D233<0.5),"-",IFERROR('Tabel 2 Sydj'!D233/'Tabel 1 Sydj'!C231*100,"-")) -> - | F233: =IF(OR('Tabel 1 Sydj'!E231<5,'Tabel 2 Sydj'!F233<0.5),"-",IFERROR('Tabel 2 Sydj'!F233/'Tabel 1 Sydj'!E231*100,"-")) -> - | G233: =IF(OR('Tabel 1 Sydj'!E231<5,'Tabel 2 Sydj'!G233<0.5),"-",IFERROR('Tabel 2 Sydj'!G233/'Tabel 1 Sydj'!E231*100,"-")) -> - | I233: =IF(OR('Tabel 1 Sydj'!G231<5,'Tabel 2 Sydj'!I233<0.5),"-",IFERROR('Tabel 2 Sydj'!I233/'Tabel 1 Sydj'!G231*100,"-")) -> - | J233: =IF(OR('Tabel 1 Sydj'!G231<5,'Tabel 2 Sydj'!J233<0.5),"-",IFERROR('Tabel 2 Sydj'!J233/'Tabel 1 Sydj'!G231*100,"-")) -> -
A234: ='[1]Tabel 2 Sydj DATA'!I225 -> Landsk. Arkt. | C234: =IF(OR('Tabel 1 Sydj'!C232<5,'Tabel 2 Sydj'!C234<0.5),"-",IFERROR('Tabel 2 Sydj'!C234/'Tabel 1 Sydj'!C232*100,"-")) -> - | D234: =IF(OR('Tabel 1 Sydj'!C232<5,'Tabel 2 Sydj'!D234<0.5),"-",IFERROR('Tabel 2 Sydj'!D234/'Tabel 1 Sydj'!C232*100,"-")) -> - | F234: =IF(OR('Tabel 1 Sydj'!E232<5,'Tabel 2 Sydj'!F234<0.5),"-",IFERROR('Tabel 2 Sydj'!F234/'Tabel 1 Sydj'!E232*100,"-")) -> - | G234: =IF(OR('Tabel 1 Sydj'!E232<5,'Tabel 2 Sydj'!G234<0.5),"-",IFERROR('Tabel 2 Sydj'!G234/'Tabel 1 Sydj'!E232*100,"-")) -> - | I234: =IF(OR('Tabel 1 Sydj'!G232<5,'Tabel 2 Sydj'!I234<0.5),"-",IFERROR('Tabel 2 Sydj'!I234/'Tabel 1 Sydj'!G232*100,"-")) -> - | J234: =IF(OR('Tabel 1 Sydj'!G232<5,'Tabel 2 Sydj'!J234<0.5),"-",IFERROR('Tabel 2 Sydj'!J234/'Tabel 1 Sydj'!G232*100,"-")) -> -
A235: ='[1]Tabel 2 Sydj DATA'!I226 -> Hortonom | C235: =IF(OR('Tabel 1 Sydj'!C233<5,'Tabel 2 Sydj'!C235<0.5),"-",IFERROR('Tabel 2 Sydj'!C235/'Tabel 1 Sydj'!C233*100,"-")) -> - | D235: =IF(OR('Tabel 1 Sydj'!C233<5,'Tabel 2 Sydj'!D235<0.5),"-",IFERROR('Tabel 2 Sydj'!D235/'Tabel 1 Sydj'!C233*100,"-")) -> - | F235: =IF(OR('Tabel 1 Sydj'!E233<5,'Tabel 2 Sydj'!F235<0.5),"-",IFERROR('Tabel 2 Sydj'!F235/'Tabel 1 Sydj'!E233*100,"-")) -> - | G235: =IF(OR('Tabel 1 Sydj'!E233<5,'Tabel 2 Sydj'!G235<0.5),"-",IFERROR('Tabel 2 Sydj'!G235/'Tabel 1 Sydj'!E233*100,"-")) -> - | I235: =IF(OR('Tabel 1 Sydj'!G233<5,'Tabel 2 Sydj'!I235<0.5),"-",IFERROR('Tabel 2 Sydj'!I235/'Tabel 1 Sydj'!G233*100,"-")) -> - | J235: =IF(OR('Tabel 1 Sydj'!G233<5,'Tabel 2 Sydj'!J235<0.5),"-",IFERROR('Tabel 2 Sydj'!J235/'Tabel 1 Sydj'!G233*100,"-")) -> -
A236: ='[1]Tabel 2 Sydj DATA'!I227 -> Forstkand. | C236: =IF(OR('Tabel 1 Sydj'!C234<5,'Tabel 2 Sydj'!C236<0.5),"-",IFERROR('Tabel 2 Sydj'!C236/'Tabel 1 Sydj'!C234*100,"-")) -> - | D236: =IF(OR('Tabel 1 Sydj'!C234<5,'Tabel 2 Sydj'!D236<0.5),"-",IFERROR('Tabel 2 Sydj'!D236/'Tabel 1 Sydj'!C234*100,"-")) -> - | F236: =IF(OR('Tabel 1 Sydj'!E234<5,'Tabel 2 Sydj'!F236<0.5),"-",IFERROR('Tabel 2 Sydj'!F236/'Tabel 1 Sydj'!E234*100,"-")) -> - | G236: =IF(OR('Tabel 1 Sydj'!E234<5,'Tabel 2 Sydj'!G236<0.5),"-",IFERROR('Tabel 2 Sydj'!G236/'Tabel 1 Sydj'!E234*100,"-")) -> - | I236: =IF(OR('Tabel 1 Sydj'!G234<5,'Tabel 2 Sydj'!I236<0.5),"-",IFERROR('Tabel 2 Sydj'!I236/'Tabel 1 Sydj'!G234*100,"-")) -> - | J236: =IF(OR('Tabel 1 Sydj'!G234<5,'Tabel 2 Sydj'!J236<0.5),"-",IFERROR('Tabel 2 Sydj'!J236/'Tabel 1 Sydj'!G234*100,"-")) -> -
A237: ='[1]Tabel 2 Sydj DATA'!I228 -> Jordbrugsakad. | C237: =IF(OR('Tabel 1 Sydj'!C235<5,'Tabel 2 Sydj'!C237<0.5),"-",IFERROR('Tabel 2 Sydj'!C237/'Tabel 1 Sydj'!C235*100,"-")) -> - | D237: =IF(OR('Tabel 1 Sydj'!C235<5,'Tabel 2 Sydj'!D237<0.5),"-",IFERROR('Tabel 2 Sydj'!D237/'Tabel 1 Sydj'!C235*100,"-")) -> - | F237: =IF(OR('Tabel 1 Sydj'!E235<5,'Tabel 2 Sydj'!F237<0.5),"-",IFERROR('Tabel 2 Sydj'!F237/'Tabel 1 Sydj'!E235*100,"-")) -> - | G237: =IF(OR('Tabel 1 Sydj'!E235<5,'Tabel 2 Sydj'!G237<0.5),"-",IFERROR('Tabel 2 Sydj'!G237/'Tabel 1 Sydj'!E235*100,"-")) -> - | I237: =IF(OR('Tabel 1 Sydj'!G235<5,'Tabel 2 Sydj'!I237<0.5),"-",IFERROR('Tabel 2 Sydj'!I237/'Tabel 1 Sydj'!G235*100,"-")) -> - | J237: =IF(OR('Tabel 1 Sydj'!G235<5,'Tabel 2 Sydj'!J237<0.5),"-",IFERROR('Tabel 2 Sydj'!J237/'Tabel 1 Sydj'!G235*100,"-")) -> -
A238: ='[1]Tabel 2 Sydj DATA'!I229 -> Mejeriing. | C238: =IF(OR('Tabel 1 Sydj'!C236<5,'Tabel 2 Sydj'!C238<0.5),"-",IFERROR('Tabel 2 Sydj'!C238/'Tabel 1 Sydj'!C236*100,"-")) -> - | D238: =IF(OR('Tabel 1 Sydj'!C236<5,'Tabel 2 Sydj'!D238<0.5),"-",IFERROR('Tabel 2 Sydj'!D238/'Tabel 1 Sydj'!C236*100,"-")) -> - | F238: =IF(OR('Tabel 1 Sydj'!E236<5,'Tabel 2 Sydj'!F238<0.5),"-",IFERROR('Tabel 2 Sydj'!F238/'Tabel 1 Sydj'!E236*100,"-")) -> - | G238: =IF(OR('Tabel 1 Sydj'!E236<5,'Tabel 2 Sydj'!G238<0.5),"-",IFERROR('Tabel 2 Sydj'!G238/'Tabel 1 Sydj'!E236*100,"-")) -> - | I238: =IF(OR('Tabel 1 Sydj'!G236<5,'Tabel 2 Sydj'!I238<0.5),"-",IFERROR('Tabel 2 Sydj'!I238/'Tabel 1 Sydj'!G236*100,"-")) -> - | J238: =IF(OR('Tabel 1 Sydj'!G236<5,'Tabel 2 Sydj'!J238<0.5),"-",IFERROR('Tabel 2 Sydj'!J238/'Tabel 1 Sydj'!G236*100,"-")) -> -
A239: ='[1]Tabel 2 Sydj DATA'!I230 -> Levn.m.kand. | C239: =IF(OR('Tabel 1 Sydj'!C237<5,'Tabel 2 Sydj'!C239<0.5),"-",IFERROR('Tabel 2 Sydj'!C239/'Tabel 1 Sydj'!C237*100,"-")) -> - | D239: =IF(OR('Tabel 1 Sydj'!C237<5,'Tabel 2 Sydj'!D239<0.5),"-",IFERROR('Tabel 2 Sydj'!D239/'Tabel 1 Sydj'!C237*100,"-")) -> - | F239: =IF(OR('Tabel 1 Sydj'!E237<5,'Tabel 2 Sydj'!F239<0.5),"-",IFERROR('Tabel 2 Sydj'!F239/'Tabel 1 Sydj'!E237*100,"-")) -> - | G239: =IF(OR('Tabel 1 Sydj'!E237<5,'Tabel 2 Sydj'!G239<0.5),"-",IFERROR('Tabel 2 Sydj'!G239/'Tabel 1 Sydj'!E237*100,"-")) -> - | I239: =IF(OR('Tabel 1 Sydj'!G237<5,'Tabel 2 Sydj'!I239<0.5),"-",IFERROR('Tabel 2 Sydj'!I239/'Tabel 1 Sydj'!G237*100,"-")) -> - | J239: =IF(OR('Tabel 1 Sydj'!G237<5,'Tabel 2 Sydj'!J239<0.5),"-",IFERROR('Tabel 2 Sydj'!J239/'Tabel 1 Sydj'!G237*100,"-")) -> -
A240: ='[1]Tabel 2 Sydj DATA'!I231 -> Dyrlæge | C240: =IF(OR('Tabel 1 Sydj'!C238<5,'Tabel 2 Sydj'!C240<0.5),"-",IFERROR('Tabel 2 Sydj'!C240/'Tabel 1 Sydj'!C238*100,"-")) -> - | D240: =IF(OR('Tabel 1 Sydj'!C238<5,'Tabel 2 Sydj'!D240<0.5),"-",IFERROR('Tabel 2 Sydj'!D240/'Tabel 1 Sydj'!C238*100,"-")) -> - | F240: =IF(OR('Tabel 1 Sydj'!E238<5,'Tabel 2 Sydj'!F240<0.5),"-",IFERROR('Tabel 2 Sydj'!F240/'Tabel 1 Sydj'!E238*100,"-")) -> 6.25 | G240: =IF(OR('Tabel 1 Sydj'!E238<5,'Tabel 2 Sydj'!G240<0.5),"-",IFERROR('Tabel 2 Sydj'!G240/'Tabel 1 Sydj'!E238*100,"-")) -> 4.806492858 | I240: =IF(OR('Tabel 1 Sydj'!G238<5,'Tabel 2 Sydj'!I240<0.5),"-",IFERROR('Tabel 2 Sydj'!I240/'Tabel 1 Sydj'!G238*100,"-")) -> 5 | J240: =IF(OR('Tabel 1 Sydj'!G238<5,'Tabel 2 Sydj'!J240<0.5),"-",IFERROR('Tabel 2 Sydj'!J240/'Tabel 1 Sydj'!G238*100,"-")) -> 3.845194287
... 386 more rows

Sheet Tabel 4F Sydj
A1: ='[1]Tabel 4F Sydj DATA'!L1 -> Tabel 4. Antal forsikrede - aldersfordelt
A3: ='[1]Tabel 4F Sydj DATA'!L3 -> Sydjylland
C5: ='[1]Tabel 4F Sydj DATA'!N5 -> Under 30 år | D5: ='[1]Tabel 4F Sydj DATA'!O5 -> 30 - 39 år | E5: ='[1]Tabel 4F Sydj DATA'!P5 -> 40 - 49 år | F5: ='[1]Tabel 4F Sydj DATA'!Q5 -> 50 - 59 år | G5: ='[1]Tabel 4F Sydj DATA'!R5 -> Over 60 år | I5: ='[1]Tabel 4F Sydj DATA'!T5 -> I alt
A7: ='[1]Tabel 4F Sydj DATA'!L7 -> Civ. ing. | C7: ='[1]Tabel 4F Sydj DATA'!N7 -> 267 | D7: ='[1]Tabel 4F Sydj DATA'!O7 -> 695 | E7: ='[1]Tabel 4F Sydj DATA'!P7 -> 574 | F7: ='[1]Tabel 4F Sydj DATA'!Q7 -> 375 | G7: ='[1]Tabel 4F Sydj DATA'!R7 -> 97 | I7: ='[1]Tabel 4F Sydj DATA'!T7 -> 2008
A8: ='[1]Tabel 4F Sydj DATA'!L8 -> Diplom ing. | C8: ='[1]Tabel 4F Sydj DATA'!N8 -> 272 | D8: ='[1]Tabel 4F Sydj DATA'!O8 -> 702 | E8: ='[1]Tabel 4F Sydj DATA'!P8 -> 1128 | F8: ='[1]Tabel 4F Sydj DATA'!Q8 -> 1624 | G8: ='[1]Tabel 4F Sydj DATA'!R8 -> 488 | I8: ='[1]Tabel 4F Sydj DATA'!T8 -> 4214
A9: ='[1]Tabel 4F Sydj DATA'!L9 -> Cand. Scient. Tek. | C9: ='[1]Tabel 4F Sydj DATA'!N9 -> 244 | D9: ='[1]Tabel 4F Sydj DATA'!O9 -> 486 | E9: ='[1]Tabel 4F Sydj DATA'!P9 -> 156 | F9: ='[1]Tabel 4F Sydj DATA'!Q9 -> 57 | G9: ='[1]Tabel 4F Sydj DATA'!R9 -> 16 | I9: ='[1]Tabel 4F Sydj DATA'!T9 -> 959
A10: ='[1]Tabel 4F Sydj DATA'!L10 -> MA. Hum. | C10: ='[1]Tabel 4F Sydj DATA'!N10 -> 243 | D10: ='[1]Tabel 4F Sydj DATA'!O10 -> 748 | E10: ='[1]Tabel 4F Sydj DATA'!P10 -> 814 | F10: ='[1]Tabel 4F Sydj DATA'!Q10 -> 371 | G10: ='[1]Tabel 4F Sydj DATA'!R10 -> 172 | I10: ='[1]Tabel 4F Sydj DATA'!T10 -> 2348
A11: ='[1]Tabel 4F Sydj DATA'!L11 -> MA. Nat. | C11: ='[1]Tabel 4F Sydj DATA'!N11 -> 36 | D11: ='[1]Tabel 4F Sydj DATA'!O11 -> 162 | E11: ='[1]Tabel 4F Sydj DATA'!P11 -> 264 | F11: ='[1]Tabel 4F Sydj DATA'!Q11 -> 208 | G11: ='[1]Tabel 4F Sydj DATA'!R11 -> 78 | I11: ='[1]Tabel 4F Sydj DATA'!T11 -> 748
A12: ='[1]Tabel 4F Sydj DATA'!L12 -> MA. Ph.d. | C12: ='[1]Tabel 4F Sydj DATA'!N12 -> 0 | D12: ='[1]Tabel 4F Sydj DATA'!O12 -> 22 | E12: ='[1]Tabel 4F Sydj DATA'!P12 -> 25 | F12: ='[1]Tabel 4F Sydj DATA'!Q12 -> 22 | G12: ='[1]Tabel 4F Sydj DATA'!R12 -> 8 | I12: ='[1]Tabel 4F Sydj DATA'!T12 -> 77
A13: ='[1]Tabel 4F Sydj DATA'!L13 -> MA. Samf. | C13: ='[1]Tabel 4F Sydj DATA'!N13 -> 26 | D13: ='[1]Tabel 4F Sydj DATA'!O13 -> 86 | E13: ='[1]Tabel 4F Sydj DATA'!P13 -> 14 | F13: ='[1]Tabel 4F Sydj DATA'!Q13 -> 10 | G13: ='[1]Tabel 4F Sydj DATA'!R13 -> 1 | I13: ='[1]Tabel 4F Sydj DATA'!T13 -> 137
A14: ='[1]Tabel 4F Sydj DATA'!L14 -> Øvrige Mag. | C14: ='[1]Tabel 4F Sydj DATA'!N14 -> 10 | D14: ='[1]Tabel 4F Sydj DATA'!O14 -> 48 | E14: ='[1]Tabel 4F Sydj DATA'!P14 -> 62 | F14: ='[1]Tabel 4F Sydj DATA'!Q14 -> 62 | G14: ='[1]Tabel 4F Sydj DATA'!R14 -> 32 | I14: ='[1]Tabel 4F Sydj DATA'!T14 -> 214
A15: ='[1]Tabel 4F Sydj DATA'!L15 -> Agronom | C15: ='[1]Tabel 4F Sydj DATA'!N15 -> 12 | D15: ='[1]Tabel 4F Sydj DATA'!O15 -> 25 | E15: ='[1]Tabel 4F Sydj DATA'!P15 -> 58 | F15: ='[1]Tabel 4F Sydj DATA'!Q15 -> 85 | G15: ='[1]Tabel 4F Sydj DATA'!R15 -> 41 | I15: ='[1]Tabel 4F Sydj DATA'!T15 -> 221
A16: ='[1]Tabel 4F Sydj DATA'!L16 -> Landsk. Arkt. | C16: ='[1]Tabel 4F Sydj DATA'!N16 -> 0 | D16: ='[1]Tabel 4F Sydj DATA'!O16 -> 8 | E16: ='[1]Tabel 4F Sydj DATA'!P16 -> 8 | F16: ='[1]Tabel 4F Sydj DATA'!Q16 -> 10 | G16: ='[1]Tabel 4F Sydj DATA'!R16 -> 5 | I16: ='[1]Tabel 4F Sydj DATA'!T16 -> 31
A17: ='[1]Tabel 4F Sydj DATA'!L17 -> Hortonom | C17: ='[1]Tabel 4F Sydj DATA'!N17 -> 0 | D17: ='[1]Tabel 4F Sydj DATA'!O17 -> 4 | E17: ='[1]Tabel 4F Sydj DATA'!P17 -> 1 | F17: ='[1]Tabel 4F Sydj DATA'!Q17 -> 7 | G17: ='[1]Tabel 4F Sydj DATA'!R17 -> 6 | I17: ='[1]Tabel 4F Sydj DATA'!T17 -> 18
A18: ='[1]Tabel 4F Sydj DATA'!L18 -> Forstkand. | C18: ='[1]Tabel 4F Sydj DATA'!N18 -> 1 | D18: ='[1]Tabel 4F Sydj DATA'!O18 -> 8 | E18: ='[1]Tabel 4F Sydj DATA'!P18 -> 16 | F18: ='[1]Tabel 4F Sydj DATA'!Q18 -> 11 | G18: ='[1]Tabel 4F Sydj DATA'!R18 -> 3 | I18: ='[1]Tabel 4F Sydj DATA'!T18 -> 39
A19: ='[1]Tabel 4F Sydj DATA'!L19 -> Jordbrugsakad. | C19: ='[1]Tabel 4F Sydj DATA'!N19 -> 13 | D19: ='[1]Tabel 4F Sydj DATA'!O19 -> 45 | E19: ='[1]Tabel 4F Sydj DATA'!P19 -> 83 | F19: ='[1]Tabel 4F Sydj DATA'!Q19 -> 113 | G19: ='[1]Tabel 4F Sydj DATA'!R19 -> 55 | I19: ='[1]Tabel 4F Sydj DATA'!T19 -> 309
A20: ='[1]Tabel 4F Sydj DATA'!L20 -> Mejeriing. | C20: ='[1]Tabel 4F Sydj DATA'!N20 -> 3 | D20: ='[1]Tabel 4F Sydj DATA'!O20 -> 3 | E20: ='[1]Tabel 4F Sydj DATA'!P20 -> 9 | F20: ='[1]Tabel 4F Sydj DATA'!Q20 -> 22 | G20: ='[1]Tabel 4F Sydj DATA'!R20 -> 4 | I20: ='[1]Tabel 4F Sydj DATA'!T20 -> 41
A21: ='[1]Tabel 4F Sydj DATA'!L21 -> Levn.m.kand. | C21: ='[1]Tabel 4F Sydj DATA'!N21 -> 4 | D21: ='[1]Tabel 4F Sydj DATA'!O21 -> 5 | E21: ='[1]Tabel 4F Sydj DATA'!P21 -> 2 | F21: ='[1]Tabel 4F Sydj DATA'!Q21 -> 0 | G21: ='[1]Tabel 4F Sydj DATA'!R21 -> 0 | I21: ='[1]Tabel 4F Sydj DATA'!T21 -> 11
A22: ='[1]Tabel 4F Sydj DATA'!L22 -> Dyrlæge | C22: ='[1]Tabel 4F Sydj DATA'!N22 -> 35 | D22: ='[1]Tabel 4F Sydj DATA'!O22 -> 94 | E22: ='[1]Tabel 4F Sydj DATA'!P22 -> 93 | F22: ='[1]Tabel 4F Sydj DATA'!Q22 -> 56 | G22: ='[1]Tabel 4F Sydj DATA'!R22 -> 23 | I22: ='[1]Tabel 4F Sydj DATA'!T22 -> 301
A23: ='[1]Tabel 4F Sydj DATA'!L23 -> Farmaceut | C23: ='[1]Tabel 4F Sydj DATA'!N23 -> 43 | D23: ='[1]Tabel 4F Sydj DATA'!O23 -> 49 | E23: ='[1]Tabel 4F Sydj DATA'!P23 -> 47 | F23: ='[1]Tabel 4F Sydj DATA'!Q23 -> 37 | G23: ='[1]Tabel 4F Sydj DATA'!R23 -> 15 | I23: ='[1]Tabel 4F Sydj DATA'!T23 -> 191
A24: ='[1]Tabel 4F Sydj DATA'!L24 -> Læge | C24: ='[1]Tabel 4F Sydj DATA'!N24 -> 147 | D24: ='[1]Tabel 4F Sydj DATA'!O24 -> 330 | E24: ='[1]Tabel 4F Sydj DATA'!P24 -> 175 | F24: ='[1]Tabel 4F Sydj DATA'!Q24 -> 107 | G24: ='[1]Tabel 4F Sydj DATA'!R24 -> 60 | I24: ='[1]Tabel 4F Sydj DATA'!T24 -> 819
A25: ='[1]Tabel 4F Sydj DATA'!L25 -> Tandlæge | C25: ='[1]Tabel 4F Sydj DATA'!N25 -> 28 | D25: ='[1]Tabel 4F Sydj DATA'!O25 -> 66 | E25: ='[1]Tabel 4F Sydj DATA'!P25 -> 38 | F25: ='[1]Tabel 4F Sydj DATA'!Q25 -> 39 | G25: ='[1]Tabel 4F Sydj DATA'!R25 -> 14 | I25: ='[1]Tabel 4F Sydj DATA'!T25 -> 185
A26: ='[1]Tabel 4F Sydj DATA'!L26 -> Arkitekt | C26: ='[1]Tabel 4F Sydj DATA'!N26 -> 9 | D26: ='[1]Tabel 4F Sydj DATA'!O26 -> 61 | E26: ='[1]Tabel 4F Sydj DATA'!P26 -> 76 | F26: ='[1]Tabel 4F Sydj DATA'!Q26 -> 38 | G26: ='[1]Tabel 4F Sydj DATA'!R26 -> 30 | I26: ='[1]Tabel 4F Sydj DATA'!T26 -> 214
A27: ='[1]Tabel 4F Sydj DATA'!L27 -> Landinspek. | C27: ='[1]Tabel 4F Sydj DATA'!N27 -> 4 | D27: ='[1]Tabel 4F Sydj DATA'!O27 -> 21 | E27: ='[1]Tabel 4F Sydj DATA'!P27 -> 33 | F27: ='[1]Tabel 4F Sydj DATA'!Q27 -> 25 | G27: ='[1]Tabel 4F Sydj DATA'!R27 -> 7 | I27: ='[1]Tabel 4F Sydj DATA'!T27 -> 90
A28: ='[1]Tabel 4F Sydj DATA'!L28 -> Bibliotekar | C28: ='[1]Tabel 4F Sydj DATA'!N28 -> 4 | D28: ='[1]Tabel 4F Sydj DATA'!O28 -> 44 | E28: ='[1]Tabel 4F Sydj DATA'!P28 -> 82 | F28: ='[1]Tabel 4F Sydj DATA'!Q28 -> 78 | G28: ='[1]Tabel 4F Sydj DATA'!R28 -> 44 | I28: ='[1]Tabel 4F Sydj DATA'!T28 -> 252
A29: ='[1]Tabel 4F Sydj DATA'!L29 -> Musikudd. | C29: ='[1]Tabel 4F Sydj DATA'!N29 -> 1 | D29: ='[1]Tabel 4F Sydj DATA'!O29 -> 15 | E29: ='[1]Tabel 4F Sydj DATA'!P29 -> 16 | F29: ='[1]Tabel 4F Sydj DATA'!Q29 -> 50 | G29: ='[1]Tabel 4F Sydj DATA'!R29 -> 22 | I29: ='[1]Tabel 4F Sydj DATA'!T29 -> 104
A30: ='[1]Tabel 4F Sydj DATA'!L30 -> Teolog | C30: ='[1]Tabel 4F Sydj DATA'!N30 -> 1 | D30: ='[1]Tabel 4F Sydj DATA'!O30 -> 21 | E30: ='[1]Tabel 4F Sydj DATA'!P30 -> 65 | F30: ='[1]Tabel 4F Sydj DATA'!Q30 -> 83 | G30: ='[1]Tabel 4F Sydj DATA'!R30 -> 30 | I30: ='[1]Tabel 4F Sydj DATA'!T30 -> 200
A31: ='[1]Tabel 4F Sydj DATA'!L31 -> Psykolog | C31: ='[1]Tabel 4F Sydj DATA'!N31 -> 81 | D31: ='[1]Tabel 4F Sydj DATA'!O31 -> 201 | E31: ='[1]Tabel 4F Sydj DATA'!P31 -> 121 | F31: ='[1]Tabel 4F Sydj DATA'!Q31 -> 61 | G31: ='[1]Tabel 4F Sydj DATA'!R31 -> 27 | I31: ='[1]Tabel 4F Sydj DATA'!T31 -> 491
A32: ='[1]Tabel 4F Sydj DATA'!L32 -> Jurist | C32: ='[1]Tabel 4F Sydj DATA'!N32 -> 101 | D32: ='[1]Tabel 4F Sydj DATA'!O32 -> 283 | E32: ='[1]Tabel 4F Sydj DATA'!P32 -> 222 | F32: ='[1]Tabel 4F Sydj DATA'!Q32 -> 143 | G32: ='[1]Tabel 4F Sydj DATA'!R32 -> 34 | I32: ='[1]Tabel 4F Sydj DATA'!T32 -> 783
A33: ='[1]Tabel 4F Sydj DATA'!L33 -> Økonom | C33: ='[1]Tabel 4F Sydj DATA'!N33 -> 58 | D33: ='[1]Tabel 4F Sydj DATA'!O33 -> 123 | E33: ='[1]Tabel 4F Sydj DATA'!P33 -> 98 | F33: ='[1]Tabel 4F Sydj DATA'!Q33 -> 99 | G33: ='[1]Tabel 4F Sydj DATA'!R33 -> 31 | I33: ='[1]Tabel 4F Sydj DATA'!T33 -> 409
A34: ='[1]Tabel 4F Sydj DATA'!L34 -> Samf. Adm. | C34: ='[1]Tabel 4F Sydj DATA'!N34 -> 135 | D34: ='[1]Tabel 4F Sydj DATA'!O34 -> 448 | E34: ='[1]Tabel 4F Sydj DATA'!P34 -> 332 | F34: ='[1]Tabel 4F Sydj DATA'!Q34 -> 189 | G34: ='[1]Tabel 4F Sydj DATA'!R34 -> 37 | I34: ='[1]Tabel 4F Sydj DATA'!T34 -> 1141
A35: ='[1]Tabel 4F Sydj DATA'!L35 -> Cand. Merc. | C35: ='[1]Tabel 4F Sydj DATA'!N35 -> 349 | D35: ='[1]Tabel 4F Sydj DATA'!O35 -> 890 | E35: ='[1]Tabel 4F Sydj DATA'!P35 -> 507 | F35: ='[1]Tabel 4F Sydj DATA'!Q35 -> 394 | G35: ='[1]Tabel 4F Sydj DATA'!R35 -> 55 | I35: ='[1]Tabel 4F Sydj DATA'!T35 -> 2195
A36: ='[1]Tabel 4F Sydj DATA'!L36 -> HA | C36: ='[1]Tabel 4F Sydj DATA'!N36 -> 75 | D36: ='[1]Tabel 4F Sydj DATA'!O36 -> 78 | E36: ='[1]Tabel 4F Sydj DATA'!P36 -> 136 | F36: ='[1]Tabel 4F Sydj DATA'!Q36 -> 281 | G36: ='[1]Tabel 4F Sydj DATA'!R36 -> 55 | I36: ='[1]Tabel 4F Sydj DATA'!T36 -> 625
A37: ='[1]Tabel 4F Sydj DATA'!L37 -> HD | C37: ='[1]Tabel 4F Sydj DATA'!N37 -> 32 | D37: ='[1]Tabel 4F Sydj DATA'!O37 -> 77 | E37: ='[1]Tabel 4F Sydj DATA'!P37 -> 103 | F37: ='[1]Tabel 4F Sydj DATA'!Q37 -> 186 | G37: ='[1]Tabel 4F Sydj DATA'!R37 -> 76 | I37: ='[1]Tabel 4F Sydj DATA'!T37 -> 474
A38: ='[1]Tabel 4F Sydj DATA'!L38 -> Komm. og Sprog | C38: ='[1]Tabel 4F Sydj DATA'!N38 -> 36 | D38: ='[1]Tabel 4F Sydj DATA'!O38 -> 69 | E38: ='[1]Tabel 4F Sydj DATA'!P38 -> 132 | F38: ='[1]Tabel 4F Sydj DATA'!Q38 -> 135 | G38: ='[1]Tabel 4F Sydj DATA'!R38 -> 84 | I38: ='[1]Tabel 4F Sydj DATA'!T38 -> 456
A39: ='[1]Tabel 4F Sydj DATA'!L39 -> Bygningskonst. | C39: ='[1]Tabel 4F Sydj DATA'!N39 -> 94 | D39: ='[1]Tabel 4F Sydj DATA'!O39 -> 311 | E39: ='[1]Tabel 4F Sydj DATA'!P39 -> 209 | F39: ='[1]Tabel 4F Sydj DATA'!Q39 -> 106 | G39: ='[1]Tabel 4F Sydj DATA'!R39 -> 32 | I39: ='[1]Tabel 4F Sydj DATA'!T39 -> 752
A40: ='[1]Tabel 4F Sydj DATA'!L40 -> Cand. IT. | C40: ='[1]Tabel 4F Sydj DATA'!N40 -> 58 | D40: ='[1]Tabel 4F Sydj DATA'!O40 -> 104 | E40: ='[1]Tabel 4F Sydj DATA'!P40 -> 57 | F40: ='[1]Tabel 4F Sydj DATA'!Q40 -> 9 | G40: ='[1]Tabel 4F Sydj DATA'!R40 -> 1 | I40: ='[1]Tabel 4F Sydj DATA'!T40 -> 229
A41: ='[1]Tabel 4F Sydj DATA'!L41 -> Bac. Samf. | C41: ='[1]Tabel 4F Sydj DATA'!N41 -> 17 | D41: ='[1]Tabel 4F Sydj DATA'!O41 -> 28 | E41: ='[1]Tabel 4F Sydj DATA'!P41 -> 24 | F41: ='[1]Tabel 4F Sydj DATA'!Q41 -> 12 | G41: ='[1]Tabel 4F Sydj DATA'!R41 -> 3 | I41: ='[1]Tabel 4F Sydj DATA'!T41 -> 84
A42: ='[1]Tabel 4F Sydj DATA'!L42 -> Bac. Hum. | C42: ='[1]Tabel 4F Sydj DATA'!N42 -> 63 | D42: ='[1]Tabel 4F Sydj DATA'!O42 -> 46 | E42: ='[1]Tabel 4F Sydj DATA'!P42 -> 45 | F42: ='[1]Tabel 4F Sydj DATA'!Q42 -> 20 | G42: ='[1]Tabel 4F Sydj DATA'!R42 -> 11 | I42: ='[1]Tabel 4F Sydj DATA'!T42 -> 185
A43: ='[1]Tabel 4F Sydj DATA'!L43 -> Bac. Nat. | C43: ='[1]Tabel 4F Sydj DATA'!N43 -> 91 | D43: ='[1]Tabel 4F Sydj DATA'!O43 -> 81 | E43: ='[1]Tabel 4F Sydj DATA'!P43 -> 46 | F43: ='[1]Tabel 4F Sydj DATA'!Q43 -> 24 | G43: ='[1]Tabel 4F Sydj DATA'!R43 -> 2 | I43: ='[1]Tabel 4F Sydj DATA'!T43 -> 244
A44: ='[1]Tabel 4F Sydj DATA'!L44 -> Andre | C44: ='[1]Tabel 4F Sydj DATA'!N44 -> 151 | D44: ='[1]Tabel 4F Sydj DATA'!O44 -> 489 | E44: ='[1]Tabel 4F Sydj DATA'!P44 -> 336 | F44: ='[1]Tabel 4F Sydj DATA'!Q44 -> 252 | G44: ='[1]Tabel 4F Sydj DATA'!R44 -> 135 | I44: ='[1]Tabel 4F Sydj DATA'!T44 -> 1363
A46: ='[1]Tabel 4F Sydj DATA'!L46 -> Total | C46: ='[1]Tabel 4F Sydj DATA'!N46 -> 2731 | D46: ='[1]Tabel 4F Sydj DATA'!O46 -> 6931 | E46: ='[1]Tabel 4F Sydj DATA'!P46 -> 6124 | F46: ='[1]Tabel 4F Sydj DATA'!Q46 -> 5288 | G46: ='[1]Tabel 4F Sydj DATA'!R46 -> 1779 | I46: ='[1]Tabel 4F Sydj DATA'!T46 -> 22853
A48: ='[1]Tabel 4F Sydj DATA'!L48 -> Ingeniører i alt | C48: ='[1]Tabel 4F Sydj DATA'!N48 -> 539 | D48: ='[1]Tabel 4F Sydj DATA'!O48 -> 1397 | E48: ='[1]Tabel 4F Sydj DATA'!P48 -> 1702 | F48: ='[1]Tabel 4F Sydj DATA'!Q48 -> 1999 | G48: ='[1]Tabel 4F Sydj DATA'!R48 -> 585 | I48: ='[1]Tabel 4F Sydj DATA'!T48 -> 6222
A49: ='[1]Tabel 4F Sydj DATA'!L49 -> Magistre i alt | C49: ='[1]Tabel 4F Sydj DATA'!N49 -> 315 | D49: ='[1]Tabel 4F Sydj DATA'!O49 -> 1066 | E49: ='[1]Tabel 4F Sydj DATA'!P49 -> 1179 | F49: ='[1]Tabel 4F Sydj DATA'!Q49 -> 673 | G49: ='[1]Tabel 4F Sydj DATA'!R49 -> 291 | I49: ='[1]Tabel 4F Sydj DATA'!T49 -> 3524
A50: ='[1]Tabel 4F Sydj DATA'!L50 -> DJØF'ere i alt | C50: ='[1]Tabel 4F Sydj DATA'!N50 -> 718 | D50: ='[1]Tabel 4F Sydj DATA'!O50 -> 1822 | E50: ='[1]Tabel 4F Sydj DATA'!P50 -> 1295 | F50: ='[1]Tabel 4F Sydj DATA'!Q50 -> 1106 | G50: ='[1]Tabel 4F Sydj DATA'!R50 -> 212 | I50: ='[1]Tabel 4F Sydj DATA'!T50 -> 5153
A57: ='[1]Tabel 4F Sydj DATA'!L55 -> Haderslev
C59: ='[1]Tabel 4F Sydj DATA'!N57 -> Under 30 år | D59: ='[1]Tabel 4F Sydj DATA'!O57 -> 30 - 39 år | E59: ='[1]Tabel 4F Sydj DATA'!P57 -> 40 - 49 år | F59: ='[1]Tabel 4F Sydj DATA'!Q57 -> 50 - 59 år | G59: ='[1]Tabel 4F Sydj DATA'!R57 -> Over 60 år | I59: ='[1]Tabel 4F Sydj DATA'!T57 -> I alt
A61: ='[1]Tabel 4F Sydj DATA'!L59 -> Civ. ing. | C61: ='[1]Tabel 4F Sydj DATA'!N59 -> 6 | D61: ='[1]Tabel 4F Sydj DATA'!O59 -> 19 | E61: ='[1]Tabel 4F Sydj DATA'!P59 -> 15 | F61: ='[1]Tabel 4F Sydj DATA'!Q59 -> 12 | G61: ='[1]Tabel 4F Sydj DATA'!R59 -> 4 | I61: ='[1]Tabel 4F Sydj DATA'!T59 -> 56
A62: ='[1]Tabel 4F Sydj DATA'!L60 -> Diplom ing. | C62: ='[1]Tabel 4F Sydj DATA'!N60 -> 11 | D62: ='[1]Tabel 4F Sydj DATA'!O60 -> 29 | E62: ='[1]Tabel 4F Sydj DATA'!P60 -> 46 | F62: ='[1]Tabel 4F Sydj DATA'!Q60 -> 65 | G62: ='[1]Tabel 4F Sydj DATA'!R60 -> 23 | I62: ='[1]Tabel 4F Sydj DATA'!T60 -> 174
A63: ='[1]Tabel 4F Sydj DATA'!L61 -> Cand. Scient. Tek. | C63: ='[1]Tabel 4F Sydj DATA'!N61 -> 13 | D63: ='[1]Tabel 4F Sydj DATA'!O61 -> 17 | E63: ='[1]Tabel 4F Sydj DATA'!P61 -> 5 | F63: ='[1]Tabel 4F Sydj DATA'!Q61 -> 2 | G63: ='[1]Tabel 4F Sydj DATA'!R61 -> 0 | I63: ='[1]Tabel 4F Sydj DATA'!T61 -> 37
A64: ='[1]Tabel 4F Sydj DATA'!L62 -> MA. Hum. | C64: ='[1]Tabel 4F Sydj DATA'!N62 -> 16 | D64: ='[1]Tabel 4F Sydj DATA'!O62 -> 52 | E64: ='[1]Tabel 4F Sydj DATA'!P62 -> 55 | F64: ='[1]Tabel 4F Sydj DATA'!Q62 -> 41 | G64: ='[1]Tabel 4F Sydj DATA'!R62 -> 19 | I64: ='[1]Tabel 4F Sydj DATA'!T62 -> 183
A65: ='[1]Tabel 4F Sydj DATA'!L63 -> MA. Nat. | C65: ='[1]Tabel 4F Sydj DATA'!N63 -> 2 | D65: ='[1]Tabel 4F Sydj DATA'!O63 -> 7 | E65: ='[1]Tabel 4F Sydj DATA'!P63 -> 15 | F65: ='[1]Tabel 4F Sydj DATA'!Q63 -> 13 | G65: ='[1]Tabel 4F Sydj DATA'!R63 -> 5 | I65: ='[1]Tabel 4F Sydj DATA'!T63 -> 42
A66: ='[1]Tabel 4F Sydj DATA'!L64 -> MA. Ph.d. | C66: ='[1]Tabel 4F Sydj DATA'!N64 -> 0 | D66: ='[1]Tabel 4F Sydj DATA'!O64 -> 1 | E66: ='[1]Tabel 4F Sydj DATA'!P64 -> 1 | F66: ='[1]Tabel 4F Sydj DATA'!Q64 -> 0 | G66: ='[1]Tabel 4F Sydj DATA'!R64 -> 0 | I66: ='[1]Tabel 4F Sydj DATA'!T64 -> 2
A67: ='[1]Tabel 4F Sydj DATA'!L65 -> MA. Samf. | C67: ='[1]Tabel 4F Sydj DATA'!N65 -> 2 | D67: ='[1]Tabel 4F Sydj DATA'!O65 -> 2 | E67: ='[1]Tabel 4F Sydj DATA'!P65 -> 0 | F67: ='[1]Tabel 4F Sydj DATA'!Q65 -> 2 | G67: ='[1]Tabel 4F Sydj DATA'!R65 -> 0 | I67: ='[1]Tabel 4F Sydj DATA'!T65 -> 6
A68: ='[1]Tabel 4F Sydj DATA'!L66 -> Øvrige Mag. | C68: ='[1]Tabel 4F Sydj DATA'!N66 -> 0 | D68: ='[1]Tabel 4F Sydj DATA'!O66 -> 0 | E68: ='[1]Tabel 4F Sydj DATA'!P66 -> 5 | F68: ='[1]Tabel 4F Sydj DATA'!Q66 -> 8 | G68: ='[1]Tabel 4F Sydj DATA'!R66 -> 3 | I68: ='[1]Tabel 4F Sydj DATA'!T66 -> 16
A69: ='[1]Tabel 4F Sydj DATA'!L67 -> Agronom | C69: ='[1]Tabel 4F Sydj DATA'!N67 -> 0 | D69: ='[1]Tabel 4F Sydj DATA'!O67 -> 2 | E69: ='[1]Tabel 4F Sydj DATA'!P67 -> 3 | F69: ='[1]Tabel 4F Sydj DATA'!Q67 -> 15 | G69: ='[1]Tabel 4F Sydj DATA'!R67 -> 2 | I69: ='[1]Tabel 4F Sydj DATA'!T67 -> 22
A70: ='[1]Tabel 4F Sydj DATA'!L68 -> Landsk. Arkt. | C70: ='[1]Tabel 4F Sydj DATA'!N68 -> 0 | D70: ='[1]Tabel 4F Sydj DATA'!O68 -> 0 | E70: ='[1]Tabel 4F Sydj DATA'!P68 -> 0 | F70: ='[1]Tabel 4F Sydj DATA'!Q68 -> 2 | G70: ='[1]Tabel 4F Sydj DATA'!R68 -> 1 | I70: ='[1]Tabel 4F Sydj DATA'!T68 -> 3
A71: ='[1]Tabel 4F Sydj DATA'!L69 -> Hortonom | C71: ='[1]Tabel 4F Sydj DATA'!N69 -> 0 | D71: ='[1]Tabel 4F Sydj DATA'!O69 -> 0 | E71: ='[1]Tabel 4F Sydj DATA'!P69 -> 0 | F71: ='[1]Tabel 4F Sydj DATA'!Q69 -> 2 | G71: ='[1]Tabel 4F Sydj DATA'!R69 -> 0 | I71: ='[1]Tabel 4F Sydj DATA'!T69 -> 2
A72: ='[1]Tabel 4F Sydj DATA'!L70 -> Forstkand. | C72: ='[1]Tabel 4F Sydj DATA'!N70 -> 0 | D72: ='[1]Tabel 4F Sydj DATA'!O70 -> 0 | E72: ='[1]Tabel 4F Sydj DATA'!P70 -> 0 | F72: ='[1]Tabel 4F Sydj DATA'!Q70 -> 0 | G72: ='[1]Tabel 4F Sydj DATA'!R70 -> 0 | I72: ='[1]Tabel 4F Sydj DATA'!T70 -> 0
A73: ='[1]Tabel 4F Sydj DATA'!L71 -> Jordbrugsakad. | C73: ='[1]Tabel 4F Sydj DATA'!N71 -> 0 | D73: ='[1]Tabel 4F Sydj DATA'!O71 -> 2 | E73: ='[1]Tabel 4F Sydj DATA'!P71 -> 3 | F73: ='[1]Tabel 4F Sydj DATA'!Q71 -> 19 | G73: ='[1]Tabel 4F Sydj DATA'!R71 -> 3 | I73: ='[1]Tabel 4F Sydj DATA'!T71 -> 27
A74: ='[1]Tabel 4F Sydj DATA'!L72 -> Mejeriing. | C74: ='[1]Tabel 4F Sydj DATA'!N72 -> 0 | D74: ='[1]Tabel 4F Sydj DATA'!O72 -> 0 | E74: ='[1]Tabel 4F Sydj DATA'!P72 -> 2 | F74: ='[1]Tabel 4F Sydj DATA'!Q72 -> 1 | G74: ='[1]Tabel 4F Sydj DATA'!R72 -> 0 | I74: ='[1]Tabel 4F Sydj DATA'!T72 -> 3
A75: ='[1]Tabel 4F Sydj DATA'!L73 -> Levn.m.kand. | C75: ='[1]Tabel 4F Sydj DATA'!N73 -> 1 | D75: ='[1]Tabel 4F Sydj DATA'!O73 -> 0 | E75: ='[1]Tabel 4F Sydj DATA'!P73 -> 0 | F75: ='[1]Tabel 4F Sydj DATA'!Q73 -> 0 | G75: ='[1]Tabel 4F Sydj DATA'!R73 -> 0 | I75: ='[1]Tabel 4F Sydj DATA'!T73 -> 1
A76: ='[1]Tabel 4F Sydj DATA'!L74 -> Dyrlæge | C76: ='[1]Tabel 4F Sydj DATA'!N74 -> 4 | D76: ='[1]Tabel 4F Sydj DATA'!O74 -> 6 | E76: ='[1]Tabel 4F Sydj DATA'!P74 -> 5 | F76: ='[1]Tabel 4F Sydj DATA'!Q74 -> 5 | G76: ='[1]Tabel 4F Sydj DATA'!R74 -> 1 | I76: ='[1]Tabel 4F Sydj DATA'!T74 -> 21
A77: ='[1]Tabel 4F Sydj DATA'!L75 -> Farmaceut | C77: ='[1]Tabel 4F Sydj DATA'!N75 -> 2 | D77: ='[1]Tabel 4F Sydj DATA'!O75 -> 8 | E77: ='[1]Tabel 4F Sydj DATA'!P75 -> 2 | F77: ='[1]Tabel 4F Sydj DATA'!Q75 -> 2 | G77: ='[1]Tabel 4F Sydj DATA'!R75 -> 1 | I77: ='[1]Tabel 4F Sydj DATA'!T75 -> 15
A78: ='[1]Tabel 4F Sydj DATA'!L76 -> Læge | C78: ='[1]Tabel 4F Sydj DATA'!N76 -> 1 | D78: ='[1]Tabel 4F Sydj DATA'!O76 -> 6 | E78: ='[1]Tabel 4F Sydj DATA'!P76 -> 6 | F78: ='[1]Tabel 4F Sydj DATA'!Q76 -> 6 | G78: ='[1]Tabel 4F Sydj DATA'!R76 -> 3 | I78: ='[1]Tabel 4F Sydj DATA'!T76 -> 22
A79: ='[1]Tabel 4F Sydj DATA'!L77 -> Tandlæge | C79: ='[1]Tabel 4F Sydj DATA'!N77 -> 1 | D79: ='[1]Tabel 4F Sydj DATA'!O77 -> 3 | E79: ='[1]Tabel 4F Sydj DATA'!P77 -> 6 | F79: ='[1]Tabel 4F Sydj DATA'!Q77 -> 6 | G79: ='[1]Tabel 4F Sydj DATA'!R77 -> 2 | I79: ='[1]Tabel 4F Sydj DATA'!T77 -> 18
A80: ='[1]Tabel 4F Sydj DATA'!L78 -> Arkitekt | C80: ='[1]Tabel 4F Sydj DATA'!N78 -> 0 | D80: ='[1]Tabel 4F Sydj DATA'!O78 -> 2 | E80: ='[1]Tabel 4F Sydj DATA'!P78 -> 1 | F80: ='[1]Tabel 4F Sydj DATA'!Q78 -> 5 | G80: ='[1]Tabel 4F Sydj DATA'!R78 -> 7 | I80: ='[1]Tabel 4F Sydj DATA'!T78 -> 15
A81: ='[1]Tabel 4F Sydj DATA'!L79 -> Landinspek. | C81: ='[1]Tabel 4F Sydj DATA'!N79 -> 1 | D81: ='[1]Tabel 4F Sydj DATA'!O79 -> 0 | E81: ='[1]Tabel 4F Sydj DATA'!P79 -> 1 | F81: ='[1]Tabel 4F Sydj DATA'!Q79 -> 1 | G81: ='[1]Tabel 4F Sydj DATA'!R79 -> 0 | I81: ='[1]Tabel 4F Sydj DATA'!T79 -> 3
A82: ='[1]Tabel 4F Sydj DATA'!L80 -> Bibliotekar | C82: ='[1]Tabel 4F Sydj DATA'!N80 -> 0 | D82: ='[1]Tabel 4F Sydj DATA'!O80 -> 0 | E82: ='[1]Tabel 4F Sydj DATA'!P80 -> 2 | F82: ='[1]Tabel 4F Sydj DATA'!Q80 -> 6 | G82: ='[1]Tabel 4F Sydj DATA'!R80 -> 1 | I82: ='[1]Tabel 4F Sydj DATA'!T80 -> 9
A83: ='[1]Tabel 4F Sydj DATA'!L81 -> Musikudd. | C83: ='[1]Tabel 4F Sydj DATA'!N81 -> 0 | D83: ='[1]Tabel 4F Sydj DATA'!O81 -> 1 | E83: ='[1]Tabel 4F Sydj DATA'!P81 -> 4 | F83: ='[1]Tabel 4F Sydj DATA'!Q81 -> 6 | G83: ='[1]Tabel 4F Sydj DATA'!R81 -> 1 | I83: ='[1]Tabel 4F Sydj DATA'!T81 -> 12
A84: ='[1]Tabel 4F Sydj DATA'!L82 -> Teolog | C84: ='[1]Tabel 4F Sydj DATA'!N82 -> 0 | D84: ='[1]Tabel 4F Sydj DATA'!O82 -> 2 | E84: ='[1]Tabel 4F Sydj DATA'!P82 -> 5 | F84: ='[1]Tabel 4F Sydj DATA'!Q82 -> 8 | G84: ='[1]Tabel 4F Sydj DATA'!R82 -> 2 | I84: ='[1]Tabel 4F Sydj DATA'!T82 -> 17
A85: ='[1]Tabel 4F Sydj DATA'!L83 -> Psykolog | C85: ='[1]Tabel 4F Sydj DATA'!N83 -> 2 | D85: ='[1]Tabel 4F Sydj DATA'!O83 -> 5 | E85: ='[1]Tabel 4F Sydj DATA'!P83 -> 7 | F85: ='[1]Tabel 4F Sydj DATA'!Q83 -> 3 | G85: ='[1]Tabel 4F Sydj DATA'!R83 -> 3 | I85: ='[1]Tabel 4F Sydj DATA'!T83 -> 20
A86: ='[1]Tabel 4F Sydj DATA'!L84 -> Jurist | C86: ='[1]Tabel 4F Sydj DATA'!N84 -> 5 | D86: ='[1]Tabel 4F Sydj DATA'!O84 -> 16 | E86: ='[1]Tabel 4F Sydj DATA'!P84 -> 11 | F86: ='[1]Tabel 4F Sydj DATA'!Q84 -> 8 | G86: ='[1]Tabel 4F Sydj DATA'!R84 -> 4 | I86: ='[1]Tabel 4F Sydj DATA'!T84 -> 44
A87: ='[1]Tabel 4F Sydj DATA'!L85 -> Økonom | C87: ='[1]Tabel 4F Sydj DATA'!N85 -> 6 | D87: ='[1]Tabel 4F Sydj DATA'!O85 -> 4 | E87: ='[1]Tabel 4F Sydj DATA'!P85 -> 3 | F87: ='[1]Tabel 4F Sydj DATA'!Q85 -> 5 | G87: ='[1]Tabel 4F Sydj DATA'!R85 -> 4 | I87: ='[1]Tabel 4F Sydj DATA'!T85 -> 22
A88: ='[1]Tabel 4F Sydj DATA'!L86 -> Samf. Adm. | C88: ='[1]Tabel 4F Sydj DATA'!N86 -> 7 | D88: ='[1]Tabel 4F Sydj DATA'!O86 -> 15 | E88: ='[1]Tabel 4F Sydj DATA'!P86 -> 10 | F88: ='[1]Tabel 4F Sydj DATA'!Q86 -> 12 | G88: ='[1]Tabel 4F Sydj DATA'!R86 -> 3 | I88: ='[1]Tabel 4F Sydj DATA'!T86 -> 47
A89: ='[1]Tabel 4F Sydj DATA'!L87 -> Cand. Merc. | C89: ='[1]Tabel 4F Sydj DATA'!N87 -> 20 | D89: ='[1]Tabel 4F Sydj DATA'!O87 -> 41 | E89: ='[1]Tabel 4F Sydj DATA'!P87 -> 21 | F89: ='[1]Tabel 4F Sydj DATA'!Q87 -> 24 | G89: ='[1]Tabel 4F Sydj DATA'!R87 -> 2 | I89: ='[1]Tabel 4F Sydj DATA'!T87 -> 108
A90: ='[1]Tabel 4F Sydj DATA'!L88 -> HA | C90: ='[1]Tabel 4F Sydj DATA'!N88 -> 2 | D90: ='[1]Tabel 4F Sydj DATA'!O88 -> 4 | E90: ='[1]Tabel 4F Sydj DATA'!P88 -> 7 | F90: ='[1]Tabel 4F Sydj DATA'!Q88 -> 16 | G90: ='[1]Tabel 4F Sydj DATA'!R88 -> 3 | I90: ='[1]Tabel 4F Sydj DATA'!T88 -> 32
A91: ='[1]Tabel 4F Sydj DATA'!L89 -> HD | C91: ='[1]Tabel 4F Sydj DATA'!N89 -> 1 | D91: ='[1]Tabel 4F Sydj DATA'!O89 -> 6 | E91: ='[1]Tabel 4F Sydj DATA'!P89 -> 5 | F91: ='[1]Tabel 4F Sydj DATA'!Q89 -> 14 | G91: ='[1]Tabel 4F Sydj DATA'!R89 -> 2 | I91: ='[1]Tabel 4F Sydj DATA'!T89 -> 28
A92: ='[1]Tabel 4F Sydj DATA'!L90 -> Komm. og Sprog | C92: ='[1]Tabel 4F Sydj DATA'!N90 -> 4 | D92: ='[1]Tabel 4F Sydj DATA'!O90 -> 6 | E92: ='[1]Tabel 4F Sydj DATA'!P90 -> 7 | F92: ='[1]Tabel 4F Sydj DATA'!Q90 -> 8 | G92: ='[1]Tabel 4F Sydj DATA'!R90 -> 4 | I92: ='[1]Tabel 4F Sydj DATA'!T90 -> 29
A93: ='[1]Tabel 4F Sydj DATA'!L91 -> Bygningskonst. | C93: ='[1]Tabel 4F Sydj DATA'!N91 -> 9 | D93: ='[1]Tabel 4F Sydj DATA'!O91 -> 18 | E93: ='[1]Tabel 4F Sydj DATA'!P91 -> 15 | F93: ='[1]Tabel 4F Sydj DATA'!Q91 -> 10 | G93: ='[1]Tabel 4F Sydj DATA'!R91 -> 5 | I93: ='[1]Tabel 4F Sydj DATA'!T91 -> 57
A94: ='[1]Tabel 4F Sydj DATA'!L92 -> Cand. IT. | C94: ='[1]Tabel 4F Sydj DATA'!N92 -> 3 | D94: ='[1]Tabel 4F Sydj DATA'!O92 -> 5 | E94: ='[1]Tabel 4F Sydj DATA'!P92 -> 2 | F94: ='[1]Tabel 4F Sydj DATA'!Q92 -> 0 | G94: ='[1]Tabel 4F Sydj DATA'!R92 -> 0 | I94: ='[1]Tabel 4F Sydj DATA'!T92 -> 10
A95: ='[1]Tabel 4F Sydj DATA'!L93 -> Bac. Samf. | C95: ='[1]Tabel 4F Sydj DATA'!N93 -> 1 | D95: ='[1]Tabel 4F Sydj DATA'!O93 -> 1 | E95: ='[1]Tabel 4F Sydj DATA'!P93 -> 2 | F95: ='[1]Tabel 4F Sydj DATA'!Q93 -> 1 | G95: ='[1]Tabel 4F Sydj DATA'!R93 -> 0 | I95: ='[1]Tabel 4F Sydj DATA'!T93 -> 5
A96: ='[1]Tabel 4F Sydj DATA'!L94 -> Bac. Hum. | C96: ='[1]Tabel 4F Sydj DATA'!N94 -> 6 | D96: ='[1]Tabel 4F Sydj DATA'!O94 -> 4 | E96: ='[1]Tabel 4F Sydj DATA'!P94 -> 1 | F96: ='[1]Tabel 4F Sydj DATA'!Q94 -> 0 | G96: ='[1]Tabel 4F Sydj DATA'!R94 -> 1 | I96: ='[1]Tabel 4F Sydj DATA'!T94 -> 12
A97: ='[1]Tabel 4F Sydj DATA'!L95 -> Bac. Nat. | C97: ='[1]Tabel 4F Sydj DATA'!N95 -> 2 | D97: ='[1]Tabel 4F Sydj DATA'!O95 -> 4 | E97: ='[1]Tabel 4F Sydj DATA'!P95 -> 2 | F97: ='[1]Tabel 4F Sydj DATA'!Q95 -> 4 | G97: ='[1]Tabel 4F Sydj DATA'!R95 -> 0 | I97: ='[1]Tabel 4F Sydj DATA'!T95 -> 12
A98: ='[1]Tabel 4F Sydj DATA'!L96 -> Andre | C98: ='[1]Tabel 4F Sydj DATA'!N96 -> 1 | D98: ='[1]Tabel 4F Sydj DATA'!O96 -> 11 | E98: ='[1]Tabel 4F Sydj DATA'!P96 -> 15 | F98: ='[1]Tabel 4F Sydj DATA'!Q96 -> 16 | G98: ='[1]Tabel 4F Sydj DATA'!R96 -> 12 | I98: ='[1]Tabel 4F Sydj DATA'!T96 -> 55
A100: ='[1]Tabel 4F Sydj DATA'!L98 -> Total | C100: ='[1]Tabel 4F Sydj DATA'!N98 -> 129 | D100: ='[1]Tabel 4F Sydj DATA'!O98 -> 297 | E100: ='[1]Tabel 4F Sydj DATA'!P98 -> 287 | F100: ='[1]Tabel 4F Sydj DATA'!Q98 -> 329 | G100: ='[1]Tabel 4F Sydj DATA'!R98 -> 118 | I100: ='[1]Tabel 4F Sydj DATA'!T98 -> 1160
A102: ='[1]Tabel 4F Sydj DATA'!L100 -> Ingeniører i alt | C102: ='[1]Tabel 4F Sydj DATA'!N100 -> 17 | D102: ='[1]Tabel 4F Sydj DATA'!O100 -> 48 | E102: ='[1]Tabel 4F Sydj DATA'!P100 -> 61 | F102: ='[1]Tabel 4F Sydj DATA'!Q100 -> 77 | G102: ='[1]Tabel 4F Sydj DATA'!R100 -> 27 | I102: ='[1]Tabel 4F Sydj DATA'!T100 -> 230
A103: ='[1]Tabel 4F Sydj DATA'!L101 -> Magistre i alt | C103: ='[1]Tabel 4F Sydj DATA'!N101 -> 20 | D103: ='[1]Tabel 4F Sydj DATA'!O101 -> 62 | E103: ='[1]Tabel 4F Sydj DATA'!P101 -> 76 | F103: ='[1]Tabel 4F Sydj DATA'!Q101 -> 64 | G103: ='[1]Tabel 4F Sydj DATA'!R101 -> 27 | I103: ='[1]Tabel 4F Sydj DATA'!T101 -> 249
A104: ='[1]Tabel 4F Sydj DATA'!L102 -> DJØF'ere i alt | C104: ='[1]Tabel 4F Sydj DATA'!N102 -> 40 | D104: ='[1]Tabel 4F Sydj DATA'!O102 -> 80 | E104: ='[1]Tabel 4F Sydj DATA'!P102 -> 52 | F104: ='[1]Tabel 4F Sydj DATA'!Q102 -> 65 | G104: ='[1]Tabel 4F Sydj DATA'!R102 -> 16 | I104: ='[1]Tabel 4F Sydj DATA'!T102 -> 253
A111: ='[1]Tabel 4F Sydj DATA'!L107 -> Billund
C113: ='[1]Tabel 4F Sydj DATA'!N109 -> Under 30 år | D113: ='[1]Tabel 4F Sydj DATA'!O109 -> 30 - 39 år | E113: ='[1]Tabel 4F Sydj DATA'!P109 -> 40 - 49 år | F113: ='[1]Tabel 4F Sydj DATA'!Q109 -> 50 - 59 år | G113: ='[1]Tabel 4F Sydj DATA'!R109 -> Over 60 år | I113: ='[1]Tabel 4F Sydj DATA'!T109 -> I alt
A115: ='[1]Tabel 4F Sydj DATA'!L111 -> Civ. ing. | C115: ='[1]Tabel 4F Sydj DATA'!N111 -> 3 | D115: ='[1]Tabel 4F Sydj DATA'!O111 -> 22 | E115: ='[1]Tabel 4F Sydj DATA'!P111 -> 8 | F115: ='[1]Tabel 4F Sydj DATA'!Q111 -> 8 | G115: ='[1]Tabel 4F Sydj DATA'!R111 -> 0 | I115: ='[1]Tabel 4F Sydj DATA'!T111 -> 41
A116: ='[1]Tabel 4F Sydj DATA'!L112 -> Diplom ing. | C116: ='[1]Tabel 4F Sydj DATA'!N112 -> 4 | D116: ='[1]Tabel 4F Sydj DATA'!O112 -> 13 | E116: ='[1]Tabel 4F Sydj DATA'!P112 -> 22 | F116: ='[1]Tabel 4F Sydj DATA'!Q112 -> 38 | G116: ='[1]Tabel 4F Sydj DATA'!R112 -> 11 | I116: ='[1]Tabel 4F Sydj DATA'!T112 -> 88
A117: ='[1]Tabel 4F Sydj DATA'!L113 -> Cand. Scient. Tek. | C117: ='[1]Tabel 4F Sydj DATA'!N113 -> 7 | D117: ='[1]Tabel 4F Sydj DATA'!O113 -> 8 | E117: ='[1]Tabel 4F Sydj DATA'!P113 -> 4 | F117: ='[1]Tabel 4F Sydj DATA'!Q113 -> 2 | G117: ='[1]Tabel 4F Sydj DATA'!R113 -> 0 | I117: ='[1]Tabel 4F Sydj DATA'!T113 -> 21
A118: ='[1]Tabel 4F Sydj DATA'!L114 -> MA. Hum. | C118: ='[1]Tabel 4F Sydj DATA'!N114 -> 6 | D118: ='[1]Tabel 4F Sydj DATA'!O114 -> 12 | E118: ='[1]Tabel 4F Sydj DATA'!P114 -> 13 | F118: ='[1]Tabel 4F Sydj DATA'!Q114 -> 10 | G118: ='[1]Tabel 4F Sydj DATA'!R114 -> 4 | I118: ='[1]Tabel 4F Sydj DATA'!T114 -> 45
A119: ='[1]Tabel 4F Sydj DATA'!L115 -> MA. Nat. | C119: ='[1]Tabel 4F Sydj DATA'!N115 -> 1 | D119: ='[1]Tabel 4F Sydj DATA'!O115 -> 3 | E119: ='[1]Tabel 4F Sydj DATA'!P115 -> 6 | F119: ='[1]Tabel 4F Sydj DATA'!Q115 -> 7 | G119: ='[1]Tabel 4F Sydj DATA'!R115 -> 1 | I119: ='[1]Tabel 4F Sydj DATA'!T115 -> 18
A120: ='[1]Tabel 4F Sydj DATA'!L116 -> MA. Ph.d. | C120: ='[1]Tabel 4F Sydj DATA'!N116 -> 0 | D120: ='[1]Tabel 4F Sydj DATA'!O116 -> 1 | E120: ='[1]Tabel 4F Sydj DATA'!P116 -> 1 | F120: ='[1]Tabel 4F Sydj DATA'!Q116 -> 0 | G120: ='[1]Tabel 4F Sydj DATA'!R116 -> 0 | I120: ='[1]Tabel 4F Sydj DATA'!T116 -> 2
A121: ='[1]Tabel 4F Sydj DATA'!L117 -> MA. Samf. | C121: ='[1]Tabel 4F Sydj DATA'!N117 -> 0 | D121: ='[1]Tabel 4F Sydj DATA'!O117 -> 1 | E121: ='[1]Tabel 4F Sydj DATA'!P117 -> 0 | F121: ='[1]Tabel 4F Sydj DATA'!Q117 -> 0 | G121: ='[1]Tabel 4F Sydj DATA'!R117 -> 0 | I121: ='[1]Tabel 4F Sydj DATA'!T117 -> 1
A122: ='[1]Tabel 4F Sydj DATA'!L118 -> Øvrige Mag. | C122: ='[1]Tabel 4F Sydj DATA'!N118 -> 0 | D122: ='[1]Tabel 4F Sydj DATA'!O118 -> 2 | E122: ='[1]Tabel 4F Sydj DATA'!P118 -> 3 | F122: ='[1]Tabel 4F Sydj DATA'!Q118 -> 0 | G122: ='[1]Tabel 4F Sydj DATA'!R118 -> 0 | I122: ='[1]Tabel 4F Sydj DATA'!T118 -> 5
A123: ='[1]Tabel 4F Sydj DATA'!L119 -> Agronom | C123: ='[1]Tabel 4F Sydj DATA'!N119 -> 1 | D123: ='[1]Tabel 4F Sydj DATA'!O119 -> 0 | E123: ='[1]Tabel 4F Sydj DATA'!P119 -> 1 | F123: ='[1]Tabel 4F Sydj DATA'!Q119 -> 1 | G123: ='[1]Tabel 4F Sydj DATA'!R119 -> 3 | I123: ='[1]Tabel 4F Sydj DATA'!T119 -> 6
A124: ='[1]Tabel 4F Sydj DATA'!L120 -> Landsk. Arkt. | C124: ='[1]Tabel 4F Sydj DATA'!N120 -> 0 | D124: ='[1]Tabel 4F Sydj DATA'!O120 -> 0 | E124: ='[1]Tabel 4F Sydj DATA'!P120 -> 0 | F124: ='[1]Tabel 4F Sydj DATA'!Q120 -> 0 | G124: ='[1]Tabel 4F Sydj DATA'!R120 -> 0 | I124: ='[1]Tabel 4F Sydj DATA'!T120 -> 0
A125: ='[1]Tabel 4F Sydj DATA'!L121 -> Hortonom | C125: ='[1]Tabel 4F Sydj DATA'!N121 -> 0 | D125: ='[1]Tabel 4F Sydj DATA'!O121 -> 0 | E125: ='[1]Tabel 4F Sydj DATA'!P121 -> 0 | F125: ='[1]Tabel 4F Sydj DATA'!Q121 -> 0 | G125: ='[1]Tabel 4F Sydj DATA'!R121 -> 0 | I125: ='[1]Tabel 4F Sydj DATA'!T121 -> 0
A126: ='[1]Tabel 4F Sydj DATA'!L122 -> Forstkand. | C126: ='[1]Tabel 4F Sydj DATA'!N122 -> 0 | D126: ='[1]Tabel 4F Sydj DATA'!O122 -> 0 | E126: ='[1]Tabel 4F Sydj DATA'!P122 -> 1 | F126: ='[1]Tabel 4F Sydj DATA'!Q122 -> 0 | G126: ='[1]Tabel 4F Sydj DATA'!R122 -> 0 | I126: ='[1]Tabel 4F Sydj DATA'!T122 -> 1
A127: ='[1]Tabel 4F Sydj DATA'!L123 -> Jordbrugsakad. | C127: ='[1]Tabel 4F Sydj DATA'!N123 -> 1 | D127: ='[1]Tabel 4F Sydj DATA'!O123 -> 0 | E127: ='[1]Tabel 4F Sydj DATA'!P123 -> 2 | F127: ='[1]Tabel 4F Sydj DATA'!Q123 -> 1 | G127: ='[1]Tabel 4F Sydj DATA'!R123 -> 3 | I127: ='[1]Tabel 4F Sydj DATA'!T123 -> 7
A128: ='[1]Tabel 4F Sydj DATA'!L124 -> Mejeriing. | C128: ='[1]Tabel 4F Sydj DATA'!N124 -> 0 | D128: ='[1]Tabel 4F Sydj DATA'!O124 -> 0 | E128: ='[1]Tabel 4F Sydj DATA'!P124 -> 0 | F128: ='[1]Tabel 4F Sydj DATA'!Q124 -> 0 | G128: ='[1]Tabel 4F Sydj DATA'!R124 -> 0 | I128: ='[1]Tabel 4F Sydj DATA'!T124 -> 0
A129: ='[1]Tabel 4F Sydj DATA'!L125 -> Levn.m.kand. | C129: ='[1]Tabel 4F Sydj DATA'!N125 -> 0 | D129: ='[1]Tabel 4F Sydj DATA'!O125 -> 0 | E129: ='[1]Tabel 4F Sydj DATA'!P125 -> 0 | F129: ='[1]Tabel 4F Sydj DATA'!Q125 -> 0 | G129: ='[1]Tabel 4F Sydj DATA'!R125 -> 0 | I129: ='[1]Tabel 4F Sydj DATA'!T125 -> 0
A130: ='[1]Tabel 4F Sydj DATA'!L126 -> Dyrlæge | C130: ='[1]Tabel 4F Sydj DATA'!N126 -> 0 | D130: ='[1]Tabel 4F Sydj DATA'!O126 -> 3 | E130: ='[1]Tabel 4F Sydj DATA'!P126 -> 1 | F130: ='[1]Tabel 4F Sydj DATA'!Q126 -> 2 | G130: ='[1]Tabel 4F Sydj DATA'!R126 -> 1 | I130: ='[1]Tabel 4F Sydj DATA'!T126 -> 7
A131: ='[1]Tabel 4F Sydj DATA'!L127 -> Farmaceut | C131: ='[1]Tabel 4F Sydj DATA'!N127 -> 0 | D131: ='[1]Tabel 4F Sydj DATA'!O127 -> 1 | E131: ='[1]Tabel 4F Sydj DATA'!P127 -> 0 | F131: ='[1]Tabel 4F Sydj DATA'!Q127 -> 2 | G131: ='[1]Tabel 4F Sydj DATA'!R127 -> 0 | I131: ='[1]Tabel 4F Sydj DATA'!T127 -> 3
A132: ='[1]Tabel 4F Sydj DATA'!L128 -> Læge | C132: ='[1]Tabel 4F Sydj DATA'!N128 -> 2 | D132: ='[1]Tabel 4F Sydj DATA'!O128 -> 0 | E132: ='[1]Tabel 4F Sydj DATA'!P128 -> 0 | F132: ='[1]Tabel 4F Sydj DATA'!Q128 -> 1 | G132: ='[1]Tabel 4F Sydj DATA'!R128 -> 0 | I132: ='[1]Tabel 4F Sydj DATA'!T128 -> 3
A133: ='[1]Tabel 4F Sydj DATA'!L129 -> Tandlæge | C133: ='[1]Tabel 4F Sydj DATA'!N129 -> 0 | D133: ='[1]Tabel 4F Sydj DATA'!O129 -> 3 | E133: ='[1]Tabel 4F Sydj DATA'!P129 -> 2 | F133: ='[1]Tabel 4F Sydj DATA'!Q129 -> 1 | G133: ='[1]Tabel 4F Sydj DATA'!R129 -> 1 | I133: ='[1]Tabel 4F Sydj DATA'!T129 -> 7
A134: ='[1]Tabel 4F Sydj DATA'!L130 -> Arkitekt | C134: ='[1]Tabel 4F Sydj DATA'!N130 -> 0 | D134: ='[1]Tabel 4F Sydj DATA'!O130 -> 2 | E134: ='[1]Tabel 4F Sydj DATA'!P130 -> 2 | F134: ='[1]Tabel 4F Sydj DATA'!Q130 -> 0 | G134: ='[1]Tabel 4F Sydj DATA'!R130 -> 1 | I134: ='[1]Tabel 4F Sydj DATA'!T130 -> 5
A135: ='[1]Tabel 4F Sydj DATA'!L131 -> Landinspek. | C135: ='[1]Tabel 4F Sydj DATA'!N131 -> 0 | D135: ='[1]Tabel 4F Sydj DATA'!O131 -> 0 | E135: ='[1]Tabel 4F Sydj DATA'!P131 -> 0 | F135: ='[1]Tabel 4F Sydj DATA'!Q131 -> 0 | G135: ='[1]Tabel 4F Sydj DATA'!R131 -> 0 | I135: ='[1]Tabel 4F Sydj DATA'!T131 -> 0
A136: ='[1]Tabel 4F Sydj DATA'!L132 -> Bibliotekar | C136: ='[1]Tabel 4F Sydj DATA'!N132 -> 0 | D136: ='[1]Tabel 4F Sydj DATA'!O132 -> 0 | E136: ='[1]Tabel 4F Sydj DATA'!P132 -> 1 | F136: ='[1]Tabel 4F Sydj DATA'!Q132 -> 0 | G136: ='[1]Tabel 4F Sydj DATA'!R132 -> 1 | I136: ='[1]Tabel 4F Sydj DATA'!T132 -> 2
A137: ='[1]Tabel 4F Sydj DATA'!L133 -> Musikudd. | C137: ='[1]Tabel 4F Sydj DATA'!N133 -> 0 | D137: ='[1]Tabel 4F Sydj DATA'!O133 -> 0 | E137: ='[1]Tabel 4F Sydj DATA'!P133 -> 0 | F137: ='[1]Tabel 4F Sydj DATA'!Q133 -> 2 | G137: ='[1]Tabel 4F Sydj DATA'!R133 -> 0 | I137: ='[1]Tabel 4F Sydj DATA'!T133 -> 2
A138: ='[1]Tabel 4F Sydj DATA'!L134 -> Teolog | C138: ='[1]Tabel 4F Sydj DATA'!N134 -> 0 | D138: ='[1]Tabel 4F Sydj DATA'!O134 -> 1 | E138: ='[1]Tabel 4F Sydj DATA'!P134 -> 0 | F138: ='[1]Tabel 4F Sydj DATA'!Q134 -> 3 | G138: ='[1]Tabel 4F Sydj DATA'!R134 -> 0 | I138: ='[1]Tabel 4F Sydj DATA'!T134 -> 4
A139: ='[1]Tabel 4F Sydj DATA'!L135 -> Psykolog | C139: ='[1]Tabel 4F Sydj DATA'!N135 -> 2 | D139: ='[1]Tabel 4F Sydj DATA'!O135 -> 4 | E139: ='[1]Tabel 4F Sydj DATA'!P135 -> 1 | F139: ='[1]Tabel 4F Sydj DATA'!Q135 -> 0 | G139: ='[1]Tabel 4F Sydj DATA'!R135 -> 1 | I139: ='[1]Tabel 4F Sydj DATA'!T135 -> 8
A140: ='[1]Tabel 4F Sydj DATA'!L136 -> Jurist | C140: ='[1]Tabel 4F Sydj DATA'!N136 -> 0 | D140: ='[1]Tabel 4F Sydj DATA'!O136 -> 3 | E140: ='[1]Tabel 4F Sydj DATA'!P136 -> 8 | F140: ='[1]Tabel 4F Sydj DATA'!Q136 -> 2 | G140: ='[1]Tabel 4F Sydj DATA'!R136 -> 0 | I140: ='[1]Tabel 4F Sydj DATA'!T136 -> 13
A141: ='[1]Tabel 4F Sydj DATA'!L137 -> Økonom | C141: ='[1]Tabel 4F Sydj DATA'!N137 -> 1 | D141: ='[1]Tabel 4F Sydj DATA'!O137 -> 2 | E141: ='[1]Tabel 4F Sydj DATA'!P137 -> 1 | F141: ='[1]Tabel 4F Sydj DATA'!Q137 -> 2 | G141: ='[1]Tabel 4F Sydj DATA'!R137 -> 3 | I141: ='[1]Tabel 4F Sydj DATA'!T137 -> 9
A142: ='[1]Tabel 4F Sydj DATA'!L138 -> Samf. Adm. | C142: ='[1]Tabel 4F Sydj DATA'!N138 -> 3 | D142: ='[1]Tabel 4F Sydj DATA'!O138 -> 14 | E142: ='[1]Tabel 4F Sydj DATA'!P138 -> 5 | F142: ='[1]Tabel 4F Sydj DATA'!Q138 -> 3 | G142: ='[1]Tabel 4F Sydj DATA'!R138 -> 1 | I142: ='[1]Tabel 4F Sydj DATA'!T138 -> 26
A143: ='[1]Tabel 4F Sydj DATA'!L139 -> Cand. Merc. | C143: ='[1]Tabel 4F Sydj DATA'!N139 -> 8 | D143: ='[1]Tabel 4F Sydj DATA'!O139 -> 21 | E143: ='[1]Tabel 4F Sydj DATA'!P139 -> 18 | F143: ='[1]Tabel 4F Sydj DATA'!Q139 -> 12 | G143: ='[1]Tabel 4F Sydj DATA'!R139 -> 4 | I143: ='[1]Tabel 4F Sydj DATA'!T139 -> 63
A144: ='[1]Tabel 4F Sydj DATA'!L140 -> HA | C144: ='[1]Tabel 4F Sydj DATA'!N140 -> 2 | D144: ='[1]Tabel 4F Sydj DATA'!O140 -> 2 | E144: ='[1]Tabel 4F Sydj DATA'!P140 -> 2 | F144: ='[1]Tabel 4F Sydj DATA'!Q140 -> 6 | G144: ='[1]Tabel 4F Sydj DATA'!R140 -> 1 | I144: ='[1]Tabel 4F Sydj DATA'!T140 -> 13
A145: ='[1]Tabel 4F Sydj DATA'!L141 -> HD | C145: ='[1]Tabel 4F Sydj DATA'!N141 -> 0 | D145: ='[1]Tabel 4F Sydj DATA'!O141 -> 2 | E145: ='[1]Tabel 4F Sydj DATA'!P141 -> 1 | F145: ='[1]Tabel 4F Sydj DATA'!Q141 -> 4 | G145: ='[1]Tabel 4F Sydj DATA'!R141 -> 3 | I145: ='[1]Tabel 4F Sydj DATA'!T141 -> 10
A146: ='[1]Tabel 4F Sydj DATA'!L142 -> Komm. og Sprog | C146: ='[1]Tabel 4F Sydj DATA'!N142 -> 1 | D146: ='[1]Tabel 4F Sydj DATA'!O142 -> 2 | E146: ='[1]Tabel 4F Sydj DATA'!P142 -> 2 | F146: ='[1]Tabel 4F Sydj DATA'!Q142 -> 7 | G146: ='[1]Tabel 4F Sydj DATA'!R142 -> 5 | I146: ='[1]Tabel 4F Sydj DATA'!T142 -> 17
A147: ='[1]Tabel 4F Sydj DATA'!L143 -> Bygningskonst. | C147: ='[1]Tabel 4F Sydj DATA'!N143 -> 3 | D147: ='[1]Tabel 4F Sydj DATA'!O143 -> 7 | E147: ='[1]Tabel 4F Sydj DATA'!P143 -> 4 | F147: ='[1]Tabel 4F Sydj DATA'!Q143 -> 0 | G147: ='[1]Tabel 4F Sydj DATA'!R143 -> 0 | I147: ='[1]Tabel 4F Sydj DATA'!T143 -> 14
A148: ='[1]Tabel 4F Sydj DATA'!L144 -> Cand. IT. | C148: ='[1]Tabel 4F Sydj DATA'!N144 -> 2 | D148: ='[1]Tabel 4F Sydj DATA'!O144 -> 5 | E148: ='[1]Tabel 4F Sydj DATA'!P144 -> 1 | F148: ='[1]Tabel 4F Sydj DATA'!Q144 -> 0 | G148: ='[1]Tabel 4F Sydj DATA'!R144 -> 0 | I148: ='[1]Tabel 4F Sydj DATA'!T144 -> 8
A149: ='[1]Tabel 4F Sydj DATA'!L145 -> Bac. Samf. | C149: ='[1]Tabel 4F Sydj DATA'!N145 -> 0 | D149: ='[1]Tabel 4F Sydj DATA'!O145 -> 2 | E149: ='[1]Tabel 4F Sydj DATA'!P145 -> 2 | F149: ='[1]Tabel 4F Sydj DATA'!Q145 -> 1 | G149: ='[1]Tabel 4F Sydj DATA'!R145 -> 0 | I149: ='[1]Tabel 4F Sydj DATA'!T145 -> 5
A150: ='[1]Tabel 4F Sydj DATA'!L146 -> Bac. Hum. | C150: ='[1]Tabel 4F Sydj DATA'!N146 -> 0 | D150: ='[1]Tabel 4F Sydj DATA'!O146 -> 1 | E150: ='[1]Tabel 4F Sydj DATA'!P146 -> 1 | F150: ='[1]Tabel 4F Sydj DATA'!Q146 -> 0 | G150: ='[1]Tabel 4F Sydj DATA'!R146 -> 0 | I150: ='[1]Tabel 4F Sydj DATA'!T146 -> 2
A151: ='[1]Tabel 4F Sydj DATA'!L147 -> Bac. Nat. | C151: ='[1]Tabel 4F Sydj DATA'!N147 -> 3 | D151: ='[1]Tabel 4F Sydj DATA'!O147 -> 3 | E151: ='[1]Tabel 4F Sydj DATA'!P147 -> 3 | F151: ='[1]Tabel 4F Sydj DATA'!Q147 -> 1 | G151: ='[1]Tabel 4F Sydj DATA'!R147 -> 0 | I151: ='[1]Tabel 4F Sydj DATA'!T147 -> 10
A152: ='[1]Tabel 4F Sydj DATA'!L148 -> Andre | C152: ='[1]Tabel 4F Sydj DATA'!N148 -> 2 | D152: ='[1]Tabel 4F Sydj DATA'!O148 -> 19 | E152: ='[1]Tabel 4F Sydj DATA'!P148 -> 16 | F152: ='[1]Tabel 4F Sydj DATA'!Q148 -> 10 | G152: ='[1]Tabel 4F Sydj DATA'!R148 -> 3 | I152: ='[1]Tabel 4F Sydj DATA'!T148 -> 50
A154: ='[1]Tabel 4F Sydj DATA'!L150 -> Total | C154: ='[1]Tabel 4F Sydj DATA'!N150 -> 51 | D154: ='[1]Tabel 4F Sydj DATA'!O150 -> 159 | E154: ='[1]Tabel 4F Sydj DATA'!P150 -> 130 | F154: ='[1]Tabel 4F Sydj DATA'!Q150 -> 125 | G154: ='[1]Tabel 4F Sydj DATA'!R150 -> 44 | I154: ='[1]Tabel 4F Sydj DATA'!T150 -> 509
A156: ='[1]Tabel 4F Sydj DATA'!L152 -> Ingeniører i alt | C156: ='[1]Tabel 4F Sydj DATA'!N152 -> 7 | D156: ='[1]Tabel 4F Sydj DATA'!O152 -> 35 | E156: ='[1]Tabel 4F Sydj DATA'!P152 -> 30 | F156: ='[1]Tabel 4F Sydj DATA'!Q152 -> 46 | G156: ='[1]Tabel 4F Sydj DATA'!R152 -> 11 | I156: ='[1]Tabel 4F Sydj DATA'!T152 -> 129
A157: ='[1]Tabel 4F Sydj DATA'!L153 -> Magistre i alt | C157: ='[1]Tabel 4F Sydj DATA'!N153 -> 7 | D157: ='[1]Tabel 4F Sydj DATA'!O153 -> 19 | E157: ='[1]Tabel 4F Sydj DATA'!P153 -> 23 | F157: ='[1]Tabel 4F Sydj DATA'!Q153 -> 17 | G157: ='[1]Tabel 4F Sydj DATA'!R153 -> 5 | I157: ='[1]Tabel 4F Sydj DATA'!T153 -> 71
A158: ='[1]Tabel 4F Sydj DATA'!L154 -> DJØF'ere i alt | C158: ='[1]Tabel 4F Sydj DATA'!N154 -> 14 | D158: ='[1]Tabel 4F Sydj DATA'!O154 -> 42 | E158: ='[1]Tabel 4F Sydj DATA'!P154 -> 34 | F158: ='[1]Tabel 4F Sydj DATA'!Q154 -> 25 | G158: ='[1]Tabel 4F Sydj DATA'!R154 -> 9 | I158: ='[1]Tabel 4F Sydj DATA'!T154 -> 124
A165: ='[1]Tabel 4F Sydj DATA'!L159 -> Sønderborg
C167: ='[1]Tabel 4F Sydj DATA'!N161 -> Under 30 år | D167: ='[1]Tabel 4F Sydj DATA'!O161 -> 30 - 39 år | E167: ='[1]Tabel 4F Sydj DATA'!P161 -> 40 - 49 år | F167: ='[1]Tabel 4F Sydj DATA'!Q161 -> 50 - 59 år | G167: ='[1]Tabel 4F Sydj DATA'!R161 -> Over 60 år | I167: ='[1]Tabel 4F Sydj DATA'!T161 -> I alt
A169: ='[1]Tabel 4F Sydj DATA'!L163 -> Civ. ing. | C169: ='[1]Tabel 4F Sydj DATA'!N163 -> 33 | D169: ='[1]Tabel 4F Sydj DATA'!O163 -> 76 | E169: ='[1]Tabel 4F Sydj DATA'!P163 -> 80 | F169: ='[1]Tabel 4F Sydj DATA'!Q163 -> 73 | G169: ='[1]Tabel 4F Sydj DATA'!R163 -> 15 | I169: ='[1]Tabel 4F Sydj DATA'!T163 -> 277
A170: ='[1]Tabel 4F Sydj DATA'!L164 -> Diplom ing. | C170: ='[1]Tabel 4F Sydj DATA'!N164 -> 46 | D170: ='[1]Tabel 4F Sydj DATA'!O164 -> 106 | E170: ='[1]Tabel 4F Sydj DATA'!P164 -> 207 | F170: ='[1]Tabel 4F Sydj DATA'!Q164 -> 294 | G170: ='[1]Tabel 4F Sydj DATA'!R164 -> 109 | I170: ='[1]Tabel 4F Sydj DATA'!T164 -> 762
A171: ='[1]Tabel 4F Sydj DATA'!L165 -> Cand. Scient. Tek. | C171: ='[1]Tabel 4F Sydj DATA'!N165 -> 38 | D171: ='[1]Tabel 4F Sydj DATA'!O165 -> 62 | E171: ='[1]Tabel 4F Sydj DATA'!P165 -> 26 | F171: ='[1]Tabel 4F Sydj DATA'!Q165 -> 12 | G171: ='[1]Tabel 4F Sydj DATA'!R165 -> 5 | I171: ='[1]Tabel 4F Sydj DATA'!T165 -> 143
A172: ='[1]Tabel 4F Sydj DATA'!L166 -> MA. Hum. | C172: ='[1]Tabel 4F Sydj DATA'!N166 -> 20 | D172: ='[1]Tabel 4F Sydj DATA'!O166 -> 69 | E172: ='[1]Tabel 4F Sydj DATA'!P166 -> 67 | F172: ='[1]Tabel 4F Sydj DATA'!Q166 -> 28 | G172: ='[1]Tabel 4F Sydj DATA'!R166 -> 24 | I172: ='[1]Tabel 4F Sydj DATA'!T166 -> 208
A173: ='[1]Tabel 4F Sydj DATA'!L167 -> MA. Nat. | C173: ='[1]Tabel 4F Sydj DATA'!N167 -> 8 | D173: ='[1]Tabel 4F Sydj DATA'!O167 -> 19 | E173: ='[1]Tabel 4F Sydj DATA'!P167 -> 25 | F173: ='[1]Tabel 4F Sydj DATA'!Q167 -> 19 | G173: ='[1]Tabel 4F Sydj DATA'!R167 -> 8 | I173: ='[1]Tabel 4F Sydj DATA'!T167 -> 79
A174: ='[1]Tabel 4F Sydj DATA'!L168 -> MA. Ph.d. | C174: ='[1]Tabel 4F Sydj DATA'!N168 -> 0 | D174: ='[1]Tabel 4F Sydj DATA'!O168 -> 2 | E174: ='[1]Tabel 4F Sydj DATA'!P168 -> 7 | F174: ='[1]Tabel 4F Sydj DATA'!Q168 -> 3 | G174: ='[1]Tabel 4F Sydj DATA'!R168 -> 1 | I174: ='[1]Tabel 4F Sydj DATA'!T168 -> 13
A175: ='[1]Tabel 4F Sydj DATA'!L169 -> MA. Samf. | C175: ='[1]Tabel 4F Sydj DATA'!N169 -> 1 | D175: ='[1]Tabel 4F Sydj DATA'!O169 -> 8 | E175: ='[1]Tabel 4F Sydj DATA'!P169 -> 1 | F175: ='[1]Tabel 4F Sydj DATA'!Q169 -> 1 | G175: ='[1]Tabel 4F Sydj DATA'!R169 -> 0 | I175: ='[1]Tabel 4F Sydj DATA'!T169 -> 11
A176: ='[1]Tabel 4F Sydj DATA'!L170 -> Øvrige Mag. | C176: ='[1]Tabel 4F Sydj DATA'!N170 -> 1 | D176: ='[1]Tabel 4F Sydj DATA'!O170 -> 7 | E176: ='[1]Tabel 4F Sydj DATA'!P170 -> 6 | F176: ='[1]Tabel 4F Sydj DATA'!Q170 -> 3 | G176: ='[1]Tabel 4F Sydj DATA'!R170 -> 4 | I176: ='[1]Tabel 4F Sydj DATA'!T170 -> 21
A177: ='[1]Tabel 4F Sydj DATA'!L171 -> Agronom | C177: ='[1]Tabel 4F Sydj DATA'!N171 -> 5 | D177: ='[1]Tabel 4F Sydj DATA'!O171 -> 3 | E177: ='[1]Tabel 4F Sydj DATA'!P171 -> 12 | F177: ='[1]Tabel 4F Sydj DATA'!Q171 -> 9 | G177: ='[1]Tabel 4F Sydj DATA'!R171 -> 1 | I177: ='[1]Tabel 4F Sydj DATA'!T171 -> 30
A178: ='[1]Tabel 4F Sydj DATA'!L172 -> Landsk. Arkt. | C178: ='[1]Tabel 4F Sydj DATA'!N172 -> 0 | D178: ='[1]Tabel 4F Sydj DATA'!O172 -> 1 | E178: ='[1]Tabel 4F Sydj DATA'!P172 -> 1 | F178: ='[1]Tabel 4F Sydj DATA'!Q172 -> 2 | G178: ='[1]Tabel 4F Sydj DATA'!R172 -> 0 | I178: ='[1]Tabel 4F Sydj DATA'!T172 -> 4
A179: ='[1]Tabel 4F Sydj DATA'!L173 -> Hortonom | C179: ='[1]Tabel 4F Sydj DATA'!N173 -> 0 | D179: ='[1]Tabel 4F Sydj DATA'!O173 -> 0 | E179: ='[1]Tabel 4F Sydj DATA'!P173 -> 0 | F179: ='[1]Tabel 4F Sydj DATA'!Q173 -> 0 | G179: ='[1]Tabel 4F Sydj DATA'!R173 -> 1 | I179: ='[1]Tabel 4F Sydj DATA'!T173 -> 1
A180: ='[1]Tabel 4F Sydj DATA'!L174 -> Forstkand. | C180: ='[1]Tabel 4F Sydj DATA'!N174 -> 0 | D180: ='[1]Tabel 4F Sydj DATA'!O174 -> 2 | E180: ='[1]Tabel 4F Sydj DATA'!P174 -> 3 | F180: ='[1]Tabel 4F Sydj DATA'!Q174 -> 2 | G180: ='[1]Tabel 4F Sydj DATA'!R174 -> 0 | I180: ='[1]Tabel 4F Sydj DATA'!T174 -> 7
A181: ='[1]Tabel 4F Sydj DATA'!L175 -> Jordbrugsakad. | C181: ='[1]Tabel 4F Sydj DATA'!N175 -> 5 | D181: ='[1]Tabel 4F Sydj DATA'!O175 -> 6 | E181: ='[1]Tabel 4F Sydj DATA'!P175 -> 16 | F181: ='[1]Tabel 4F Sydj DATA'!Q175 -> 13 | G181: ='[1]Tabel 4F Sydj DATA'!R175 -> 2 | I181: ='[1]Tabel 4F Sydj DATA'!T175 -> 42
A182: ='[1]Tabel 4F Sydj DATA'!L176 -> Mejeriing. | C182: ='[1]Tabel 4F Sydj DATA'!N176 -> 0 | D182: ='[1]Tabel 4F Sydj DATA'!O176 -> 0 | E182: ='[1]Tabel 4F Sydj DATA'!P176 -> 0 | F182: ='[1]Tabel 4F Sydj DATA'!Q176 -> 1 | G182: ='[1]Tabel 4F Sydj DATA'!R176 -> 0 | I182: ='[1]Tabel 4F Sydj DATA'!T176 -> 1
A183: ='[1]Tabel 4F Sydj DATA'!L177 -> Levn.m.kand. | C183: ='[1]Tabel 4F Sydj DATA'!N177 -> 0 | D183: ='[1]Tabel 4F Sydj DATA'!O177 -> 0 | E183: ='[1]Tabel 4F Sydj DATA'!P177 -> 0 | F183: ='[1]Tabel 4F Sydj DATA'!Q177 -> 0 | G183: ='[1]Tabel 4F Sydj DATA'!R177 -> 0 | I183: ='[1]Tabel 4F Sydj DATA'!T177 -> 0
A184: ='[1]Tabel 4F Sydj DATA'!L178 -> Dyrlæge | C184: ='[1]Tabel 4F Sydj DATA'!N178 -> 3 | D184: ='[1]Tabel 4F Sydj DATA'!O178 -> 7 | E184: ='[1]Tabel 4F Sydj DATA'!P178 -> 4 | F184: ='[1]Tabel 4F Sydj DATA'!Q178 -> 3 | G184: ='[1]Tabel 4F Sydj DATA'!R178 -> 0 | I184: ='[1]Tabel 4F Sydj DATA'!T178 -> 17
A185: ='[1]Tabel 4F Sydj DATA'!L179 -> Farmaceut | C185: ='[1]Tabel 4F Sydj DATA'!N179 -> 2 | D185: ='[1]Tabel 4F Sydj DATA'!O179 -> 6 | E185: ='[1]Tabel 4F Sydj DATA'!P179 -> 5 | F185: ='[1]Tabel 4F Sydj DATA'!Q179 -> 6 | G185: ='[1]Tabel 4F Sydj DATA'!R179 -> 1 | I185: ='[1]Tabel 4F Sydj DATA'!T179 -> 20
A186: ='[1]Tabel 4F Sydj DATA'!L180 -> Læge | C186: ='[1]Tabel 4F Sydj DATA'!N180 -> 16 | D186: ='[1]Tabel 4F Sydj DATA'!O180 -> 30 | E186: ='[1]Tabel 4F Sydj DATA'!P180 -> 9 | F186: ='[1]Tabel 4F Sydj DATA'!Q180 -> 9 | G186: ='[1]Tabel 4F Sydj DATA'!R180 -> 6 | I186: ='[1]Tabel 4F Sydj DATA'!T180 -> 70
A187: ='[1]Tabel 4F Sydj DATA'!L181 -> Tandlæge | C187: ='[1]Tabel 4F Sydj DATA'!N181 -> 4 | D187: ='[1]Tabel 4F Sydj DATA'!O181 -> 5 | E187: ='[1]Tabel 4F Sydj DATA'!P181 -> 1 | F187: ='[1]Tabel 4F Sydj DATA'!Q181 -> 1 | G187: ='[1]Tabel 4F Sydj DATA'!R181 -> 0 | I187: ='[1]Tabel 4F Sydj DATA'!T181 -> 11
A188: ='[1]Tabel 4F Sydj DATA'!L182 -> Arkitekt | C188: ='[1]Tabel 4F Sydj DATA'!N182 -> 1 | D188: ='[1]Tabel 4F Sydj DATA'!O182 -> 8 | E188: ='[1]Tabel 4F Sydj DATA'!P182 -> 1 | F188: ='[1]Tabel 4F Sydj DATA'!Q182 -> 0 | G188: ='[1]Tabel 4F Sydj DATA'!R182 -> 1 | I188: ='[1]Tabel 4F Sydj DATA'!T182 -> 11
A189: ='[1]Tabel 4F Sydj DATA'!L183 -> Landinspek. | C189: ='[1]Tabel 4F Sydj DATA'!N183 -> 0 | D189: ='[1]Tabel 4F Sydj DATA'!O183 -> 0 | E189: ='[1]Tabel 4F Sydj DATA'!P183 -> 2 | F189: ='[1]Tabel 4F Sydj DATA'!Q183 -> 3 | G189: ='[1]Tabel 4F Sydj DATA'!R183 -> 0 | I189: ='[1]Tabel 4F Sydj DATA'!T183 -> 5
A190: ='[1]Tabel 4F Sydj DATA'!L184 -> Bibliotekar | C190: ='[1]Tabel 4F Sydj DATA'!N184 -> 1 | D190: ='[1]Tabel 4F Sydj DATA'!O184 -> 3 | E190: ='[1]Tabel 4F Sydj DATA'!P184 -> 11 | F190: ='[1]Tabel 4F Sydj DATA'!Q184 -> 14 | G190: ='[1]Tabel 4F Sydj DATA'!R184 -> 5 | I190: ='[1]Tabel 4F Sydj DATA'!T184 -> 34
A191: ='[1]Tabel 4F Sydj DATA'!L185 -> Musikudd. | C191: ='[1]Tabel 4F Sydj DATA'!N185 -> 0 | D191: ='[1]Tabel 4F Sydj DATA'!O185 -> 1 | E191: ='[1]Tabel 4F Sydj DATA'!P185 -> 0 | F191: ='[1]Tabel 4F Sydj DATA'!Q185 -> 3 | G191: ='[1]Tabel 4F Sydj DATA'!R185 -> 0 | I191: ='[1]Tabel 4F Sydj DATA'!T185 -> 4
A192: ='[1]Tabel 4F Sydj DATA'!L186 -> Teolog | C192: ='[1]Tabel 4F Sydj DATA'!N186 -> 0 | D192: ='[1]Tabel 4F Sydj DATA'!O186 -> 2 | E192: ='[1]Tabel 4F Sydj DATA'!P186 -> 7 | F192: ='[1]Tabel 4F Sydj DATA'!Q186 -> 11 | G192: ='[1]Tabel 4F Sydj DATA'!R186 -> 5 | I192: ='[1]Tabel 4F Sydj DATA'!T186 -> 25
A193: ='[1]Tabel 4F Sydj DATA'!L187 -> Psykolog | C193: ='[1]Tabel 4F Sydj DATA'!N187 -> 11 | D193: ='[1]Tabel 4F Sydj DATA'!O187 -> 12 | E193: ='[1]Tabel 4F Sydj DATA'!P187 -> 13 | F193: ='[1]Tabel 4F Sydj DATA'!Q187 -> 10 | G193: ='[1]Tabel 4F Sydj DATA'!R187 -> 5 | I193: ='[1]Tabel 4F Sydj DATA'!T187 -> 51
A194: ='[1]Tabel 4F Sydj DATA'!L188 -> Jurist | C194: ='[1]Tabel 4F Sydj DATA'!N188 -> 10 | D194: ='[1]Tabel 4F Sydj DATA'!O188 -> 24 | E194: ='[1]Tabel 4F Sydj DATA'!P188 -> 16 | F194: ='[1]Tabel 4F Sydj DATA'!Q188 -> 9 | G194: ='[1]Tabel 4F Sydj DATA'!R188 -> 2 | I194: ='[1]Tabel 4F Sydj DATA'!T188 -> 61
A195: ='[1]Tabel 4F Sydj DATA'!L189 -> Økonom | C195: ='[1]Tabel 4F Sydj DATA'!N189 -> 3 | D195: ='[1]Tabel 4F Sydj DATA'!O189 -> 9 | E195: ='[1]Tabel 4F Sydj DATA'!P189 -> 13 | F195: ='[1]Tabel 4F Sydj DATA'!Q189 -> 11 | G195: ='[1]Tabel 4F Sydj DATA'!R189 -> 2 | I195: ='[1]Tabel 4F Sydj DATA'!T189 -> 38
A196: ='[1]Tabel 4F Sydj DATA'!L190 -> Samf. Adm. | C196: ='[1]Tabel 4F Sydj DATA'!N190 -> 12 | D196: ='[1]Tabel 4F Sydj DATA'!O190 -> 31 | E196: ='[1]Tabel 4F Sydj DATA'!P190 -> 32 | F196: ='[1]Tabel 4F Sydj DATA'!Q190 -> 17 | G196: ='[1]Tabel 4F Sydj DATA'!R190 -> 5 | I196: ='[1]Tabel 4F Sydj DATA'!T190 -> 97
A197: ='[1]Tabel 4F Sydj DATA'!L191 -> Cand. Merc. | C197: ='[1]Tabel 4F Sydj DATA'!N191 -> 22 | D197: ='[1]Tabel 4F Sydj DATA'!O191 -> 73 | E197: ='[1]Tabel 4F Sydj DATA'!P191 -> 59 | F197: ='[1]Tabel 4F Sydj DATA'!Q191 -> 54 | G197: ='[1]Tabel 4F Sydj DATA'!R191 -> 7 | I197: ='[1]Tabel 4F Sydj DATA'!T191 -> 215
A198: ='[1]Tabel 4F Sydj DATA'!L192 -> HA | C198: ='[1]Tabel 4F Sydj DATA'!N192 -> 5 | D198: ='[1]Tabel 4F Sydj DATA'!O192 -> 10 | E198: ='[1]Tabel 4F Sydj DATA'!P192 -> 14 | F198: ='[1]Tabel 4F Sydj DATA'!Q192 -> 47 | G198: ='[1]Tabel 4F Sydj DATA'!R192 -> 7 | I198: ='[1]Tabel 4F Sydj DATA'!T192 -> 83
A199: ='[1]Tabel 4F Sydj DATA'!L193 -> HD | C199: ='[1]Tabel 4F Sydj DATA'!N193 -> 5 | D199: ='[1]Tabel 4F Sydj DATA'!O193 -> 9 | E199: ='[1]Tabel 4F Sydj DATA'!P193 -> 8 | F199: ='[1]Tabel 4F Sydj DATA'!Q193 -> 19 | G199: ='[1]Tabel 4F Sydj DATA'!R193 -> 9 | I199: ='[1]Tabel 4F Sydj DATA'!T193 -> 50
A200: ='[1]Tabel 4F Sydj DATA'!L194 -> Komm. og Sprog | C200: ='[1]Tabel 4F Sydj DATA'!N194 -> 4 | D200: ='[1]Tabel 4F Sydj DATA'!O194 -> 11 | E200: ='[1]Tabel 4F Sydj DATA'!P194 -> 18 | F200: ='[1]Tabel 4F Sydj DATA'!Q194 -> 19 | G200: ='[1]Tabel 4F Sydj DATA'!R194 -> 8 | I200: ='[1]Tabel 4F Sydj DATA'!T194 -> 60
A201: ='[1]Tabel 4F Sydj DATA'!L195 -> Bygningskonst. | C201: ='[1]Tabel 4F Sydj DATA'!N195 -> 2 | D201: ='[1]Tabel 4F Sydj DATA'!O195 -> 21 | E201: ='[1]Tabel 4F Sydj DATA'!P195 -> 19 | F201: ='[1]Tabel 4F Sydj DATA'!Q195 -> 10 | G201: ='[1]Tabel 4F Sydj DATA'!R195 -> 3 | I201: ='[1]Tabel 4F Sydj DATA'!T195 -> 55
A202: ='[1]Tabel 4F Sydj DATA'!L196 -> Cand. IT. | C202: ='[1]Tabel 4F Sydj DATA'!N196 -> 3 | D202: ='[1]Tabel 4F Sydj DATA'!O196 -> 13 | E202: ='[1]Tabel 4F Sydj DATA'!P196 -> 6 | F202: ='[1]Tabel 4F Sydj DATA'!Q196 -> 1 | G202: ='[1]Tabel 4F Sydj DATA'!R196 -> 0 | I202: ='[1]Tabel 4F Sydj DATA'!T196 -> 23
A203: ='[1]Tabel 4F Sydj DATA'!L197 -> Bac. Samf. | C203: ='[1]Tabel 4F Sydj DATA'!N197 -> 3 | D203: ='[1]Tabel 4F Sydj DATA'!O197 -> 5 | E203: ='[1]Tabel 4F Sydj DATA'!P197 -> 5 | F203: ='[1]Tabel 4F Sydj DATA'!Q197 -> 0 | G203: ='[1]Tabel 4F Sydj DATA'!R197 -> 1 | I203: ='[1]Tabel 4F Sydj DATA'!T197 -> 14
A204: ='[1]Tabel 4F Sydj DATA'!L198 -> Bac. Hum. | C204: ='[1]Tabel 4F Sydj DATA'!N198 -> 5 | D204: ='[1]Tabel 4F Sydj DATA'!O198 -> 5 | E204: ='[1]Tabel 4F Sydj DATA'!P198 -> 4 | F204: ='[1]Tabel 4F Sydj DATA'!Q198 -> 2 | G204: ='[1]Tabel 4F Sydj DATA'!R198 -> 2 | I204: ='[1]Tabel 4F Sydj DATA'!T198 -> 18
